Workbook

Sheet Data Input Instructions (hidden)
A3: Worksheet ID | B3: Worksheet | C3: Input Data Notes
A4: 1 | B4: Data Current Rates | C4: R2 Service Charge should already be net of RRRP credit
A5: 1 | B5: Data Current Rates | C5: Demand billed RTSR should already be loss adjusted
A6: 2 | B6: Data Proposed Rates | C6: Mapped from Draft Rates file prepared for Claude
A7: 2 | B7: Data Proposed Rates | C7: Row 5 with header name TEXT is precedent to templates; changes to TEXT need to reflected in templates
A8: 2 | B8: Data Proposed Rates | C8: Templates are set up with 2-dimension vlookups so it will accommodate inserted/deleted rows and/or columns
A9: 3 | B9: Data Billing Quantities | C9: Row 4 with header name TEXT is precedent to templates; changes to TEXT need to reflected in templates
A10: 3 | B10: Data Billing Quantities | C10: Templates are set up with 2-dimension vlookups so it will accommodate inserted/deleted rows and/or columns
A11: 4 | B11: Data Pass Through | C11: Changes to Pass Through rates can be manually input on this sheet, which is precedent to the templates
A12: 4 | B12: Data Pass Through | C12: Links to templates from Column A TEXT; any changes in the TEXT of the charge names must be reflected in the templates
A13: 5 | B13: Data BI List | C13: Instruction Sheet for macro to create individual bill impact worksheets
A14: 5 | B14: Data BI List | C14: Need to MANUALLY update Test Year to appear as header on all bill impact worksheets
A15: 6 | B15: Data BI Summary | C15: This replaces the need for cell references in summary sheet, and displays value for totals so rows can be added to templates and worksheets without having to update the summary sheet
B16: Bill Impact Summary | C16: This file has 2 hidden columns needed to link to worksheets; see Col E and F

Sheet Data Current Rates (hidden)
A1: Proposed 2025 Rates
H2: Charges inherited from Acquisition
A3: 1 | B3: 2 | C3: 3 | D3: 4 | E3: 5 | F3: 6 | G3: 7 | H3: 8 | I3: 9 | J3: 10 | K3: 11 | L3: 12 | M3: 13
A4: Rate Class | B4: Proposed Fixed Charge ($/month) | C4: Proposed Volumetric Charge ($/kWh or $/kW) | D4: Proposed Group 1 DVA Rider - Volumetric ($/kWh or $/kW) | E4: Porposed Group 1 DVA Rider - Volumetric Applicable to Non-WMP Only ($/kWh or $/kW) | F4: Proposed Rate Rider for Disposition of Global Adjustment (Non WMP, Non-RPP, Non-LDC, and Class B) ($/kWh) | G4: Proposed Rate Rider for CBR (Non-WMP Class B) ($/kWh or $/kW) | H4: Proposed Group 2 Rate Rider - Fixed ($/month) | I4: Proposed Group 2 Rate Rider - Volumetric ($/kWh or $/kW) | J4: Proposed Base Rate Adjustment for Past Tax Amounts - Fixed ($/month) | K4: Proposed Base Rate Adjustment for Past Tax Amounts - Volumetric ($/kWh or $/kW) | L4: Proposed RTSR-NW ($/kWh or $/kW) | M4: Proposed RTSR-CONN ($/kWh or $/kW)
A5: Rate as shown on Bill Impact Sheet | B5: Service Charge | C5: Distribution Volumetric Charge | D5: Group 1 Volumetric DVA Rider (General) | E5: Group 1 Volumetric Deferral/Variance Account Rider (Sub-Account RSVA Wholesale Market Service Charge & RSVA Power) | F5: Group 1 Volumetric Deferral/Variance Account Rider (Sub-Account Global Adjustment) | G5: Group 1 Volumetric Deferral/Variance Account Rider (Sub Account CBR) | H5: Group 2 Fixed DVA Rider | I5: Group 2 Volumetric DVA Rider | J5: Fixed Base Rate Adjustment to Recover Past Tax Amounts | K5: Volumetric Base Rate Adjustment to Recover Past Tax Amounts | L5: Retail Transmission Rate – Network Service Rate | M5: Retail Transmission Rate – Line and Transformation Connection Service Rate
A6: Rounding factor | B6: 2 | C6: 4 | D6: 4 | E6: 4 | F6: 4 | G6: 4 | H6: 2 | I6: 4 | J6: 2 | K6: 4 | L6: 4 | M6: 4
A7: UR | B7: 40.3 | C7: 0 | D7: -0.0004 | E7: 0 | F7: -0.0007 | H7: -0.08 | L7: 0.0109 | M7: 0.008
A8: R1 | B8: 68.72 | C8: 0 | D8: -0.0004 | E8: 0 | F8: -0.0007 | H8: -0.14 | L8: 0.0101 | M8: 0.0075
A9: R2 | B9: 78.91 | C9: 0 | D9: -0.0004 | E9: 0 | F9: -0.0007 | H9: -0.29 | L9: 0.0093 | M9: 0.0069
A10: GSe | B10: 33.66 | C10: 0.0734 | D10: -0.0004 | E10: 0 | F10: -0.0007 | I10: -0.0002 | L10: 0.008 | M10: 0.006
A11: UGe | B11: 26.29 | C11: 0.0352 | D11: -0.0004 | E11: 0 | F11: -0.0007 | I11: -0.0001 | L11: 0.0086 | M11: 0.0064
A12: St Lgt | B12: 3.18 | C12: 0.1196 | D12: -0.0004 | E12: 0 | F12: -0.0007 | I12: -0.0003 | L12: 0.0059 | M12: 0.0042
A13: Sen Lgt | B13: 2.99 | C13: 0.17 | D13: -0.0004 | E13: 0 | F13: -0.0007 | I13: -0.0003 | L13: 0.0059 | M13: 0.0042
A14: USL | B14: 36.85 | C14: 0.0235 | D14: -0.0004 | E14: 0 | F14: -0.0007 | I14: -0.0002 | L14: 0.0068 | M14: 0.0049
A15: GSd | B15: 107.44 | C15: 20.7175 | D15: -0.0519 | E15: -0.0726 | F15: -0.0007 | I15: -0.0475 | L15: 2.5967 | M15: 1.922
A16: UGd | B16: 98.64 | C16: 12.0084 | D16: -0.0641 | E16: -0.0897 | F16: -0.0007 | I16: -0.0282 | L16: 3.3197 | M16: 2.4419
A17: Dgen | B17: 204.64 | C17: 12.3039 | D17: -0.0239 | E17: -0.0344 | F17: -0.0007 | I17: -0.061 | L17: 1.4257 | M17: 0.8995
A18: ST | B18: 1287.390123 | C18: 1.6546 | D18: -0.0814 | E18: -0.1144 | F18: -0.0007 | I18: -0.0048 | L18: 4.3192 | M18: 3.3968
A19: AUR | B19: 33.28 | C19: 0 | D19: -0.0004 | E19: 0 | F19: -0.0007 | L19: 0.0113 | M19: 0.0082
A20: AUGe | B20: 28.8 | C20: 0.0165 | D20: -0.0004 | E20: 0 | F20: -0.0007 | L20: 0.0087 | M20: 0.0063
A21: AUGd | B21: 174.42 | C21: 2.8154 | D21: -0.059 | E21: -0.0821 | F21: -0.0007 | L21: 3.021 | M21: 2.1978
A22: AR | B22: 40.41 | C22: 0 | D22: -0.0004 | E22: 0 | F22: -0.0007 | L22: 0.0107 | M22: 0.0079
A23: AGSe | B23: 42.06 | C23: 0.0195 | D23: -0.0004 | E23: 0 | F23: -0.0007 | L23: 0.0085 | M23: 0.0063
A24: AGSd | B24: 202.16 | C24: 4.8875 | D24: -0.0595 | E24: -0.0829 | F24: -0.0007 | L24: 2.6521 | M24: 1.9934
A25: AUR-WHSI | B25: 33.28 | C25: 0 | D25: -0.0005 | E25: 0 | F25: -0.0007 | L25: 0.0113 | M25: 0.0082
A26: AUGe-WHSI | B26: 28.8 | C26: 0.0165 | D26: -0.0005 | E26: 0 | F26: -0.0007 | L26: 0.0087 | M26: 0.0063
A27: AUGd-WHSI | B27: 174.42 | C27: 2.8154 | D27: -0.0394 | E27: -0.0821 | F27: -0.0007 | L27: 3.021 | M27: 2.1978
A28: ST-WHSI | B28: 1287.39 | C28: 1.6546 | D28: -0.0648 | E28: 0 | F28: 0 | L28: 4.3192 | M28: 3.3968
A29: St Lgt-WHSI | B29: 3.18 | C29: 0.1196 | D29: -0.0003 | E29: 0 | F29: -0.0007 | L29: 0.0059 | M29: 0.0042
A30: USL-WHSI | B30: 36.85 | C30: 0.0235 | D30: -0.0005 | E30: 0 | F30: -0.0007 | L30: 0.0068 | M30: 0.0049
A31: AR-NPDI | B31: 40.41 | C31: 0 | D31: -0.0005 | E31: 0 | F31: -0.0007 | L31: 0.0107 | M31: 0.0079
A32: AGSe-NPDI | B32: 42.06 | C32: 0.0195 | D32: -0.0005 | E32: 0 | F32: -0.0007 | L32: 0.0085 | M32: 0.0063
A33: AGSd-NPDI | B33: 202.16 | C33: 4.8875 | D33: -0.0399 | E33: -0.0829 | F33: -0.0007 | L33: 2.6521 | M33: 1.9934
A34: St Lgt-NPDI | B34: 3.18 | C34: 0.1196 | D34: -0.0007 | E34: 0 | F34: -0.0007 | L34: 0.0059 | M34: 0.0042
A35: Sen Lgt-NPDI | B35: 2.99 | C35: 0.17 | D35: -0.0007 | E35: 0 | F35: -0.0007 | L35: 0.0059 | M35: 0.0042
A36: USL-NPDI | B36: 36.85 | C36: 0.0235 | D36: -0.0009 | E36: 0 | F36: -0.0007 | L36: 0.0068 | M36: 0.0049
A37: AR-HCHI | B37: 40.41 | C37: 0 | D37: -0.0004 | E37: 0 | F37: -0.0007 | L37: 0.0107 | M37: 0.0079
A38: AGSe-HCHI | B38: 42.06 | C38: 0.0195 | D38: -0.0004 | E38: 0 | F38: -0.0007 | L38: 0.0085 | M38: 0.0063
A39: AGSd-HCHI | B39: 202.16 | C39: 4.8875 | D39: -0.0595 | E39: -0.0829 | F39: -0.0007 | L39: 2.6521 | M39: 1.9934
A40: St Lgt-HCHI | B40: 3.18 | C40: 0.1196 | D40: -0.0004 | E40: 0 | F40: -0.0007 | L40: 0.0059 | M40: 0.0042
A41: Sen Lgt-HCHI | B41: 2.99 | C41: 0.17 | D41: -0.0004 | E41: 0 | F41: -0.0007 | L41: 0.0059 | M41: 0.0042
A42: USL-HCHI | B42: 36.85 | C42: 0.0235 | D42: -0.0004 | E42: 0 | F42: -0.0007 | L42: 0.0068 | M42: 0.0049

Sheet Data Proposed Rates (hidden)
A1: Proposed 2026 Rates
A3: 1 | B3: 2 | C3: 3 | D3: 4 | E3: 5 | F3: 6 | G3: 7 | H3: 8 | I3: 9 | J3: 10 | K3: 11 | L3: 12 | M3: 13
A4: Rate Class | B4: Proposed Fixed Charge ($/month) | C4: Proposed Volumetric Charge ($/kWh or $/kW) | D4: Proposed Group 1 DVA Rider - Volumetric ($/kWh or $/kW) | E4: Porposed Group 1 DVA Rider - Volumetric Applicable to Non-WMP Only ($/kWh or $/kW) | F4: Proposed Rate Rider for Disposition of Global Adjustment (Non WMP, Non-RPP, Non-LDC, and Class B) ($/kWh) | G4: Proposed Rate Rider for CBR (Non-WMP Class B) ($/kWh or $/kW) | H4: Proposed Group 2 Rate Rider - Fixed ($/month) | I4: Proposed Group 2 Rate Rider - Volumetric ($/kWh or $/kW) | J4: Proposed Base Rate Adjustment for Past Tax Amounts - Fixed ($/month) | K4: Proposed Base Rate Adjustment for Past Tax Amounts - Volumetric ($/kWh or $/kW) | L4: Proposed RTSR-NW ($/kWh or $/kW) | M4: Proposed RTSR-CONN ($/kWh or $/kW)
A5: Rate as shown on Bill Impact Sheet | B5: Service Charge | C5: Distribution Volumetric Charge | D5: Group 1 Volumetric DVA Rider (General) | E5: Group 1 Volumetric Deferral/Variance Account Rider (Sub-Account RSVA Wholesale Market Service Charge & RSVA Power) | F5: Group 1 Volumetric Deferral/Variance Account Rider (Sub-Account Global Adjustment) | G5: Group 1 Volumetric Deferral/Variance Account Rider (Sub Account CBR) | H5: Group 2 Fixed DVA Rider | I5: Group 2 Volumetric DVA Rider | J5: Fixed Base Rate Adjustment to Recover Past Tax Amounts | K5: Volumetric Base Rate Adjustment to Recover Past Tax Amounts | L5: Retail Transmission Rate – Network Service Rate | M5: Retail Transmission Rate – Line and Transformation Connection Service Rate
A6: Rounding Factor | B6: 2 | C6: 4 | D6: 4 | E6: 4 | F6: 4 | G6: 4 | H6: 2 | I6: 4 | J6: 2 | K6: 4 | L6: 4 | M6: 4
A7: UR | B7: 42.51 | C7: 0 | D7: -0.0004 | E7: 0 | F7: -0.0007 | H7: -0.08 | L7: 0.0109 | M7: 0.008
A8: R1 | B8: 71.86 | C8: 0 | D8: -0.0004 | E8: 0 | F8: -0.0007 | H8: -0.14 | L8: 0.0101 | M8: 0.0075
A9: R2 | B9: 86.55 | C9: 0 | D9: -0.0004 | E9: 0 | F9: -0.0007 | H9: -0.29 | L9: 0.0093 | M9: 0.0069
A10: GSe | B10: 35.09 | C10: 0.0776 | D10: -0.0004 | E10: 0 | F10: -0.0007 | I10: -0.0002 | L10: 0.008 | M10: 0.006
A11: UGe | B11: 27.45 | C11: 0.0373 | D11: -0.0004 | E11: 0 | F11: -0.0007 | I11: -0.0001 | L11: 0.0086 | M11: 0.0064
A12: St Lgt | B12: 3.3 | C12: 0.1262 | D12: -0.0004 | E12: 0 | F12: -0.0007 | I12: -0.0003 | L12: 0.0059 | M12: 0.0042
A13: Sen Lgt | B13: 3.13 | C13: 0.1799 | D13: -0.0004 | E13: 0 | F13: -0.0007 | I13: -0.0003 | L13: 0.0059 | M13: 0.0042
A14: USL | B14: 38.82 | C14: 0.0249 | D14: -0.0004 | E14: 0 | F14: -0.0007 | I14: -0.0002 | L14: 0.0068 | M14: 0.0049
A15: GSd | B15: 111.65 | C15: 21.8618 | D15: -0.0519 | E15: -0.0726 | F15: -0.0007 | I15: -0.0475 | L15: 2.5967 | M15: 1.922
A16: UGd | B16: 102.67 | C16: 12.6723 | D16: -0.0641 | E16: -0.0897 | F16: -0.0007 | I16: -0.0282 | L16: 3.3197 | M16: 2.4419
A17: Dgen | B17: 213.3 | C17: 13.2106 | D17: -0.0239 | E17: -0.0344 | F17: -0.0007 | I17: -0.061 | L17: 1.4257 | M17: 0.8995
A18: ST | B18: 1425.02 | C18: 1.8619 | D18: -0.0814 | E18: -0.1144 | F18: -0.0007 | I18: -0.0048 | L18: 4.3192 | M18: 3.3968
A19: AUR | B19: 35.1 | C19: 0 | D19: -0.0004 | E19: 0 | F19: -0.0007 | L19: 0.0113 | M19: 0.0082
A20: AUGe | B20: 30.45 | C20: 0.0174 | D20: -0.0004 | E20: 0 | F20: -0.0007 | L20: 0.0087 | M20: 0.0063
A21: AUGd | B21: 185.59 | C21: 2.9885 | D21: -0.059 | E21: -0.0821 | F21: -0.0007 | L21: 3.021 | M21: 2.1978
A22: AR | B22: 42.62 | C22: 0 | D22: -0.0004 | E22: 0 | F22: -0.0007 | L22: 0.0107 | M22: 0.0079
A23: AGSe | B23: 44.19 | C23: 0.0206 | D23: -0.0004 | E23: 0 | F23: -0.0007 | L23: 0.0085 | M23: 0.0063
A24: AGSd | B24: 212.05 | C24: 5.2112 | D24: -0.0595 | E24: -0.0829 | F24: -0.0007 | L24: 2.6521 | M24: 1.9934
A25: AUR-WHSI | B25: 35.1 | C25: 0 | D25: -0.0005 | E25: 0 | F25: -0.0007 | L25: 0.0113 | M25: 0.0082
A26: AUGe-WHSI | B26: 30.45 | C26: 0.0174 | D26: -0.0005 | E26: 0 | F26: -0.0007 | L26: 0.0087 | M26: 0.0063
A27: AUGd-WHSI | B27: 185.59 | C27: 2.9885 | D27: -0.0394 | E27: -0.0821 | F27: -0.0007 | L27: 3.021 | M27: 2.1978
A28: ST-WHSI | B28: 1425.02 | C28: 1.8619 | D28: -0.0648 | E28: 0 | F28: 0 | L28: 4.3192 | M28: 3.3968
A29: St Lgt-WHSI | B29: 3.3 | C29: 0.1262 | D29: -0.0003 | E29: 0 | F29: -0.0007 | L29: 0.0059 | M29: 0.0042
A30: USL-WHSI | B30: 38.82 | C30: 0.0249 | D30: -0.0005 | E30: 0 | F30: -0.0007 | L30: 0.0068 | M30: 0.0049
A31: AR-NPDI | B31: 42.62 | C31: 0 | D31: -0.0005 | E31: 0 | F31: -0.0007 | L31: 0.0107 | M31: 0.0079
A32: AGSe-NPDI | B32: 44.19 | C32: 0.0206 | D32: -0.0005 | E32: 0 | F32: -0.0007 | L32: 0.0085 | M32: 0.0063
A33: AGSd-NPDI | B33: 212.05 | C33: 5.2112 | D33: -0.0399 | E33: -0.0829 | F33: -0.0007 | L33: 2.6521 | M33: 1.9934
A34: St Lgt-NPDI | B34: 3.3 | C34: 0.1262 | D34: -0.0007 | E34: 0 | F34: -0.0007 | L34: 0.0059 | M34: 0.0042
A35: Sen Lgt-NPDI | B35: 3.13 | C35: 0.1799 | D35: -0.0007 | E35: 0 | F35: -0.0007 | L35: 0.0059 | M35: 0.0042
A36: USL-NPDI | B36: 38.82 | C36: 0.0249 | D36: -0.0009 | E36: 0 | F36: -0.0007 | L36: 0.0068 | M36: 0.0049
A37: AR-HCHI | B37: 42.62 | C37: 0 | D37: -0.0004 | E37: 0 | F37: -0.0007 | L37: 0.0107 | M37: 0.0079
A38: AGSe-HCHI | B38: 44.19 | C38: 0.0206 | D38: -0.0004 | E38: 0 | F38: -0.0007 | L38: 0.0085 | M38: 0.0063
A39: AGSd-HCHI | B39: 212.05 | C39: 5.2112 | D39: -0.0595 | E39: -0.0829 | F39: -0.0007 | L39: 2.6521 | M39: 1.9934
A40: St Lgt-HCHI | B40: 3.3 | C40: 0.1262 | D40: -0.0004 | E40: 0 | F40: -0.0007 | L40: 0.0059 | M40: 0.0042
A41: Sen Lgt-HCHI | B41: 3.13 | C41: 0.1799 | D41: -0.0004 | E41: 0 | F41: -0.0007 | L41: 0.0059 | M41: 0.0042
A42: USL-HCHI | B42: 38.82 | C42: 0.0249 | D42: -0.0004 | E42: 0 | F42: -0.0007 | L42: 0.0068 | M42: 0.0049

Sheet Data Billing Quantities (hidden)
A1: Rate Class-Specific Billing Quantities (Applied to Current and Proposed Bill)
E3: Consumption (kWh) | I3: Peak (kW) | M3: TOU Split
A4: Rate Class | B4: Loss Factor | C4: Charge Determinant | D4: Commodity Threshold | E4: Low kWh | F4: Typical kWh | G4: Average kWh | H4: High kWh | I4: Low kW | J4: Typical kW | K4: Average kW | L4: High kW | M4: TOU-Off Peak | N4: TOU-Mid Peak | O4: TOU-On Peak | P4: Acquired Street Light Service Charge
A5: UR | B5: 1.057 | C5: kWh | D5: 600 | E5: 340 | F5: 750 | G5: 690 | H5: 1260 | M5: 0.64 | N5: 0.18 | O5: 0.18
A6: R1 | B6: 1.076 | C6: kWh | D6: 600 | E6: 370 | F6: 750 | G6: 784 | H6: 1650 | M6: =M$5 -> 0.64 | N6: =N$5 -> 0.18 | O6: =O$5 -> 0.18
A7: R2 | B7: 1.105 | C7: kWh | D7: 600 | E7: 440 | F7: 750 | G7: 978 | H7: 2110 | M7: =M$5 -> 0.64 | N7: 0.18 | O7: 0.18
A8: Seasonal | B8: 1.104 | C8: kWh | D8: 600 | E8: 40 | G8: 369 | H8: 1040 | M8: 0.64 | N8: 0.18 | O8: 0.18
A9: GSe | B9: 1.096 | C9: kWh | D9: 750 | E9: 60 | F9: 2000 | G9: 1887 | H9: 5570 | M9: 0.64 | N9: 0.18 | O9: 0.18
A10: UGe | B10: 1.067 | C10: kWh | D10: 750 | E10: 180 | F10: 2000 | G10: 2494 | H10: 6930 | M10: 0.64 | N10: 0.18 | O10: 0.18
A11: St Lgt | B11: 1.092 | C11: kWh | D11: 750 | E11: 30 | G11: 1274 | H11: 2310
A12: Sen Lgt | B12: 1.092 | C12: kWh | D12: 750 | E12: 20 | G12: 49 | H12: 80
A13: USL | B13: 1.092 | C13: kWh | D13: 750 | E13: 100 | G13: 477 | H13: 550
A14: GSd | B14: 1.061 | C14: kW | D14: 0 | E14: 9310 | G14: 34334 | H14: 75790 | I14: 55 | K14: 110 | L14: 250
A15: UGd | B15: 1.05 | C15: kW | D15: 0 | E15: 13900 | G15: 42592 | H15: 97610 | I15: 55 | K15: 111 | L15: 280
A16: Dgen | B16: 1.061 | C16: kW | D16: 0 | E16: 10 | G16: 1709 | H16: 8490 | I16: 0.02941666667 | K16: 12 | L16: 45
A17: ST | B17: 1.034 | C17: kW | D17: 0 | E17: 88780 | G17: 1373443 | H17: 2641420 | I17: 500 | K17: 2808 | L17: 13730
A18: WHSI_RES | B18: 1.0431 | C18: kWh | D18: 600 | E18: 310 | F18: 750 | G18: 636 | H18: 1160 | M18: =M$5 -> 0.64 | N18: 0.18 | O18: 0.18
A19: WHSI_GS<50 | B19: 1.0431 | C19: kWh | D19: 750 | E19: 190 | F19: 2000 | G19: 2471 | H19: 7240 | M19: 0.64 | N19: 0.18 | O19: 0.18
A20: WHSI_GS 50>999 | B20: 1.0431 | C20: kW | E20: 9370 | G20: 47636 | H20: 137890 | I20: 50 | K20: 134 | L20: 340
A21: WHSI_GS >1,000kW | B21: 1.0326 | C21: kW | G21: 895853 | K21: 3301
A22: WHSI_St Lgt | B22: 1.0431 | C22: kW | D22: 750 | G22: 37079 | P22: 1
A23: WHSI_USL | B23: 1.0431 | C23: kWh | D23: 750 | G23: 1349 | M23: =M$5 -> 0.64 | N23: 0.18 | O23: 0.18
A24: NPDI_RES | B24: 1.0564 | C24: kWh | D24: 600 | E24: 290 | F24: 750 | G24: 692 | H24: 1230 | M24: 0.64 | N24: 0.18 | O24: 0.18
A25: NPDI_GS<50 | B25: 1.0564 | C25: kWh | D25: 750 | E25: 110 | F25: 2000 | G25: 2377 | H25: 6410 | M25: 0.64 | N25: 0.18 | O25: 0.18
A26: NPDI_GS >50 | B26: 1.0464 | C26: kW | E26: 13020 | G26: 70294 | H26: 129420 | I26: 55 | K26: 181 | L26: 300
A27: NPDI_St Lgt | B27: 1.0564 | C27: kW | D27: 750 | G27: 11389 | P27: 1
A28: NPDI_Sen Lgt | B28: 1.0564 | C28: kW | D28: 750 | G28: 108
A29: NPDI_USL | B29: 1.0564 | C29: kWh | D29: 750 | G29: 904
A30: HCHI_RES | B30: 1.0655 | C30: kWh | D30: 600 | E30: 250 | F30: 750 | G30: 742 | H30: 1410 | M30: =M$5 -> 0.64 | N30: 0.18 | O30: 0.18
A31: HCHI_GS<50 | B31: 1.0655 | C31: kWh | D31: 750 | E31: 90 | F31: 2000 | G31: 2261 | H31: 5430 | M31: 0.64 | N31: 0.18 | O31: 0.18
A32: HCHI_GS >50 | B32: 1.0548 | C32: kW | E32: 10880 | G32: 57529 | H32: 135160 | I32: 55 | K32: 175 | L32: 375
A33: HCHI_St Lgt | B33: 1.0655 | C33: kW | D33: 750 | G33: 31001 | P33: 1
A34: HCHI_Sen Lgt | B34: 1.0655 | C34: kW | D34: 750 | G34: 61
A35: HCHI_USL | B35: 1.0655 | C35: kWh | D35: 750 | G35: 471
A36: AUR | B36: 1.043 | C36: kWh | D36: 750 | E36: 310 | F36: 750 | G36: 636 | H36: 1160 | M36: =M$5 -> 0.64 | N36: 0.18 | O36: 0.18
A37: AUGe | B37: =B36 -> 1.043 | C37: kWh | D37: 750 | E37: 190 | F37: 2000 | G37: 2471 | H37: 7240 | M37: 0.64 | N37: 0.18 | O37: 0.18
A38: AUGd | B38: 1.033 | C38: kW | E38: 9370 | G38: 47636 | H38: 137890 | I38: 50 | K38: 134 | L38: 340
A39: AR | B39: 1.064 | C39: kWh | D39: 750 | F39: 750 | M39: =M$5 -> 0.64 | N39: 0.18 | O39: 0.18
A40: AGSe | B40: =B39 -> 1.064 | C40: kWh | D40: 750 | F40: 2000 | M40: 0.64 | N40: 0.18 | O40: 0.18
A41: AGSd | B41: 1.053 | C41: kW
A42: AUR-WHSI | B42: =B36 -> 1.043 | C42: kWh | D42: =D36 -> 750 | E42: 310 | F42: 750 | G42: 636 | H42: 1160 | M42: =M$5 -> 0.64 | N42: 0.18 | O42: 0.18
A43: AUGe-WHSI | B43: =B37 -> 1.043 | C43: kWh | D43: =D37 -> 750 | E43: 190 | F43: 2000 | G43: 2471 | H43: 7240 | M43: 0.64 | N43: 0.18 | O43: 0.18
A44: AUGd-WHSI | B44: =B38 -> 1.033 | C44: kW | E44: 9370 | G44: 47636 | H44: 137890 | I44: 50 | K44: 134 | L44: 340
A45: ST-WHSI | B45: =B17 -> 1.034 | C45: kW | G45: 895853 | K45: 3301
A46: St Lgt-WHSI | B46: =B11 -> 1.092 | C46: kWh | D46: =D11 -> 750 | G46: =G22 -> 37079 | K46: =K22 -> 0 | P46: =P22 -> 1
A47: USL-WHSI | B47: =B13 -> 1.092 | C47: kWh | D47: =D13 -> 750 | G47: =G23 -> 1349
A48: AR-NPDI | B48: =B39 -> 1.064 | C48: kWh | D48: =D39 -> 750 | E48: 290 | F48: 750 | G48: 692 | H48: 1230 | M48: =M$5 -> 0.64 | N48: 0.18 | O48: 0.18
A49: AGSe-NPDI | B49: =B40 -> 1.064 | C49: kWh | D49: =D40 -> 750 | E49: 110 | F49: 2000 | G49: 2377 | H49: 6410 | M49: 0.64 | N49: 0.18 | O49: 0.18
A50: AGSd-NPDI | B50: =B41 -> 1.053 | C50: kW | D50: =D41 -> 0 | E50: 13020 | G50: 70294 | H50: 129420 | I50: 55 | K50: 181 | L50: 300
A51: St Lgt-NPDI | B51: =B11 -> 1.092 | C51: kWh | D51: =D11 -> 750 | G51: =G27 -> 11389 | K51: =K27 -> 0 | P51: =P27 -> 1
A52: Sen Lgt-NPDI | B52: =B12 -> 1.092 | C52: kWh | D52: =D12 -> 750 | G52: =G28 -> 108 | K52: =K28 -> 0
A53: USL-NPDI | B53: =B13 -> 1.092 | C53: kWh | D53: =D13 -> 750 | G53: =G29 -> 904
A54: AR-HCHI | B54: =B48 -> 1.064 | C54: kWh | D54: 750 | E54: 250 | F54: 750 | G54: 742 | H54: 1410 | M54: =M$5 -> 0.64 | N54: 0.18 | O54: 0.18
A55: AGSe-HCHI | B55: 1.064 | C55: kWh | D55: 750 | E55: 90 | F55: 2000 | G55: 2261 | H55: 5430 | M55: 0.64 | N55: 0.18 | O55: 0.18
A56: AGSd-HCHI | B56: 1.053 | C56: kW | D56: 0 | E56: 10880 | G56: 57529 | H56: 135160 | I56: 55 | K56: 175 | L56: 375
A57: St Lgt-HCHI | B57: 1.092 | C57: kWh | D57: 750 | G57: =G33 -> 31001 | K57: =K33 -> 0 | P57: =P33 -> 1
A58: Sen Lgt-HCHI | B58: 1.092 | C58: kWh | D58: 750 | G58: =G34 -> 61 | K58: =K34 -> 0
A59: USL-HCHI | B59: 1.092 | C59: kWh | D59: 750 | G59: =G35 -> 471

Sheet Data Pass Through (hidden)
A1: 3. Pass Through Charges
B2: Current Bill | C2: Proposed Bill
A3: Effective Date | B3: 2022-01-01 | C3: 2023-01-01 | D3: TOU % | E3: Notes
A4: R2 Credit | B4: 60.5 | C4: =B4 -> 60.5
A5: Energy First Tier | B5: 0.098 | C5: =B5 -> 0.098 | E5: Effective May 1 2018
A6: Energy Second Tier | B6: 0.115 | C6: 0.115 | E6: Effective May 1 2018
A7: Weighted Average Hourly Spot Price | B7: 0.119 | C7: =B7 -> 0.119 | E7: Avg for May 2020 to Apr 2021 (source: Commodity prices_SPOTv2.xls file at RAinternal/Niki/Misc
A8: TOU-Off Peak | B8: 0.082 | C8: 0.082 | D8: 0.64 | E8: Effective May 1 2018
A9: TOU-Mid Peak | B9: 0.113 | C9: 0.113 | D9: 0.18 | E9: Effective May 1 2018
A10: TOU-On Peak | B10: 0.17 | C10: 0.17 | D10: 0.18 | E10: Effective May 1 2018
A11: Wholesale Market Service Rate (WMS) - not including CBR | B11: 0.003 | C11: 0.003 | E11: Effective May 1 2017, 0.0036 WMSC broken up between WMSC and CBR
A12: Capacity Based Recovery (CBR) - Applicable for Class B Customers | B12: 0.0004 | C12: 0.0004 | E12: Effective May 1 2017, 0.0036 WMSC broken up between WMSC and CBR
A13: Rural Rate Protection Charge | B13: 0.0005 | C13: 0.0005 | E13: RRRP charge reduced from $0.0021/kWh to $0.0003/kWh effective July 1, 2017.
A14: Ontario Electricity Support Program Charge | B14: 0 | C14: 0 | E14: OESP charge removed for all rate classes effective May 1, 2017. ROW HIDDEN IN BILL IMPACT FILE
A15: Standard Supply Service – Administration Charge (if applicable) | B15: 0.25 | C15: 0.25
A16: Fair Hydro Plan - Distribution Rate Protection Savings* | B16: =IF('Bill Impact Summary'!L6="TOU",0,IF('Bill Impact Summary'!L6="TOU (DRP applied)",B17,"error")) -> 0 | C16: =IF('Bill Impact Summary'!L6="TOU",0,IF('Bill Impact Summary'!L6="TOU (DRP applied)",C17,"error")) -> 0 | E16: Highlighted cells are FORMULAS; do not overwrite with hard-entered values. Input DRP limit values in row 17 below
A17: DRP limit (applied when selected from Bill Impact Summary) | B17: 36.86 | C17: 36.86 | E17: Make change to FHP DRP limit here, but to apply DRP, must do in Bill Impact Summary sheet cell L6
A18: Smart Metering Entity Charge | B18: 0.57 | C18: 0.57 | E18: Change from 0.79 to 0.57 effective March 1 2018; only for metered energy-billed (UR, R1, R2, SEA, GSE, UGE)
A19: Debt Retirement Charge (DRC) | B19: 0 | C19: 0 | E19: DRC removed from all rate classes Apr 1 2018 ROW HIDDEN IN BILL IMPACT FILE
A20: Ontario Electricity Rebate (OER) | B20: -0.189 | C20: =B20 -> -0.189
A22: Customer Attributes - Assumptions
A23: ST customers are assumed to be Non-WMP, Class A

Sheet Data BI Summary (hidden)
A2: Summary Column | B2: Current Total Bill | C2: Change in DX Bill ($) | D2: Change in DX Bill (%) | E2: Change in Total Bill ($) | F2: Change in Total Bill (%)
A3: BI Template_Energy | B3: Total Amount on TOU | C3: Sub-Total: Distribution (excluding pass through) | D3: Sub-Total: Distribution (excluding pass through) | E3: Total Amount on TOU | F3: Total Amount on TOU
A4: BI Template_EnergyUNM | B4: Total Amount on Two-Tier RPP | C4: Sub-Total: Distribution (excluding pass through) | D4: Sub-Total: Distribution (excluding pass through) | E4: Total Amount on Two-Tier RPP | F4: Total Amount on Two-Tier RPP
A5: BI Template_Demand | B5: Total Amount on WAHSP | C5: Sub-Total: Distribution | D5: Sub-Total: Distribution | E5: Total Amount on WAHSP | F5: Total Amount on WAHSP
A6: BI Template_EnergyNPDI | B6: Total Amount on TOU | C6: Sub-Total: Distribution (excluding pass through) | D6: Sub-Total: Distribution (excluding pass through) | E6: Total Amount on TOU | F6: Total Amount on TOU
A7: BI Template_UNMNPDI | B7: Total Amount on Two-Tier RPP | C7: Sub-Total: Distribution (excluding pass through) | D7: Sub-Total: Distribution (excluding pass through) | E7: Total Amount on Two-Tier RPP | F7: Total Amount on Two-Tier RPP
A8: BI Template_DemandNPDI | B8: Total Amount on WAHSP | C8: Sub-Total: Distribution | D8: Sub-Total: Distribution | E8: Total Amount on WAHSP | F8: Total Amount on WAHSP
A9: BI Template_EnergyHCHI | B9: Total Amount on TOU | C9: Sub-Total: Distribution (excluding pass through) | D9: Sub-Total: Distribution (excluding pass through) | E9: Total Amount on TOU | F9: Total Amount on TOU
A10: BI Template_UNMHCHI | B10: Total Amount on Two-Tier RPP | C10: Sub-Total: Distribution (excluding pass through) | D10: Sub-Total: Distribution (excluding pass through) | E10: Total Amount on Two-Tier RPP | F10: Total Amount on Two-Tier RPP
A11: BI Template_DemandHCHI | B11: Total Amount on WAHSP | C11: Sub-Total: Distribution | D11: Sub-Total: Distribution | E11: Total Amount on WAHSP | F11: Total Amount on WAHSP
A12: BI Template_EnergyWHSI | B12: Total Amount on TOU | C12: Sub-Total: Distribution (excluding pass through) | D12: Sub-Total: Distribution (excluding pass through) | E12: Total Amount on TOU | F12: Total Amount on TOU
A13: BI Template_UNMWHSI | B13: Total Amount on Two-Tier RPP | C13: Sub-Total: Distribution (excluding pass through) | D13: Sub-Total: Distribution (excluding pass through) | E13: Total Amount on Two-Tier RPP | F13: Total Amount on Two-Tier RPP
A14: BI Template_DemandWHSI | B14: Total Amount on WAHSP | C14: Sub-Total: Distribution | D14: Sub-Total: Distribution | E14: Total Amount on WAHSP | F14: Total Amount on WAHSP
A15: BI Template_Seasonal | B15: Total Amount on TOU | C15: Sub-Total: Distribution (excluding pass through) | D15: Sub-Total: Distribution (excluding pass through) | E15: Total Amount on TOU | F15: Total Amount on TOU

Sheet Data BI List (hidden)
A1: Template Name | B1: Bill Impact Worksheet Name | C1: Bill Impact Header
A2: BI Template_Energy | B2: BI_UR_Low | C2: 2026 Bill Impacts (Low Consumption Level) - UR
A3: BI Template_Energy | B3: BI_UR_Typical | C3: 2026 Bill Impacts (Typical Consumption Level) - UR
A4: BI Template_Energy | B4: BI_UR_Avg | C4: 2026 Bill Impacts (Average Consumption Level) - UR
A5: BI Template_Energy | B5: BI_UR_High | C5: 2026 Bill Impacts (High Consumption Level) - UR
A6: BI Template_Energy | B6: BI_R1_Low | C6: 2026 Bill Impacts (Low Consumption Level) - R1
A7: BI Template_Energy | B7: BI_R1_Typical | C7: 2026 Bill Impacts (Typical Consumption Level) - R1
A8: BI Template_Energy | B8: BI_R1_Avg | C8: 2026 Bill Impacts (Average Consumption Level) - R1
A9: BI Template_Energy | B9: BI_R1_High | C9: 2026 Bill Impacts (High Consumption Level) - R1
A10: BI Template_Energy | B10: BI_R2_Low | C10: 2026 Bill Impacts (Low Consumption Level) - R2
A11: BI Template_Energy | B11: BI_R2_Typical | C11: 2026 Bill Impacts (Typical Consumption Level) - R2
A12: BI Template_Energy | B12: BI_R2_Avg | C12: 2026 Bill Impacts (Average Consumption Level) - R2
A13: BI Template_Energy | B13: BI_R2_High | C13: 2026 Bill Impacts (High Consumption Level) - R2
A14: BI Template_Energy | B14: BI_GSe_Low | C14: 2026 Bill Impacts (Low Consumption Level) - GSe
A15: BI Template_Energy | B15: BI_GSe_Typical | C15: 2026 Bill Impacts (Typical Consumption Level) - GSe
A16: BI Template_Energy | B16: BI_GSe_Avg | C16: 2026 Bill Impacts (Average Consumption Level) - GSe
A17: BI Template_Energy | B17: BI_GSe_High | C17: 2026 Bill Impacts (High Consumption Level) - GSe
A18: BI Template_Energy | B18: BI_UGe_Low | C18: 2026 Bill Impacts (Low Consumption Level) - UGe
A19: BI Template_Energy | B19: BI_UGe_Typical | C19: 2026 Bill Impacts (Typical Consumption Level) - UGe
A20: BI Template_Energy | B20: BI_UGe_Avg | C20: 2026 Bill Impacts (Average Consumption Level) - UGe
A21: BI Template_Energy | B21: BI_UGe_High | C21: 2026 Bill Impacts (High Consumption Level) - UGe
A22: BI Template_Demand | B22: BI_GSd_Low | C22: 2026 Bill Impacts (Low Consumption Level) - GSd
A23: BI Template_Demand | B23: BI_GSd_Avg | C23: 2026 Bill Impacts (Average Consumption Level) - GSd
A24: BI Template_Demand | B24: BI_GSd_High | C24: 2026 Bill Impacts (High Consumption Level) - GSd
A25: BI Template_Demand | B25: BI_UGd_Low | C25: 2026 Bill Impacts (Low Consumption Level) - UGd
A26: BI Template_Demand | B26: BI_UGd_Avg | C26: 2026 Bill Impacts (Average Consumption Level) - UGd
A27: BI Template_Demand | B27: BI_UGd_High | C27: 2026 Bill Impacts (High Consumption Level) - UGd
A28: BI Template_EnergyUNM | B28: BI_StLgt_Low | C28: 2026 Bill Impacts (Low Consumption Level) - St Lgt
A29: BI Template_EnergyUNM | B29: BI_StLgt_Avg | C29: 2026 Bill Impacts (Average Consumption Level) - St Lgt
A30: BI Template_EnergyUNM | B30: BI_StLgt_High | C30: 2026 Bill Impacts (High Consumption Level) - St Lgt
A31: BI Template_EnergyUNM | B31: BI_SenLgt_Low | C31: 2026 Bill Impacts (Low Consumption Level) - Sen Lgt
A32: BI Template_EnergyUNM | B32: BI_SenLgt_Avg | C32: 2026 Bill Impacts (Average Consumption Level) - Sen Lgt
A33: BI Template_EnergyUNM | B33: BI_SenLgt_High | C33: 2026 Bill Impacts (High Consumption Level) - Sen Lgt
A34: BI Template_EnergyUNM | B34: BI_USL_Low | C34: 2026 Bill Impacts (Low Consumption Level) - USL
A35: BI Template_EnergyUNM | B35: BI_USL_Avg | C35: 2026 Bill Impacts (Average Consumption Level) - USL
A36: BI Template_EnergyUNM | B36: BI_USL_High | C36: 2026 Bill Impacts (High Consumption Level) - USL
A37: BI Template_Demand | B37: BI_Dgen_Low | C37: 2026 Bill Impacts (Low Consumption Level) - Dgen
A38: BI Template_Demand | B38: BI_Dgen_Avg | C38: 2026 Bill Impacts (Average Consumption Level) - Dgen
A39: BI Template_Demand | B39: BI_Dgen_High | C39: 2026 Bill Impacts (High Consumption Level) - Dgen
A40: BI Template_Demand | B40: BI_ST_Low | C40: 2026 Bill Impacts (Low Consumption Level) - ST
A41: BI Template_Demand | B41: BI_ST_Avg | C41: 2026 Bill Impacts (Average Consumption Level) - ST
A42: BI Template_Demand | B42: BI_ST_High | C42: 2026 Bill Impacts (High Consumption Level) - ST
A43: BI Template_EnergyWHSI | B43: BI_WHSI_AUR_Low | C43: 2026 Bill Impacts (Low Consumption Level) - AUR_WHSI
A44: BI Template_EnergyWHSI | B44: BI_WHSI_AUR_Typical | C44: 2026 Bill Impacts (Typical Consumption Level) - AUR_WHSI
A45: BI Template_EnergyWHSI | B45: BI_WHSI_AUR_Avg | C45: 2026 Bill Impacts (Average Consumption Level) - AUR_WHSI
A46: BI Template_EnergyWHSI | B46: BI_WHSI_AUR_High | C46: 2026 Bill Impacts (High Consumption Level) - AUR_WHSI
A47: BI Template_EnergyWHSI | B47: BI_WHSI_AUGe_Low | C47: 2026 Bill Impacts (Low Consumption Level) - AUGe_WHSI
A48: BI Template_EnergyWHSI | B48: BI_WHSI_AUGe_Typical | C48: 2026 Bill Impacts (Typical Consumption Level) - AUGe_WHSI
A49: BI Template_EnergyWHSI | B49: BI_WHSI_AUGe_Avg | C49: 2026 Bill Impacts (Average Consumption Level) - AUGe_WHSI
A50: BI Template_EnergyWHSI | B50: BI_WHSI_AUGe_High | C50: 2026 Bill Impacts (High Consumption Level) - AUGe_WHSI
A51: BI Template_DemandWHSI | B51: BI_WHSI_AUGd_Low | C51: 2026 Bill Impacts (Low Consumption Level) - AUGd_WHSI
A52: BI Template_DemandWHSI | B52: BI_WHSI_AUGd_Avg | C52: 2026 Bill Impacts (Average Consumption Level) - AUGd_WHSI
A53: BI Template_DemandWHSI | B53: BI_WHSI_AUGd_High | C53: 2026 Bill Impacts (High Consumption Level) - AUGd_WHSI
A54: BI Template_DemandWHSI | B54: BI_WHSI_ST_Avg | C54: 2026 Bill Impacts (Average Consumption Level) - ST_WHSI
A55: BI Template_EnergyNPDI | B55: BI_NPDI_AR_Low | C55: 2026 Bill Impacts (Low Consumption Level) - AR_NPDI
A56: BI Template_EnergyNPDI | B56: BI_NPDI_AR_Typical | C56: 2026 Bill Impacts (Typical Consumption Level) - AR_NPDI
A57: BI Template_EnergyNPDI | B57: BI_NPDI_AR_Avg | C57: 2026 Bill Impacts (Average Consumption Level) - AR_NPDI
A58: BI Template_EnergyNPDI | B58: BI_NPDI_AR_High | C58: 2026 Bill Impacts (High Consumption Level) - AR_NPDI
A59: BI Template_EnergyHCHI | B59: BI_HCHI_AR_Low | C59: 2026 Bill Impacts (Low Consumption Level) - AR_HCHI
A60: BI Template_EnergyHCHI | B60: BI_HCHI_AR_Typical | C60: 2026 Bill Impacts (Typical Consumption Level) - AR_HCHI
A61: BI Template_EnergyHCHI | B61: BI_HCHI_AR_Avg | C61: 2026 Bill Impacts (Average Consumption Level) - AR_HCHI
A62: BI Template_EnergyHCHI | B62: BI_HCHI_AR_High | C62: 2026 Bill Impacts (High Consumption Level) - AR_HCHI
A63: BI Template_EnergyNPDI | B63: BI_NPDI_AGSe_Low | C63: 2026 Bill Impacts (Low Consumption Level) - AGSe_NPDI
A64: BI Template_EnergyNPDI | B64: BI_NPDI_AGSe_Typical | C64: 2026 Bill Impacts (Typical Consumption Level) - AGSe_NPDI
A65: BI Template_EnergyNPDI | B65: BI_NPDI_AGSe_Avg | C65: 2026 Bill Impacts (Average Consumption Level) - AGSe_NPDI
A66: BI Template_EnergyNPDI | B66: BI_NPDI_AGSe_High | C66: 2026 Bill Impacts (High Consumption Level) - AGSe_NPDI
A67: BI Template_EnergyHCHI | B67: BI_HCHI_AGSe_Low | C67: 2026 Bill Impacts (Low Consumption Level) - AGSe_HCHI
A68: BI Template_EnergyHCHI | B68: BI_HCHI_AGSe_Typical | C68: 2026 Bill Impacts (Typical Consumption Level) - AGSe_HCHI
A69: BI Template_EnergyHCHI | B69: BI_HCHI_AGSe_Avg | C69: 2026 Bill Impacts (Average Consumption Level) - AGSe_HCHI
A70: BI Template_EnergyHCHI | B70: BI_HCHI_AGSe_High | C70: 2026 Bill Impacts (High Consumption Level) - AGSe_HCHI
A71: BI Template_DemandNPDI | B71: BI_NPDI_AGSd_Low | C71: 2026 Bill Impacts (Low Consumption Level) - AGSd_NPDI
A72: BI Template_DemandNPDI | B72: BI_NPDI_AGSd_Avg | C72: 2026 Bill Impacts (Average Consumption Level) - AGSd_NPDI
A73: BI Template_DemandNPDI | B73: BI_NPDI_AGSd_High | C73: 2026 Bill Impacts (High Consumption Level) - AGSd_NPDI
A74: BI Template_DemandHCHI | B74: BI_HCHI_AGSd_Low | C74: 2026 Bill Impacts (Low Consumption Level) - AGSd_HCHI
A75: BI Template_DemandHCHI | B75: BI_HCHI_AGSd_Avg | C75: 2026 Bill Impacts (Average Consumption Level) - AGSd_HCHI
A76: BI Template_DemandHCHI | B76: BI_HCHI_AGSd_High | C76: 2026 Bill Impacts (High Consumption Level) - AGSd_HCHI
A77: BI Template_unmWHSI | B77: BI_WHSI_USL_Avg | C77: 2026 Bill Impacts (Average Consumption Level) - USL_WHSI
A78: BI Template_unmNPDI | B78: BI_NPDI_USL_Avg | C78: 2026 Bill Impacts (Average Consumption Level) - USL_NPDI
A79: BI Template_unmHCHI | B79: BI_HCHI_USL_Avg | C79: 2026 Bill Impacts (Average Consumption Level) - USL_HCHI
A80: BI Template_unmWHSI | B80: BI_WHSI_StLgt_Avg | C80: 2026 Bill Impacts (Average Consumption Level) - St Lgt_WHSI
A81: BI Template_unmNPDI | B81: BI_NPDI_StLgt_Avg | C81: 2026 Bill Impacts (Average Consumption Level) - St Lgt_NPDI
A82: BI Template_unmHCHI | B82: BI_HCHI_StLgt_Avg | C82: 2026 Bill Impacts (Average Consumption Level) - St Lgt_HCHI
A83: BI Template_unmNPDI | B83: BI_NPDI_SenLgt_Avg | C83: 2026 Bill Impacts (Average Consumption Level) - Sen Lgt_NPDI
A84: BI Template_unmHCHI | B84: BI_HCHI_SenLgt_Avg | C84: 2026 Bill Impacts (Average Consumption Level) - Sen Lgt_HCHI

Sheet Data BI List Acq_Seas (hidden)
A1: Template Name | B1: Bill Impact Worksheet Name | C1: Bill Impact Header | D1: Current Rate Class (Acq) | E1: Proposed Rate Class
A2: BI Template_EnergyWHSI | B2: BI_AUR_Low | C2: 2026 Bill Impacts (Low Consumption Level) - AUR_WHSI | D2: AUR-WHSI | E2: AUR-WHSI
A3: BI Template_EnergyWHSI | B3: BI_AUR_Typical | C3: 2026 Bill Impacts (Typical Consumption Level) - AUR_WHSI | D3: AUR-WHSI | E3: AUR-WHSI
A4: BI Template_EnergyWHSI | B4: BI_AUR_Avg | C4: 2026 Bill Impacts (Average Consumption Level) - AUR_WHSI | D4: AUR-WHSI | E4: AUR-WHSI
A5: BI Template_EnergyWHSI | B5: BI_AUR_High | C5: 2026 Bill Impacts (High Consumption Level) - AUR_WHSI | D5: AUR-WHSI | E5: AUR-WHSI
A6: BI Template_EnergyWHSI | B6: BI_AUGe_Low | C6: 2026 Bill Impacts (Low Consumption Level) - AUGe_WHSI | D6: AUGe-WHSI | E6: AUGe-WHSI
A7: BI Template_EnergyWHSI | B7: BI_AUGe_Typical | C7: 2026 Bill Impacts (Typical Consumption Level) - AUGe_WHSI | D7: AUGe-WHSI | E7: AUGe-WHSI
A8: BI Template_EnergyWHSI | B8: BI_AUGe_Avg | C8: 2026 Bill Impacts (Average Consumption Level) - AUGe_WHSI | D8: AUGe-WHSI | E8: AUGe-WHSI
A9: BI Template_EnergyWHSI | B9: BI_AUGe_High | C9: 2026 Bill Impacts (High Consumption Level) - AUGe_WHSI | D9: AUGe-WHSI | E9: AUGe-WHSI
A10: BI Template_DemandWHSI | B10: BI_AUGd_Low | C10: 2026 Bill Impacts (Low Consumption Level) - AUGd_WHSI | D10: AUGd-WHSI | E10: AUGd-WHSI
A11: BI Template_DemandWHSI | B11: BI_AUGd_Avg | C11: 2026 Bill Impacts (Average Consumption Level) - AUGd_WHSI | D11: AUGd-WHSI | E11: AUGd-WHSI
A12: BI Template_DemandWHSI | B12: BI_AUGd_High | C12: 2026 Bill Impacts (High Consumption Level) - AUGd_WHSI | D12: AUGd-WHSI | E12: AUGd-WHSI
A13: BI Template_DemandWHSI | B13: BI_WHSI_ST_Avg | C13: 2026 Bill Impacts (Average Consumption Level) - ST_WHSI | D13: ST-WHSI | E13: ST-WHSI
A14: BI Template_EnergyNPDI | B14: BI_NPDI_AR_Low | C14: 2026 Bill Impacts (Low Consumption Level) - AR_NPDI | D14: AR-NPDI | E14: AR-NPDI
A15: BI Template_EnergyNPDI | B15: BI_NPDI_AR_Typical | C15: 2026 Bill Impacts (Typical Consumption Level) - AR_NPDI | D15: AR-NPDI | E15: AR-NPDI
A16: BI Template_EnergyNPDI | B16: BI_NPDI_AR_Avg | C16: 2026 Bill Impacts (Average Consumption Level) - AR_NPDI | D16: AR-NPDI | E16: AR-NPDI
A17: BI Template_EnergyNPDI | B17: BI_NPDI_AR_High | C17: 2026 Bill Impacts (High Consumption Level) - AR_NPDI | D17: AR-NPDI | E17: AR-NPDI
A18: BI Template_EnergyHCHI | B18: BI_HCHI_AR_Low | C18: 2026 Bill Impacts (Low Consumption Level) - AR_HCHI | D18: AR-HCHI | E18: AR-HCHI
A19: BI Template_EnergyHCHI | B19: BI_HCHI_AR_Typical | C19: 2026 Bill Impacts (Typical Consumption Level) - AR_HCHI | D19: AR-HCHI | E19: AR-HCHI
A20: BI Template_EnergyHCHI | B20: BI_HCHI_AR_Avg | C20: 2026 Bill Impacts (Average Consumption Level) - AR_HCHI | D20: AR-HCHI | E20: AR-HCHI
A21: BI Template_EnergyHCHI | B21: BI_HCHI_AR_High | C21: 2026 Bill Impacts (High Consumption Level) - AR_HCHI | D21: AR-HCHI | E21: AR-HCHI
A22: BI Template_EnergyNPDI | B22: BI_NPDI_AGSe_Low | C22: 2026 Bill Impacts (Low Consumption Level) - AGSe_NPDI | D22: AGSe-NPDI | E22: AGSe-NPDI
A23: BI Template_EnergyNPDI | B23: BI_NPDI_AGSe_Typical | C23: 2026 Bill Impacts (Typical Consumption Level) - AGSe_NPDI | D23: AGSe-NPDI | E23: AGSe-NPDI
A24: BI Template_EnergyNPDI | B24: BI_NPDI_AGSe_Avg | C24: 2026 Bill Impacts (Average Consumption Level) - AGSe_NPDI | D24: AGSe-NPDI | E24: AGSe-NPDI
A25: BI Template_EnergyNPDI | B25: BI_NPDI_AGSe_High | C25: 2026 Bill Impacts (High Consumption Level) - AGSe_NPDI | D25: AGSe-NPDI | E25: AGSe-NPDI
A26: BI Template_EnergyHCHI | B26: BI_HCHI_AGSe_Low | C26: 2026 Bill Impacts (Low Consumption Level) - AGSe_HCHI | D26: AGSe-HCHI | E26: AGSe-HCHI
A27: BI Template_EnergyHCHI | B27: BI_HCHI_AGSe_Typical | C27: 2026 Bill Impacts (Typical Consumption Level) - AGSe_HCHI | D27: AGSe-HCHI | E27: AGSe-HCHI
A28: BI Template_EnergyHCHI | B28: BI_HCHI_AGSe_Avg | C28: 2026 Bill Impacts (Average Consumption Level) - AGSe_HCHI | D28: AGSe-HCHI | E28: AGSe-HCHI
A29: BI Template_EnergyHCHI | B29: BI_HCHI_AGSe_High | C29: 2026 Bill Impacts (High Consumption Level) - AGSe_HCHI | D29: AGSe-HCHI | E29: AGSe-HCHI
A30: BI Template_DemandNPDI | B30: BI_NPDI_AGSd_Low | C30: 2026 Bill Impacts (Low Consumption Level) - AGSd_NPDI | D30: AGSd-NPDI | E30: AGSd-NPDI
A31: BI Template_DemandNPDI | B31: BI_NPDI_AGSd_Avg | C31: 2026 Bill Impacts (Average Consumption Level) - AGSd_NPDI | D31: AGSd-NPDI | E31: AGSd-NPDI
A32: BI Template_DemandNPDI | B32: BI_NPDI_AGSd_High | C32: 2026 Bill Impacts (High Consumption Level) - AGSd_NPDI | D32: AGSd-NPDI | E32: AGSd-NPDI
A33: BI Template_DemandHCHI | B33: BI_HCHI_AGSd_Low | C33: 2026 Bill Impacts (Low Consumption Level) - AGSd_HCHI | D33: AGSd-HCHI | E33: AGSd-HCHI
A34: BI Template_DemandHCHI | B34: BI_HCHI_AGSd_Avg | C34: 2026 Bill Impacts (Average Consumption Level) - AGSd_HCHI | D34: AGSd-HCHI | E34: AGSd-HCHI
A35: BI Template_DemandHCHI | B35: BI_HCHI_AGSd_High | C35: 2026 Bill Impacts (High Consumption Level) - AGSd_HCHI | D35: AGSd-HCHI | E35: AGSd-HCHI
A36: BI Template_EnergyUNM | B36: BI_WHSI_USL_Avg | C36: 2026 Bill Impacts (Average Consumption Level) - USL_WHSI | D36: USL-WHSI | E36: USL-WHSI
A37: BI Template_unmNPDI | B37: BI_NPDI_USL_Avg | C37: 2026 Bill Impacts (Average Consumption Level) - USL_NPDI | D37: USL-NPDI | E37: USL-NPDI
A38: BI Template_unmHCHI | B38: BI_HCHI_USL_Avg | C38: 2026 Bill Impacts (Average Consumption Level) - USL_HCHI | D38: USL-HCHI | E38: USL-HCHI
A39: BI Template_unmWHSI | B39: BI_WHSI_StLgt_Avg | C39: 2026 Bill Impacts (Average Consumption Level) - St Lgt_WHSI | D39: St Lgt-WHSI | E39: St Lgt-WHSI
A40: BI Template_unmNPDI | B40: BI_NPDI_StLgt_Avg | C40: 2026 Bill Impacts (Average Consumption Level) - St Lgt_NPDI | D40: St Lgt-NPDI | E40: St Lgt-NPDI
A41: BI Template_unmHCHI | B41: BI_HCHI_StLgt_Avg | C41: 2026 Bill Impacts (Average Consumption Level) - St Lgt_HCHI | D41: St Lgt-HCHI | E41: St Lgt-HCHI
A42: BI Template_unmNPDI | B42: BI_NPDI_SenLgt_Avg | C42: 2026 Bill Impacts (Average Consumption Level) - Sen Lgt_NPDI | D42: Sen Lgt-NPDI | E42: Sen Lgt-NPDI
A43: BI Template_unmHCHI | B43: BI_HCHI_SenLgt_Avg | C43: 2026 Bill Impacts (Average Consumption Level) - Sen Lgt_HCHI | D43: Sen Lgt-HCHI | E43: Sen Lgt-HCHI

Sheet Bill Impact Summary (hidden)
A1: Rate Class | B1: Consumption Level | C1: Monthly Consumption (kWh) | D1: Monthly Peak (kW) | E1: BI Worksheet | F1: Template | G1: Current Total Bill | H1: Change in DX Bill ($) | I1: Change in DX Bill (%) | J1: Change in Total Bill ($) | K1: Change in Total Bill (%) | L1: Commodity Price Used | O1: List for Data Validation of cell L6; do not remove
A2: UR | B2: Low | C2: =VLOOKUP(A$2,'Data Billing Quantities'!A:P,MATCH(B2&" kWh",'Data Billing Quantities'!$4:$4,0),FALSE) -> 340 | E2: BI_UR_Low | F2: BI Template_Energy | G2: =VLOOKUP(VLOOKUP($F2,'Data BI Summary'!$A:$F,MATCH(G$1,'Data BI Summary'!$2:$2,0),FALSE),INDIRECT("'"&$E2&"'!"&"$A:$K"),4,FALSE) -> 81.17531193 | H2: =VLOOKUP(VLOOKUP($F2,'Data BI Summary'!$A:$F,MATCH(H$1,'Data BI Summary'!$2:$2,0),FALSE),INDIRECT("'"&$E2&"'!"&"$A:$K"),8,FALSE) -> 2.21 | I2: =VLOOKUP(VLOOKUP($F2,'Data BI Summary'!$A:$F,MATCH(I$1,'Data BI Summary'!$2:$2,0),FALSE),INDIRECT("'"&$E2&"'!"&"$A:$K"),9,FALSE) -> 0.05513421814 | J2: =VLOOKUP(VLOOKUP($F2,'Data BI Summary'!$A:$F,MATCH(J$1,'Data BI Summary'!$2:$2,0),FALSE),INDIRECT("'"&$E2&"'!"&"$A:$K"),8,FALSE) -> 2.07961 | K2: =VLOOKUP(VLOOKUP($F2,'Data BI Summary'!$A:$F,MATCH(K$1,'Data BI Summary'!$2:$2,0),FALSE),INDIRECT("'"&$E2&"'!"&"$A:$K"),9,FALSE) -> 0.02561874972 | L2: TOU
B3: Typical | C3: =VLOOKUP(A$2,'Data Billing Quantities'!A:P,MATCH(B3&" kWh",'Data Billing Quantities'!$4:$4,0),FALSE) -> 750 | E3: BI_UR_Typical | F3: BI Template_Energy | G3: =VLOOKUP(VLOOKUP($F3,'Data BI Summary'!$A:$F,MATCH(G$1,'Data BI Summary'!$2:$2,0),FALSE),INDIRECT("'"&$E3&"'!"&"$A:$K"),4,FALSE) -> 132.4936516 | H3: =VLOOKUP(VLOOKUP($F3,'Data BI Summary'!$A:$F,MATCH(H$1,'Data BI Summary'!$2:$2,0),FALSE),INDIRECT("'"&$E3&"'!"&"$A:$K"),8,FALSE) -> 2.21 | I3: =VLOOKUP(VLOOKUP($F3,'Data BI Summary'!$A:$F,MATCH(I$1,'Data BI Summary'!$2:$2,0),FALSE),INDIRECT("'"&$E3&"'!"&"$A:$K"),9,FALSE) -> 0.05536072144 | J3: =VLOOKUP(VLOOKUP($F3,'Data BI Summary'!$A:$F,MATCH(J$1,'Data BI Summary'!$2:$2,0),FALSE),INDIRECT("'"&$E3&"'!"&"$A:$K"),8,FALSE) -> 2.07961 | K3: =VLOOKUP(VLOOKUP($F3,'Data BI Summary'!$A:$F,MATCH(K$1,'Data BI Summary'!$2:$2,0),FALSE),INDIRECT("'"&$E3&"'!"&"$A:$K"),9,FALSE) -> 0.01569592184
B4: Average | C4: =VLOOKUP(A$2,'Data Billing Quantities'!A:P,MATCH(B4&" kWh",'Data Billing Quantities'!$4:$4,0),FALSE) -> 690 | E4: BI_UR_Avg | F4: BI Template_Energy | G4: =VLOOKUP(VLOOKUP($F4,'Data BI Summary'!$A:$F,MATCH(G$1,'Data BI Summary'!$2:$2,0),FALSE),INDIRECT("'"&$E4&"'!"&"$A:$K"),4,FALSE) -> 124.9836507 | H4: =VLOOKUP(VLOOKUP($F4,'Data BI Summary'!$A:$F,MATCH(H$1,'Data BI Summary'!$2:$2,0),FALSE),INDIRECT("'"&$E4&"'!"&"$A:$K"),8,FALSE) -> 2.21 | I4: =VLOOKUP(VLOOKUP($F4,'Data BI Summary'!$A:$F,MATCH(I$1,'Data BI Summary'!$2:$2,0),FALSE),INDIRECT("'"&$E4&"'!"&"$A:$K"),9,FALSE) -> 0.05532745844 | J4: =VLOOKUP(VLOOKUP($F4,'Data BI Summary'!$A:$F,MATCH(J$1,'Data BI Summary'!$2:$2,0),FALSE),INDIRECT("'"&$E4&"'!"&"$A:$K"),8,FALSE) -> 2.07961 | K4: =VLOOKUP(VLOOKUP($F4,'Data BI Summary'!$A:$F,MATCH(K$1,'Data BI Summary'!$2:$2,0),FALSE),INDIRECT("'"&$E4&"'!"&"$A:$K"),9,FALSE) -> 0.0166390563
B5: High | C5: =VLOOKUP(A$2,'Data Billing Quantities'!A:P,MATCH(B5&" kWh",'Data Billing Quantities'!$4:$4,0),FALSE) -> 1260 | E5: BI_UR_High | F5: BI Template_Energy | G5: =VLOOKUP(VLOOKUP($F5,'Data BI Summary'!$A:$F,MATCH(G$1,'Data BI Summary'!$2:$2,0),FALSE),INDIRECT("'"&$E5&"'!"&"$A:$K"),4,FALSE) -> 196.3286595 | H5: =VLOOKUP(VLOOKUP($F5,'Data BI Summary'!$A:$F,MATCH(H$1,'Data BI Summary'!$2:$2,0),FALSE),INDIRECT("'"&$E5&"'!"&"$A:$K"),8,FALSE) -> 2.21 | I5: =VLOOKUP(VLOOKUP($F5,'Data BI Summary'!$A:$F,MATCH(I$1,'Data BI Summary'!$2:$2,0),FALSE),INDIRECT("'"&$E5&"'!"&"$A:$K"),9,FALSE) -> 0.05564508007 | J5: =VLOOKUP(VLOOKUP($F5,'Data BI Summary'!$A:$F,MATCH(J$1,'Data BI Summary'!$2:$2,0),FALSE),INDIRECT("'"&$E5&"'!"&"$A:$K"),8,FALSE) -> 2.07961 | K5: =VLOOKUP(VLOOKUP($F5,'Data BI Summary'!$A:$F,MATCH(K$1,'Data BI Summary'!$2:$2,0),FALSE),INDIRECT("'"&$E5&"'!"&"$A:$K"),9,FALSE) -> 0.01059249325
A6: R1 | B6: Low | C6: =VLOOKUP(A$6,'Data Billing Quantities'!A:P,MATCH(B6&" kWh",'Data Billing Quantities'!$4:$4,0),FALSE) -> 370 | E6: BI_R1_Low | F6: BI Template_Energy | G6: =VLOOKUP(VLOOKUP($F6,'Data BI Summary'!$A:$F,MATCH(G$1,'Data BI Summary'!$2:$2,0),FALSE),INDIRECT("'"&$E6&"'!"&"$A:$K"),4,FALSE) -> 111.9650265 | H6: =VLOOKUP(VLOOKUP($F6,'Data BI Summary'!$A:$F,MATCH(H$1,'Data BI Summary'!$2:$2,0),FALSE),INDIRECT("'"&$E6&"'!"&"$A:$K"),8,FALSE) -> 3.14 | I6: =VLOOKUP(VLOOKUP($F6,'Data BI Summary'!$A:$F,MATCH(I$1,'Data BI Summary'!$2:$2,0),FALSE),INDIRECT("'"&$E6&"'!"&"$A:$K"),9,FALSE) -> 0.0458849661 | J6: =VLOOKUP(VLOOKUP($F6,'Data BI Summary'!$A:$F,MATCH(J$1,'Data BI Summary'!$2:$2,0),FALSE),INDIRECT("'"&$E6&"'!"&"$A:$K"),8,FALSE) -> 2.95474 | K6: =VLOOKUP(VLOOKUP($F6,'Data BI Summary'!$A:$F,MATCH(K$1,'Data BI Summary'!$2:$2,0),FALSE),INDIRECT("'"&$E6&"'!"&"$A:$K"),9,FALSE) -> 0.02638984772 | L6: TOU | O6: TOU
B7: Typical | C7: =VLOOKUP(A$6,'Data Billing Quantities'!A:P,MATCH(B7&" kWh",'Data Billing Quantities'!$4:$4,0),FALSE) -> 750 | E7: BI_R1_Typical | F7: BI Template_Energy | G7: =VLOOKUP(VLOOKUP($F7,'Data BI Summary'!$A:$F,MATCH(G$1,'Data BI Summary'!$2:$2,0),FALSE),INDIRECT("'"&$E7&"'!"&"$A:$K"),4,FALSE) -> 159.885724 | H7: =VLOOKUP(VLOOKUP($F7,'Data BI Summary'!$A:$F,MATCH(H$1,'Data BI Summary'!$2:$2,0),FALSE),INDIRECT("'"&$E7&"'!"&"$A:$K"),8,FALSE) -> 3.14 | I7: =VLOOKUP(VLOOKUP($F7,'Data BI Summary'!$A:$F,MATCH(I$1,'Data BI Summary'!$2:$2,0),FALSE),INDIRECT("'"&$E7&"'!"&"$A:$K"),9,FALSE) -> 0.04598711189 | J7: =VLOOKUP(VLOOKUP($F7,'Data BI Summary'!$A:$F,MATCH(J$1,'Data BI Summary'!$2:$2,0),FALSE),INDIRECT("'"&$E7&"'!"&"$A:$K"),8,FALSE) -> 2.95474 | K7: =VLOOKUP(VLOOKUP($F7,'Data BI Summary'!$A:$F,MATCH(K$1,'Data BI Summary'!$2:$2,0),FALSE),INDIRECT("'"&$E7&"'!"&"$A:$K"),9,FALSE) -> 0.0184803241 | O7: TOU (DRP applied)
B8: Average | C8: =VLOOKUP(A$6,'Data Billing Quantities'!A:P,MATCH(B8&" kWh",'Data Billing Quantities'!$4:$4,0),FALSE) -> 784 | E8: BI_R1_Avg | F8: BI Template_Energy | G8: =VLOOKUP(VLOOKUP($F8,'Data BI Summary'!$A:$F,MATCH(G$1,'Data BI Summary'!$2:$2,0),FALSE),INDIRECT("'"&$E8&"'!"&"$A:$K"),4,FALSE) -> 164.1733654 | H8: =VLOOKUP(VLOOKUP($F8,'Data BI Summary'!$A:$F,MATCH(H$1,'Data BI Summary'!$2:$2,0),FALSE),INDIRECT("'"&$E8&"'!"&"$A:$K"),8,FALSE) -> 3.14 | I8: =VLOOKUP(VLOOKUP($F8,'Data BI Summary'!$A:$F,MATCH(I$1,'Data BI Summary'!$2:$2,0),FALSE),INDIRECT("'"&$E8&"'!"&"$A:$K"),9,FALSE) -> 0.04599627342 | J8: =VLOOKUP(VLOOKUP($F8,'Data BI Summary'!$A:$F,MATCH(J$1,'Data BI Summary'!$2:$2,0),FALSE),INDIRECT("'"&$E8&"'!"&"$A:$K"),8,FALSE) -> 2.95474 | K8: =VLOOKUP(VLOOKUP($F8,'Data BI Summary'!$A:$F,MATCH(K$1,'Data BI Summary'!$2:$2,0),FALSE),INDIRECT("'"&$E8&"'!"&"$A:$K"),9,FALSE) -> 0.01799768186
B9: High | C9: =VLOOKUP(A$6,'Data Billing Quantities'!A:P,MATCH(B9&" kWh",'Data Billing Quantities'!$4:$4,0),FALSE) -> 1650 | E9: BI_R1_High | F9: BI Template_Energy | G9: =VLOOKUP(VLOOKUP($F9,'Data BI Summary'!$A:$F,MATCH(G$1,'Data BI Summary'!$2:$2,0),FALSE),INDIRECT("'"&$E9&"'!"&"$A:$K"),4,FALSE) -> 273.3821129 | H9: =VLOOKUP(VLOOKUP($F9,'Data BI Summary'!$A:$F,MATCH(H$1,'Data BI Summary'!$2:$2,0),FALSE),INDIRECT("'"&$E9&"'!"&"$A:$K"),8,FALSE) -> 3.14 | I9: =VLOOKUP(VLOOKUP($F9,'Data BI Summary'!$A:$F,MATCH(I$1,'Data BI Summary'!$2:$2,0),FALSE),INDIRECT("'"&$E9&"'!"&"$A:$K"),9,FALSE) -> 0.04623085984 | J9: =VLOOKUP(VLOOKUP($F9,'Data BI Summary'!$A:$F,MATCH(J$1,'Data BI Summary'!$2:$2,0),FALSE),INDIRECT("'"&$E9&"'!"&"$A:$K"),8,FALSE) -> 2.95474 | K9: =VLOOKUP(VLOOKUP($F9,'Data BI Summary'!$A:$F,MATCH(K$1,'Data BI Summary'!$2:$2,0),FALSE),INDIRECT("'"&$E9&"'!"&"$A:$K"),9,FALSE) -> 0.01080809556
A10: R2 | B10: Low | C10: =VLOOKUP(A$10,'Data Billing Quantities'!A:P,MATCH(B10&" kWh",'Data Billing Quantities'!$4:$4,0),FALSE) -> 440 | E10: BI_R2_Low | F10: BI Template_Energy | G10: =VLOOKUP(VLOOKUP($F10,'Data BI Summary'!$A:$F,MATCH(G$1,'Data BI Summary'!$2:$2,0),FALSE),INDIRECT("'"&$E10&"'!"&"$A:$K"),4,FALSE) -> 131.099578 | H10: =VLOOKUP(VLOOKUP($F10,'Data BI Summary'!$A:$F,MATCH(H$1,'Data BI Summary'!$2:$2,0),FALSE),INDIRECT("'"&$E10&"'!"&"$A:$K"),8,FALSE) -> 7.64 | I10: =VLOOKUP(VLOOKUP($F10,'Data BI Summary'!$A:$F,MATCH(I$1,'Data BI Summary'!$2:$2,0),FALSE),INDIRECT("'"&$E10&"'!"&"$A:$K"),9,FALSE) -> 0.09739431951 | J10: =VLOOKUP(VLOOKUP($F10,'Data BI Summary'!$A:$F,MATCH(J$1,'Data BI Summary'!$2:$2,0),FALSE),INDIRECT("'"&$E10&"'!"&"$A:$K"),8,FALSE) -> 7.18924 | K10: =VLOOKUP(VLOOKUP($F10,'Data BI Summary'!$A:$F,MATCH(K$1,'Data BI Summary'!$2:$2,0),FALSE),INDIRECT("'"&$E10&"'!"&"$A:$K"),9,FALSE) -> 0.05483801024 | L10: =L6 -> TOU
B11: Typical | C11: =VLOOKUP(A$10,'Data Billing Quantities'!A:P,MATCH(B11&" kWh",'Data Billing Quantities'!$4:$4,0),FALSE) -> 750 | E11: BI_R2_Typical | F11: BI Template_Energy | G11: =VLOOKUP(VLOOKUP($F11,'Data BI Summary'!$A:$F,MATCH(G$1,'Data BI Summary'!$2:$2,0),FALSE),INDIRECT("'"&$E11&"'!"&"$A:$K"),4,FALSE) -> 170.7982752 | H11: =VLOOKUP(VLOOKUP($F11,'Data BI Summary'!$A:$F,MATCH(H$1,'Data BI Summary'!$2:$2,0),FALSE),INDIRECT("'"&$E11&"'!"&"$A:$K"),8,FALSE) -> 7.64 | I11: =VLOOKUP(VLOOKUP($F11,'Data BI Summary'!$A:$F,MATCH(I$1,'Data BI Summary'!$2:$2,0),FALSE),INDIRECT("'"&$E11&"'!"&"$A:$K"),9,FALSE) -> 0.0975485189 | J11: =VLOOKUP(VLOOKUP($F11,'Data BI Summary'!$A:$F,MATCH(J$1,'Data BI Summary'!$2:$2,0),FALSE),INDIRECT("'"&$E11&"'!"&"$A:$K"),8,FALSE) -> 7.18924 | K11: =VLOOKUP(VLOOKUP($F11,'Data BI Summary'!$A:$F,MATCH(K$1,'Data BI Summary'!$2:$2,0),FALSE),INDIRECT("'"&$E11&"'!"&"$A:$K"),9,FALSE) -> 0.04209199415
B12: Average | C12: =VLOOKUP(A$10,'Data Billing Quantities'!A:P,MATCH(B12&" kWh",'Data Billing Quantities'!$4:$4,0),FALSE) -> 978 | E12: BI_R2_Avg | F12: BI Template_Energy | G12: =VLOOKUP(VLOOKUP($F12,'Data BI Summary'!$A:$F,MATCH(G$1,'Data BI Summary'!$2:$2,0),FALSE),INDIRECT("'"&$E12&"'!"&"$A:$K"),4,FALSE) -> 199.9960267 | H12: =VLOOKUP(VLOOKUP($F12,'Data BI Summary'!$A:$F,MATCH(H$1,'Data BI Summary'!$2:$2,0),FALSE),INDIRECT("'"&$E12&"'!"&"$A:$K"),8,FALSE) -> 7.64 | I12: =VLOOKUP(VLOOKUP($F12,'Data BI Summary'!$A:$F,MATCH(I$1,'Data BI Summary'!$2:$2,0),FALSE),INDIRECT("'"&$E12&"'!"&"$A:$K"),9,FALSE) -> 0.09766224204 | J12: =VLOOKUP(VLOOKUP($F12,'Data BI Summary'!$A:$F,MATCH(J$1,'Data BI Summary'!$2:$2,0),FALSE),INDIRECT("'"&$E12&"'!"&"$A:$K"),8,FALSE) -> 7.18924 | K12: =VLOOKUP(VLOOKUP($F12,'Data BI Summary'!$A:$F,MATCH(K$1,'Data BI Summary'!$2:$2,0),FALSE),INDIRECT("'"&$E12&"'!"&"$A:$K"),9,FALSE) -> 0.03594691414
B13: High | C13: =VLOOKUP(A$10,'Data Billing Quantities'!A:P,MATCH(B13&" kWh",'Data Billing Quantities'!$4:$4,0),FALSE) -> 2110 | E13: BI_R2_High | F13: BI Template_Energy | G13: =VLOOKUP(VLOOKUP($F13,'Data BI Summary'!$A:$F,MATCH(G$1,'Data BI Summary'!$2:$2,0),FALSE),INDIRECT("'"&$E13&"'!"&"$A:$K"),4,FALSE) -> 344.9603017 | H13: =VLOOKUP(VLOOKUP($F13,'Data BI Summary'!$A:$F,MATCH(H$1,'Data BI Summary'!$2:$2,0),FALSE),INDIRECT("'"&$E13&"'!"&"$A:$K"),8,FALSE) -> 7.64 | I13: =VLOOKUP(VLOOKUP($F13,'Data BI Summary'!$A:$F,MATCH(I$1,'Data BI Summary'!$2:$2,0),FALSE),INDIRECT("'"&$E13&"'!"&"$A:$K"),9,FALSE) -> 0.0982308167 | J13: =VLOOKUP(VLOOKUP($F13,'Data BI Summary'!$A:$F,MATCH(J$1,'Data BI Summary'!$2:$2,0),FALSE),INDIRECT("'"&$E13&"'!"&"$A:$K"),8,FALSE) -> 7.18924 | K13: =VLOOKUP(VLOOKUP($F13,'Data BI Summary'!$A:$F,MATCH(K$1,'Data BI Summary'!$2:$2,0),FALSE),INDIRECT("'"&$E13&"'!"&"$A:$K"),9,FALSE) -> 0.02084077491
A14: GSe | B14: Low | C14: =VLOOKUP(A$14,'Data Billing Quantities'!A:P,MATCH(B14&" kWh",'Data Billing Quantities'!$4:$4,0),FALSE) -> 60 | E14: BI_GSe_Low | F14: BI Template_Energy | G14: =VLOOKUP(VLOOKUP($F14,'Data BI Summary'!$A:$F,MATCH(G$1,'Data BI Summary'!$2:$2,0),FALSE),INDIRECT("'"&$E14&"'!"&"$A:$K"),4,FALSE) -> 44.06326901 | H14: =VLOOKUP(VLOOKUP($F14,'Data BI Summary'!$A:$F,MATCH(H$1,'Data BI Summary'!$2:$2,0),FALSE),INDIRECT("'"&$E14&"'!"&"$A:$K"),8,FALSE) -> 1.682 | I14: =VLOOKUP(VLOOKUP($F14,'Data BI Summary'!$A:$F,MATCH(I$1,'Data BI Summary'!$2:$2,0),FALSE),INDIRECT("'"&$E14&"'!"&"$A:$K"),9,FALSE) -> 0.04423056695 | J14: =VLOOKUP(VLOOKUP($F14,'Data BI Summary'!$A:$F,MATCH(J$1,'Data BI Summary'!$2:$2,0),FALSE),INDIRECT("'"&$E14&"'!"&"$A:$K"),8,FALSE) -> 1.582762 | K14: =VLOOKUP(VLOOKUP($F14,'Data BI Summary'!$A:$F,MATCH(K$1,'Data BI Summary'!$2:$2,0),FALSE),INDIRECT("'"&$E14&"'!"&"$A:$K"),9,FALSE) -> 0.03592021281 | L14: TOU
B15: Typical | C15: =VLOOKUP(A$14,'Data Billing Quantities'!A:P,MATCH(B15&" kWh",'Data Billing Quantities'!$4:$4,0),FALSE) -> 2000 | E15: BI_GSe_Typical | F15: BI Template_Energy | G15: =VLOOKUP(VLOOKUP($F15,'Data BI Summary'!$A:$F,MATCH(G$1,'Data BI Summary'!$2:$2,0),FALSE),INDIRECT("'"&$E15&"'!"&"$A:$K"),4,FALSE) -> 419.698647 | H15: =VLOOKUP(VLOOKUP($F15,'Data BI Summary'!$A:$F,MATCH(H$1,'Data BI Summary'!$2:$2,0),FALSE),INDIRECT("'"&$E15&"'!"&"$A:$K"),8,FALSE) -> 9.83 | I15: =VLOOKUP(VLOOKUP($F15,'Data BI Summary'!$A:$F,MATCH(I$1,'Data BI Summary'!$2:$2,0),FALSE),INDIRECT("'"&$E15&"'!"&"$A:$K"),9,FALSE) -> 0.05483655026 | J15: =VLOOKUP(VLOOKUP($F15,'Data BI Summary'!$A:$F,MATCH(J$1,'Data BI Summary'!$2:$2,0),FALSE),INDIRECT("'"&$E15&"'!"&"$A:$K"),8,FALSE) -> 9.25003 | K15: =VLOOKUP(VLOOKUP($F15,'Data BI Summary'!$A:$F,MATCH(K$1,'Data BI Summary'!$2:$2,0),FALSE),INDIRECT("'"&$E15&"'!"&"$A:$K"),9,FALSE) -> 0.02203969459
B16: Average | C16: =VLOOKUP(A$14,'Data Billing Quantities'!A:P,MATCH(B16&" kWh",'Data Billing Quantities'!$4:$4,0),FALSE) -> 1887 | E16: BI_GSe_Avg | F16: BI Template_Energy | G16: =VLOOKUP(VLOOKUP($F16,'Data BI Summary'!$A:$F,MATCH(G$1,'Data BI Summary'!$2:$2,0),FALSE),INDIRECT("'"&$E16&"'!"&"$A:$K"),4,FALSE) -> 397.8188544 | H16: =VLOOKUP(VLOOKUP($F16,'Data BI Summary'!$A:$F,MATCH(H$1,'Data BI Summary'!$2:$2,0),FALSE),INDIRECT("'"&$E16&"'!"&"$A:$K"),8,FALSE) -> 9.3554 | I16: =VLOOKUP(VLOOKUP($F16,'Data BI Summary'!$A:$F,MATCH(I$1,'Data BI Summary'!$2:$2,0),FALSE),INDIRECT("'"&$E16&"'!"&"$A:$K"),9,FALSE) -> 0.05469919361 | J16: =VLOOKUP(VLOOKUP($F16,'Data BI Summary'!$A:$F,MATCH(J$1,'Data BI Summary'!$2:$2,0),FALSE),INDIRECT("'"&$E16&"'!"&"$A:$K"),8,FALSE) -> 8.8034314 | K16: =VLOOKUP(VLOOKUP($F16,'Data BI Summary'!$A:$F,MATCH(K$1,'Data BI Summary'!$2:$2,0),FALSE),INDIRECT("'"&$E16&"'!"&"$A:$K"),9,FALSE) -> 0.02212924627
B17: High | C17: =VLOOKUP(A$14,'Data Billing Quantities'!A:P,MATCH(B17&" kWh",'Data Billing Quantities'!$4:$4,0),FALSE) -> 5570 | E17: BI_GSe_High | F17: BI Template_Energy | G17: =VLOOKUP(VLOOKUP($F17,'Data BI Summary'!$A:$F,MATCH(G$1,'Data BI Summary'!$2:$2,0),FALSE),INDIRECT("'"&$E17&"'!"&"$A:$K"),4,FALSE) -> 1110.945193 | H17: =VLOOKUP(VLOOKUP($F17,'Data BI Summary'!$A:$F,MATCH(H$1,'Data BI Summary'!$2:$2,0),FALSE),INDIRECT("'"&$E17&"'!"&"$A:$K"),8,FALSE) -> 24.824 | I17: =VLOOKUP(VLOOKUP($F17,'Data BI Summary'!$A:$F,MATCH(I$1,'Data BI Summary'!$2:$2,0),FALSE),INDIRECT("'"&$E17&"'!"&"$A:$K"),9,FALSE) -> 0.05652661013 | J17: =VLOOKUP(VLOOKUP($F17,'Data BI Summary'!$A:$F,MATCH(J$1,'Data BI Summary'!$2:$2,0),FALSE),INDIRECT("'"&$E17&"'!"&"$A:$K"),8,FALSE) -> 23.359384 | K17: =VLOOKUP(VLOOKUP($F17,'Data BI Summary'!$A:$F,MATCH(K$1,'Data BI Summary'!$2:$2,0),FALSE),INDIRECT("'"&$E17&"'!"&"$A:$K"),9,FALSE) -> 0.02102658542
A18: UGe | B18: Low | C18: =VLOOKUP(A$18,'Data Billing Quantities'!A:P,MATCH(B18&" kWh",'Data Billing Quantities'!$4:$4,0),FALSE) -> 180 | E18: BI_UGe_Low | F18: BI Template_Energy | G18: =VLOOKUP(VLOOKUP($F18,'Data BI Summary'!$A:$F,MATCH(G$1,'Data BI Summary'!$2:$2,0),FALSE),INDIRECT("'"&$E18&"'!"&"$A:$K"),4,FALSE) -> 53.49470123 | H18: =VLOOKUP(VLOOKUP($F18,'Data BI Summary'!$A:$F,MATCH(H$1,'Data BI Summary'!$2:$2,0),FALSE),INDIRECT("'"&$E18&"'!"&"$A:$K"),8,FALSE) -> 1.538 | I18: =VLOOKUP(VLOOKUP($F18,'Data BI Summary'!$A:$F,MATCH(I$1,'Data BI Summary'!$2:$2,0),FALSE),INDIRECT("'"&$E18&"'!"&"$A:$K"),9,FALSE) -> 0.04727071552 | J18: =VLOOKUP(VLOOKUP($F18,'Data BI Summary'!$A:$F,MATCH(J$1,'Data BI Summary'!$2:$2,0),FALSE),INDIRECT("'"&$E18&"'!"&"$A:$K"),8,FALSE) -> 1.447258 | K18: =VLOOKUP(VLOOKUP($F18,'Data BI Summary'!$A:$F,MATCH(K$1,'Data BI Summary'!$2:$2,0),FALSE),INDIRECT("'"&$E18&"'!"&"$A:$K"),9,FALSE) -> 0.02705423092 | L18: TOU
B19: Typical | C19: =VLOOKUP(A$18,'Data Billing Quantities'!A:P,MATCH(B19&" kWh",'Data Billing Quantities'!$4:$4,0),FALSE) -> 2000 | E19: BI_UGe_Typical | F19: BI Template_Energy | G19: =VLOOKUP(VLOOKUP($F19,'Data BI Summary'!$A:$F,MATCH(G$1,'Data BI Summary'!$2:$2,0),FALSE),INDIRECT("'"&$E19&"'!"&"$A:$K"),4,FALSE) -> 336.4459681 | H19: =VLOOKUP(VLOOKUP($F19,'Data BI Summary'!$A:$F,MATCH(H$1,'Data BI Summary'!$2:$2,0),FALSE),INDIRECT("'"&$E19&"'!"&"$A:$K"),8,FALSE) -> 5.36 | I19: =VLOOKUP(VLOOKUP($F19,'Data BI Summary'!$A:$F,MATCH(I$1,'Data BI Summary'!$2:$2,0),FALSE),INDIRECT("'"&$E19&"'!"&"$A:$K"),9,FALSE) -> 0.05601421256 | J19: =VLOOKUP(VLOOKUP($F19,'Data BI Summary'!$A:$F,MATCH(J$1,'Data BI Summary'!$2:$2,0),FALSE),INDIRECT("'"&$E19&"'!"&"$A:$K"),8,FALSE) -> 5.04376 | K19: =VLOOKUP(VLOOKUP($F19,'Data BI Summary'!$A:$F,MATCH(K$1,'Data BI Summary'!$2:$2,0),FALSE),INDIRECT("'"&$E19&"'!"&"$A:$K"),9,FALSE) -> 0.01499129274
B20: Average | C20: =VLOOKUP(A$18,'Data Billing Quantities'!A:P,MATCH(B20&" kWh",'Data Billing Quantities'!$4:$4,0),FALSE) -> 2494 | E20: BI_UGe_Avg | F20: BI Template_Energy | G20: =VLOOKUP(VLOOKUP($F20,'Data BI Summary'!$A:$F,MATCH(G$1,'Data BI Summary'!$2:$2,0),FALSE),INDIRECT("'"&$E20&"'!"&"$A:$K"),4,FALSE) -> 413.2470262 | H20: =VLOOKUP(VLOOKUP($F20,'Data BI Summary'!$A:$F,MATCH(H$1,'Data BI Summary'!$2:$2,0),FALSE),INDIRECT("'"&$E20&"'!"&"$A:$K"),8,FALSE) -> 6.3974 | I20: =VLOOKUP(VLOOKUP($F20,'Data BI Summary'!$A:$F,MATCH(I$1,'Data BI Summary'!$2:$2,0),FALSE),INDIRECT("'"&$E20&"'!"&"$A:$K"),9,FALSE) -> 0.05669855484 | J20: =VLOOKUP(VLOOKUP($F20,'Data BI Summary'!$A:$F,MATCH(J$1,'Data BI Summary'!$2:$2,0),FALSE),INDIRECT("'"&$E20&"'!"&"$A:$K"),8,FALSE) -> 6.0199534 | K20: =VLOOKUP(VLOOKUP($F20,'Data BI Summary'!$A:$F,MATCH(K$1,'Data BI Summary'!$2:$2,0),FALSE),INDIRECT("'"&$E20&"'!"&"$A:$K"),9,FALSE) -> 0.01456744518
B21: High | C21: =VLOOKUP(A$18,'Data Billing Quantities'!A:P,MATCH(B21&" kWh",'Data Billing Quantities'!$4:$4,0),FALSE) -> 6930 | E21: BI_UGe_High | F21: BI Template_Energy | G21: =VLOOKUP(VLOOKUP($F21,'Data BI Summary'!$A:$F,MATCH(G$1,'Data BI Summary'!$2:$2,0),FALSE),INDIRECT("'"&$E21&"'!"&"$A:$K"),4,FALSE) -> 1102.901872 | H21: =VLOOKUP(VLOOKUP($F21,'Data BI Summary'!$A:$F,MATCH(H$1,'Data BI Summary'!$2:$2,0),FALSE),INDIRECT("'"&$E21&"'!"&"$A:$K"),8,FALSE) -> 15.713 | I21: =VLOOKUP(VLOOKUP($F21,'Data BI Summary'!$A:$F,MATCH(I$1,'Data BI Summary'!$2:$2,0),FALSE),INDIRECT("'"&$E21&"'!"&"$A:$K"),9,FALSE) -> 0.05890291309 | J21: =VLOOKUP(VLOOKUP($F21,'Data BI Summary'!$A:$F,MATCH(J$1,'Data BI Summary'!$2:$2,0),FALSE),INDIRECT("'"&$E21&"'!"&"$A:$K"),8,FALSE) -> 14.785933 | K21: =VLOOKUP(VLOOKUP($F21,'Data BI Summary'!$A:$F,MATCH(K$1,'Data BI Summary'!$2:$2,0),FALSE),INDIRECT("'"&$E21&"'!"&"$A:$K"),9,FALSE) -> 0.01340639033
A22: GSd | B22: Low | C22: =VLOOKUP(A$22,'Data Billing Quantities'!A:P,MATCH(B22&" kWh",'Data Billing Quantities'!$4:$4,0),FALSE) -> 9310 | D22: =VLOOKUP(A$22,'Data Billing Quantities'!A:P,MATCH(B22&" kW",'Data Billing Quantities'!$4:$4,0),FALSE) -> 55 | E22: BI_GSd_Low | F22: BI Template_Demand | G22: =VLOOKUP(VLOOKUP($F22,'Data BI Summary'!$A:$F,MATCH(G$1,'Data BI Summary'!$2:$2,0),FALSE),INDIRECT("'"&$E22&"'!"&"$A:$K"),4,FALSE) -> 3043.880027 | H22: =VLOOKUP(VLOOKUP($F22,'Data BI Summary'!$A:$F,MATCH(H$1,'Data BI Summary'!$2:$2,0),FALSE),INDIRECT("'"&$E22&"'!"&"$A:$K"),8,FALSE) -> 67.1465 | I22: =VLOOKUP(VLOOKUP($F22,'Data BI Summary'!$A:$F,MATCH(I$1,'Data BI Summary'!$2:$2,0),FALSE),INDIRECT("'"&$E22&"'!"&"$A:$K"),9,FALSE) -> 0.05454960515 | J22: =VLOOKUP(VLOOKUP($F22,'Data BI Summary'!$A:$F,MATCH(J$1,'Data BI Summary'!$2:$2,0),FALSE),INDIRECT("'"&$E22&"'!"&"$A:$K"),8,FALSE) -> 75.875545 | K22: =VLOOKUP(VLOOKUP($F22,'Data BI Summary'!$A:$F,MATCH(K$1,'Data BI Summary'!$2:$2,0),FALSE),INDIRECT("'"&$E22&"'!"&"$A:$K"),9,FALSE) -> 0.0249272456 | L22: WAHSP
B23: Average | C23: =VLOOKUP(A$22,'Data Billing Quantities'!A:P,MATCH(B23&" kWh",'Data Billing Quantities'!$4:$4,0),FALSE) -> 34334 | D23: =VLOOKUP(A$22,'Data Billing Quantities'!A:P,MATCH(B23&" kW",'Data Billing Quantities'!$4:$4,0),FALSE) -> 110 | E23: BI_GSd_Avg | F23: BI Template_Demand | G23: =VLOOKUP(VLOOKUP($F23,'Data BI Summary'!$A:$F,MATCH(G$1,'Data BI Summary'!$2:$2,0),FALSE),INDIRECT("'"&$E23&"'!"&"$A:$K"),4,FALSE) -> 8269.074862 | H23: =VLOOKUP(VLOOKUP($F23,'Data BI Summary'!$A:$F,MATCH(H$1,'Data BI Summary'!$2:$2,0),FALSE),INDIRECT("'"&$E23&"'!"&"$A:$K"),8,FALSE) -> 130.083 | I23: =VLOOKUP(VLOOKUP($F23,'Data BI Summary'!$A:$F,MATCH(I$1,'Data BI Summary'!$2:$2,0),FALSE),INDIRECT("'"&$E23&"'!"&"$A:$K"),9,FALSE) -> 0.05551010424 | J23: =VLOOKUP(VLOOKUP($F23,'Data BI Summary'!$A:$F,MATCH(J$1,'Data BI Summary'!$2:$2,0),FALSE),INDIRECT("'"&$E23&"'!"&"$A:$K"),8,FALSE) -> 146.99379 | K23: =VLOOKUP(VLOOKUP($F23,'Data BI Summary'!$A:$F,MATCH(K$1,'Data BI Summary'!$2:$2,0),FALSE),INDIRECT("'"&$E23&"'!"&"$A:$K"),9,FALSE) -> 0.01777632836
B24: High | C24: =VLOOKUP(A$22,'Data Billing Quantities'!A:P,MATCH(B24&" kWh",'Data Billing Quantities'!$4:$4,0),FALSE) -> 75790 | D24: =VLOOKUP(A$22,'Data Billing Quantities'!A:P,MATCH(B24&" kW",'Data Billing Quantities'!$4:$4,0),FALSE) -> 250 | E24: BI_GSd_High | F24: BI Template_Demand | G24: =VLOOKUP(VLOOKUP($F24,'Data BI Summary'!$A:$F,MATCH(G$1,'Data BI Summary'!$2:$2,0),FALSE),INDIRECT("'"&$E24&"'!"&"$A:$K"),4,FALSE) -> 18309.9189 | H24: =VLOOKUP(VLOOKUP($F24,'Data BI Summary'!$A:$F,MATCH(H$1,'Data BI Summary'!$2:$2,0),FALSE),INDIRECT("'"&$E24&"'!"&"$A:$K"),8,FALSE) -> 290.285 | I24: =VLOOKUP(VLOOKUP($F24,'Data BI Summary'!$A:$F,MATCH(I$1,'Data BI Summary'!$2:$2,0),FALSE),INDIRECT("'"&$E24&"'!"&"$A:$K"),9,FALSE) -> 0.05592338851 | J24: =VLOOKUP(VLOOKUP($F24,'Data BI Summary'!$A:$F,MATCH(J$1,'Data BI Summary'!$2:$2,0),FALSE),INDIRECT("'"&$E24&"'!"&"$A:$K"),8,FALSE) -> 328.02205 | K24: =VLOOKUP(VLOOKUP($F24,'Data BI Summary'!$A:$F,MATCH(K$1,'Data BI Summary'!$2:$2,0),FALSE),INDIRECT("'"&$E24&"'!"&"$A:$K"),9,FALSE) -> 0.01791499197
A25: UGd | B25: Low | C25: =VLOOKUP(A$25,'Data Billing Quantities'!A:P,MATCH(B25&" kWh",'Data Billing Quantities'!$4:$4,0),FALSE) -> 13900 | D25: =VLOOKUP(A$25,'Data Billing Quantities'!A:P,MATCH(B25&" kW",'Data Billing Quantities'!$4:$4,0),FALSE) -> 55 | E25: BI_UGd_Low | F25: BI Template_Demand | G25: =VLOOKUP(VLOOKUP($F25,'Data BI Summary'!$A:$F,MATCH(G$1,'Data BI Summary'!$2:$2,0),FALSE),INDIRECT("'"&$E25&"'!"&"$A:$K"),4,FALSE) -> 3220.754815 | H25: =VLOOKUP(VLOOKUP($F25,'Data BI Summary'!$A:$F,MATCH(H$1,'Data BI Summary'!$2:$2,0),FALSE),INDIRECT("'"&$E25&"'!"&"$A:$K"),8,FALSE) -> 40.5445 | I25: =VLOOKUP(VLOOKUP($F25,'Data BI Summary'!$A:$F,MATCH(I$1,'Data BI Summary'!$2:$2,0),FALSE),INDIRECT("'"&$E25&"'!"&"$A:$K"),9,FALSE) -> 0.05483714337 | J25: =VLOOKUP(VLOOKUP($F25,'Data BI Summary'!$A:$F,MATCH(J$1,'Data BI Summary'!$2:$2,0),FALSE),INDIRECT("'"&$E25&"'!"&"$A:$K"),8,FALSE) -> 45.815285 | K25: =VLOOKUP(VLOOKUP($F25,'Data BI Summary'!$A:$F,MATCH(K$1,'Data BI Summary'!$2:$2,0),FALSE),INDIRECT("'"&$E25&"'!"&"$A:$K"),9,FALSE) -> 0.01422501483 | L25: WAHSP
B26: Average | C26: =VLOOKUP(A$25,'Data Billing Quantities'!A:P,MATCH(B26&" kWh",'Data Billing Quantities'!$4:$4,0),FALSE) -> 42592 | D26: =VLOOKUP(A$25,'Data Billing Quantities'!A:P,MATCH(B26&" kW",'Data Billing Quantities'!$4:$4,0),FALSE) -> 111 | E26: BI_UGd_Avg | F26: BI Template_Demand | G26: =VLOOKUP(VLOOKUP($F26,'Data BI Summary'!$A:$F,MATCH(G$1,'Data BI Summary'!$2:$2,0),FALSE),INDIRECT("'"&$E26&"'!"&"$A:$K"),4,FALSE) -> 8494.919911 | H26: =VLOOKUP(VLOOKUP($F26,'Data BI Summary'!$A:$F,MATCH(H$1,'Data BI Summary'!$2:$2,0),FALSE),INDIRECT("'"&$E26&"'!"&"$A:$K"),8,FALSE) -> 77.7229 | I26: =VLOOKUP(VLOOKUP($F26,'Data BI Summary'!$A:$F,MATCH(I$1,'Data BI Summary'!$2:$2,0),FALSE),INDIRECT("'"&$E26&"'!"&"$A:$K"),9,FALSE) -> 0.05625750965 | J26: =VLOOKUP(VLOOKUP($F26,'Data BI Summary'!$A:$F,MATCH(J$1,'Data BI Summary'!$2:$2,0),FALSE),INDIRECT("'"&$E26&"'!"&"$A:$K"),8,FALSE) -> 87.826877 | K26: =VLOOKUP(VLOOKUP($F26,'Data BI Summary'!$A:$F,MATCH(K$1,'Data BI Summary'!$2:$2,0),FALSE),INDIRECT("'"&$E26&"'!"&"$A:$K"),9,FALSE) -> 0.0103387528
B27: High | C27: =VLOOKUP(A$25,'Data Billing Quantities'!A:P,MATCH(B27&" kWh",'Data Billing Quantities'!$4:$4,0),FALSE) -> 97610 | D27: =VLOOKUP(A$25,'Data Billing Quantities'!A:P,MATCH(B27&" kW",'Data Billing Quantities'!$4:$4,0),FALSE) -> 280 | E27: BI_UGd_High | F27: BI Template_Demand | G27: =VLOOKUP(VLOOKUP($F27,'Data BI Summary'!$A:$F,MATCH(G$1,'Data BI Summary'!$2:$2,0),FALSE),INDIRECT("'"&$E27&"'!"&"$A:$K"),4,FALSE) -> 19832.95256 | H27: =VLOOKUP(VLOOKUP($F27,'Data BI Summary'!$A:$F,MATCH(H$1,'Data BI Summary'!$2:$2,0),FALSE),INDIRECT("'"&$E27&"'!"&"$A:$K"),8,FALSE) -> 189.922 | I27: =VLOOKUP(VLOOKUP($F27,'Data BI Summary'!$A:$F,MATCH(I$1,'Data BI Summary'!$2:$2,0),FALSE),INDIRECT("'"&$E27&"'!"&"$A:$K"),9,FALSE) -> 0.05683386176 | J27: =VLOOKUP(VLOOKUP($F27,'Data BI Summary'!$A:$F,MATCH(J$1,'Data BI Summary'!$2:$2,0),FALSE),INDIRECT("'"&$E27&"'!"&"$A:$K"),8,FALSE) -> 214.61186 | K27: =VLOOKUP(VLOOKUP($F27,'Data BI Summary'!$A:$F,MATCH(K$1,'Data BI Summary'!$2:$2,0),FALSE),INDIRECT("'"&$E27&"'!"&"$A:$K"),9,FALSE) -> 0.0108209738
A28: St Lgt | B28: Low | C28: =VLOOKUP(A$28,'Data Billing Quantities'!A:P,MATCH(B28&" kWh",'Data Billing Quantities'!$4:$4,0),FALSE) -> 30 | E28: BI_StLgt_Low | F28: BI Template_EnergyUNM | G28: =VLOOKUP(VLOOKUP($F28,'Data BI Summary'!$A:$F,MATCH(G$1,'Data BI Summary'!$2:$2,0),FALSE),INDIRECT("'"&$E28&"'!"&"$A:$K"),4,FALSE) -> 10.03681892 | H28: =VLOOKUP(VLOOKUP($F28,'Data BI Summary'!$A:$F,MATCH(H$1,'Data BI Summary'!$2:$2,0),FALSE),INDIRECT("'"&$E28&"'!"&"$A:$K"),8,FALSE) -> 0.318 | I28: =VLOOKUP(VLOOKUP($F28,'Data BI Summary'!$A:$F,MATCH(I$1,'Data BI Summary'!$2:$2,0),FALSE),INDIRECT("'"&$E28&"'!"&"$A:$K"),9,FALSE) -> 0.04713205869 | J28: =VLOOKUP(VLOOKUP($F28,'Data BI Summary'!$A:$F,MATCH(J$1,'Data BI Summary'!$2:$2,0),FALSE),INDIRECT("'"&$E28&"'!"&"$A:$K"),8,FALSE) -> 0.299238 | K28: =VLOOKUP(VLOOKUP($F28,'Data BI Summary'!$A:$F,MATCH(K$1,'Data BI Summary'!$2:$2,0),FALSE),INDIRECT("'"&$E28&"'!"&"$A:$K"),9,FALSE) -> 0.02981402797 | L28: Two-tier RPP
B29: Average | C29: =VLOOKUP(A$28,'Data Billing Quantities'!A:P,MATCH(B29&" kWh",'Data Billing Quantities'!$4:$4,0),FALSE) -> 1274 | E29: BI_StLgt_Avg | F29: BI Template_EnergyUNM | G29: =VLOOKUP(VLOOKUP($F29,'Data BI Summary'!$A:$F,MATCH(G$1,'Data BI Summary'!$2:$2,0),FALSE),INDIRECT("'"&$E29&"'!"&"$A:$K"),4,FALSE) -> 302.6485905 | H29: =VLOOKUP(VLOOKUP($F29,'Data BI Summary'!$A:$F,MATCH(H$1,'Data BI Summary'!$2:$2,0),FALSE),INDIRECT("'"&$E29&"'!"&"$A:$K"),8,FALSE) -> 8.5284 | I29: =VLOOKUP(VLOOKUP($F29,'Data BI Summary'!$A:$F,MATCH(I$1,'Data BI Summary'!$2:$2,0),FALSE),INDIRECT("'"&$E29&"'!"&"$A:$K"),9,FALSE) -> 0.05514339325 | J29: =VLOOKUP(VLOOKUP($F29,'Data BI Summary'!$A:$F,MATCH(J$1,'Data BI Summary'!$2:$2,0),FALSE),INDIRECT("'"&$E29&"'!"&"$A:$K"),8,FALSE) -> 8.0252244 | K29: =VLOOKUP(VLOOKUP($F29,'Data BI Summary'!$A:$F,MATCH(K$1,'Data BI Summary'!$2:$2,0),FALSE),INDIRECT("'"&$E29&"'!"&"$A:$K"),9,FALSE) -> 0.02651664224
B30: High | C30: =VLOOKUP(A$28,'Data Billing Quantities'!A:P,MATCH(B30&" kWh",'Data Billing Quantities'!$4:$4,0),FALSE) -> 2310 | E30: BI_StLgt_High | F30: BI Template_EnergyUNM | G30: =VLOOKUP(VLOOKUP($F30,'Data BI Summary'!$A:$F,MATCH(G$1,'Data BI Summary'!$2:$2,0),FALSE),INDIRECT("'"&$E30&"'!"&"$A:$K"),4,FALSE) -> 555.8901793 | H30: =VLOOKUP(VLOOKUP($F30,'Data BI Summary'!$A:$F,MATCH(H$1,'Data BI Summary'!$2:$2,0),FALSE),INDIRECT("'"&$E30&"'!"&"$A:$K"),8,FALSE) -> 15.366 | I30: =VLOOKUP(VLOOKUP($F30,'Data BI Summary'!$A:$F,MATCH(I$1,'Data BI Summary'!$2:$2,0),FALSE),INDIRECT("'"&$E30&"'!"&"$A:$K"),9,FALSE) -> 0.05530541069 | J30: =VLOOKUP(VLOOKUP($F30,'Data BI Summary'!$A:$F,MATCH(J$1,'Data BI Summary'!$2:$2,0),FALSE),INDIRECT("'"&$E30&"'!"&"$A:$K"),8,FALSE) -> 14.459406 | K30: =VLOOKUP(VLOOKUP($F30,'Data BI Summary'!$A:$F,MATCH(K$1,'Data BI Summary'!$2:$2,0),FALSE),INDIRECT("'"&$E30&"'!"&"$A:$K"),9,FALSE) -> 0.02601126363
A31: Sen Lgt | B31: Low | C31: =VLOOKUP(A$31,'Data Billing Quantities'!A:P,MATCH(B31&" kWh",'Data Billing Quantities'!$4:$4,0),FALSE) -> 20 | E31: BI_SenLgt_Low | F31: BI Template_EnergyUNM | G31: =VLOOKUP(VLOOKUP($F31,'Data BI Summary'!$A:$F,MATCH(G$1,'Data BI Summary'!$2:$2,0),FALSE),INDIRECT("'"&$E31&"'!"&"$A:$K"),4,FALSE) -> 8.53682728 | H31: =VLOOKUP(VLOOKUP($F31,'Data BI Summary'!$A:$F,MATCH(H$1,'Data BI Summary'!$2:$2,0),FALSE),INDIRECT("'"&$E31&"'!"&"$A:$K"),8,FALSE) -> 0.338 | I31: =VLOOKUP(VLOOKUP($F31,'Data BI Summary'!$A:$F,MATCH(I$1,'Data BI Summary'!$2:$2,0),FALSE),INDIRECT("'"&$E31&"'!"&"$A:$K"),9,FALSE) -> 0.05301129235 | J31: =VLOOKUP(VLOOKUP($F31,'Data BI Summary'!$A:$F,MATCH(J$1,'Data BI Summary'!$2:$2,0),FALSE),INDIRECT("'"&$E31&"'!"&"$A:$K"),8,FALSE) -> 0.318058 | K31: =VLOOKUP(VLOOKUP($F31,'Data BI Summary'!$A:$F,MATCH(K$1,'Data BI Summary'!$2:$2,0),FALSE),INDIRECT("'"&$E31&"'!"&"$A:$K"),9,FALSE) -> 0.03725716704 | L31: Two-tier RPP
B32: Average | C32: =VLOOKUP(A$31,'Data Billing Quantities'!A:P,MATCH(B32&" kWh",'Data Billing Quantities'!$4:$4,0),FALSE) -> 49 | E32: BI_SenLgt_Avg | F32: BI Template_EnergyUNM | G32: =VLOOKUP(VLOOKUP($F32,'Data BI Summary'!$A:$F,MATCH(G$1,'Data BI Summary'!$2:$2,0),FALSE),INDIRECT("'"&$E32&"'!"&"$A:$K"),4,FALSE) -> 16.49440884 | H32: =VLOOKUP(VLOOKUP($F32,'Data BI Summary'!$A:$F,MATCH(H$1,'Data BI Summary'!$2:$2,0),FALSE),INDIRECT("'"&$E32&"'!"&"$A:$K"),8,FALSE) -> 0.6251 | I32: =VLOOKUP(VLOOKUP($F32,'Data BI Summary'!$A:$F,MATCH(I$1,'Data BI Summary'!$2:$2,0),FALSE),INDIRECT("'"&$E32&"'!"&"$A:$K"),9,FALSE) -> 0.05538867771 | J32: =VLOOKUP(VLOOKUP($F32,'Data BI Summary'!$A:$F,MATCH(J$1,'Data BI Summary'!$2:$2,0),FALSE),INDIRECT("'"&$E32&"'!"&"$A:$K"),8,FALSE) -> 0.5882191 | K32: =VLOOKUP(VLOOKUP($F32,'Data BI Summary'!$A:$F,MATCH(K$1,'Data BI Summary'!$2:$2,0),FALSE),INDIRECT("'"&$E32&"'!"&"$A:$K"),9,FALSE) -> 0.0356617267
B33: High | C33: =VLOOKUP(A$31,'Data Billing Quantities'!A:P,MATCH(B33&" kWh",'Data Billing Quantities'!$4:$4,0),FALSE) -> 80 | E33: BI_SenLgt_High | F33: BI Template_EnergyUNM | G33: =VLOOKUP(VLOOKUP($F33,'Data BI Summary'!$A:$F,MATCH(G$1,'Data BI Summary'!$2:$2,0),FALSE),INDIRECT("'"&$E33&"'!"&"$A:$K"),4,FALSE) -> 25.00078912 | H33: =VLOOKUP(VLOOKUP($F33,'Data BI Summary'!$A:$F,MATCH(H$1,'Data BI Summary'!$2:$2,0),FALSE),INDIRECT("'"&$E33&"'!"&"$A:$K"),8,FALSE) -> 0.932 | I33: =VLOOKUP(VLOOKUP($F33,'Data BI Summary'!$A:$F,MATCH(I$1,'Data BI Summary'!$2:$2,0),FALSE),INDIRECT("'"&$E33&"'!"&"$A:$K"),9,FALSE) -> 0.05636869481 | J33: =VLOOKUP(VLOOKUP($F33,'Data BI Summary'!$A:$F,MATCH(J$1,'Data BI Summary'!$2:$2,0),FALSE),INDIRECT("'"&$E33&"'!"&"$A:$K"),8,FALSE) -> 0.877012 | K33: =VLOOKUP(VLOOKUP($F33,'Data BI Summary'!$A:$F,MATCH(K$1,'Data BI Summary'!$2:$2,0),FALSE),INDIRECT("'"&$E33&"'!"&"$A:$K"),9,FALSE) -> 0.03507937273
A34: USL | B34: Low | C34: =VLOOKUP(A$34,'Data Billing Quantities'!A:P,MATCH(B34&" kWh",'Data Billing Quantities'!$4:$4,0),FALSE) -> 100 | E34: BI_USL_Low | F34: BI Template_EnergyUNM | G34: =VLOOKUP(VLOOKUP($F34,'Data BI Summary'!$A:$F,MATCH(G$1,'Data BI Summary'!$2:$2,0),FALSE),INDIRECT("'"&$E34&"'!"&"$A:$K"),4,FALSE) -> 48.73920792 | H34: =VLOOKUP(VLOOKUP($F34,'Data BI Summary'!$A:$F,MATCH(H$1,'Data BI Summary'!$2:$2,0),FALSE),INDIRECT("'"&$E34&"'!"&"$A:$K"),8,FALSE) -> 2.11 | I34: =VLOOKUP(VLOOKUP($F34,'Data BI Summary'!$A:$F,MATCH(I$1,'Data BI Summary'!$2:$2,0),FALSE),INDIRECT("'"&$E34&"'!"&"$A:$K"),9,FALSE) -> 0.05390904446 | J34: =VLOOKUP(VLOOKUP($F34,'Data BI Summary'!$A:$F,MATCH(J$1,'Data BI Summary'!$2:$2,0),FALSE),INDIRECT("'"&$E34&"'!"&"$A:$K"),8,FALSE) -> 1.98551 | K34: =VLOOKUP(VLOOKUP($F34,'Data BI Summary'!$A:$F,MATCH(K$1,'Data BI Summary'!$2:$2,0),FALSE),INDIRECT("'"&$E34&"'!"&"$A:$K"),9,FALSE) -> 0.04073742855 | L34: Two-tier RPP
B35: Average | C35: =VLOOKUP(A$34,'Data Billing Quantities'!A:P,MATCH(B35&" kWh",'Data Billing Quantities'!$4:$4,0),FALSE) -> 477 | E35: BI_USL_Avg | F35: BI Template_EnergyUNM | G35: =VLOOKUP(VLOOKUP($F35,'Data BI Summary'!$A:$F,MATCH(G$1,'Data BI Summary'!$2:$2,0),FALSE),INDIRECT("'"&$E35&"'!"&"$A:$K"),4,FALSE) -> 100.8711748 | H35: =VLOOKUP(VLOOKUP($F35,'Data BI Summary'!$A:$F,MATCH(H$1,'Data BI Summary'!$2:$2,0),FALSE),INDIRECT("'"&$E35&"'!"&"$A:$K"),8,FALSE) -> 2.6378 | I35: =VLOOKUP(VLOOKUP($F35,'Data BI Summary'!$A:$F,MATCH(I$1,'Data BI Summary'!$2:$2,0),FALSE),INDIRECT("'"&$E35&"'!"&"$A:$K"),9,FALSE) -> 0.05521494224 | J35: =VLOOKUP(VLOOKUP($F35,'Data BI Summary'!$A:$F,MATCH(J$1,'Data BI Summary'!$2:$2,0),FALSE),INDIRECT("'"&$E35&"'!"&"$A:$K"),8,FALSE) -> 2.4821698 | K35: =VLOOKUP(VLOOKUP($F35,'Data BI Summary'!$A:$F,MATCH(K$1,'Data BI Summary'!$2:$2,0),FALSE),INDIRECT("'"&$E35&"'!"&"$A:$K"),9,FALSE) -> 0.02460732519
B36: High | C36: =VLOOKUP(A$34,'Data Billing Quantities'!A:P,MATCH(B36&" kWh",'Data Billing Quantities'!$4:$4,0),FALSE) -> 550 | E36: BI_USL_High | F36: BI Template_EnergyUNM | G36: =VLOOKUP(VLOOKUP($F36,'Data BI Summary'!$A:$F,MATCH(G$1,'Data BI Summary'!$2:$2,0),FALSE),INDIRECT("'"&$E36&"'!"&"$A:$K"),4,FALSE) -> 110.9656936 | H36: =VLOOKUP(VLOOKUP($F36,'Data BI Summary'!$A:$F,MATCH(H$1,'Data BI Summary'!$2:$2,0),FALSE),INDIRECT("'"&$E36&"'!"&"$A:$K"),8,FALSE) -> 2.74 | I36: =VLOOKUP(VLOOKUP($F36,'Data BI Summary'!$A:$F,MATCH(I$1,'Data BI Summary'!$2:$2,0),FALSE),INDIRECT("'"&$E36&"'!"&"$A:$K"),9,FALSE) -> 0.0554151077 | J36: =VLOOKUP(VLOOKUP($F36,'Data BI Summary'!$A:$F,MATCH(J$1,'Data BI Summary'!$2:$2,0),FALSE),INDIRECT("'"&$E36&"'!"&"$A:$K"),8,FALSE) -> 2.57834 | K36: =VLOOKUP(VLOOKUP($F36,'Data BI Summary'!$A:$F,MATCH(K$1,'Data BI Summary'!$2:$2,0),FALSE),INDIRECT("'"&$E36&"'!"&"$A:$K"),9,FALSE) -> 0.02323546961
A37: DGen | B37: Low | C37: =VLOOKUP(A$37,'Data Billing Quantities'!A:P,MATCH($B37&" kWh",'Data Billing Quantities'!$4:$4,0),FALSE) -> 10 | D37: =VLOOKUP(A$37,'Data Billing Quantities'!A:P,MATCH($B37&" kW",'Data Billing Quantities'!$4:$4,0),FALSE) -> 0.02941666667 | E37: BI_Dgen_Low | F37: BI Template_Demand | G37: =VLOOKUP(VLOOKUP($F37,'Data BI Summary'!$A:$F,MATCH(G$1,'Data BI Summary'!$2:$2,0),FALSE),INDIRECT("'"&$E37&"'!"&"$A:$K"),4,FALSE) -> 233.4735928 | H37: =VLOOKUP(VLOOKUP($F37,'Data BI Summary'!$A:$F,MATCH(H$1,'Data BI Summary'!$2:$2,0),FALSE),INDIRECT("'"&$E37&"'!"&"$A:$K"),8,FALSE) -> 8.686672092 | I37: =VLOOKUP(VLOOKUP($F37,'Data BI Summary'!$A:$F,MATCH(I$1,'Data BI Summary'!$2:$2,0),FALSE),INDIRECT("'"&$E37&"'!"&"$A:$K"),9,FALSE) -> 0.04237578165 | J37: =VLOOKUP(VLOOKUP($F37,'Data BI Summary'!$A:$F,MATCH(J$1,'Data BI Summary'!$2:$2,0),FALSE),INDIRECT("'"&$E37&"'!"&"$A:$K"),8,FALSE) -> 9.815939464 | K37: =VLOOKUP(VLOOKUP($F37,'Data BI Summary'!$A:$F,MATCH(K$1,'Data BI Summary'!$2:$2,0),FALSE),INDIRECT("'"&$E37&"'!"&"$A:$K"),9,FALSE) -> 0.04204303941 | L37: WAHSP
B38: Average | C38: =VLOOKUP(A$37,'Data Billing Quantities'!A:P,MATCH($B38&" kWh",'Data Billing Quantities'!$4:$4,0),FALSE) -> 1709 | D38: =VLOOKUP(A$37,'Data Billing Quantities'!A:P,MATCH($B38&" kW",'Data Billing Quantities'!$4:$4,0),FALSE) -> 12 | E38: BI_Dgen_Avg | F38: BI Template_Demand | G38: =VLOOKUP(VLOOKUP($F38,'Data BI Summary'!$A:$F,MATCH(G$1,'Data BI Summary'!$2:$2,0),FALSE),INDIRECT("'"&$E38&"'!"&"$A:$K"),4,FALSE) -> 678.7453504 | H38: =VLOOKUP(VLOOKUP($F38,'Data BI Summary'!$A:$F,MATCH(H$1,'Data BI Summary'!$2:$2,0),FALSE),INDIRECT("'"&$E38&"'!"&"$A:$K"),8,FALSE) -> 19.5404 | I38: =VLOOKUP(VLOOKUP($F38,'Data BI Summary'!$A:$F,MATCH(I$1,'Data BI Summary'!$2:$2,0),FALSE),INDIRECT("'"&$E38&"'!"&"$A:$K"),9,FALSE) -> 0.05588417741 | J38: =VLOOKUP(VLOOKUP($F38,'Data BI Summary'!$A:$F,MATCH(J$1,'Data BI Summary'!$2:$2,0),FALSE),INDIRECT("'"&$E38&"'!"&"$A:$K"),8,FALSE) -> 22.080652 | K38: =VLOOKUP(VLOOKUP($F38,'Data BI Summary'!$A:$F,MATCH(K$1,'Data BI Summary'!$2:$2,0),FALSE),INDIRECT("'"&$E38&"'!"&"$A:$K"),9,FALSE) -> 0.03253157018
B39: High | C39: =VLOOKUP(A$37,'Data Billing Quantities'!A:P,MATCH($B39&" kWh",'Data Billing Quantities'!$4:$4,0),FALSE) -> 8490 | D39: =VLOOKUP(A$37,'Data Billing Quantities'!A:P,MATCH($B39&" kW",'Data Billing Quantities'!$4:$4,0),FALSE) -> 45 | E39: BI_Dgen_High | F39: BI Template_Demand | G39: =VLOOKUP(VLOOKUP($F39,'Data BI Summary'!$A:$F,MATCH(G$1,'Data BI Summary'!$2:$2,0),FALSE),INDIRECT("'"&$E39&"'!"&"$A:$K"),4,FALSE) -> 2213.62218 | H39: =VLOOKUP(VLOOKUP($F39,'Data BI Summary'!$A:$F,MATCH(H$1,'Data BI Summary'!$2:$2,0),FALSE),INDIRECT("'"&$E39&"'!"&"$A:$K"),8,FALSE) -> 49.4615 | I39: =VLOOKUP(VLOOKUP($F39,'Data BI Summary'!$A:$F,MATCH(I$1,'Data BI Summary'!$2:$2,0),FALSE),INDIRECT("'"&$E39&"'!"&"$A:$K"),9,FALSE) -> 0.06621316619 | J39: =VLOOKUP(VLOOKUP($F39,'Data BI Summary'!$A:$F,MATCH(J$1,'Data BI Summary'!$2:$2,0),FALSE),INDIRECT("'"&$E39&"'!"&"$A:$K"),8,FALSE) -> 55.891495 | K39: =VLOOKUP(VLOOKUP($F39,'Data BI Summary'!$A:$F,MATCH(K$1,'Data BI Summary'!$2:$2,0),FALSE),INDIRECT("'"&$E39&"'!"&"$A:$K"),9,FALSE) -> 0.02524888643
A40: ST | B40: Low | C40: =VLOOKUP(A$40,'Data Billing Quantities'!A:P,MATCH($B40&" kWh",'Data Billing Quantities'!$4:$4,0),FALSE) -> 88780 | D40: =VLOOKUP(A$40,'Data Billing Quantities'!A:P,MATCH($B40&" kW",'Data Billing Quantities'!$4:$4,0),FALSE) -> 500 | E40: BI_ST_Low | F40: BI Template_Demand | G40: =VLOOKUP(VLOOKUP($F40,'Data BI Summary'!$A:$F,MATCH(G$1,'Data BI Summary'!$2:$2,0),FALSE),INDIRECT("'"&$E40&"'!"&"$A:$K"),4,FALSE) -> 19314.56142 | H40: =VLOOKUP(VLOOKUP($F40,'Data BI Summary'!$A:$F,MATCH(H$1,'Data BI Summary'!$2:$2,0),FALSE),INDIRECT("'"&$E40&"'!"&"$A:$K"),8,FALSE) -> 241.279877 | I40: =VLOOKUP(VLOOKUP($F40,'Data BI Summary'!$A:$F,MATCH(I$1,'Data BI Summary'!$2:$2,0),FALSE),INDIRECT("'"&$E40&"'!"&"$A:$K"),9,FALSE) -> 0.1235910377 | J40: =VLOOKUP(VLOOKUP($F40,'Data BI Summary'!$A:$F,MATCH(J$1,'Data BI Summary'!$2:$2,0),FALSE),INDIRECT("'"&$E40&"'!"&"$A:$K"),8,FALSE) -> 272.646261 | K40: =VLOOKUP(VLOOKUP($F40,'Data BI Summary'!$A:$F,MATCH(K$1,'Data BI Summary'!$2:$2,0),FALSE),INDIRECT("'"&$E40&"'!"&"$A:$K"),9,FALSE) -> 0.01411609899 | L40: WAHSP
B41: Average | C41: =VLOOKUP(A$40,'Data Billing Quantities'!A:P,MATCH($B41&" kWh",'Data Billing Quantities'!$4:$4,0),FALSE) -> 1373443 | D41: =VLOOKUP(A$40,'Data Billing Quantities'!A:P,MATCH($B41&" kW",'Data Billing Quantities'!$4:$4,0),FALSE) -> 2808 | E41: BI_ST_Avg | F41: BI Template_Demand | G41: =VLOOKUP(VLOOKUP($F41,'Data BI Summary'!$A:$F,MATCH(G$1,'Data BI Summary'!$2:$2,0),FALSE),INDIRECT("'"&$E41&"'!"&"$A:$K"),4,FALSE) -> 226690.2081 | H41: =VLOOKUP(VLOOKUP($F41,'Data BI Summary'!$A:$F,MATCH(H$1,'Data BI Summary'!$2:$2,0),FALSE),INDIRECT("'"&$E41&"'!"&"$A:$K"),8,FALSE) -> 719.728277 | I41: =VLOOKUP(VLOOKUP($F41,'Data BI Summary'!$A:$F,MATCH(I$1,'Data BI Summary'!$2:$2,0),FALSE),INDIRECT("'"&$E41&"'!"&"$A:$K"),9,FALSE) -> 0.163247667 | J41: =VLOOKUP(VLOOKUP($F41,'Data BI Summary'!$A:$F,MATCH(J$1,'Data BI Summary'!$2:$2,0),FALSE),INDIRECT("'"&$E41&"'!"&"$A:$K"),8,FALSE) -> 813.292953 | K41: =VLOOKUP(VLOOKUP($F41,'Data BI Summary'!$A:$F,MATCH(K$1,'Data BI Summary'!$2:$2,0),FALSE),INDIRECT("'"&$E41&"'!"&"$A:$K"),9,FALSE) -> 0.003587684531
B42: High | C42: =VLOOKUP(A$40,'Data Billing Quantities'!A:P,MATCH($B42&" kWh",'Data Billing Quantities'!$4:$4,0),FALSE) -> 2641420 | D42: =VLOOKUP(A$40,'Data Billing Quantities'!A:P,MATCH($B42&" kW",'Data Billing Quantities'!$4:$4,0),FALSE) -> 13730 | E42: BI_ST_High | F42: BI Template_Demand | G42: =VLOOKUP(VLOOKUP($F42,'Data BI Summary'!$A:$F,MATCH(G$1,'Data BI Summary'!$2:$2,0),FALSE),INDIRECT("'"&$E42&"'!"&"$A:$K"),4,FALSE) -> 520942.093 | H42: =VLOOKUP(VLOOKUP($F42,'Data BI Summary'!$A:$F,MATCH(H$1,'Data BI Summary'!$2:$2,0),FALSE),INDIRECT("'"&$E42&"'!"&"$A:$K"),8,FALSE) -> 2983.858877 | I42: =VLOOKUP(VLOOKUP($F42,'Data BI Summary'!$A:$F,MATCH(I$1,'Data BI Summary'!$2:$2,0),FALSE),INDIRECT("'"&$E42&"'!"&"$A:$K"),9,FALSE) -> 0.1537927614 | J42: =VLOOKUP(VLOOKUP($F42,'Data BI Summary'!$A:$F,MATCH(J$1,'Data BI Summary'!$2:$2,0),FALSE),INDIRECT("'"&$E42&"'!"&"$A:$K"),8,FALSE) -> 3371.760531 | K42: =VLOOKUP(VLOOKUP($F42,'Data BI Summary'!$A:$F,MATCH(K$1,'Data BI Summary'!$2:$2,0),FALSE),INDIRECT("'"&$E42&"'!"&"$A:$K"),9,FALSE) -> 0.006472428657

Sheet Bill Impact Summary_Acq (hidden)
A1: Rate Class | B1: Consumption Level | C1: Monthly Consumption (kWh) | D1: Monthly Peak (kW) | E1: BI Worksheet | F1: Template | G1: Current Total Bill | H1: Change in DX Bill ($) | I1: Change in DX Bill (%) | J1: Change in Total Bill ($) | K1: Change in Total Bill (%) | L1: Commodity Price Used
A2: WHSI to HONI
A3: AUR-WHSI | B3: Low | C3: =VLOOKUP(A$3,'Data Billing Quantities'!A:P,MATCH($B3&" kWh",'Data Billing Quantities'!$4:$4,0),FALSE) -> 310 | E3: BI_WHSI_AUR_Low | F3: BI Template_EnergyWHSI | G3: =VLOOKUP(VLOOKUP($F3,'Data BI Summary'!$A:$F,MATCH(G$1,'Data BI Summary'!$2:$2,0),FALSE),INDIRECT("'"&$E3&"'!"&"$A:$K"),4,FALSE) -> 70.52767767 | H3: =VLOOKUP(VLOOKUP($F3,'Data BI Summary'!$A:$F,MATCH(H$1,'Data BI Summary'!$2:$2,0),FALSE),INDIRECT("'"&$E3&"'!"&"$A:$K"),8,FALSE) -> 1.82 | I3: =VLOOKUP(VLOOKUP($F3,'Data BI Summary'!$A:$F,MATCH(I$1,'Data BI Summary'!$2:$2,0),FALSE),INDIRECT("'"&$E3&"'!"&"$A:$K"),9,FALSE) -> 0.05494339623 | J3: =VLOOKUP(VLOOKUP($F3,'Data BI Summary'!$A:$F,MATCH(J$1,'Data BI Summary'!$2:$2,0),FALSE),INDIRECT("'"&$E3&"'!"&"$A:$K"),8,FALSE) -> 1.71262 | K3: =VLOOKUP(VLOOKUP($F3,'Data BI Summary'!$A:$F,MATCH(K$1,'Data BI Summary'!$2:$2,0),FALSE),INDIRECT("'"&$E3&"'!"&"$A:$K"),9,FALSE) -> 0.024282949 | L3: TOU
B4: Typical | C4: =VLOOKUP(A$3,'Data Billing Quantities'!A:P,MATCH($B4&" kWh",'Data Billing Quantities'!$4:$4,0),FALSE) -> 750 | E4: BI_WHSI_AUR_Typical | F4: BI Template_EnergyWHSI | G4: =VLOOKUP(VLOOKUP($F4,'Data BI Summary'!$A:$F,MATCH(G$1,'Data BI Summary'!$2:$2,0),FALSE),INDIRECT("'"&$E4&"'!"&"$A:$K"),4,FALSE) -> 125.0870782 | H4: =VLOOKUP(VLOOKUP($F4,'Data BI Summary'!$A:$F,MATCH(H$1,'Data BI Summary'!$2:$2,0),FALSE),INDIRECT("'"&$E4&"'!"&"$A:$K"),8,FALSE) -> 1.82 | I4: =VLOOKUP(VLOOKUP($F4,'Data BI Summary'!$A:$F,MATCH(I$1,'Data BI Summary'!$2:$2,0),FALSE),INDIRECT("'"&$E4&"'!"&"$A:$K"),9,FALSE) -> 0.05531074305 | J4: =VLOOKUP(VLOOKUP($F4,'Data BI Summary'!$A:$F,MATCH(J$1,'Data BI Summary'!$2:$2,0),FALSE),INDIRECT("'"&$E4&"'!"&"$A:$K"),8,FALSE) -> 1.71262 | K4: =VLOOKUP(VLOOKUP($F4,'Data BI Summary'!$A:$F,MATCH(K$1,'Data BI Summary'!$2:$2,0),FALSE),INDIRECT("'"&$E4&"'!"&"$A:$K"),9,FALSE) -> 0.0136914222
B5: Average | C5: =VLOOKUP(A$3,'Data Billing Quantities'!A:P,MATCH($B5&" kWh",'Data Billing Quantities'!$4:$4,0),FALSE) -> 636 | E5: BI_WHSI_AUR_Avg | F5: BI Template_EnergyWHSI | G5: =VLOOKUP(VLOOKUP($F5,'Data BI Summary'!$A:$F,MATCH(G$1,'Data BI Summary'!$2:$2,0),FALSE),INDIRECT("'"&$E5&"'!"&"$A:$K"),4,FALSE) -> 110.9512336 | H5: =VLOOKUP(VLOOKUP($F5,'Data BI Summary'!$A:$F,MATCH(H$1,'Data BI Summary'!$2:$2,0),FALSE),INDIRECT("'"&$E5&"'!"&"$A:$K"),8,FALSE) -> 1.82 | I5: =VLOOKUP(VLOOKUP($F5,'Data BI Summary'!$A:$F,MATCH(I$1,'Data BI Summary'!$2:$2,0),FALSE),INDIRECT("'"&$E5&"'!"&"$A:$K"),9,FALSE) -> 0.05521509617 | J5: =VLOOKUP(VLOOKUP($F5,'Data BI Summary'!$A:$F,MATCH(J$1,'Data BI Summary'!$2:$2,0),FALSE),INDIRECT("'"&$E5&"'!"&"$A:$K"),8,FALSE) -> 1.71262 | K5: =VLOOKUP(VLOOKUP($F5,'Data BI Summary'!$A:$F,MATCH(K$1,'Data BI Summary'!$2:$2,0),FALSE),INDIRECT("'"&$E5&"'!"&"$A:$K"),9,FALSE) -> 0.01543579053
B6: High | C6: =VLOOKUP(A$3,'Data Billing Quantities'!A:P,MATCH($B6&" kWh",'Data Billing Quantities'!$4:$4,0),FALSE) -> 1160 | E6: BI_WHSI_AUR_High | F6: BI Template_EnergyWHSI | G6: =VLOOKUP(VLOOKUP($F6,'Data BI Summary'!$A:$F,MATCH(G$1,'Data BI Summary'!$2:$2,0),FALSE),INDIRECT("'"&$E6&"'!"&"$A:$K"),4,FALSE) -> 175.9265197 | H6: =VLOOKUP(VLOOKUP($F6,'Data BI Summary'!$A:$F,MATCH(H$1,'Data BI Summary'!$2:$2,0),FALSE),INDIRECT("'"&$E6&"'!"&"$A:$K"),8,FALSE) -> 1.82 | I6: =VLOOKUP(VLOOKUP($F6,'Data BI Summary'!$A:$F,MATCH(I$1,'Data BI Summary'!$2:$2,0),FALSE),INDIRECT("'"&$E6&"'!"&"$A:$K"),9,FALSE) -> 0.05565749235 | J6: =VLOOKUP(VLOOKUP($F6,'Data BI Summary'!$A:$F,MATCH(J$1,'Data BI Summary'!$2:$2,0),FALSE),INDIRECT("'"&$E6&"'!"&"$A:$K"),8,FALSE) -> 1.71262 | K6: =VLOOKUP(VLOOKUP($F6,'Data BI Summary'!$A:$F,MATCH(K$1,'Data BI Summary'!$2:$2,0),FALSE),INDIRECT("'"&$E6&"'!"&"$A:$K"),9,FALSE) -> 0.009734859776
A7: AUGe-WHSI | B7: Low | C7: =VLOOKUP(A$7,'Data Billing Quantities'!A:P,MATCH($B7&" kWh",'Data Billing Quantities'!$4:$4,0),FALSE) -> 190 | E7: BI_WHSI_AUGe_Low | F7: BI Template_EnergyWHSI | G7: =VLOOKUP(VLOOKUP($F7,'Data BI Summary'!$A:$F,MATCH(G$1,'Data BI Summary'!$2:$2,0),FALSE),INDIRECT("'"&$E7&"'!"&"$A:$K"),4,FALSE) -> 53.54304529 | H7: =VLOOKUP(VLOOKUP($F7,'Data BI Summary'!$A:$F,MATCH(H$1,'Data BI Summary'!$2:$2,0),FALSE),INDIRECT("'"&$E7&"'!"&"$A:$K"),8,FALSE) -> 1.821 | I7: =VLOOKUP(VLOOKUP($F7,'Data BI Summary'!$A:$F,MATCH(I$1,'Data BI Summary'!$2:$2,0),FALSE),INDIRECT("'"&$E7&"'!"&"$A:$K"),9,FALSE) -> 0.05719221106 | J7: =VLOOKUP(VLOOKUP($F7,'Data BI Summary'!$A:$F,MATCH(J$1,'Data BI Summary'!$2:$2,0),FALSE),INDIRECT("'"&$E7&"'!"&"$A:$K"),8,FALSE) -> 1.713561 | K7: =VLOOKUP(VLOOKUP($F7,'Data BI Summary'!$A:$F,MATCH(K$1,'Data BI Summary'!$2:$2,0),FALSE),INDIRECT("'"&$E7&"'!"&"$A:$K"),9,FALSE) -> 0.0320034281 | L7: TOU
B8: Typical | C8: =VLOOKUP(A$7,'Data Billing Quantities'!A:P,MATCH($B8&" kWh",'Data Billing Quantities'!$4:$4,0),FALSE) -> 2000 | E8: BI_WHSI_AUGe_Typical | F8: BI Template_EnergyWHSI | G8: =VLOOKUP(VLOOKUP($F8,'Data BI Summary'!$A:$F,MATCH(G$1,'Data BI Summary'!$2:$2,0),FALSE),INDIRECT("'"&$E8&"'!"&"$A:$K"),4,FALSE) -> 298.0895283 | H8: =VLOOKUP(VLOOKUP($F8,'Data BI Summary'!$A:$F,MATCH(H$1,'Data BI Summary'!$2:$2,0),FALSE),INDIRECT("'"&$E8&"'!"&"$A:$K"),8,FALSE) -> 3.45 | I8: =VLOOKUP(VLOOKUP($F8,'Data BI Summary'!$A:$F,MATCH(I$1,'Data BI Summary'!$2:$2,0),FALSE),INDIRECT("'"&$E8&"'!"&"$A:$K"),9,FALSE) -> 0.05674342105 | J8: =VLOOKUP(VLOOKUP($F8,'Data BI Summary'!$A:$F,MATCH(J$1,'Data BI Summary'!$2:$2,0),FALSE),INDIRECT("'"&$E8&"'!"&"$A:$K"),8,FALSE) -> 3.24645 | K8: =VLOOKUP(VLOOKUP($F8,'Data BI Summary'!$A:$F,MATCH(K$1,'Data BI Summary'!$2:$2,0),FALSE),INDIRECT("'"&$E8&"'!"&"$A:$K"),9,FALSE) -> 0.01089085557
B9: Average | C9: =VLOOKUP(A$7,'Data Billing Quantities'!A:P,MATCH($B9&" kWh",'Data Billing Quantities'!$4:$4,0),FALSE) -> 2471 | E9: BI_WHSI_AUGe_Avg | F9: BI Template_EnergyWHSI | G9: =VLOOKUP(VLOOKUP($F9,'Data BI Summary'!$A:$F,MATCH(G$1,'Data BI Summary'!$2:$2,0),FALSE),INDIRECT("'"&$E9&"'!"&"$A:$K"),4,FALSE) -> 361.7256573 | H9: =VLOOKUP(VLOOKUP($F9,'Data BI Summary'!$A:$F,MATCH(H$1,'Data BI Summary'!$2:$2,0),FALSE),INDIRECT("'"&$E9&"'!"&"$A:$K"),8,FALSE) -> 3.8739 | I9: =VLOOKUP(VLOOKUP($F9,'Data BI Summary'!$A:$F,MATCH(I$1,'Data BI Summary'!$2:$2,0),FALSE),INDIRECT("'"&$E9&"'!"&"$A:$K"),9,FALSE) -> 0.05668900726 | J9: =VLOOKUP(VLOOKUP($F9,'Data BI Summary'!$A:$F,MATCH(J$1,'Data BI Summary'!$2:$2,0),FALSE),INDIRECT("'"&$E9&"'!"&"$A:$K"),8,FALSE) -> 3.6453399 | K9: =VLOOKUP(VLOOKUP($F9,'Data BI Summary'!$A:$F,MATCH(K$1,'Data BI Summary'!$2:$2,0),FALSE),INDIRECT("'"&$E9&"'!"&"$A:$K"),9,FALSE) -> 0.01007763709
B10: High | C10: =VLOOKUP(A$7,'Data Billing Quantities'!A:P,MATCH($B10&" kWh",'Data Billing Quantities'!$4:$4,0),FALSE) -> 7240 | E10: BI_WHSI_AUGe_High | F10: BI Template_EnergyWHSI | G10: =VLOOKUP(VLOOKUP($F10,'Data BI Summary'!$A:$F,MATCH(G$1,'Data BI Summary'!$2:$2,0),FALSE),INDIRECT("'"&$E10&"'!"&"$A:$K"),4,FALSE) -> 1006.058352 | H10: =VLOOKUP(VLOOKUP($F10,'Data BI Summary'!$A:$F,MATCH(H$1,'Data BI Summary'!$2:$2,0),FALSE),INDIRECT("'"&$E10&"'!"&"$A:$K"),8,FALSE) -> 8.166 | I10: =VLOOKUP(VLOOKUP($F10,'Data BI Summary'!$A:$F,MATCH(I$1,'Data BI Summary'!$2:$2,0),FALSE),INDIRECT("'"&$E10&"'!"&"$A:$K"),9,FALSE) -> 0.0564574115 | J10: =VLOOKUP(VLOOKUP($F10,'Data BI Summary'!$A:$F,MATCH(J$1,'Data BI Summary'!$2:$2,0),FALSE),INDIRECT("'"&$E10&"'!"&"$A:$K"),8,FALSE) -> 7.684206 | K10: =VLOOKUP(VLOOKUP($F10,'Data BI Summary'!$A:$F,MATCH(K$1,'Data BI Summary'!$2:$2,0),FALSE),INDIRECT("'"&$E10&"'!"&"$A:$K"),9,FALSE) -> 0.007637932714
A11: AUGd-WHSI | B11: Low | C11: =VLOOKUP(A$11,'Data Billing Quantities'!A:P,MATCH($B11&" kWh",'Data Billing Quantities'!$4:$4,0),FALSE) -> 9370 | D11: =VLOOKUP(A$11,'Data Billing Quantities'!A:P,MATCH(B11&" kW",'Data Billing Quantities'!$4:$4,0),FALSE) -> 50 | E11: BI_WHSI_AUGd_Low | F11: BI Template_DemandWHSI | G11: =VLOOKUP(VLOOKUP($F11,'Data BI Summary'!$A:$F,MATCH(G$1,'Data BI Summary'!$2:$2,0),FALSE),INDIRECT("'"&$E11&"'!"&"$A:$K"),4,FALSE) -> 1981.252627 | H11: =VLOOKUP(VLOOKUP($F11,'Data BI Summary'!$A:$F,MATCH(H$1,'Data BI Summary'!$2:$2,0),FALSE),INDIRECT("'"&$E11&"'!"&"$A:$K"),8,FALSE) -> 19.825 | I11: =VLOOKUP(VLOOKUP($F11,'Data BI Summary'!$A:$F,MATCH(I$1,'Data BI Summary'!$2:$2,0),FALSE),INDIRECT("'"&$E11&"'!"&"$A:$K"),9,FALSE) -> 0.06552505982 | J11: =VLOOKUP(VLOOKUP($F11,'Data BI Summary'!$A:$F,MATCH(J$1,'Data BI Summary'!$2:$2,0),FALSE),INDIRECT("'"&$E11&"'!"&"$A:$K"),8,FALSE) -> 22.40225 | K11: =VLOOKUP(VLOOKUP($F11,'Data BI Summary'!$A:$F,MATCH(K$1,'Data BI Summary'!$2:$2,0),FALSE),INDIRECT("'"&$E11&"'!"&"$A:$K"),9,FALSE) -> 0.01130711434 | L11: WAHSP
B12: Average | C12: =VLOOKUP(A$11,'Data Billing Quantities'!A:P,MATCH($B12&" kWh",'Data Billing Quantities'!$4:$4,0),FALSE) -> 47636 | D12: =VLOOKUP(A$11,'Data Billing Quantities'!A:P,MATCH(B12&" kW",'Data Billing Quantities'!$4:$4,0),FALSE) -> 134 | E12: BI_WHSI_AUGd_Avg | F12: BI Template_DemandWHSI | G12: =VLOOKUP(VLOOKUP($F12,'Data BI Summary'!$A:$F,MATCH(G$1,'Data BI Summary'!$2:$2,0),FALSE),INDIRECT("'"&$E12&"'!"&"$A:$K"),4,FALSE) -> 8191.695807 | H12: =VLOOKUP(VLOOKUP($F12,'Data BI Summary'!$A:$F,MATCH(H$1,'Data BI Summary'!$2:$2,0),FALSE),INDIRECT("'"&$E12&"'!"&"$A:$K"),8,FALSE) -> 34.3654 | I12: =VLOOKUP(VLOOKUP($F12,'Data BI Summary'!$A:$F,MATCH(I$1,'Data BI Summary'!$2:$2,0),FALSE),INDIRECT("'"&$E12&"'!"&"$A:$K"),9,FALSE) -> 0.06844914546 | J12: =VLOOKUP(VLOOKUP($F12,'Data BI Summary'!$A:$F,MATCH(J$1,'Data BI Summary'!$2:$2,0),FALSE),INDIRECT("'"&$E12&"'!"&"$A:$K"),8,FALSE) -> 38.832902 | K12: =VLOOKUP(VLOOKUP($F12,'Data BI Summary'!$A:$F,MATCH(K$1,'Data BI Summary'!$2:$2,0),FALSE),INDIRECT("'"&$E12&"'!"&"$A:$K"),9,FALSE) -> 0.004740520512
B13: High | C13: =VLOOKUP(A$11,'Data Billing Quantities'!A:P,MATCH($B13&" kWh",'Data Billing Quantities'!$4:$4,0),FALSE) -> 137890 | D13: =VLOOKUP(A$11,'Data Billing Quantities'!A:P,MATCH(B13&" kW",'Data Billing Quantities'!$4:$4,0),FALSE) -> 340 | E13: BI_WHSI_AUGd_High | F13: BI Template_DemandWHSI | G13: =VLOOKUP(VLOOKUP($F13,'Data BI Summary'!$A:$F,MATCH(G$1,'Data BI Summary'!$2:$2,0),FALSE),INDIRECT("'"&$E13&"'!"&"$A:$K"),4,FALSE) -> 22910.05671 | H13: =VLOOKUP(VLOOKUP($F13,'Data BI Summary'!$A:$F,MATCH(H$1,'Data BI Summary'!$2:$2,0),FALSE),INDIRECT("'"&$E13&"'!"&"$A:$K"),8,FALSE) -> 70.024 | I13: =VLOOKUP(VLOOKUP($F13,'Data BI Summary'!$A:$F,MATCH(I$1,'Data BI Summary'!$2:$2,0),FALSE),INDIRECT("'"&$E13&"'!"&"$A:$K"),9,FALSE) -> 0.07045922664 | J13: =VLOOKUP(VLOOKUP($F13,'Data BI Summary'!$A:$F,MATCH(J$1,'Data BI Summary'!$2:$2,0),FALSE),INDIRECT("'"&$E13&"'!"&"$A:$K"),8,FALSE) -> 79.12712 | K13: =VLOOKUP(VLOOKUP($F13,'Data BI Summary'!$A:$F,MATCH(K$1,'Data BI Summary'!$2:$2,0),FALSE),INDIRECT("'"&$E13&"'!"&"$A:$K"),9,FALSE) -> 0.003453815981
A14: St Lgt-WHSI | B14: Average | C14: =VLOOKUP(A14,'Data Billing Quantities'!A:P,MATCH($B14&" kWh",'Data Billing Quantities'!$4:$4,0),FALSE) -> 37079 | E14: BI_WHSI_StLgt_Avg | F14: BI Template_unmWHSI | G14: =VLOOKUP(VLOOKUP($F14,'Data BI Summary'!$A:$F,MATCH(G$1,'Data BI Summary'!$2:$2,0),FALSE),INDIRECT("'"&$E14&"'!"&"$A:$K"),4,FALSE) -> 10890.31768 | H14: =VLOOKUP(VLOOKUP($F14,'Data BI Summary'!$A:$F,MATCH(H$1,'Data BI Summary'!$2:$2,0),FALSE),INDIRECT("'"&$E14&"'!"&"$A:$K"),8,FALSE) -> 244.8414 | I14: =VLOOKUP(VLOOKUP($F14,'Data BI Summary'!$A:$F,MATCH(I$1,'Data BI Summary'!$2:$2,0),FALSE),INDIRECT("'"&$E14&"'!"&"$A:$K"),9,FALSE) -> 0.05531008201 | J14: =VLOOKUP(VLOOKUP($F14,'Data BI Summary'!$A:$F,MATCH(J$1,'Data BI Summary'!$2:$2,0),FALSE),INDIRECT("'"&$E14&"'!"&"$A:$K"),8,FALSE) -> 276.670782 | K14: =VLOOKUP(VLOOKUP($F14,'Data BI Summary'!$A:$F,MATCH(K$1,'Data BI Summary'!$2:$2,0),FALSE),INDIRECT("'"&$E14&"'!"&"$A:$K"),9,FALSE) -> 0.02540520765 | L14: Two-tier RPP
A15: USL-WHSI | B15: Average | C15: =VLOOKUP(A15,'Data Billing Quantities'!A:P,MATCH($B15&" kWh",'Data Billing Quantities'!$4:$4,0),FALSE) -> 1349 | E15: BI_WHSI_USL_Avg | F15: BI Template_unmWHSI | G15: =VLOOKUP(VLOOKUP($F15,'Data BI Summary'!$A:$F,MATCH(G$1,'Data BI Summary'!$2:$2,0),FALSE),INDIRECT("'"&$E15&"'!"&"$A:$K"),4,FALSE) -> 233.1467754 | H15: =VLOOKUP(VLOOKUP($F15,'Data BI Summary'!$A:$F,MATCH(H$1,'Data BI Summary'!$2:$2,0),FALSE),INDIRECT("'"&$E15&"'!"&"$A:$K"),8,FALSE) -> 3.8586 | I15: =VLOOKUP(VLOOKUP($F15,'Data BI Summary'!$A:$F,MATCH(I$1,'Data BI Summary'!$2:$2,0),FALSE),INDIRECT("'"&$E15&"'!"&"$A:$K"),9,FALSE) -> 0.05684694374 | J15: =VLOOKUP(VLOOKUP($F15,'Data BI Summary'!$A:$F,MATCH(J$1,'Data BI Summary'!$2:$2,0),FALSE),INDIRECT("'"&$E15&"'!"&"$A:$K"),8,FALSE) -> 3.6309426 | K15: =VLOOKUP(VLOOKUP($F15,'Data BI Summary'!$A:$F,MATCH(K$1,'Data BI Summary'!$2:$2,0),FALSE),INDIRECT("'"&$E15&"'!"&"$A:$K"),9,FALSE) -> 0.01557363422 | L15: Two-tier RPP
A16: ST-WHSI | B16: Average | C16: =VLOOKUP(A16,'Data Billing Quantities'!A:P,MATCH($B16&" kWh",'Data Billing Quantities'!$4:$4,0),FALSE) -> 895853 | D16: =VLOOKUP(A$16,'Data Billing Quantities'!A:P,MATCH(B16&" kW",'Data Billing Quantities'!$4:$4,0),FALSE) -> 3301 | E16: BI_WHSI_ST_Avg | F16: BI Template_DemandWHSI | G16: =VLOOKUP(VLOOKUP($F16,'Data BI Summary'!$A:$F,MATCH(G$1,'Data BI Summary'!$2:$2,0),FALSE),INDIRECT("'"&$E16&"'!"&"$A:$K"),4,FALSE) -> 164810.3089 | H16: =VLOOKUP(VLOOKUP($F16,'Data BI Summary'!$A:$F,MATCH(H$1,'Data BI Summary'!$2:$2,0),FALSE),INDIRECT("'"&$E16&"'!"&"$A:$K"),8,FALSE) -> 821.9273 | I16: =VLOOKUP(VLOOKUP($F16,'Data BI Summary'!$A:$F,MATCH(I$1,'Data BI Summary'!$2:$2,0),FALSE),INDIRECT("'"&$E16&"'!"&"$A:$K"),9,FALSE) -> 0.1257669594 | J16: =VLOOKUP(VLOOKUP($F16,'Data BI Summary'!$A:$F,MATCH(J$1,'Data BI Summary'!$2:$2,0),FALSE),INDIRECT("'"&$E16&"'!"&"$A:$K"),8,FALSE) -> 928.777849 | K16: =VLOOKUP(VLOOKUP($F16,'Data BI Summary'!$A:$F,MATCH(K$1,'Data BI Summary'!$2:$2,0),FALSE),INDIRECT("'"&$E16&"'!"&"$A:$K"),9,FALSE) -> 0.005635435401 | L16: WAHSP
A17: NPDI to HONI
A18: AR-NPDI | B18: Low | C18: =VLOOKUP(A$18,'Data Billing Quantities'!A:P,MATCH($B18&" kWh",'Data Billing Quantities'!$4:$4,0),FALSE) -> 290 | E18: BI_NPDI_AR_Low | F18: BI Template_EnergyNPDI | G18: =VLOOKUP(VLOOKUP($F18,'Data BI Summary'!$A:$F,MATCH(G$1,'Data BI Summary'!$2:$2,0),FALSE),INDIRECT("'"&$E18&"'!"&"$A:$K"),4,FALSE) -> 75.22248156 | H18: =VLOOKUP(VLOOKUP($F18,'Data BI Summary'!$A:$F,MATCH(H$1,'Data BI Summary'!$2:$2,0),FALSE),INDIRECT("'"&$E18&"'!"&"$A:$K"),8,FALSE) -> 2.21 | I18: =VLOOKUP(VLOOKUP($F18,'Data BI Summary'!$A:$F,MATCH(I$1,'Data BI Summary'!$2:$2,0),FALSE),INDIRECT("'"&$E18&"'!"&"$A:$K"),9,FALSE) -> 0.05488637775 | J18: =VLOOKUP(VLOOKUP($F18,'Data BI Summary'!$A:$F,MATCH(J$1,'Data BI Summary'!$2:$2,0),FALSE),INDIRECT("'"&$E18&"'!"&"$A:$K"),8,FALSE) -> 2.07961 | K18: =VLOOKUP(VLOOKUP($F18,'Data BI Summary'!$A:$F,MATCH(K$1,'Data BI Summary'!$2:$2,0),FALSE),INDIRECT("'"&$E18&"'!"&"$A:$K"),9,FALSE) -> 0.0276461233 | L18: TOU
B19: Typical | C19: =VLOOKUP(A$18,'Data Billing Quantities'!A:P,MATCH($B19&" kWh",'Data Billing Quantities'!$4:$4,0),FALSE) -> 750 | E19: BI_NPDI_AR_Typical | F19: BI Template_EnergyNPDI | G19: =VLOOKUP(VLOOKUP($F19,'Data BI Summary'!$A:$F,MATCH(G$1,'Data BI Summary'!$2:$2,0),FALSE),INDIRECT("'"&$E19&"'!"&"$A:$K"),4,FALSE) -> 133.0001496 | H19: =VLOOKUP(VLOOKUP($F19,'Data BI Summary'!$A:$F,MATCH(H$1,'Data BI Summary'!$2:$2,0),FALSE),INDIRECT("'"&$E19&"'!"&"$A:$K"),8,FALSE) -> 2.21 | I19: =VLOOKUP(VLOOKUP($F19,'Data BI Summary'!$A:$F,MATCH(I$1,'Data BI Summary'!$2:$2,0),FALSE),INDIRECT("'"&$E19&"'!"&"$A:$K"),9,FALSE) -> 0.05520169851 | J19: =VLOOKUP(VLOOKUP($F19,'Data BI Summary'!$A:$F,MATCH(J$1,'Data BI Summary'!$2:$2,0),FALSE),INDIRECT("'"&$E19&"'!"&"$A:$K"),8,FALSE) -> 2.07961 | K19: =VLOOKUP(VLOOKUP($F19,'Data BI Summary'!$A:$F,MATCH(K$1,'Data BI Summary'!$2:$2,0),FALSE),INDIRECT("'"&$E19&"'!"&"$A:$K"),9,FALSE) -> 0.01563614783
B20: Average | C20: =VLOOKUP(A$18,'Data Billing Quantities'!A:P,MATCH($B20&" kWh",'Data Billing Quantities'!$4:$4,0),FALSE) -> 692 | E20: BI_NPDI_AR_Avg | F20: BI Template_EnergyNPDI | G20: =VLOOKUP(VLOOKUP($F20,'Data BI Summary'!$A:$F,MATCH(G$1,'Data BI Summary'!$2:$2,0),FALSE),INDIRECT("'"&$E20&"'!"&"$A:$K"),4,FALSE) -> 125.7151392 | H20: =VLOOKUP(VLOOKUP($F20,'Data BI Summary'!$A:$F,MATCH(H$1,'Data BI Summary'!$2:$2,0),FALSE),INDIRECT("'"&$E20&"'!"&"$A:$K"),8,FALSE) -> 2.21 | I20: =VLOOKUP(VLOOKUP($F20,'Data BI Summary'!$A:$F,MATCH(I$1,'Data BI Summary'!$2:$2,0),FALSE),INDIRECT("'"&$E20&"'!"&"$A:$K"),9,FALSE) -> 0.05516174121 | J20: =VLOOKUP(VLOOKUP($F20,'Data BI Summary'!$A:$F,MATCH(J$1,'Data BI Summary'!$2:$2,0),FALSE),INDIRECT("'"&$E20&"'!"&"$A:$K"),8,FALSE) -> 2.07961 | K20: =VLOOKUP(VLOOKUP($F20,'Data BI Summary'!$A:$F,MATCH(K$1,'Data BI Summary'!$2:$2,0),FALSE),INDIRECT("'"&$E20&"'!"&"$A:$K"),9,FALSE) -> 0.01654223996
B21: High | C21: =VLOOKUP(A$18,'Data Billing Quantities'!A:P,MATCH($B21&" kWh",'Data Billing Quantities'!$4:$4,0),FALSE) -> 1230 | E21: BI_NPDI_AR_High | F21: BI Template_EnergyNPDI | G21: =VLOOKUP(VLOOKUP($F21,'Data BI Summary'!$A:$F,MATCH(G$1,'Data BI Summary'!$2:$2,0),FALSE),INDIRECT("'"&$E21&"'!"&"$A:$K"),4,FALSE) -> 193.2898901 | H21: =VLOOKUP(VLOOKUP($F21,'Data BI Summary'!$A:$F,MATCH(H$1,'Data BI Summary'!$2:$2,0),FALSE),INDIRECT("'"&$E21&"'!"&"$A:$K"),8,FALSE) -> 2.21 | I21: =VLOOKUP(VLOOKUP($F21,'Data BI Summary'!$A:$F,MATCH(I$1,'Data BI Summary'!$2:$2,0),FALSE),INDIRECT("'"&$E21&"'!"&"$A:$K"),9,FALSE) -> 0.0555346149 | J21: =VLOOKUP(VLOOKUP($F21,'Data BI Summary'!$A:$F,MATCH(J$1,'Data BI Summary'!$2:$2,0),FALSE),INDIRECT("'"&$E21&"'!"&"$A:$K"),8,FALSE) -> 2.07961 | K21: =VLOOKUP(VLOOKUP($F21,'Data BI Summary'!$A:$F,MATCH(K$1,'Data BI Summary'!$2:$2,0),FALSE),INDIRECT("'"&$E21&"'!"&"$A:$K"),9,FALSE) -> 0.01075902107
A22: AGSe-NPDI | B22: Low | C22: =VLOOKUP(A$22,'Data Billing Quantities'!A:P,MATCH($B22&" kWh",'Data Billing Quantities'!$4:$4,0),FALSE) -> 110 | E22: BI_NPDI_AGSe_Low | F22: BI Template_EnergyNPDI | G22: =VLOOKUP(VLOOKUP($F22,'Data BI Summary'!$A:$F,MATCH(G$1,'Data BI Summary'!$2:$2,0),FALSE),INDIRECT("'"&$E22&"'!"&"$A:$K"),4,FALSE) -> 55.76641224 | H22: =VLOOKUP(VLOOKUP($F22,'Data BI Summary'!$A:$F,MATCH(H$1,'Data BI Summary'!$2:$2,0),FALSE),INDIRECT("'"&$E22&"'!"&"$A:$K"),8,FALSE) -> 2.251 | I22: =VLOOKUP(VLOOKUP($F22,'Data BI Summary'!$A:$F,MATCH(I$1,'Data BI Summary'!$2:$2,0),FALSE),INDIRECT("'"&$E22&"'!"&"$A:$K"),9,FALSE) -> 0.05098527746 | J22: =VLOOKUP(VLOOKUP($F22,'Data BI Summary'!$A:$F,MATCH(J$1,'Data BI Summary'!$2:$2,0),FALSE),INDIRECT("'"&$E22&"'!"&"$A:$K"),8,FALSE) -> 2.118191 | K22: =VLOOKUP(VLOOKUP($F22,'Data BI Summary'!$A:$F,MATCH(K$1,'Data BI Summary'!$2:$2,0),FALSE),INDIRECT("'"&$E22&"'!"&"$A:$K"),9,FALSE) -> 0.03798327551 | L22: TOU
B23: Typical | C23: =VLOOKUP(A$22,'Data Billing Quantities'!A:P,MATCH($B23&" kWh",'Data Billing Quantities'!$4:$4,0),FALSE) -> 2000 | E23: BI_NPDI_AGSe_Typical | F23: BI Template_EnergyNPDI | G23: =VLOOKUP(VLOOKUP($F23,'Data BI Summary'!$A:$F,MATCH(G$1,'Data BI Summary'!$2:$2,0),FALSE),INDIRECT("'"&$E23&"'!"&"$A:$K"),4,FALSE) -> 320.6470298 | H23: =VLOOKUP(VLOOKUP($F23,'Data BI Summary'!$A:$F,MATCH(H$1,'Data BI Summary'!$2:$2,0),FALSE),INDIRECT("'"&$E23&"'!"&"$A:$K"),8,FALSE) -> 4.33 | I23: =VLOOKUP(VLOOKUP($F23,'Data BI Summary'!$A:$F,MATCH(I$1,'Data BI Summary'!$2:$2,0),FALSE),INDIRECT("'"&$E23&"'!"&"$A:$K"),9,FALSE) -> 0.05408443667 | J23: =VLOOKUP(VLOOKUP($F23,'Data BI Summary'!$A:$F,MATCH(J$1,'Data BI Summary'!$2:$2,0),FALSE),INDIRECT("'"&$E23&"'!"&"$A:$K"),8,FALSE) -> 4.07453 | K23: =VLOOKUP(VLOOKUP($F23,'Data BI Summary'!$A:$F,MATCH(K$1,'Data BI Summary'!$2:$2,0),FALSE),INDIRECT("'"&$E23&"'!"&"$A:$K"),9,FALSE) -> 0.01270721267
B24: Average | C24: =VLOOKUP(A$22,'Data Billing Quantities'!A:P,MATCH($B24&" kWh",'Data Billing Quantities'!$4:$4,0),FALSE) -> 2377 | E24: BI_NPDI_AGSe_Avg | F24: BI Template_EnergyNPDI | G24: =VLOOKUP(VLOOKUP($F24,'Data BI Summary'!$A:$F,MATCH(G$1,'Data BI Summary'!$2:$2,0),FALSE),INDIRECT("'"&$E24&"'!"&"$A:$K"),4,FALSE) -> 373.4830048 | H24: =VLOOKUP(VLOOKUP($F24,'Data BI Summary'!$A:$F,MATCH(H$1,'Data BI Summary'!$2:$2,0),FALSE),INDIRECT("'"&$E24&"'!"&"$A:$K"),8,FALSE) -> 4.7447 | I24: =VLOOKUP(VLOOKUP($F24,'Data BI Summary'!$A:$F,MATCH(I$1,'Data BI Summary'!$2:$2,0),FALSE),INDIRECT("'"&$E24&"'!"&"$A:$K"),9,FALSE) -> 0.05439734932 | J24: =VLOOKUP(VLOOKUP($F24,'Data BI Summary'!$A:$F,MATCH(J$1,'Data BI Summary'!$2:$2,0),FALSE),INDIRECT("'"&$E24&"'!"&"$A:$K"),8,FALSE) -> 4.4647627 | K24: =VLOOKUP(VLOOKUP($F24,'Data BI Summary'!$A:$F,MATCH(K$1,'Data BI Summary'!$2:$2,0),FALSE),INDIRECT("'"&$E24&"'!"&"$A:$K"),9,FALSE) -> 0.01195439322
B25: High | C25: =VLOOKUP(A$22,'Data Billing Quantities'!A:P,MATCH($B25&" kWh",'Data Billing Quantities'!$4:$4,0),FALSE) -> 6410 | E25: BI_NPDI_AGSe_High | F25: BI Template_EnergyNPDI | G25: =VLOOKUP(VLOOKUP($F25,'Data BI Summary'!$A:$F,MATCH(G$1,'Data BI Summary'!$2:$2,0),FALSE),INDIRECT("'"&$E25&"'!"&"$A:$K"),4,FALSE) -> 938.701804 | H25: =VLOOKUP(VLOOKUP($F25,'Data BI Summary'!$A:$F,MATCH(H$1,'Data BI Summary'!$2:$2,0),FALSE),INDIRECT("'"&$E25&"'!"&"$A:$K"),8,FALSE) -> 9.181 | I25: =VLOOKUP(VLOOKUP($F25,'Data BI Summary'!$A:$F,MATCH(I$1,'Data BI Summary'!$2:$2,0),FALSE),INDIRECT("'"&$E25&"'!"&"$A:$K"),9,FALSE) -> 0.05603295697 | J25: =VLOOKUP(VLOOKUP($F25,'Data BI Summary'!$A:$F,MATCH(J$1,'Data BI Summary'!$2:$2,0),FALSE),INDIRECT("'"&$E25&"'!"&"$A:$K"),8,FALSE) -> 8.639321 | K25: =VLOOKUP(VLOOKUP($F25,'Data BI Summary'!$A:$F,MATCH(K$1,'Data BI Summary'!$2:$2,0),FALSE),INDIRECT("'"&$E25&"'!"&"$A:$K"),9,FALSE) -> 0.009203477572
A26: AGSd-NPDI | B26: Low | C26: =VLOOKUP(A$26,'Data Billing Quantities'!A:P,MATCH($B26&" kWh",'Data Billing Quantities'!$4:$4,0),FALSE) -> 13020 | D26: =VLOOKUP(A$26,'Data Billing Quantities'!A:P,MATCH(B26&" kW",'Data Billing Quantities'!$4:$4,0),FALSE) -> 55 | E26: BI_NPDI_AGSd_Low | F26: BI Template_DemandNPDI | G26: =VLOOKUP(VLOOKUP($F26,'Data BI Summary'!$A:$F,MATCH(G$1,'Data BI Summary'!$2:$2,0),FALSE),INDIRECT("'"&$E26&"'!"&"$A:$K"),4,FALSE) -> 2707.280413 | H26: =VLOOKUP(VLOOKUP($F26,'Data BI Summary'!$A:$F,MATCH(H$1,'Data BI Summary'!$2:$2,0),FALSE),INDIRECT("'"&$E26&"'!"&"$A:$K"),8,FALSE) -> 27.6935 | I26: =VLOOKUP(VLOOKUP($F26,'Data BI Summary'!$A:$F,MATCH(I$1,'Data BI Summary'!$2:$2,0),FALSE),INDIRECT("'"&$E26&"'!"&"$A:$K"),9,FALSE) -> 0.06085085953 | J26: =VLOOKUP(VLOOKUP($F26,'Data BI Summary'!$A:$F,MATCH(J$1,'Data BI Summary'!$2:$2,0),FALSE),INDIRECT("'"&$E26&"'!"&"$A:$K"),8,FALSE) -> 31.293655 | K26: =VLOOKUP(VLOOKUP($F26,'Data BI Summary'!$A:$F,MATCH(K$1,'Data BI Summary'!$2:$2,0),FALSE),INDIRECT("'"&$E26&"'!"&"$A:$K"),9,FALSE) -> 0.01155907414 | L26: WAHSP
B27: Average | C27: =VLOOKUP(A$26,'Data Billing Quantities'!A:P,MATCH($B27&" kWh",'Data Billing Quantities'!$4:$4,0),FALSE) -> 70294 | D27: =VLOOKUP(A$26,'Data Billing Quantities'!A:P,MATCH(B27&" kW",'Data Billing Quantities'!$4:$4,0),FALSE) -> 181 | E27: BI_NPDI_AGSd_Avg | F27: BI Template_DemandNPDI | G27: =VLOOKUP(VLOOKUP($F27,'Data BI Summary'!$A:$F,MATCH(G$1,'Data BI Summary'!$2:$2,0),FALSE),INDIRECT("'"&$E27&"'!"&"$A:$K"),4,FALSE) -> 12377.40644 | H27: =VLOOKUP(VLOOKUP($F27,'Data BI Summary'!$A:$F,MATCH(H$1,'Data BI Summary'!$2:$2,0),FALSE),INDIRECT("'"&$E27&"'!"&"$A:$K"),8,FALSE) -> 68.4797 | I27: =VLOOKUP(VLOOKUP($F27,'Data BI Summary'!$A:$F,MATCH(I$1,'Data BI Summary'!$2:$2,0),FALSE),INDIRECT("'"&$E27&"'!"&"$A:$K"),9,FALSE) -> 0.06744343831 | J27: =VLOOKUP(VLOOKUP($F27,'Data BI Summary'!$A:$F,MATCH(J$1,'Data BI Summary'!$2:$2,0),FALSE),INDIRECT("'"&$E27&"'!"&"$A:$K"),8,FALSE) -> 77.382061 | K27: =VLOOKUP(VLOOKUP($F27,'Data BI Summary'!$A:$F,MATCH(K$1,'Data BI Summary'!$2:$2,0),FALSE),INDIRECT("'"&$E27&"'!"&"$A:$K"),9,FALSE) -> 0.006251880098
B28: High | C28: =VLOOKUP(A$26,'Data Billing Quantities'!A:P,MATCH($B28&" kWh",'Data Billing Quantities'!$4:$4,0),FALSE) -> 129420 | D28: =VLOOKUP(A$26,'Data Billing Quantities'!A:P,MATCH(B28&" kW",'Data Billing Quantities'!$4:$4,0),FALSE) -> 300 | E28: BI_NPDI_AGSd_High | F28: BI Template_DemandNPDI | G28: =VLOOKUP(VLOOKUP($F28,'Data BI Summary'!$A:$F,MATCH(G$1,'Data BI Summary'!$2:$2,0),FALSE),INDIRECT("'"&$E28&"'!"&"$A:$K"),4,FALSE) -> 22242.46467 | H28: =VLOOKUP(VLOOKUP($F28,'Data BI Summary'!$A:$F,MATCH(H$1,'Data BI Summary'!$2:$2,0),FALSE),INDIRECT("'"&$E28&"'!"&"$A:$K"),8,FALSE) -> 107 | I28: =VLOOKUP(VLOOKUP($F28,'Data BI Summary'!$A:$F,MATCH(I$1,'Data BI Summary'!$2:$2,0),FALSE),INDIRECT("'"&$E28&"'!"&"$A:$K"),9,FALSE) -> 0.06943651296 | J28: =VLOOKUP(VLOOKUP($F28,'Data BI Summary'!$A:$F,MATCH(J$1,'Data BI Summary'!$2:$2,0),FALSE),INDIRECT("'"&$E28&"'!"&"$A:$K"),8,FALSE) -> 120.91 | K28: =VLOOKUP(VLOOKUP($F28,'Data BI Summary'!$A:$F,MATCH(K$1,'Data BI Summary'!$2:$2,0),FALSE),INDIRECT("'"&$E28&"'!"&"$A:$K"),9,FALSE) -> 0.005435998294
A29: St Lgt-NPDI | B29: Average | C29: =VLOOKUP(A$29,'Data Billing Quantities'!A:P,MATCH($B29&" kWh",'Data Billing Quantities'!$4:$4,0),FALSE) -> 11389 | E29: BI_NPDI_StLgt_Avg | F29: BI Template_unmNPDI | G29: =VLOOKUP(VLOOKUP($F29,'Data BI Summary'!$A:$F,MATCH(G$1,'Data BI Summary'!$2:$2,0),FALSE),INDIRECT("'"&$E29&"'!"&"$A:$K"),4,FALSE) -> 2775.176265 | H29: =VLOOKUP(VLOOKUP($F29,'Data BI Summary'!$A:$F,MATCH(H$1,'Data BI Summary'!$2:$2,0),FALSE),INDIRECT("'"&$E29&"'!"&"$A:$K"),8,FALSE) -> 75.2874 | I29: =VLOOKUP(VLOOKUP($F29,'Data BI Summary'!$A:$F,MATCH(I$1,'Data BI Summary'!$2:$2,0),FALSE),INDIRECT("'"&$E29&"'!"&"$A:$K"),9,FALSE) -> 0.05546719185 | J29: =VLOOKUP(VLOOKUP($F29,'Data BI Summary'!$A:$F,MATCH(J$1,'Data BI Summary'!$2:$2,0),FALSE),INDIRECT("'"&$E29&"'!"&"$A:$K"),8,FALSE) -> 70.8454434 | K29: =VLOOKUP(VLOOKUP($F29,'Data BI Summary'!$A:$F,MATCH(K$1,'Data BI Summary'!$2:$2,0),FALSE),INDIRECT("'"&$E29&"'!"&"$A:$K"),9,FALSE) -> 0.02552826799 | L29: Two-tier RPP
A30: Sen Lgt-NPDI | B30: Average | C30: =VLOOKUP(A$30,'Data Billing Quantities'!A:P,MATCH($B30&" kWh",'Data Billing Quantities'!$4:$4,0),FALSE) -> 108 | E30: BI_NPDI_SenLgt_Avg | F30: BI Template_unmNPDI | G30: =VLOOKUP(VLOOKUP($F30,'Data BI Summary'!$A:$F,MATCH(G$1,'Data BI Summary'!$2:$2,0),FALSE),INDIRECT("'"&$E30&"'!"&"$A:$K"),4,FALSE) -> 32.68397131 | H30: =VLOOKUP(VLOOKUP($F30,'Data BI Summary'!$A:$F,MATCH(H$1,'Data BI Summary'!$2:$2,0),FALSE),INDIRECT("'"&$E30&"'!"&"$A:$K"),8,FALSE) -> 1.2092 | I30: =VLOOKUP(VLOOKUP($F30,'Data BI Summary'!$A:$F,MATCH(I$1,'Data BI Summary'!$2:$2,0),FALSE),INDIRECT("'"&$E30&"'!"&"$A:$K"),9,FALSE) -> 0.05683826571 | J30: =VLOOKUP(VLOOKUP($F30,'Data BI Summary'!$A:$F,MATCH(J$1,'Data BI Summary'!$2:$2,0),FALSE),INDIRECT("'"&$E30&"'!"&"$A:$K"),8,FALSE) -> 1.1378572 | K30: =VLOOKUP(VLOOKUP($F30,'Data BI Summary'!$A:$F,MATCH(K$1,'Data BI Summary'!$2:$2,0),FALSE),INDIRECT("'"&$E30&"'!"&"$A:$K"),9,FALSE) -> 0.03481392115 | L30: Two-tier RPP
A31: USL-NPDI | B31: Average | C31: =VLOOKUP(A$31,'Data Billing Quantities'!A:P,MATCH($B31&" kWh",'Data Billing Quantities'!$4:$4,0),FALSE) -> 904 | E31: BI_NPDI_USL_Avg | F31: BI Template_unmNPDI | G31: =VLOOKUP(VLOOKUP($F31,'Data BI Summary'!$A:$F,MATCH(G$1,'Data BI Summary'!$2:$2,0),FALSE),INDIRECT("'"&$E31&"'!"&"$A:$K"),4,FALSE) -> 163.4559729 | H31: =VLOOKUP(VLOOKUP($F31,'Data BI Summary'!$A:$F,MATCH(H$1,'Data BI Summary'!$2:$2,0),FALSE),INDIRECT("'"&$E31&"'!"&"$A:$K"),8,FALSE) -> 3.2356 | I31: =VLOOKUP(VLOOKUP($F31,'Data BI Summary'!$A:$F,MATCH(I$1,'Data BI Summary'!$2:$2,0),FALSE),INDIRECT("'"&$E31&"'!"&"$A:$K"),9,FALSE) -> 0.05648703571 | J31: =VLOOKUP(VLOOKUP($F31,'Data BI Summary'!$A:$F,MATCH(J$1,'Data BI Summary'!$2:$2,0),FALSE),INDIRECT("'"&$E31&"'!"&"$A:$K"),8,FALSE) -> 3.0446996 | K31: =VLOOKUP(VLOOKUP($F31,'Data BI Summary'!$A:$F,MATCH(K$1,'Data BI Summary'!$2:$2,0),FALSE),INDIRECT("'"&$E31&"'!"&"$A:$K"),9,FALSE) -> 0.01862703177 | L31: Two-tier RPP
A32: HCHI to HONI
A33: AR-HCHI | B33: Low | C33: =VLOOKUP(A$33,'Data Billing Quantities'!A:P,MATCH($B33&" kWh",'Data Billing Quantities'!$4:$4,0),FALSE) -> 250 | E33: BI_HCHI_AR_Low | F33: BI Template_EnergyHCHI | G33: =VLOOKUP(VLOOKUP($F33,'Data BI Summary'!$A:$F,MATCH(G$1,'Data BI Summary'!$2:$2,0),FALSE),INDIRECT("'"&$E33&"'!"&"$A:$K"),4,FALSE) -> 70.22186152 | H33: =VLOOKUP(VLOOKUP($F33,'Data BI Summary'!$A:$F,MATCH(H$1,'Data BI Summary'!$2:$2,0),FALSE),INDIRECT("'"&$E33&"'!"&"$A:$K"),8,FALSE) -> 2.21 | I33: =VLOOKUP(VLOOKUP($F33,'Data BI Summary'!$A:$F,MATCH(I$1,'Data BI Summary'!$2:$2,0),FALSE),INDIRECT("'"&$E33&"'!"&"$A:$K"),9,FALSE) -> 0.05482510543 | J33: =VLOOKUP(VLOOKUP($F33,'Data BI Summary'!$A:$F,MATCH(J$1,'Data BI Summary'!$2:$2,0),FALSE),INDIRECT("'"&$E33&"'!"&"$A:$K"),8,FALSE) -> 2.07961 | K33: =VLOOKUP(VLOOKUP($F33,'Data BI Summary'!$A:$F,MATCH(K$1,'Data BI Summary'!$2:$2,0),FALSE),INDIRECT("'"&$E33&"'!"&"$A:$K"),9,FALSE) -> 0.02961485149 | L33: TOU
B34: Typical | C34: =VLOOKUP(A$33,'Data Billing Quantities'!A:P,MATCH($B34&" kWh",'Data Billing Quantities'!$4:$4,0),FALSE) -> 750 | E34: BI_HCHI_AR_Typical | F34: BI Template_EnergyHCHI | G34: =VLOOKUP(VLOOKUP($F34,'Data BI Summary'!$A:$F,MATCH(G$1,'Data BI Summary'!$2:$2,0),FALSE),INDIRECT("'"&$E34&"'!"&"$A:$K"),4,FALSE) -> 133.0707246 | H34: =VLOOKUP(VLOOKUP($F34,'Data BI Summary'!$A:$F,MATCH(H$1,'Data BI Summary'!$2:$2,0),FALSE),INDIRECT("'"&$E34&"'!"&"$A:$K"),8,FALSE) -> 2.21 | I34: =VLOOKUP(VLOOKUP($F34,'Data BI Summary'!$A:$F,MATCH(I$1,'Data BI Summary'!$2:$2,0),FALSE),INDIRECT("'"&$E34&"'!"&"$A:$K"),9,FALSE) -> 0.05509847918 | J34: =VLOOKUP(VLOOKUP($F34,'Data BI Summary'!$A:$F,MATCH(J$1,'Data BI Summary'!$2:$2,0),FALSE),INDIRECT("'"&$E34&"'!"&"$A:$K"),8,FALSE) -> 2.07961 | K34: =VLOOKUP(VLOOKUP($F34,'Data BI Summary'!$A:$F,MATCH(K$1,'Data BI Summary'!$2:$2,0),FALSE),INDIRECT("'"&$E34&"'!"&"$A:$K"),9,FALSE) -> 0.01562785509
B35: Average | C35: =VLOOKUP(A$33,'Data Billing Quantities'!A:P,MATCH($B35&" kWh",'Data Billing Quantities'!$4:$4,0),FALSE) -> 742 | E35: BI_HCHI_AR_Avg | F35: BI Template_EnergyHCHI | G35: =VLOOKUP(VLOOKUP($F35,'Data BI Summary'!$A:$F,MATCH(G$1,'Data BI Summary'!$2:$2,0),FALSE),INDIRECT("'"&$E35&"'!"&"$A:$K"),4,FALSE) -> 132.0651428 | H35: =VLOOKUP(VLOOKUP($F35,'Data BI Summary'!$A:$F,MATCH(H$1,'Data BI Summary'!$2:$2,0),FALSE),INDIRECT("'"&$E35&"'!"&"$A:$K"),8,FALSE) -> 2.21 | I35: =VLOOKUP(VLOOKUP($F35,'Data BI Summary'!$A:$F,MATCH(I$1,'Data BI Summary'!$2:$2,0),FALSE),INDIRECT("'"&$E35&"'!"&"$A:$K"),9,FALSE) -> 0.05509408374 | J35: =VLOOKUP(VLOOKUP($F35,'Data BI Summary'!$A:$F,MATCH(J$1,'Data BI Summary'!$2:$2,0),FALSE),INDIRECT("'"&$E35&"'!"&"$A:$K"),8,FALSE) -> 2.07961 | K35: =VLOOKUP(VLOOKUP($F35,'Data BI Summary'!$A:$F,MATCH(K$1,'Data BI Summary'!$2:$2,0),FALSE),INDIRECT("'"&$E35&"'!"&"$A:$K"),9,FALSE) -> 0.01574685005
B36: High | C36: =VLOOKUP(A$33,'Data Billing Quantities'!A:P,MATCH($B36&" kWh",'Data Billing Quantities'!$4:$4,0),FALSE) -> 1410 | E36: BI_HCHI_AR_High | F36: BI Template_EnergyHCHI | G36: =VLOOKUP(VLOOKUP($F36,'Data BI Summary'!$A:$F,MATCH(G$1,'Data BI Summary'!$2:$2,0),FALSE),INDIRECT("'"&$E36&"'!"&"$A:$K"),4,FALSE) -> 216.0312238 | H36: =VLOOKUP(VLOOKUP($F36,'Data BI Summary'!$A:$F,MATCH(H$1,'Data BI Summary'!$2:$2,0),FALSE),INDIRECT("'"&$E36&"'!"&"$A:$K"),8,FALSE) -> 2.21 | I36: =VLOOKUP(VLOOKUP($F36,'Data BI Summary'!$A:$F,MATCH(I$1,'Data BI Summary'!$2:$2,0),FALSE),INDIRECT("'"&$E36&"'!"&"$A:$K"),9,FALSE) -> 0.05546353461 | J36: =VLOOKUP(VLOOKUP($F36,'Data BI Summary'!$A:$F,MATCH(J$1,'Data BI Summary'!$2:$2,0),FALSE),INDIRECT("'"&$E36&"'!"&"$A:$K"),8,FALSE) -> 2.07961 | K36: =VLOOKUP(VLOOKUP($F36,'Data BI Summary'!$A:$F,MATCH(K$1,'Data BI Summary'!$2:$2,0),FALSE),INDIRECT("'"&$E36&"'!"&"$A:$K"),9,FALSE) -> 0.00962643253
A37: AGSe-HCHI | B37: Low | C37: =VLOOKUP(A$37,'Data Billing Quantities'!A:P,MATCH($B37&" kWh",'Data Billing Quantities'!$4:$4,0),FALSE) -> 90 | E37: BI_HCHI_AGSe_Low | F37: BI Template_EnergyHCHI | G37: =VLOOKUP(VLOOKUP($F37,'Data BI Summary'!$A:$F,MATCH(G$1,'Data BI Summary'!$2:$2,0),FALSE),INDIRECT("'"&$E37&"'!"&"$A:$K"),4,FALSE) -> 52.97191174 | H37: =VLOOKUP(VLOOKUP($F37,'Data BI Summary'!$A:$F,MATCH(H$1,'Data BI Summary'!$2:$2,0),FALSE),INDIRECT("'"&$E37&"'!"&"$A:$K"),8,FALSE) -> 2.229 | I37: =VLOOKUP(VLOOKUP($F37,'Data BI Summary'!$A:$F,MATCH(I$1,'Data BI Summary'!$2:$2,0),FALSE),INDIRECT("'"&$E37&"'!"&"$A:$K"),9,FALSE) -> 0.05091482218 | J37: =VLOOKUP(VLOOKUP($F37,'Data BI Summary'!$A:$F,MATCH(J$1,'Data BI Summary'!$2:$2,0),FALSE),INDIRECT("'"&$E37&"'!"&"$A:$K"),8,FALSE) -> 2.097489 | K37: =VLOOKUP(VLOOKUP($F37,'Data BI Summary'!$A:$F,MATCH(K$1,'Data BI Summary'!$2:$2,0),FALSE),INDIRECT("'"&$E37&"'!"&"$A:$K"),9,FALSE) -> 0.03959624886 | L37: TOU
B38: Typical | C38: =VLOOKUP(A$37,'Data Billing Quantities'!A:P,MATCH($B38&" kWh",'Data Billing Quantities'!$4:$4,0),FALSE) -> 2000 | E38: BI_HCHI_AGSe_Typical | F38: BI Template_EnergyHCHI | G38: =VLOOKUP(VLOOKUP($F38,'Data BI Summary'!$A:$F,MATCH(G$1,'Data BI Summary'!$2:$2,0),FALSE),INDIRECT("'"&$E38&"'!"&"$A:$K"),4,FALSE) -> 320.8352298 | H38: =VLOOKUP(VLOOKUP($F38,'Data BI Summary'!$A:$F,MATCH(H$1,'Data BI Summary'!$2:$2,0),FALSE),INDIRECT("'"&$E38&"'!"&"$A:$K"),8,FALSE) -> 4.33 | I38: =VLOOKUP(VLOOKUP($F38,'Data BI Summary'!$A:$F,MATCH(I$1,'Data BI Summary'!$2:$2,0),FALSE),INDIRECT("'"&$E38&"'!"&"$A:$K"),9,FALSE) -> 0.05394966359 | J38: =VLOOKUP(VLOOKUP($F38,'Data BI Summary'!$A:$F,MATCH(J$1,'Data BI Summary'!$2:$2,0),FALSE),INDIRECT("'"&$E38&"'!"&"$A:$K"),8,FALSE) -> 4.07453 | K38: =VLOOKUP(VLOOKUP($F38,'Data BI Summary'!$A:$F,MATCH(K$1,'Data BI Summary'!$2:$2,0),FALSE),INDIRECT("'"&$E38&"'!"&"$A:$K"),9,FALSE) -> 0.0126997587
B39: Average | C39: =VLOOKUP(A$37,'Data Billing Quantities'!A:P,MATCH($B39&" kWh",'Data Billing Quantities'!$4:$4,0),FALSE) -> 2261 | E39: BI_HCHI_AGSe_Avg | F39: BI Template_EnergyHCHI | G39: =VLOOKUP(VLOOKUP($F39,'Data BI Summary'!$A:$F,MATCH(G$1,'Data BI Summary'!$2:$2,0),FALSE),INDIRECT("'"&$E39&"'!"&"$A:$K"),4,FALSE) -> 357.4385418 | H39: =VLOOKUP(VLOOKUP($F39,'Data BI Summary'!$A:$F,MATCH(H$1,'Data BI Summary'!$2:$2,0),FALSE),INDIRECT("'"&$E39&"'!"&"$A:$K"),8,FALSE) -> 4.6171 | I39: =VLOOKUP(VLOOKUP($F39,'Data BI Summary'!$A:$F,MATCH(I$1,'Data BI Summary'!$2:$2,0),FALSE),INDIRECT("'"&$E39&"'!"&"$A:$K"),9,FALSE) -> 0.05416264395 | J39: =VLOOKUP(VLOOKUP($F39,'Data BI Summary'!$A:$F,MATCH(J$1,'Data BI Summary'!$2:$2,0),FALSE),INDIRECT("'"&$E39&"'!"&"$A:$K"),8,FALSE) -> 4.3446911 | K39: =VLOOKUP(VLOOKUP($F39,'Data BI Summary'!$A:$F,MATCH(K$1,'Data BI Summary'!$2:$2,0),FALSE),INDIRECT("'"&$E39&"'!"&"$A:$K"),9,FALSE) -> 0.01215507169
B40: High | C40: =VLOOKUP(A$37,'Data Billing Quantities'!A:P,MATCH($B40&" kWh",'Data Billing Quantities'!$4:$4,0),FALSE) -> 5430 | E40: BI_HCHI_AGSe_High | F40: BI Template_EnergyHCHI | G40: =VLOOKUP(VLOOKUP($F40,'Data BI Summary'!$A:$F,MATCH(G$1,'Data BI Summary'!$2:$2,0),FALSE),INDIRECT("'"&$E40&"'!"&"$A:$K"),4,FALSE) -> 801.8672616 | H40: =VLOOKUP(VLOOKUP($F40,'Data BI Summary'!$A:$F,MATCH(H$1,'Data BI Summary'!$2:$2,0),FALSE),INDIRECT("'"&$E40&"'!"&"$A:$K"),8,FALSE) -> 8.103 | I40: =VLOOKUP(VLOOKUP($F40,'Data BI Summary'!$A:$F,MATCH(I$1,'Data BI Summary'!$2:$2,0),FALSE),INDIRECT("'"&$E40&"'!"&"$A:$K"),9,FALSE) -> 0.05558642547 | J40: =VLOOKUP(VLOOKUP($F40,'Data BI Summary'!$A:$F,MATCH(J$1,'Data BI Summary'!$2:$2,0),FALSE),INDIRECT("'"&$E40&"'!"&"$A:$K"),8,FALSE) -> 7.624923 | K40: =VLOOKUP(VLOOKUP($F40,'Data BI Summary'!$A:$F,MATCH(K$1,'Data BI Summary'!$2:$2,0),FALSE),INDIRECT("'"&$E40&"'!"&"$A:$K"),9,FALSE) -> 0.009508959107
A41: AGSd-HCHI | B41: Low | C41: =VLOOKUP(A$41,'Data Billing Quantities'!A:P,MATCH($B41&" kWh",'Data Billing Quantities'!$4:$4,0),FALSE) -> 10880 | D41: =VLOOKUP(A$41,'Data Billing Quantities'!A:P,MATCH(B41&" kW",'Data Billing Quantities'!$4:$4,0),FALSE) -> 55 | E41: BI_HCHI_AGSd_Low | F41: BI Template_DemandHCHI | G41: =VLOOKUP(VLOOKUP($F41,'Data BI Summary'!$A:$F,MATCH(G$1,'Data BI Summary'!$2:$2,0),FALSE),INDIRECT("'"&$E41&"'!"&"$A:$K"),4,FALSE) -> 2394.806803 | H41: =VLOOKUP(VLOOKUP($F41,'Data BI Summary'!$A:$F,MATCH(H$1,'Data BI Summary'!$2:$2,0),FALSE),INDIRECT("'"&$E41&"'!"&"$A:$K"),8,FALSE) -> 27.6935 | I41: =VLOOKUP(VLOOKUP($F41,'Data BI Summary'!$A:$F,MATCH(I$1,'Data BI Summary'!$2:$2,0),FALSE),INDIRECT("'"&$E41&"'!"&"$A:$K"),9,FALSE) -> 0.06079475418 | J41: =VLOOKUP(VLOOKUP($F41,'Data BI Summary'!$A:$F,MATCH(J$1,'Data BI Summary'!$2:$2,0),FALSE),INDIRECT("'"&$E41&"'!"&"$A:$K"),8,FALSE) -> 31.293655 | K41: =VLOOKUP(VLOOKUP($F41,'Data BI Summary'!$A:$F,MATCH(K$1,'Data BI Summary'!$2:$2,0),FALSE),INDIRECT("'"&$E41&"'!"&"$A:$K"),9,FALSE) -> 0.01306729835 | L41: WAHSP
B42: Average | C42: =VLOOKUP(A$41,'Data Billing Quantities'!A:P,MATCH($B42&" kWh",'Data Billing Quantities'!$4:$4,0),FALSE) -> 57529 | D42: =VLOOKUP(A$41,'Data Billing Quantities'!A:P,MATCH(B42&" kW",'Data Billing Quantities'!$4:$4,0),FALSE) -> 175 | E42: BI_HCHI_AGSd_Avg | F42: BI Template_DemandHCHI | G42: =VLOOKUP(VLOOKUP($F42,'Data BI Summary'!$A:$F,MATCH(G$1,'Data BI Summary'!$2:$2,0),FALSE),INDIRECT("'"&$E42&"'!"&"$A:$K"),4,FALSE) -> 10453.10506 | H42: =VLOOKUP(VLOOKUP($F42,'Data BI Summary'!$A:$F,MATCH(H$1,'Data BI Summary'!$2:$2,0),FALSE),INDIRECT("'"&$E42&"'!"&"$A:$K"),8,FALSE) -> 66.5375 | I42: =VLOOKUP(VLOOKUP($F42,'Data BI Summary'!$A:$F,MATCH(I$1,'Data BI Summary'!$2:$2,0),FALSE),INDIRECT("'"&$E42&"'!"&"$A:$K"),9,FALSE) -> 0.06705501721 | J42: =VLOOKUP(VLOOKUP($F42,'Data BI Summary'!$A:$F,MATCH(J$1,'Data BI Summary'!$2:$2,0),FALSE),INDIRECT("'"&$E42&"'!"&"$A:$K"),8,FALSE) -> 75.187375 | K42: =VLOOKUP(VLOOKUP($F42,'Data BI Summary'!$A:$F,MATCH(K$1,'Data BI Summary'!$2:$2,0),FALSE),INDIRECT("'"&$E42&"'!"&"$A:$K"),9,FALSE) -> 0.007192826878
B43: High | C43: =VLOOKUP(A$41,'Data Billing Quantities'!A:P,MATCH($B43&" kWh",'Data Billing Quantities'!$4:$4,0),FALSE) -> 135160 | D43: =VLOOKUP(A$41,'Data Billing Quantities'!A:P,MATCH(B43&" kW",'Data Billing Quantities'!$4:$4,0),FALSE) -> 375 | E43: BI_HCHI_AGSd_High | F43: BI Template_DemandHCHI | G43: =VLOOKUP(VLOOKUP($F43,'Data BI Summary'!$A:$F,MATCH(G$1,'Data BI Summary'!$2:$2,0),FALSE),INDIRECT("'"&$E43&"'!"&"$A:$K"),4,FALSE) -> 23866.53642 | H43: =VLOOKUP(VLOOKUP($F43,'Data BI Summary'!$A:$F,MATCH(H$1,'Data BI Summary'!$2:$2,0),FALSE),INDIRECT("'"&$E43&"'!"&"$A:$K"),8,FALSE) -> 131.2775 | I43: =VLOOKUP(VLOOKUP($F43,'Data BI Summary'!$A:$F,MATCH(I$1,'Data BI Summary'!$2:$2,0),FALSE),INDIRECT("'"&$E43&"'!"&"$A:$K"),9,FALSE) -> 0.06957087867 | J43: =VLOOKUP(VLOOKUP($F43,'Data BI Summary'!$A:$F,MATCH(J$1,'Data BI Summary'!$2:$2,0),FALSE),INDIRECT("'"&$E43&"'!"&"$A:$K"),8,FALSE) -> 148.343575 | K43: =VLOOKUP(VLOOKUP($F43,'Data BI Summary'!$A:$F,MATCH(K$1,'Data BI Summary'!$2:$2,0),FALSE),INDIRECT("'"&$E43&"'!"&"$A:$K"),9,FALSE) -> 0.006215546838
A44: St Lgt-HCHI | B44: Average | C44: =VLOOKUP(A$44,'Data Billing Quantities'!A:P,MATCH($B44&" kWh",'Data Billing Quantities'!$4:$4,0),FALSE) -> 31001 | E44: BI_HCHI_StLgt_Avg | F44: BI Template_unmHCHI | G44: =VLOOKUP(VLOOKUP($F44,'Data BI Summary'!$A:$F,MATCH(G$1,'Data BI Summary'!$2:$2,0),FALSE),INDIRECT("'"&$E44&"'!"&"$A:$K"),4,FALSE) -> 9099.944317 | H44: =VLOOKUP(VLOOKUP($F44,'Data BI Summary'!$A:$F,MATCH(H$1,'Data BI Summary'!$2:$2,0),FALSE),INDIRECT("'"&$E44&"'!"&"$A:$K"),8,FALSE) -> 204.7266 | I44: =VLOOKUP(VLOOKUP($F44,'Data BI Summary'!$A:$F,MATCH(I$1,'Data BI Summary'!$2:$2,0),FALSE),INDIRECT("'"&$E44&"'!"&"$A:$K"),9,FALSE) -> 0.05535396628 | J44: =VLOOKUP(VLOOKUP($F44,'Data BI Summary'!$A:$F,MATCH(J$1,'Data BI Summary'!$2:$2,0),FALSE),INDIRECT("'"&$E44&"'!"&"$A:$K"),8,FALSE) -> 231.341058 | K44: =VLOOKUP(VLOOKUP($F44,'Data BI Summary'!$A:$F,MATCH(K$1,'Data BI Summary'!$2:$2,0),FALSE),INDIRECT("'"&$E44&"'!"&"$A:$K"),9,FALSE) -> 0.02542224985 | L44: Two-tier RPP
A45: Sen Lgt-HCHI | B45: Average | C45: =VLOOKUP(A$45,'Data Billing Quantities'!A:P,MATCH($B45&" kWh",'Data Billing Quantities'!$4:$4,0),FALSE) -> 61 | E45: BI_HCHI_SenLgt_Avg | F45: BI Template_unmHCHI | G45: =VLOOKUP(VLOOKUP($F45,'Data BI Summary'!$A:$F,MATCH(G$1,'Data BI Summary'!$2:$2,0),FALSE),INDIRECT("'"&$E45&"'!"&"$A:$K"),4,FALSE) -> 19.8044215 | H45: =VLOOKUP(VLOOKUP($F45,'Data BI Summary'!$A:$F,MATCH(H$1,'Data BI Summary'!$2:$2,0),FALSE),INDIRECT("'"&$E45&"'!"&"$A:$K"),8,FALSE) -> 0.7439 | I45: =VLOOKUP(VLOOKUP($F45,'Data BI Summary'!$A:$F,MATCH(I$1,'Data BI Summary'!$2:$2,0),FALSE),INDIRECT("'"&$E45&"'!"&"$A:$K"),9,FALSE) -> 0.05578301689 | J45: =VLOOKUP(VLOOKUP($F45,'Data BI Summary'!$A:$F,MATCH(J$1,'Data BI Summary'!$2:$2,0),FALSE),INDIRECT("'"&$E45&"'!"&"$A:$K"),8,FALSE) -> 0.7000099 | K45: =VLOOKUP(VLOOKUP($F45,'Data BI Summary'!$A:$F,MATCH(K$1,'Data BI Summary'!$2:$2,0),FALSE),INDIRECT("'"&$E45&"'!"&"$A:$K"),9,FALSE) -> 0.03534614227 | L45: Two-tier RPP
A46: USL-HCHI | B46: Average | C46: =VLOOKUP(A$46,'Data Billing Quantities'!A:P,MATCH($B46&" kWh",'Data Billing Quantities'!$4:$4,0),FALSE) -> 471 | E46: BI_HCHI_USL_Avg | F46: BI Template_unmHCHI | G46: =VLOOKUP(VLOOKUP($F46,'Data BI Summary'!$A:$F,MATCH(G$1,'Data BI Summary'!$2:$2,0),FALSE),INDIRECT("'"&$E46&"'!"&"$A:$K"),4,FALSE) -> 100.1301305 | H46: =VLOOKUP(VLOOKUP($F46,'Data BI Summary'!$A:$F,MATCH(H$1,'Data BI Summary'!$2:$2,0),FALSE),INDIRECT("'"&$E46&"'!"&"$A:$K"),8,FALSE) -> 2.6294 | I46: =VLOOKUP(VLOOKUP($F46,'Data BI Summary'!$A:$F,MATCH(I$1,'Data BI Summary'!$2:$2,0),FALSE),INDIRECT("'"&$E46&"'!"&"$A:$K"),9,FALSE) -> 0.05508892711 | J46: =VLOOKUP(VLOOKUP($F46,'Data BI Summary'!$A:$F,MATCH(J$1,'Data BI Summary'!$2:$2,0),FALSE),INDIRECT("'"&$E46&"'!"&"$A:$K"),8,FALSE) -> 2.4742654 | K46: =VLOOKUP(VLOOKUP($F46,'Data BI Summary'!$A:$F,MATCH(K$1,'Data BI Summary'!$2:$2,0),FALSE),INDIRECT("'"&$E46&"'!"&"$A:$K"),9,FALSE) -> 0.0247104981 | L46: Two-tier RPP

Sheet BI Template_Energy (hidden)
A1: 2023 Bill Impacts (Low Consumption Level) - R1
A3: Rate Class | B3: =RIGHT(A1,LEN(A1)-FIND("- ",A1,1)-1) -> R1
A4: Monthly Consumption (kWh) | B4: =IF(COUNTIF(A1,"*Low*")>0,VLOOKUP(B3,'Data Billing Quantities'!$A:$Z,MATCH("Low kWh",'Data Billing Quantities'!4:4,0),FALSE),IF(COUNTIF(A1,"*Typical*")>0,VLOOKUP(B3,'Data Billing Quantities'!$A:$Z,MATCH("Typical kWh",'Data Billing Quantities'!4:4,0),FALSE),IF(COUNTIF(A1,"*Average*")>0,VLOOKUP(B3,'Data Billing Quantities'!$A:$Z,MATCH("Average kWh",'Data Billing Quantities'!4:4,0),FALSE),IF(COUNTIF(A1,"*High*")>0,VLOOKUP(B3,'Data Billing Quantities'!$A:$Z,MATCH("High kWh",'Data Billing Quantities'!4:4,0),FALSE),"error")))) -> 370
A5: Peak (kW) | B5: =IF(COUNTIF(A1,"*Low*")>0,VLOOKUP(B3,'Data Billing Quantities'!$A:$Z,MATCH("Low kW",'Data Billing Quantities'!4:4,0),FALSE),IF(COUNTIF(A1,"*Typical*")>0,VLOOKUP(B3,'Data Billing Quantities'!$A:$Z,MATCH("Typical kW",'Data Billing Quantities'!4:4,0),FALSE),IF(COUNTIF(A1,"*Average*")>0,VLOOKUP(B3,'Data Billing Quantities'!$A:$Z,MATCH("Average kW",'Data Billing Quantities'!4:4,0),FALSE),IF(COUNTIF(A1,"*High*")>0,VLOOKUP(B3,'Data Billing Quantities'!$A:$Z,MATCH("High kW",'Data Billing Quantities'!4:4,0),FALSE),"error")))) -> 0
A6: Loss factor | B6: =VLOOKUP(B3,'Data Billing Quantities'!A:D,MATCH(A6,'Data Billing Quantities'!4:4,0),FALSE) -> 1.076
A7: Commodity Threshold | B7: =VLOOKUP(B3,'Data Billing Quantities'!A:D,MATCH(A7,'Data Billing Quantities'!4:4,0),FALSE) -> 600
A8: Monthly Consumption (kWh) - Uplifted | B8: =B4*B6 -> 398.12
A9: Charge determinant | B9: =VLOOKUP(B3,'Data Billing Quantities'!A:D,MATCH(A9,'Data Billing Quantities'!4:4,0),FALSE) -> kWh
B11: Volume | C11: Current Rate ($) | D11: Current Charge ($) | E11: Volume | F11: Proposed Rate ($) | G11: Proposed Charge ($) | H11: Change ($) | I11: Change (%) | J11: % of Total Bill on RPP | K11: % of Total Bill
A12: Energy First Tier | B12: =IF(B4>B7,B7,B4) -> 370 | C12: =VLOOKUP($A12,'Data Pass Through'!$A:$D,2,FALSE) -> 0.098 | D12: =B12*C12 -> 36.26 | E12: =B12 -> 370 | F12: =VLOOKUP($A12,'Data Pass Through'!$A:$D,3,FALSE) -> 0.098 | G12: =E12*F12 -> 36.26 | H12: =G12-D12 -> 0 | I12: =IF(ISERROR(H12/ABS(D12)),"N/A",(H12/ABS(D12))) -> 0 | J12: =G12/$G$45 -> 0.3211997117
A13: Energy Second Tier | B13: =IF(B4>B7,(B4)-B7,0) -> 0 | C13: =VLOOKUP($A13,'Data Pass Through'!$A:$D,2,FALSE) -> 0.115 | D13: =B13*C13 -> 0 | E13: =B13 -> 0 | F13: =VLOOKUP($A13,'Data Pass Through'!$A:$D,3,FALSE) -> 0.115 | G13: =E13*F13 -> 0 | H13: 0 | I13: N/A | J13: =G13/$G$45 -> 0
A14: Sub-Total: Energy (RPP Tiered) | D14: =SUM(D12:D13) -> 36.26 | G14: =SUM(G12:G13) -> 36.26 | H14: 0 | I14: 0 | J14: =G14/$G$45 -> 0.3211997117
A15: TOU-Off Peak | B15: =B$4*VLOOKUP($B$3,'Data Billing Quantities'!$A:$O,MATCH('BI Template_Energy'!$A15,'Data Billing Quantities'!$4:$4,0),FALSE) -> 236.8 | C15: =VLOOKUP($A15,'Data Pass Through'!$A:$D,2,FALSE) -> 0.082 | D15: =B15*C15 -> 19.4176 | E15: 236.8 | F15: =VLOOKUP($A15,'Data Pass Through'!$A:$D,3,FALSE) -> 0.082 | G15: =E15*F15 -> 19.4176 | H15: 0 | I15: 0 | K15: =G15/$G$50 -> 0.1689665807
A16: TOU-Mid Peak | B16: =B$4*VLOOKUP($B$3,'Data Billing Quantities'!$A:$O,MATCH('BI Template_Energy'!$A16,'Data Billing Quantities'!$4:$4,0),FALSE) -> 66.6 | C16: =VLOOKUP($A16,'Data Pass Through'!$A:$D,2,FALSE) -> 0.113 | D16: =B16*C16 -> 7.5258 | E16: 66.6 | F16: =VLOOKUP($A16,'Data Pass Through'!$A:$D,3,FALSE) -> 0.113 | G16: =E16*F16 -> 7.5258 | H16: 0 | I16: 0 | K16: 0.06548742856
A17: TOU-On Peak | B17: =B$4*VLOOKUP($B$3,'Data Billing Quantities'!$A:$O,MATCH('BI Template_Energy'!$A17,'Data Billing Quantities'!$4:$4,0),FALSE) -> 66.6 | C17: =VLOOKUP($A17,'Data Pass Through'!$A:$D,2,FALSE) -> 0.17 | D17: =B17*C17 -> 11.322 | E17: 66.6 | F17: =VLOOKUP($A17,'Data Pass Through'!$A:$D,3,FALSE) -> 0.17 | G17: =E17*F17 -> 11.322 | H17: 0 | I17: 0 | K17: 0.09852091022
A18: Sub-Total: Energy (RPP TOU) | D18: =SUM(D15:D17) -> 38.2654 | G18: =SUM(G15:G17) -> 38.2654 | H18: 0 | I18: 0 | J18: =G18/$G$45 -> 0.3389640223 | K18: 0.3329749194
A19: Service Charge | B19: 1 | C19: =VLOOKUP($B$3,'Data Current Rates'!$A:$AN,MATCH('BI Template_Energy'!$A19,CurrentHeader,0),FALSE) -> 68.72 | D19: =B19*C19 -> 68.72 | E19: 1 | F19: =VLOOKUP($B$3,'Data Proposed Rates'!$A:$AZ,MATCH('BI Template_Energy'!$A19,ProposedHeader,0),FALSE) -> 71.86 | G19: =E19*F19 -> 71.86 | H19: 3.14 | I19: 0.04569266589 | J19: 0.6365529864 | K19: 0.6253058301
A20: Group 2 Fixed DVA Rider | B20: 1 | C20: =VLOOKUP($B$3,'Data Current Rates'!$A:$AN,MATCH('BI Template_Energy'!$A20,CurrentHeader,0),FALSE) -> -0.14 | D20: =B20*C20 -> -0.14 | E20: 1 | F20: =VLOOKUP($B$3,'Data Proposed Rates'!$A:$AZ,MATCH('BI Template_Energy'!$A20,ProposedHeader,0),FALSE) -> -0.14 | G20: -0.14 | H20: 0 | I20: 0 | J20: -0.001240153327 | K20: -0.00121824125
A21: Distribution Volumetric Charge | B21: =IF($B$9="kWh",$B$4,$B$5) -> 370 | C21: =VLOOKUP($B$3,'Data Current Rates'!$A:$AN,MATCH('BI Template_Energy'!$A21,CurrentHeader,0),FALSE) -> 0 | D21: 0 | E21: 370 | F21: =VLOOKUP($B$3,'Data Proposed Rates'!$A:$AZ,MATCH('BI Template_Energy'!$A21,ProposedHeader,0),FALSE) -> 0 | G21: 0 | H21: 0 | I21: N/A | J21: 0 | K21: 0
A22: Group 1 Volumetric DVA Rider (General) | B22: =IF($B$9="kWh",$B$4,$B$5) -> 370 | C22: =VLOOKUP($B$3,'Data Current Rates'!$A:$AN,MATCH('BI Template_Energy'!$A22,CurrentHeader,0),FALSE) -> -0.0004 | D22: =B22*C22 -> -0.148 | E22: =B4 -> 370 | F22: =VLOOKUP($B$3,'Data Proposed Rates'!$A:$AZ,MATCH('BI Template_Energy'!$A22,ProposedHeader,0),FALSE) -> -0.0004 | G22: =E22*F22 -> -0.148 | H22: =G22-D22 -> 0 | I22: =IF(ISERROR(H22/ABS(D22)),"N/A",(H22/ABS(D22))) -> 0 | J22: -0.001311019232 | K22: -0.001287855036
A23: Group 2 Volumetric DVA Rider | B23: 370 | C23: =VLOOKUP($B$3,'Data Current Rates'!$A:$AN,MATCH('BI Template_Energy'!$A23,CurrentHeader,0),FALSE) -> 0 | D23: 0 | E23: =B4 -> 370 | F23: =VLOOKUP($B$3,'Data Proposed Rates'!$A:$AZ,MATCH('BI Template_Energy'!$A23,ProposedHeader,0),FALSE) -> 0 | G23: 0 | H23: 0 | I23: N/A | J23: 0 | K23: 0
A24: Fair Hydro Plan - Distribution Rate Protection Savings* | D24: =IF(AND(B3<>"R1",B3<>"R2"),0,IF(VLOOKUP($A24,'Data Pass Through'!$A:$D,2,FALSE)=0,0,IF(SUM(D19:D19,D21:D21)<VLOOKUP($A24,'Data Pass Through'!$A:$D,2,FALSE),0,VLOOKUP($A24,'Data Pass Through'!$A:$D,2,FALSE)-SUM(D19:D19,D21:D21)))) -> 0 | G24: =IF(AND(B3<>"R1",B3<>"R2"),0,IF(VLOOKUP($A24,'Data Pass Through'!$A:$D,2,FALSE)=0,0,IF(SUM(G19:G19,G21:G21)<VLOOKUP($A24,'Data Pass Through'!$A:$D,2,FALSE),0,VLOOKUP($A24,'Data Pass Through'!$A:$D,2,FALSE)-SUM(G19:G19,G21:G21)))) -> 0 | H24: 0 | I24: N/A | J24: 0 | K24: 0
A25: Sub-Total: Distribution (excluding pass through) | D25: =SUM(INDIRECT("D19:D"&ROW()-1)) -> 68.432 | G25: =SUM(INDIRECT("g19:g"&ROW()-1)) -> 71.572 | H25: =G25-D25 -> 3.14 | I25: =IF(ISERROR(H25/ABS(D25)),"N/A",(H25/ABS(D25))) -> 0.0458849661 | J25: 0.6340018138 | K25: 0.6227997338
A26: Smart Metering Entity Charge | B26: 1 | C26: =VLOOKUP($A26,'Data Pass Through'!$A:$D,2,FALSE) -> 0.57 | D26: =B26*C26 -> 0.57 | E26: 1 | F26: =VLOOKUP($A26,'Data Pass Through'!$A:$D,3,FALSE) -> 0.57 | G26: =E26*F26 -> 0.57 | H26: 0 | I26: 0 | J26: 0.005049195689 | K26: 0.004959982231
A27: Line Losses on Cost of Power (based on two-tier RPP prices) | B27: =B8-B4 -> 28.12 | C27: =IF(B4>B7,C13,C12) -> 0.098 | D27: =B27*C27 -> 2.75576 | E27: 28.12 | F27: =IF(B4>B7,F13,F12) -> 0.098 | G27: =E27*F27 -> 2.75576 | H27: 0 | I27: 0 | J27: 0.02441117809 | K27: 0.02397986076
A28: Line Losses on Cost of Power (based on TOU prices) | B28: =B8-B4 -> 28.12 | C28: =VLOOKUP($B$3,'Data Billing Quantities'!$A:$O,MATCH('BI Template_Energy'!$A15,'Data Billing Quantities'!$4:$4,0),FALSE)*C15+VLOOKUP($B$3,'Data Billing Quantities'!$A:$O,MATCH('BI Template_Energy'!$A16,'Data Billing Quantities'!$4:$4,0),FALSE)*C16+VLOOKUP($B$3,'Data Billing Quantities'!$A:$O,MATCH('BI Template_Energy'!$A17,'Data Billing Quantities'!$4:$4,0),FALSE)*C17 -> 0.10342 | D28: =B28*C28 -> 2.9081704 | E28: 28.12 | F28: =VLOOKUP($B$3,'Data Billing Quantities'!$A:$O,MATCH('BI Template_Energy'!$A15,'Data Billing Quantities'!$4:$4,0),FALSE)*F15+VLOOKUP($B$3,'Data Billing Quantities'!$A:$O,MATCH('BI Template_Energy'!$A16,'Data Billing Quantities'!$4:$4,0),FALSE)*F16+VLOOKUP($B$3,'Data Billing Quantities'!$A:$O,MATCH('BI Template_Energy'!$A17,'Data Billing Quantities'!$4:$4,0),FALSE)*F17 -> 0.10342 | G28: =E28*F28 -> 2.9081704 | H28: 0 | I28: 0 | J28: 0.0257612657 | K28: 0.02530609388
A29: Sub-Total: Distribution (based on two-tier RPP prices) | D29: =SUM(D25,D26:D27) -> 71.75776 | G29: =SUM(G25,G26:G27) -> 74.89776 | H29: 3.14 | I29: 0.04375833359 | J29: 0.6634621876 | K29: 0.6517395768
A30: Sub-Total: Distribution (based on TOU prices) | D30: =SUM(D25,D26,D28) -> 71.9101704 | G30: =SUM(G25,G26,G28) -> 75.0501704 | H30: 3.14 | I30: 0.04366558976 | J30: 0.6648122752 | K30: 0.6530658099
A31: Retail Transmission Rate – Network Service Rate | B31: =B8 -> 398.12 | C31: =VLOOKUP($B$3,'Data Current Rates'!$A:$AN,MATCH('BI Template_Energy'!$A31,CurrentHeader,0),FALSE) -> 0.0101 | D31: =B31*C31 -> 4.021012 | E31: 398.12 | F31: =VLOOKUP($B$3,'Data Proposed Rates'!$A:$AZ,MATCH('BI Template_Energy'!$A31,ProposedHeader,0),FALSE) -> 0.0101 | G31: =E31*F31 -> 4.021012 | H31: =G31-D31 -> 0 | I31: 0 | J31: 0.0356190815 | K31: 0.03498973346
A32: Retail Transmission Rate – Line and Transformation Connection Service Rate | B32: =B8 -> 398.12 | C32: =VLOOKUP($B$3,'Data Current Rates'!$A:$AN,MATCH('BI Template_Energy'!$A32,CurrentHeader,0),FALSE) -> 0.0075 | D32: =B32*C32 -> 2.9859 | E32: 398.12 | F32: =VLOOKUP($B$3,'Data Proposed Rates'!$A:$AZ,MATCH('BI Template_Energy'!$A32,ProposedHeader,0),FALSE) -> 0.0075 | G32: =E32*F32 -> 2.9859 | H32: =G32-D32 -> 0 | I32: 0 | J32: 0.026449813 | K32: 0.02598247534
A33: Sub-Total: Retail Transmission | D33: =SUM(D31:D32) -> 7.006912 | G33: =SUM(G31:G32) -> 7.006912 | H33: =G33-D33 -> 0 | I33: 0 | J33: 0.0620688945 | K33: 0.0609722088
A34: Sub-Total: Delivery (based on two-tier RPP prices) | D34: =D29+D33 -> 78.764672 | G34: =G29+G33 -> 81.904672 | H34: =G34-D34 -> 3.14 | I34: 0.03986558847 | J34: 0.7255310821 | K34: 0.7127117856
A35: Sub-Total: Delivery (based on TOU prices) | D35: =D30+D33 -> 78.9170824 | G35: =G30+G33 -> 82.0570824 | H35: =G35-D35 -> 3.14 | I35: 0.03978859715 | J35: 0.7268811697 | K35: 0.7140380187
A36: Wholesale Market Service Rate (WMS) - not including CBR | B36: =B8 -> 398.12 | C36: =VLOOKUP($A36,'Data Pass Through'!$A:$D,2,FALSE) -> 0.003 | D36: =B36*C36 -> 1.19436 | E36: =$B$8 -> 398.12 | F36: =VLOOKUP($A36,'Data Pass Through'!$A:$D,3,FALSE) -> 0.003 | G36: =E36*F36 -> 1.19436 | H36: 0 | I36: 0 | J36: 0.0105799252 | K36: 0.01039299014
A37: Capacity Based Recovery (CBR) - Applicable for Class B Customers | B37: =B8 -> 398.12 | C37: =VLOOKUP($A37,'Data Pass Through'!$A:$D,2,FALSE) -> 0.0004 | D37: =B37*C37 -> 0.159248 | E37: =$B$8 -> 398.12 | F37: =VLOOKUP($A37,'Data Pass Through'!$A:$D,3,FALSE) -> 0.0004 | G37: =E37*F37 -> 0.159248 | H37: =G37-D37 -> 0 | I37: =IF(ISERROR(H37/ABS(D37)),"N/A",(H37/ABS(D37))) -> 0 | J37: 0.001410656693 | K37: 0.001385732018
A38: Rural Rate Protection Charge | B38: =B8 -> 398.12 | C38: =VLOOKUP($A38,'Data Pass Through'!$A:$D,2,FALSE) -> 0.0005 | D38: 0.19906 | E38: 398.12 | F38: =VLOOKUP($A38,'Data Pass Through'!$A:$D,3,FALSE) -> 0.0005 | G38: 0.19906 | H38: 0 | I38: 0 | J38: 0.001763320867 | K38: 0.001732165023
A39: Standard Supply Service – Administration Charge (if applicable) | B39: 1 | C39: =VLOOKUP($A39,'Data Pass Through'!$A:$D,2,FALSE) -> 0.25 | D39: =B39*C39 -> 0.25 | E39: 1 | F39: =VLOOKUP($A39,'Data Pass Through'!$A:$D,3,FALSE) -> 0.25 | G39: 0.25 | H39: 0 | I39: 0 | J39: 0.002214559513 | K39: 0.002175430803
A40: Sub-Total: Regulatory | D40: =SUM(D36:D39) -> 1.802668 | G40: =SUM(G36:G39) -> 1.802668 | H40: 0 | I40: 0 | J40: 0.01596846227 | K40: 0.01568631798
A41: Total Electricty Charge on Two-Tier RPP | D41: =SUM(D14,D25,D26,D27,D33,D40) -> 116.82734 | G41: =SUM(G14,G25,G26,G27,G33,G40) -> 119.96734 | H41: 3.14 | I41: 0.02687727034 | J41: 1.062699256
A42: HST | C42: 0.13 | D42: =D41*C42 -> 15.1875542 | F42: =C42 -> 0.13 | G42: =G41*F42 -> 15.5957542 | H42: 0.4082 | I42: 0.02687727034 | J42: 0.1381509033
A43: Total Electricity Charge on Two-Tier RPP (including HST) | D43: =SUM(D41:D42) -> 132.0148942 | G43: =SUM(G41:G42) -> 135.5630942 | H43: 3.5482 | I43: 0.02687727034 | J43: 1.200850159
A44: Ontario Electricity Rebate (OER) | C44: =IF(($B$4*12)<250000,VLOOKUP(A44,'Data Pass Through'!$A$4:$C$20,2,0),0) -> -0.189 | D44: =D41*C44 -> -22.08036726 | F44: =C44 -> -0.189 | G44: =G41*F44 -> -22.67382726 | H44: -0.59346 | I44: -0.02687727034 | J44: -0.2008501594
A45: Total Amount on Two-Tier RPP | D45: =SUM(D43:D44) -> 109.9345269 | G45: =SUM(G43:G44) -> 112.8892669 | H45: 2.95474 | I45: 0.02687727034 | J45: 1
A46: Total Electricty Charge on TOU (before HST) | D46: =SUM(D18,D25,D26,D28,D33,D40) -> 118.9851504 | G46: =SUM(G18,G25,G26,G28,G33,G40) -> 122.1251504 | H46: 3.14 | I46: 0.02638984772 | K46: =G46/$G$50 -> 1.062699256
A47: HST | C47: 0.13 | D47: =D46*C47 -> 15.46806955 | F47: =C47 -> 0.13 | G47: =G46*F47 -> 15.87626955 | H47: 0.4082 | I47: 0.02638984772 | K47: =G47/$G$50 -> 0.1381509033
A48: Total Electricity Charge on TOU (including HST) | D48: =SUM(D46:D47) -> 134.45322 | G48: =SUM(G46:G47) -> 138.00142 | H48: 3.5482 | I48: 0.02638984772 | K48: =G48/$G$50 -> 1.200850159
A49: Ontario Electricity Rebate (OER) | C49: =IF(($B$4*12)<250000,VLOOKUP(A49,'Data Pass Through'!$A$4:$C$20,2,0),0) -> -0.189 | D49: =D46*C49 -> -22.48819343 | F49: =C49 -> -0.189 | G49: =G46*F49 -> -23.08165343 | H49: -0.59346 | I49: -0.02638984772 | K49: =G49/$G$50 -> -0.2008501594
A50: Total Amount on TOU | D50: =SUM(D48:D49) -> 111.9650265 | G50: =SUM(G48:G49) -> 114.9197665 | H50: 2.95474 | I50: 0.02638984772 | K50: =G50/$G$50 -> 1
A51: * Distribution rate protection applies to R1 and R2 customers

Sheet BI Template_EnergyNPDI (hidden)
A1: 2026 Bill Impacts (Low Consumption Level) - AR_NPDI
A3: Rate Class | B3: =VLOOKUP(A1,'Data BI List Acq_Seas'!C:E,2,FALSE) -> AR-NPDI | C3: =VLOOKUP(A1,'Data BI List Acq_Seas'!C:E,3,FALSE) -> AR-NPDI
A4: Monthly Consumption (kWh) | B4: =IF(COUNTIF(A1,"*Low*")>0,VLOOKUP(B3,'Data Billing Quantities'!$A:$Z,MATCH("Low kWh",'Data Billing Quantities'!4:4,0),FALSE),IF(COUNTIF(A1,"*Typical*")>0,VLOOKUP(B3,'Data Billing Quantities'!$A:$Z,MATCH("Typical kWh",'Data Billing Quantities'!4:4,0),FALSE),IF(COUNTIF(A1,"*Average*")>0,VLOOKUP(B3,'Data Billing Quantities'!$A:$Z,MATCH("Average kWh",'Data Billing Quantities'!4:4,0),FALSE),IF(COUNTIF(A1,"*High*")>0,VLOOKUP(B3,'Data Billing Quantities'!$A:$Z,MATCH("High kWh",'Data Billing Quantities'!4:4,0),FALSE),"error")))) -> 290 | C4: =B4 -> 290
A5: Peak (kW) | B5: =IF(COUNTIF(A1,"*Low*")>0,VLOOKUP(B3,'Data Billing Quantities'!$A:$Z,MATCH("Low kW",'Data Billing Quantities'!4:4,0),FALSE),IF(COUNTIF(A1,"*Typical*")>0,VLOOKUP(B3,'Data Billing Quantities'!$A:$Z,MATCH("Typical kW",'Data Billing Quantities'!4:4,0),FALSE),IF(COUNTIF(A1,"*Average*")>0,VLOOKUP(B3,'Data Billing Quantities'!$A:$Z,MATCH("Average kW",'Data Billing Quantities'!4:4,0),FALSE),IF(COUNTIF(A1,"*High*")>0,VLOOKUP(B3,'Data Billing Quantities'!$A:$Z,MATCH("High kW",'Data Billing Quantities'!4:4,0),FALSE),"error")))) -> 0 | C5: =B5 -> 0
A6: Loss factor | B6: =VLOOKUP(B3,'Data Billing Quantities'!A:D,MATCH(A6,'Data Billing Quantities'!4:4,0),FALSE) -> 1.064 | C6: =VLOOKUP(C3,'Data Billing Quantities'!A:D,MATCH(A6,'Data Billing Quantities'!4:4,0),FALSE) -> 1.064
A7: Commodity Threshold | B7: =VLOOKUP(B3,'Data Billing Quantities'!A:D,MATCH(A7,'Data Billing Quantities'!4:4,0),FALSE) -> 750 | C7: =B7 -> 750
A8: Monthly Consumption (kWh) - Uplifted | B8: =B4*B6 -> 308.56 | C8: =C4*C6 -> 308.56
A9: Charge determinant | B9: =VLOOKUP(B3,'Data Billing Quantities'!A:D,MATCH(A9,'Data Billing Quantities'!4:4,0),FALSE) -> kWh | C9: =VLOOKUP(C3,'Data Billing Quantities'!A:D,MATCH(A9,'Data Billing Quantities'!4:4,0),FALSE) -> kWh
B11: Volume | C11: Current Rate ($) | D11: Current Charge ($) | E11: Volume | F11: Proposed Rate ($) | G11: Proposed Charge ($) | H11: Change ($) | I11: Change (%) | J11: % of Total Bill on RPP | K11: % of Total Bill
A12: Energy First Tier | B12: =IF(B4>B7,B7,B4) -> 290 | C12: =VLOOKUP($A12,'Data Pass Through'!$A:$D,2,FALSE) -> 0.098 | D12: =B12*C12 -> 28.42 | E12: =B12 -> 290 | F12: =VLOOKUP($A12,'Data Pass Through'!$A:$D,3,FALSE) -> 0.098 | G12: =E12*F12 -> 28.42 | H12: =G12-D12 -> 0 | I12: =IF(ISERROR(H12/ABS(D12)),"N/A",(H12/ABS(D12))) -> 0 | J12: =G12/$G$42 -> 0.3752886913
A13: Energy Second Tier | B13: =IF(B4>B7,(B4)-B7,0) -> 0 | C13: =VLOOKUP($A13,'Data Pass Through'!$A:$D,2,FALSE) -> 0.115 | D13: =B13*C13 -> 0 | E13: =B13 -> 0 | F13: =VLOOKUP($A13,'Data Pass Through'!$A:$D,3,FALSE) -> 0.115 | G13: =E13*F13 -> 0 | H13: 0 | I13: N/A | J13: =G13/$G$42 -> 0
A14: Sub-Total: Energy (RPP Tiered) | D14: =SUM(D12:D13) -> 28.42 | G14: =SUM(G12:G13) -> 28.42 | H14: 0 | I14: 0 | J14: =G14/$G$42 -> 0.3752886913
A15: TOU-Off Peak | B15: =B$4*VLOOKUP($B$3,'Data Billing Quantities'!$A:$O,MATCH('BI Template_EnergyNPDI'!$A15,'Data Billing Quantities'!$4:$4,0),FALSE) -> 185.6 | C15: =VLOOKUP($A15,'Data Pass Through'!$A:$D,2,FALSE) -> 0.082 | D15: =B15*C15 -> 15.2192 | E15: 185.6 | F15: =VLOOKUP($A15,'Data Pass Through'!$A:$D,3,FALSE) -> 0.082 | G15: =E15*F15 -> 15.2192 | H15: 0 | I15: 0 | K15: =G15/$G$47 -> 0.1968795371
A16: TOU-Mid Peak | B16: =B$4*VLOOKUP($B$3,'Data Billing Quantities'!$A:$O,MATCH('BI Template_EnergyNPDI'!$A16,'Data Billing Quantities'!$4:$4,0),FALSE) -> 52.2 | C16: =VLOOKUP($A16,'Data Pass Through'!$A:$D,2,FALSE) -> 0.113 | D16: =B16*C16 -> 5.8986 | E16: 52.2 | F16: =VLOOKUP($A16,'Data Pass Through'!$A:$D,3,FALSE) -> 0.113 | G16: =E16*F16 -> 5.8986 | H16: 0 | I16: 0 | K16: 0.07630582667
A17: TOU-On Peak | B17: =B$4*VLOOKUP($B$3,'Data Billing Quantities'!$A:$O,MATCH('BI Template_EnergyNPDI'!$A17,'Data Billing Quantities'!$4:$4,0),FALSE) -> 52.2 | C17: =VLOOKUP($A17,'Data Pass Through'!$A:$D,2,FALSE) -> 0.17 | D17: =B17*C17 -> 8.874 | E17: 52.2 | F17: =VLOOKUP($A17,'Data Pass Through'!$A:$D,3,FALSE) -> 0.17 | G17: =E17*F17 -> 8.874 | H17: 0 | I17: 0 | K17: 0.1147963764
A18: Sub-Total: Energy (RPP TOU) | D18: =SUM(D15:D17) -> 29.9918 | G18: =SUM(G15:G17) -> 29.9918 | H18: 0 | I18: 0 | J18: =G18/$G$42 -> 0.3960444536 | K18: 0.3879817401
A19: Service Charge | B19: 1 | C19: =VLOOKUP($B$3,'Data Current Rates'!$A:$AN,MATCH('BI Template_EnergyNPDI'!$A19,CurrentHeader,0),FALSE) -> 40.41 | D19: =B19*C19 -> 40.41 | E19: 1 | F19: =VLOOKUP($C$3,'Data Proposed Rates'!$A:$AZ,MATCH('BI Template_EnergyNPDI'!$A19,ProposedHeader,0),FALSE) -> 42.62 | G19: =E19*F19 -> 42.62 | H19: 2.21 | I19: 0.05468943331 | J19: =G19/$G$42 -> 0.562800986 | K19: 0.551343426
A20: Distribution Volumetric Charge | B20: =IF($B$9="kWh",$B$4,$B$5) -> 290 | C20: =VLOOKUP($B$3,'Data Current Rates'!$A:$AN,MATCH('BI Template_EnergyNPDI'!$A20,CurrentHeader,0),FALSE) -> 0 | D20: =B20*C20 -> 0 | E20: =IF($C$9="kWh",$C$4,$C$5) -> 290 | F20: =VLOOKUP($C$3,'Data Proposed Rates'!$A:$AZ,MATCH('BI Template_EnergyNPDI'!$A20,ProposedHeader,0),FALSE) -> 0 | G20: 0 | H20: 0 | I20: N/A | J20: =G20/$G$42 -> 0 | K20: 0
A21: Group 1 Volumetric DVA Rider (General) | B21: =IF($B$9="kWh",$B$4,$B$5) -> 290 | C21: =VLOOKUP($B$3,'Data Current Rates'!$A:$AN,MATCH('BI Template_EnergyNPDI'!$A21,CurrentHeader,0),FALSE) -> -0.0005 | D21: =B21*C21 -> -0.145 | E21: =IF($C$9="kWh",$C$4,$C$5) -> 290 | F21: =VLOOKUP($C$3,'Data Proposed Rates'!$A:$AZ,MATCH('BI Template_EnergyNPDI'!$A21,ProposedHeader,0),FALSE) -> -0.0005 | G21: -0.145 | H21: 0 | I21: 0 | J21: =G21/$G$42 -> -0.001914738221 | K21: -0.001875757784
A22: Sub-Total: Distribution (excluding pass through) | D22: =SUM(INDIRECT("D19:D"&ROW()-1)) -> 40.265 | G22: =SUM(INDIRECT("g19:g"&ROW()-1)) -> 42.475 | H22: =G22-D22 -> 2.21 | I22: 0.05488637775 | J22: =G22/$G$42 -> 0.5608862478 | K22: =G22/$G$47 -> 0.5494676682
A23: Smart Metering Entity Charge | B23: =B19 -> 1 | C23: =VLOOKUP($A23,'Data Pass Through'!$A:$D,2,FALSE) -> 0.57 | D23: =B23*C23 -> 0.57 | E23: =E19 -> 1 | F23: =VLOOKUP($A23,'Data Pass Through'!$A:$D,3,FALSE) -> 0.57 | G23: =E23*F23 -> 0.57 | H23: 0 | I23: 0 | J23: 0.007526901972 | K23: 0.007373668532
A24: Line Losses on Cost of Power (based on two-tier RPP prices) | B24: =B8-B4 -> 18.56 | C24: =IF(B4>B7,C13,C12) -> 0.098 | D24: =B24*C24 -> 1.81888 | E24: =C8-C4 -> 18.56 | F24: =IF(C4>C7,F13,F12) -> 0.098 | G24: =E24*F24 -> 1.81888 | H24: 0 | I24: 0 | J24: 0.02401847624 | K24: 0.02352950565
A25: Line Losses on Cost of Power (based on TOU prices) | B25: =B8-B4 -> 18.56 | C25: =VLOOKUP($B$3,'Data Billing Quantities'!$A:$O,MATCH('BI Template_EnergyNPDI'!$A15,'Data Billing Quantities'!$4:$4,0),FALSE)*C15+VLOOKUP($B$3,'Data Billing Quantities'!$A:$O,MATCH('BI Template_EnergyNPDI'!$A16,'Data Billing Quantities'!$4:$4,0),FALSE)*C16+VLOOKUP($B$3,'Data Billing Quantities'!$A:$O,MATCH('BI Template_EnergyNPDI'!$A17,'Data Billing Quantities'!$4:$4,0),FALSE)*C17 -> 0.10342 | D25: =B25*C25 -> 1.9194752 | E25: =C8-C4 -> 18.56 | F25: =VLOOKUP($C$3,'Data Billing Quantities'!$A:$O,MATCH('BI Template_EnergyNPDI'!$A15,'Data Billing Quantities'!$4:$4,0),FALSE)*F15+VLOOKUP($C$3,'Data Billing Quantities'!$A:$O,MATCH('BI Template_EnergyNPDI'!$A16,'Data Billing Quantities'!$4:$4,0),FALSE)*F16+VLOOKUP($C$3,'Data Billing Quantities'!$A:$O,MATCH('BI Template_EnergyNPDI'!$A17,'Data Billing Quantities'!$4:$4,0),FALSE)*F17 -> 0.10342 | G25: =E25*F25 -> 1.9194752 | H25: 0 | I25: 0 | J25: 0.02534684503 | K25: 0.02483083137
A26: Sub-Total: Distribution (based on two-tier RPP prices) | D26: =SUM(D22,D23:D24) -> 42.65388 | G26: =SUM(G22,G23:G24) -> 44.86388 | H26: 2.21 | I26: 0.05181240253 | J26: 0.592431626 | K26: 0.5803708424
A27: Sub-Total: Distribution (based on TOU prices) | D27: =SUM(D22,D23,D25) -> 42.7544752 | G27: =SUM(G22,G23,G25) -> 44.9644752 | H27: 2.21 | I27: 0.05169049531 | J27: 0.5937599948 | K27: 0.5816721681
A28: Retail Transmission Rate – Network Service Rate | B28: =IF($B$9="kWh",$B$8,$B$5) -> 308.56 | C28: =VLOOKUP($B$3,'Data Current Rates'!$A:$AN,MATCH('BI Template_EnergyNPDI'!$A28,CurrentHeader,0),FALSE) -> 0.0107 | D28: =B28*C28 -> 3.301592 | E28: =IF($C$9="kWh",$C$8,$C$5) -> 308.56 | F28: =VLOOKUP($C$3,'Data Proposed Rates'!$A:$AZ,MATCH('BI Template_EnergyNPDI'!$A28,ProposedHeader,0),FALSE) -> 0.0107 | G28: =E28*F28 -> 3.301592 | H28: =G28-D28 -> 0 | I28: 0 | J28: 0.04359782339 | K28: 0.04271025445
A29: Retail Transmission Rate – Line and Transformation Connection Service Rate | B29: =IF($B$9="kWh",$B$8,$B$5) -> 308.56 | C29: =VLOOKUP($B$3,'Data Current Rates'!$A:$AN,MATCH('BI Template_EnergyNPDI'!$A29,CurrentHeader,0),FALSE) -> 0.0079 | D29: =B29*C29 -> 2.437624 | E29: =IF($C$9="kWh",$C$8,$C$5) -> 308.56 | F29: =VLOOKUP($C$3,'Data Proposed Rates'!$A:$AZ,MATCH('BI Template_EnergyNPDI'!$A29,ProposedHeader,0),FALSE) -> 0.0079 | G29: =E29*F29 -> 2.437624 | H29: =G29-D29 -> 0 | I29: 0 | J29: 0.03218904718 | K29: 0.03153373927
A30: Sub-Total: Retail Transmission | D30: =SUM(D28:D29) -> 5.739216 | G30: =SUM(G28:G29) -> 5.739216 | H30: =G30-D30 -> 0 | I30: 0 | J30: 0.07578687057 | K30: 0.07424399371
A31: Sub-Total: Delivery (based on two-tier RPP prices) | D31: =D26+D30 -> 48.393096 | G31: =G26+G30 -> 50.603096 | H31: =G31-D31 -> 2.21 | I31: 0.04566767127 | J31: 0.6682184966 | K31: 0.6546148361
A32: Sub-Total: Delivery (based on TOU prices) | D32: =D27+D30 -> 48.4936912 | G32: =G27+G30 -> 50.7036912 | H32: =G32-D32 -> 2.21 | I32: 0.04557293836 | J32: 0.6695468654 | K32: 0.6559161618
A33: Wholesale Market Service Rate (WMS) - not including CBR | B33: =B8 -> 308.56 | C33: =VLOOKUP($A33,'Data Pass Through'!$A:$D,2,FALSE) -> 0.003 | D33: =B33*C33 -> 0.92568 | E33: =$C$8 -> 308.56 | F33: =VLOOKUP($A33,'Data Pass Through'!$A:$D,3,FALSE) -> 0.003 | G33: =E33*F33 -> 0.92568 | H33: 0 | I33: 0 | J33: 0.0122236888 | K33: 0.0119748377
A34: Capacity Based Recovery (CBR) - Applicable for Class B Customers | B34: =B8 -> 308.56 | C34: =VLOOKUP($A34,'Data Pass Through'!$A:$D,2,FALSE) -> 0.0004 | D34: =B34*C34 -> 0.123424 | E34: =$C$8 -> 308.56 | F34: =VLOOKUP($A34,'Data Pass Through'!$A:$D,3,FALSE) -> 0.0004 | G34: =E34*F34 -> 0.123424 | H34: 0 | I34: 0 | J34: 0.001629825174 | K34: 0.001596645026
A35: Rural Rate Protection Charge | B35: =B8 -> 308.56 | C35: =VLOOKUP($A35,'Data Pass Through'!$A:$D,2,FALSE) -> 0.0005 | D35: 0.15428 | E35: 308.56 | F35: =VLOOKUP($A35,'Data Pass Through'!$A:$D,3,FALSE) -> 0.0005 | G35: 0.15428 | H35: 0 | I35: 0 | J35: 0.002037281467 | K35: 0.001995806283
A36: Standard Supply Service – Administration Charge (if applicable) | B36: 1 | C36: =VLOOKUP($A36,'Data Pass Through'!$A:$D,2,FALSE) -> 0.25 | D36: =B36*C36 -> 0.25 | E36: 1 | F36: =VLOOKUP($A36,'Data Pass Through'!$A:$D,3,FALSE) -> 0.25 | G36: 0.25 | H36: 0 | I36: 0 | J36: 0.003301272795 | K36: 0.003234065146
A37: Sub-Total: Regulatory | D37: =SUM(D33:D36) -> 1.453384 | G37: =SUM(G33:G36) -> 1.453384 | H37: 0 | I37: 0 | J37: 0.01919206824 | K37: 0.01880135415
A38: Total Electricty Charge on Two-Tier RPP | D38: =SUM(D14,D22,D23,D24,D30,D37) -> 78.26648 | G38: =SUM(G14,G22,G23,G24,G30,G37) -> 80.47648 | H38: 2.21 | I38: 0.02823686462 | J38: 1.062699256
A39: HST | C39: 0.13 | D39: =D38*C39 -> 10.1746424 | F39: =C39 -> 0.13 | G39: =G38*F39 -> 10.4619424 | H39: 0.2873 | I39: 0.02823686462 | J39: 0.1381509033
A40: Total Electricity Charge on Two-Tier RPP (including HST) | D40: =SUM(D38:D39) -> 88.4411224 | G40: =SUM(G38:G39) -> 90.9384224 | H40: 2.4973 | I40: 0.02823686462 | J40: 1.200850159
A41: Ontario Electricity Rebate (OER) | C41: =IF(($B$4*12)<250000,VLOOKUP(A41,'Data Pass Through'!$A$4:$C$20,2,0),0) -> -0.189 | D41: =D38*C41 -> -14.79236472 | F41: =C41 -> -0.189 | G41: =G38*F41 -> -15.21005472 | H41: -0.41769 | I41: -0.02823686462 | J41: -0.2008501594
A42: Total Amount on Two-Tier RPP | D42: =SUM(D40:D41) -> 73.64875768 | G42: =SUM(G40:G41) -> 75.72836768 | H42: 2.07961 | I42: 0.02823686462 | J42: 1
A43: Total Electricty Charge on TOU (before HST) | D43: =SUM(D18,D22,D23,D25,D30,D37) -> 79.9388752 | G43: =SUM(G18,G22,G23,G25,G30,G37) -> 82.1488752 | H43: 2.21 | I43: 0.0276461233 | K43: =G43/$G$47 -> 1.062699256
A44: HST | C44: 0.13 | D44: =D43*C44 -> 10.39205378 | F44: =C44 -> 0.13 | G44: =G43*F44 -> 10.67935378 | H44: 0.2873 | I44: 0.0276461233 | K44: =G44/$G$47 -> 0.1381509033
A45: Total Electricity Charge on TOU (including HST) | D45: =SUM(D43:D44) -> 90.33092898 | G45: =SUM(G43:G44) -> 92.82822898 | H45: 2.4973 | I45: 0.0276461233 | K45: =G45/$G$47 -> 1.200850159
A46: Ontario Electricity Rebate (OER) | C46: =IF(($B$4*12)<250000,VLOOKUP(A46,'Data Pass Through'!$A$4:$C$20,2,0),0) -> -0.189 | D46: =D43*C46 -> -15.10844741 | F46: =C46 -> -0.189 | G46: =G43*F46 -> -15.52613741 | H46: -0.41769 | I46: -0.0276461233 | K46: =G46/$G$47 -> -0.2008501594
A47: Total Amount on TOU | D47: =SUM(D45:D46) -> 75.22248156 | G47: =SUM(G45:G46) -> 77.30209156 | H47: 2.07961 | I47: 0.0276461233 | K47: =G47/$G$47 -> 1

Sheet BI Template_DemandNPDI (hidden)
A1: 2026 Bill Impacts (Low Consumption Level) - AGSd_NPDI
A3: Rate Class | B3: =VLOOKUP(A1,'Data BI List Acq_Seas'!C:E,2,FALSE) -> AGSd-NPDI | C3: =VLOOKUP(A1,'Data BI List Acq_Seas'!C:E,3,FALSE) -> AGSd-NPDI
A4: Monthly Consumption (kWh) | B4: =IF(COUNTIF(A1,"*Low*")>0,VLOOKUP(B3,'Data Billing Quantities'!$A:$Z,MATCH("Low kWh",'Data Billing Quantities'!4:4,0),FALSE),IF(COUNTIF(A1,"*Typical*")>0,VLOOKUP(B3,'Data Billing Quantities'!$A:$Z,MATCH("Typical kWh",'Data Billing Quantities'!4:4,0),FALSE),IF(COUNTIF(A1,"*Average*")>0,VLOOKUP(B3,'Data Billing Quantities'!$A:$Z,MATCH("Average kWh",'Data Billing Quantities'!4:4,0),FALSE),IF(COUNTIF(A1,"*High*")>0,VLOOKUP(B3,'Data Billing Quantities'!$A:$Z,MATCH("High kWh",'Data Billing Quantities'!4:4,0),FALSE),"error")))) -> 13020 | C4: =B4 -> 13020
A5: Peak (kW) | B5: =IF(COUNTIF(A1,"*Low*")>0,VLOOKUP(B3,'Data Billing Quantities'!$A:$Z,MATCH("Low kW",'Data Billing Quantities'!4:4,0),FALSE),IF(COUNTIF(A1,"*Typical*")>0,VLOOKUP(B3,'Data Billing Quantities'!$A:$Z,MATCH("Typical kW",'Data Billing Quantities'!4:4,0),FALSE),IF(COUNTIF(A1,"*Average*")>0,VLOOKUP(B3,'Data Billing Quantities'!$A:$Z,MATCH("Average kW",'Data Billing Quantities'!4:4,0),FALSE),IF(COUNTIF(A1,"*High*")>0,VLOOKUP(B3,'Data Billing Quantities'!$A:$Z,MATCH("High kW",'Data Billing Quantities'!4:4,0),FALSE),"error")))) -> 55 | C5: =B5 -> 55
A6: Loss factor | B6: =VLOOKUP(B3,'Data Billing Quantities'!A:D,MATCH(A6,'Data Billing Quantities'!4:4,0),FALSE) -> 1.053 | C6: =VLOOKUP(C3,'Data Billing Quantities'!A:D,MATCH(A6,'Data Billing Quantities'!4:4,0),FALSE) -> 1.053
A7: Commodity Threshold | B7: =VLOOKUP(B3,'Data Billing Quantities'!A:D,MATCH(A7,'Data Billing Quantities'!4:4,0),FALSE) -> 0 | C7: =B7 -> 0
A8: Monthly Consumption (kWh) - Uplifted | B8: =B4*B6 -> 13710.06 | C8: =C4*C6 -> 13710.06
A9: Charge determinant | B9: =VLOOKUP(B3,'Data Billing Quantities'!A:D,MATCH(A9,'Data Billing Quantities'!4:4,0),FALSE) -> kW | C9: =VLOOKUP(C3,'Data Billing Quantities'!A:D,MATCH(A9,'Data Billing Quantities'!4:4,0),FALSE) -> kW
B11: Volume | C11: Current Rate ($) | D11: Current Charge ($) | E11: Volume | F11: Proposed Rate ($) | G11: Proposed Charge ($) | H11: Change ($) | I11: Change (%) | J11: % of Total Bill
A12: Weighted Average Hourly Spot Price | B12: =B8 -> 13710.06 | C12: =VLOOKUP($A12,'Data Pass Through'!$A:$D,2,FALSE) -> 0.119 | D12: =B12*C12 -> 1631.49714 | E12: =C8 -> 13710.06 | F12: =VLOOKUP($A12,'Data Pass Through'!$A:$D,3,FALSE) -> 0.119 | G12: =E12*F12 -> 1631.49714 | H12: =G12-D12 -> 0 | I12: =IF(ISERROR(H12/ABS(D12)),"N/A",(H12/ABS(D12))) -> 0 | J12: =G12/G$31 -> 0.595746947
A13: Sub-Total: Energy (WASHP) | D13: =SUM(D12:D12) -> 1631.49714 | G13: =SUM(G12:G12) -> 1631.49714 | H13: 0 | I13: 0 | J13: 0.595746947
A14: Service Charge | B14: 1 | C14: =VLOOKUP($B$3,'Data Current Rates'!$A:$AN,MATCH('BI Template_DemandNPDI'!$A14,CurrentHeader,0),FALSE) -> 202.16 | D14: =B14*C14 -> 202.16 | E14: 1 | F14: =VLOOKUP($C$3,'Data Proposed Rates'!$A:$AZ,MATCH('BI Template_DemandNPDI'!$A14,ProposedHeader,0),FALSE) -> 212.05 | G14: =E14*F14 -> 212.05 | H14: 9.89 | I14: 0.04892164622 | J14: 0.07743080697
A15: Distribution Volumetric Charge | B15: =IF($B$9="kWh",$B$4,$B$5) -> 55 | C15: =VLOOKUP($B$3,'Data Current Rates'!$A:$AN,MATCH('BI Template_DemandNPDI'!$A15,CurrentHeader,0),FALSE) -> 4.8875 | D15: =B15*C15 -> 268.8125 | E15: =IF($C$9="kWh",$C$4,$C$5) -> 55 | F15: =VLOOKUP($C$3,'Data Proposed Rates'!$A:$AZ,MATCH('BI Template_DemandNPDI'!$A15,ProposedHeader,0),FALSE) -> 5.2112 | G15: 286.616 | H15: 17.8035 | I15: 0.06623017903 | J15: 0.1046588454
A16: Group 1 Volumetric DVA Rider (General) | B16: =IF($B$9="kWh",$B$4,$B$5) -> 55 | C16: =VLOOKUP($B$3,'Data Current Rates'!$A:$AN,MATCH('BI Template_DemandNPDI'!$A16,CurrentHeader,0),FALSE) -> -0.0399 | D16: =B16*C16 -> -2.1945 | E16: =IF($C$9="kWh",$C$4,$C$5) -> 55 | F16: =VLOOKUP($C$3,'Data Proposed Rates'!$A:$AZ,MATCH('BI Template_DemandNPDI'!$A16,ProposedHeader,0),FALSE) -> -0.0399 | G16: -2.1945 | H16: 0 | I16: 0 | J16: -0.0008013294312
A17: Group 1 Volumetric Deferral/Variance Account Rider (Sub-Account RSVA Wholesale Market Service Charge & RSVA Power) | B17: 55 | C17: =VLOOKUP($B$3,'Data Current Rates'!$A:$AN,MATCH('BI Template_DemandNPDI'!$A17,CurrentHeader,0),FALSE) -> -0.0829 | D17: -4.5595 | E17: 55 | F17: =VLOOKUP($C$3,'Data Proposed Rates'!$A:$AZ,MATCH('BI Template_DemandNPDI'!$A17,ProposedHeader,0),FALSE) -> -0.0829 | G17: -4.5595 | H17: 0 | I17: 0 | J17: -0.00166491754
A18: Group 1 Volumetric Deferral/Variance Account Rider (Sub-Account Global Adjustment) | B18: =B4 -> 13020 | C18: =VLOOKUP($B$3,'Data Current Rates'!$A:$AN,MATCH('BI Template_DemandNPDI'!$A18,CurrentHeader,0),FALSE) -> -0.0007 | D18: -9.114 | E18: =C4 -> 13020 | F18: =VLOOKUP($C$3,'Data Proposed Rates'!$A:$AZ,MATCH('BI Template_DemandNPDI'!$A18,ProposedHeader,0),FALSE) -> -0.0007 | G18: -9.114 | H18: 0 | I18: 0 | J18: -0.003328009312
A19: Sub-Total: Distribution | D19: =SUM(INDIRECT("D14:D"&ROW()-1)) -> 455.1045 | G19: =SUM(INDIRECT("g14:g"&ROW()-1)) -> 482.798 | H19: =G19-D19 -> 27.6935 | I19: 0.06085085953 | J19: 0.1762953961
A20: Retail Transmission Rate – Network Service Rate | B20: =IF($B$9="kWh",$B$4,$B$5) -> 55 | C20: =VLOOKUP($B$3,'Data Current Rates'!$A:$AN,MATCH('BI Template_DemandNPDI'!$A20,CurrentHeader,0),FALSE) -> 2.6521 | D20: =B20*C20 -> 145.8655 | E20: =IF($C$9="kWh",$C$4,$C$5) -> 55 | F20: =VLOOKUP($C$3,'Data Proposed Rates'!$A:$AZ,MATCH('BI Template_DemandNPDI'!$A20,ProposedHeader,0),FALSE) -> 2.6521 | G20: =E20*F20 -> 145.8655 | H20: =G20-D20 -> 0 | I20: 0 | J20: 0.05326330287
A21: Retail Transmission Rate – Line and Transformation Connection Service Rate | B21: =IF($B$9="kWh",$B$4,$B$5) -> 55 | C21: =VLOOKUP($B$3,'Data Current Rates'!$A:$AN,MATCH('BI Template_DemandNPDI'!$A21,CurrentHeader,0),FALSE) -> 1.9934 | D21: =B21*C21 -> 109.637 | E21: =IF($C$9="kWh",$C$4,$C$5) -> 55 | F21: =VLOOKUP($C$3,'Data Proposed Rates'!$A:$AZ,MATCH('BI Template_DemandNPDI'!$A21,ProposedHeader,0),FALSE) -> 1.9934 | G21: =E21*F21 -> 109.637 | H21: =G21-D21 -> 0 | I21: 0 | J21: 0.04003433805
A22: Sub-Total: Retail Transmission | D22: =SUM(D20:D21) -> 255.5025 | G22: =SUM(G20:G21) -> 255.5025 | H22: =G22-D22 -> 0 | I22: 0 | J22: 0.09329764092
A23: Sub-Total: Delivery (based on two-tier RPP prices) | D23: =SUM(D19,D22) -> 710.607 | G23: =SUM(G19,G22) -> 738.3005 | H23: =G23-D23 -> 27.6935 | I23: 0.03897161159 | J23: 0.269593037
A24: Wholesale Market Service Rate (WMS) - not including CBR | B24: =B8 -> 13710.06 | C24: =VLOOKUP($A24,'Data Pass Through'!$A:$D,2,FALSE) -> 0.003 | D24: =B24*C24 -> 41.13018 | E24: =$C$8 -> 13710.06 | F24: =VLOOKUP($A24,'Data Pass Through'!$A:$D,3,FALSE) -> 0.003 | G24: =E24*F24 -> 41.13018 | H24: =G24-D24 -> 0 | I24: 0 | J24: 0.0150188306
A25: Capacity Based Recovery (CBR) - Applicable for Class B Customers | B25: =B8 -> 13710.06 | C25: =VLOOKUP($A25,'Data Pass Through'!$A:$D,2,FALSE) -> 0.0004 | D25: =B25*C25 -> 5.484024 | E25: =$C$8 -> 13710.06 | F25: =VLOOKUP($A25,'Data Pass Through'!$A:$D,3,FALSE) -> 0.0004 | G25: =E25*F25 -> 5.484024 | H25: 0 | I25: 0 | J25: 0.002002510746
A26: Rural Rate Protection Charge | B26: =B8 -> 13710.06 | C26: =VLOOKUP($A26,'Data Pass Through'!$A:$D,2,FALSE) -> 0.0005 | D26: 6.85503 | E26: 13710.06 | F26: =VLOOKUP($A26,'Data Pass Through'!$A:$D,3,FALSE) -> 0.0005 | G26: 6.85503 | H26: 0 | I26: 0 | J26: 0.002503138433
A27: Standard Supply Service – Administration Charge (if applicable) | B27: 1 | C27: =VLOOKUP($A27,'Data Pass Through'!$A:$D,2,FALSE) -> 0.25 | D27: =B27*C27 -> 0.25 | E27: =B27 -> 1 | F27: =VLOOKUP($A27,'Data Pass Through'!$A:$D,3,FALSE) -> 0.25 | G27: 0.25 | H27: 0 | I27: 0 | J27: 9.12883836e-05
A28: Sub-Total: Regulatory | D28: =SUM(D24:D27) -> 53.719234 | G28: =SUM(G24:G27) -> 53.719234 | H28: 0 | I28: 0 | J28: 0.01961576816
A29: Total Electricity Charge on WAHSP | D29: =SUM(D13,D23,D28) -> 2395.823374 | G29: =SUM(G13,G23,G28) -> 2423.516874 | H29: 27.6935 | I29: 0.01155907414 | J29: 0.8849557522
A30: HST | C30: 0.13 | D30: =D29*C30 -> 311.4570386 | F30: =C30 -> 0.13 | G30: =G29*F30 -> 315.0571936 | H30: 3.600155 | I30: 0.01155907414 | J30: 0.1150442478
A31: Total Amount on WAHSP | D31: =SUM(D29:D30) -> 2707.280413 | G31: =SUM(G29:G30) -> 2738.574068 | H31: 31.293655 | I31: 0.01155907414 | J31: 1

Sheet BI Template_unmNPDI (hidden)
A1: 2026 Bill Impacts (Average Consumption Level) - St Lgt_NPDI
A3: Rate Class | B3: =VLOOKUP(A1,'Data BI List Acq_Seas'!C:E,2,FALSE) -> St Lgt-NPDI | C3: =VLOOKUP(A1,'Data BI List Acq_Seas'!C:E,3,FALSE) -> St Lgt-NPDI
A4: Monthly Consumption (kWh) | B4: =IF(COUNTIF(A1,"*Low*")>0,VLOOKUP(B3,'Data Billing Quantities'!$A:$Z,MATCH("Low kWh",'Data Billing Quantities'!4:4,0),FALSE),IF(COUNTIF(A1,"*Typical*")>0,VLOOKUP(B3,'Data Billing Quantities'!$A:$Z,MATCH("Typical kWh",'Data Billing Quantities'!4:4,0),FALSE),IF(COUNTIF(A1,"*Average*")>0,VLOOKUP(B3,'Data Billing Quantities'!$A:$Z,MATCH("Average kWh",'Data Billing Quantities'!4:4,0),FALSE),IF(COUNTIF(A1,"*High*")>0,VLOOKUP(B3,'Data Billing Quantities'!$A:$Z,MATCH("High kWh",'Data Billing Quantities'!4:4,0),FALSE),"error")))) -> 11389 | C4: =B4 -> 11389
A5: Peak (kW) | B5: =IF(COUNTIF(A1,"*Low*")>0,VLOOKUP(B3,'Data Billing Quantities'!$A:$Z,MATCH("Low kW",'Data Billing Quantities'!4:4,0),FALSE),IF(COUNTIF(A1,"*Typical*")>0,VLOOKUP(B3,'Data Billing Quantities'!$A:$Z,MATCH("Typical kW",'Data Billing Quantities'!4:4,0),FALSE),IF(COUNTIF(A1,"*Average*")>0,VLOOKUP(B3,'Data Billing Quantities'!$A:$Z,MATCH("Average kW",'Data Billing Quantities'!4:4,0),FALSE),IF(COUNTIF(A1,"*High*")>0,VLOOKUP(B3,'Data Billing Quantities'!$A:$Z,MATCH("High kW",'Data Billing Quantities'!4:4,0),FALSE),"error")))) -> 0 | C5: =B5 -> 0
A6: Loss factor | B6: =VLOOKUP(B3,'Data Billing Quantities'!A:D,MATCH(A6,'Data Billing Quantities'!4:4,0),FALSE) -> 1.092 | C6: =VLOOKUP(C3,'Data Billing Quantities'!A:D,MATCH(A6,'Data Billing Quantities'!4:4,0),FALSE) -> 1.092
A7: Commodity Threshold | B7: =VLOOKUP(B3,'Data Billing Quantities'!A:D,MATCH(A7,'Data Billing Quantities'!4:4,0),FALSE) -> 750 | C7: =B7 -> 750
A8: Monthly Consumption (kWh) - Uplifted | B8: =B4*B6 -> 12436.788 | C8: =C4*C6 -> 12436.788
A9: Charge determinant | B9: =VLOOKUP(B3,'Data Billing Quantities'!A:D,MATCH(A9,'Data Billing Quantities'!4:4,0),FALSE) -> kWh | C9: =VLOOKUP(C3,'Data Billing Quantities'!A:D,MATCH(A9,'Data Billing Quantities'!4:4,0),FALSE) -> kWh
B11: Volume | C11: Current Rate ($) | D11: Current Charge ($) | E11: Volume | F11: Proposed Rate ($) | G11: Proposed Charge ($) | H11: Change ($) | I11: Change (%) | J11: % of Total Bill
A12: Energy First Tier | B12: =IF(B4>B7,B7,B4) -> 750 | C12: =VLOOKUP($A12,'Data Pass Through'!$A:$D,2,FALSE) -> 0.098 | D12: =B12*C12 -> 73.5 | E12: =B12 -> 750 | F12: =VLOOKUP($A12,'Data Pass Through'!$A:$D,3,FALSE) -> 0.098 | G12: =E12*F12 -> 73.5 | H12: =G12-D12 -> 0 | I12: =IF(ISERROR(H12/ABS(D12)),"N/A",(H12/ABS(D12))) -> 0 | J12: =G12/$G$34 -> 0.02582552332
A13: Energy Second Tier | B13: =IF(B4>B7,(B4)-B7,0) -> 10639 | C13: =VLOOKUP($A13,'Data Pass Through'!$A:$D,2,FALSE) -> 0.115 | D13: =B13*C13 -> 1223.485 | E13: =B13 -> 10639 | F13: =VLOOKUP($A13,'Data Pass Through'!$A:$D,3,FALSE) -> 0.115 | G13: =E13*F13 -> 1223.485 | H13: 0 | I13: 0 | J13: 0.4298930667
A14: Sub-Total: Energy (RPP Tiered) | D14: =SUM(D12:D13) -> 1296.985 | G14: =SUM(G12:G13) -> 1296.985 | H14: 0 | I14: 0 | J14: 0.45571859
A15: Service Charge | B15: =IF(VLOOKUP(B$3,'Data Billing Quantities'!A:P,MATCH("Acquired Street Light Service Charge",'Data Billing Quantities'!$4:$4,0),FALSE)>0,VLOOKUP(B$3,'Data Billing Quantities'!A:P,MATCH("Acquired Street Light Service Charge",'Data Billing Quantities'!$4:$4,0),FALSE),1) -> 1 | C15: =VLOOKUP($B$3,'Data Current Rates'!$A:$AN,MATCH('BI Template_unmNPDI'!$A15,CurrentHeader,0),FALSE) -> 3.18 | D15: =B15*C15 -> 3.18 | E15: 1 | F15: =VLOOKUP($C$3,'Data Proposed Rates'!$A:$AZ,MATCH('BI Template_unmNPDI'!$A15,ProposedHeader,0),FALSE) -> 3.3 | G15: =E15*F15 -> 3.3 | H15: 0.12 | I15: 0.03773584906 | J15: 0.001159513292
A16: Distribution Volumetric Charge | B16: =IF($B$9="kWh",$B$4,$B$5) -> 11389 | C16: =VLOOKUP($B$3,'Data Current Rates'!$A:$AN,MATCH('BI Template_unmNPDI'!$A16,CurrentHeader,0),FALSE) -> 0.1196 | D16: =B16*C16 -> 1362.1244 | E16: =IF($C$9="kWh",$C$4,$C$5) -> 11389 | F16: =VLOOKUP($C$3,'Data Proposed Rates'!$A:$AZ,MATCH('BI Template_unmNPDI'!$A16,ProposedHeader,0),FALSE) -> 0.1262 | G16: 1437.2918 | H16: 75.1674 | I16: 0.05518394649 | J16: 0.5050178626
A17: Group 1 Volumetric DVA Rider (General) | B17: =IF($B$9="kWh",$B$4,$B$5) -> 11389 | C17: =VLOOKUP($B$3,'Data Current Rates'!$A:$AN,MATCH('BI Template_unmNPDI'!$A17,CurrentHeader,0),FALSE) -> -0.0007 | D17: =B17*C17 -> -7.9723 | E17: =IF($C$9="kWh",$C$4,$C$5) -> 11389 | F17: =VLOOKUP($C$3,'Data Proposed Rates'!$A:$AZ,MATCH('BI Template_unmNPDI'!$A17,ProposedHeader,0),FALSE) -> -0.0007 | G17: -7.9723 | H17: 0 | I17: 0 | J17: -0.00280120843
A18: Sub-Total: Distribution (excluding pass through) | D18: =SUM(INDIRECT("D15:D"&ROW()-1)) -> 1357.3321 | G18: =SUM(INDIRECT("g15:g"&ROW()-1)) -> 1432.6195 | H18: =G18-D18 -> 75.2874 | I18: 0.05546719185 | J18: 0.5033761675
A19: Line Losses on Cost of Power (based on two-tier RPP prices) | B19: =B8-B4 -> 1047.788 | C19: =IF(B4>B7,C13,C12) -> 0.115 | D19: =B19*C19 -> 120.49562 | E19: =C8-C4 -> 1047.788 | F19: =IF(C4>C7,F13,F12) -> 0.115 | G19: =E19*F19 -> 120.49562 | H19: 0 | I19: 0 | J19: 0.04233826455
A20: Sub-Total: Distribution (based on two-tier RPP prices) | D20: =SUM(D18,D19) -> 1477.82772 | G20: =SUM(G18,G19) -> 1553.11512 | H20: 75.2874 | I20: 0.0509446392 | J20: 0.545714432
A21: Retail Transmission Rate – Network Service Rate | B21: =IF($B$9="kWh",$B$8,$B$5) -> 12436.788 | C21: =VLOOKUP($B$3,'Data Current Rates'!$A:$AN,MATCH('BI Template_unmNPDI'!$A21,CurrentHeader,0),FALSE) -> 0.0059 | D21: =B21*C21 -> 73.3770492 | E21: =IF($C$9="kWh",$C$8,$C$5) -> 12436.788 | F21: =VLOOKUP($C$3,'Data Proposed Rates'!$A:$AZ,MATCH('BI Template_unmNPDI'!$A21,ProposedHeader,0),FALSE) -> 0.0059 | G21: =E21*F21 -> 73.3770492 | H21: =G21-D21 -> 0 | I21: 0 | J21: 0.02578232239
A22: Retail Transmission Rate – Line and Transformation Connection Service Rate | B22: =IF($B$9="kWh",$B$8,$B$5) -> 12436.788 | C22: =VLOOKUP($B$3,'Data Current Rates'!$A:$AN,MATCH('BI Template_unmNPDI'!$A22,CurrentHeader,0),FALSE) -> 0.0042 | D22: =B22*C22 -> 52.2345096 | E22: =IF($C$9="kWh",$C$8,$C$5) -> 12436.788 | F22: =VLOOKUP($C$3,'Data Proposed Rates'!$A:$AZ,MATCH('BI Template_unmNPDI'!$A22,ProposedHeader,0),FALSE) -> 0.0042 | G22: =E22*F22 -> 52.2345096 | H22: =G22-D22 -> 0 | I22: 0 | J22: 0.01835351763
A23: Sub-Total: Retail Transmission | D23: =SUM(D21:D22) -> 125.6115588 | G23: =SUM(G21:G22) -> 125.6115588 | H23: =G23-D23 -> 0 | I23: 0 | J23: 0.04413584002
A24: Sub-Total: Delivery (based on two-tier RPP prices) | D24: =D20+D23 -> 1603.439279 | G24: =G20+G23 -> 1678.726679 | H24: =G24-D24 -> 75.2874 | I24: 0.04695369572 | J24: 0.5898502721
A25: Wholesale Market Service Rate (WMS) - not including CBR | B25: =B8 -> 12436.788 | C25: =VLOOKUP($A25,'Data Pass Through'!$A:$D,2,FALSE) -> 0.003 | D25: =B25*C25 -> 37.310364 | E25: =$C$8 -> 12436.788 | F25: =VLOOKUP($A25,'Data Pass Through'!$A:$D,3,FALSE) -> 0.003 | G25: =E25*F25 -> 37.310364 | H25: =G25-D25 -> 0 | I25: 0 | J25: 0.01310965545
A26: Capacity Based Recovery (CBR) - Applicable for Class B Customers | B26: =B8 -> 12436.788 | C26: =VLOOKUP($A26,'Data Pass Through'!$A:$D,2,FALSE) -> 0.0004 | D26: =B26*C26 -> 4.9747152 | E26: =$C$8 -> 12436.788 | F26: =VLOOKUP($A26,'Data Pass Through'!$A:$D,3,FALSE) -> 0.0004 | G26: =E26*F26 -> 4.9747152 | H26: 0 | I26: 0 | J26: 0.00174795406
A27: Rural Rate Protection Charge | B27: =B8 -> 12436.788 | C27: =VLOOKUP($A27,'Data Pass Through'!$A:$D,2,FALSE) -> 0.0005 | D27: 6.218394 | E27: 12436.788 | F27: =VLOOKUP($A27,'Data Pass Through'!$A:$D,3,FALSE) -> 0.0005 | G27: 6.218394 | H27: 0 | I27: 0 | J27: 0.002184942575
A28: Standard Supply Service – Administration Charge (if applicable) | B28: 1 | C28: =VLOOKUP($A28,'Data Pass Through'!$A:$D,2,FALSE) -> 0.25 | D28: =B28*C28 -> 0.25 | E28: 1 | F28: =VLOOKUP($A28,'Data Pass Through'!$A:$D,3,FALSE) -> 0.25 | G28: 0.25 | H28: 0 | I28: 0 | J28: 8.784191607e-05
A29: Sub-Total: Regulatory | D29: =SUM(D25:D28) -> 48.7534732 | G29: =SUM(G25:G28) -> 48.7534732 | H29: 0 | I29: 0 | J29: 0.017130394
A30: Total Electricty Charge on Two-Tier RPP | D30: =SUM(D24,D29,D14) -> 2949.177752 | G30: =SUM(G24,G29,G14) -> 3024.465152 | H30: 75.2874 | I30: 0.02552826799 | J30: 1.062699256
A31: HST | C31: 0.13 | D31: =D30*C31 -> 383.3931078 | F31: =C31 -> 0.13 | G31: =G30*F31 -> 393.1804698 | H31: 9.787362 | I31: 0.02552826799 | J31: 0.1381509033
A32: Total Electricity Charge on Two-Tier RPP (including HST) | D32: =SUM(D30:D31) -> 3332.57086 | G32: =SUM(G30:G31) -> 3417.645622 | H32: 85.074762 | I32: 0.02552826799 | J32: 1.200850159
A33: Ontario Electricity Rebate (OER) | C33: =IF(($B$4*12)<250000,VLOOKUP(A33,'Data Pass Through'!$A$4:$C$20,2,0),0) -> -0.189 | D33: =D30*C33 -> -557.3945951 | F33: =C33 -> -0.189 | G33: =G30*F33 -> -571.6239137 | H33: -14.2293186 | I33: -0.02552826799 | J33: -0.2008501594
A34: Total Amount on Two-Tier RPP | D34: =SUM(D32:D33) -> 2775.176265 | G34: =SUM(G32:G33) -> 2846.021708 | H34: 70.8454434 | I34: 0.02552826799 | J34: 1

Sheet BI Template_EnergyHCHI (hidden)
A1: 2026 Bill Impacts (Low Consumption Level) - AR_HCHI
A3: Rate Class | B3: =VLOOKUP(A1,'Data BI List Acq_Seas'!C:E,2,FALSE) -> AR-HCHI | C3: =VLOOKUP(A1,'Data BI List Acq_Seas'!C:E,3,FALSE) -> AR-HCHI
A4: Monthly Consumption (kWh) | B4: =IF(COUNTIF(A1,"*Low*")>0,VLOOKUP(B3,'Data Billing Quantities'!$A:$Z,MATCH("Low kWh",'Data Billing Quantities'!4:4,0),FALSE),IF(COUNTIF(A1,"*Typical*")>0,VLOOKUP(B3,'Data Billing Quantities'!$A:$Z,MATCH("Typical kWh",'Data Billing Quantities'!4:4,0),FALSE),IF(COUNTIF(A1,"*Average*")>0,VLOOKUP(B3,'Data Billing Quantities'!$A:$Z,MATCH("Average kWh",'Data Billing Quantities'!4:4,0),FALSE),IF(COUNTIF(A1,"*High*")>0,VLOOKUP(B3,'Data Billing Quantities'!$A:$Z,MATCH("High kWh",'Data Billing Quantities'!4:4,0),FALSE),"error")))) -> 250 | C4: =B4 -> 250
A5: Peak (kW) | B5: =IF(COUNTIF(A1,"*Low*")>0,VLOOKUP(B3,'Data Billing Quantities'!$A:$Z,MATCH("Low kW",'Data Billing Quantities'!4:4,0),FALSE),IF(COUNTIF(A1,"*Typical*")>0,VLOOKUP(B3,'Data Billing Quantities'!$A:$Z,MATCH("Typical kW",'Data Billing Quantities'!4:4,0),FALSE),IF(COUNTIF(A1,"*Average*")>0,VLOOKUP(B3,'Data Billing Quantities'!$A:$Z,MATCH("Average kW",'Data Billing Quantities'!4:4,0),FALSE),IF(COUNTIF(A1,"*High*")>0,VLOOKUP(B3,'Data Billing Quantities'!$A:$Z,MATCH("High kW",'Data Billing Quantities'!4:4,0),FALSE),"error")))) -> 0 | C5: =B5 -> 0
A6: Loss factor | B6: =VLOOKUP(B3,'Data Billing Quantities'!A:D,MATCH(A6,'Data Billing Quantities'!4:4,0),FALSE) -> 1.064 | C6: =VLOOKUP(C3,'Data Billing Quantities'!A:D,MATCH(A6,'Data Billing Quantities'!4:4,0),FALSE) -> 1.064
A7: Commodity Threshold | B7: =VLOOKUP(B3,'Data Billing Quantities'!A:D,MATCH(A7,'Data Billing Quantities'!4:4,0),FALSE) -> 750 | C7: =B7 -> 750
A8: Monthly Consumption (kWh) - Uplifted | B8: =B4*B6 -> 266 | C8: =C4*C6 -> 266
A9: Charge determinant | B9: =VLOOKUP(B3,'Data Billing Quantities'!A:D,MATCH(A9,'Data Billing Quantities'!4:4,0),FALSE) -> kWh | C9: =VLOOKUP(C3,'Data Billing Quantities'!A:D,MATCH(A9,'Data Billing Quantities'!4:4,0),FALSE) -> kWh
B11: Volume | C11: Current Rate ($) | D11: Current Charge ($) | E11: Volume | F11: Proposed Rate ($) | G11: Proposed Charge ($) | H11: Change ($) | I11: Change (%) | J11: % of Total Bill on RPP | K11: % of Total Bill
A12: Energy First Tier | B12: =IF(B4>B7,B7,B4) -> 250 | C12: =VLOOKUP($A12,'Data Pass Through'!$A:$D,2,FALSE) -> 0.098 | D12: =B12*C12 -> 24.5 | E12: =B12 -> 250 | F12: =VLOOKUP($A12,'Data Pass Through'!$A:$D,3,FALSE) -> 0.098 | G12: =E12*F12 -> 24.5 | H12: =G12-D12 -> 0 | I12: =IF(ISERROR(H12/ABS(D12)),"N/A",(H12/ABS(D12))) -> 0 | J12: =G12/$G$42 -> 0.3453388481
A13: Energy Second Tier | B13: =IF(B4>B7,(B4)-B7,0) -> 0 | C13: =VLOOKUP($A13,'Data Pass Through'!$A:$D,2,FALSE) -> 0.115 | D13: =B13*C13 -> 0 | E13: =B13 -> 0 | F13: =VLOOKUP($A13,'Data Pass Through'!$A:$D,3,FALSE) -> 0.115 | G13: =E13*F13 -> 0 | H13: 0 | I13: N/A | J13: =G13/$G$42 -> 0
A14: Sub-Total: Energy (RPP Tiered) | D14: =SUM(D12:D13) -> 24.5 | G14: =SUM(G12:G13) -> 24.5 | H14: 0 | I14: 0 | J14: =G14/$G$42 -> 0.3453388481
A15: TOU-Off Peak | B15: =B$4*VLOOKUP($B$3,'Data Billing Quantities'!$A:$O,MATCH('BI Template_EnergyHCHI'!$A15,'Data Billing Quantities'!$4:$4,0),FALSE) -> 160 | C15: =VLOOKUP($A15,'Data Pass Through'!$A:$D,2,FALSE) -> 0.082 | D15: =B15*C15 -> 13.12 | E15: 160 | F15: =VLOOKUP($A15,'Data Pass Through'!$A:$D,3,FALSE) -> 0.082 | G15: =E15*F15 -> 13.12 | H15: 0 | I15: 0 | K15: =G15/$G$47 -> 0.1814624201
A16: TOU-Mid Peak | B16: =B$4*VLOOKUP($B$3,'Data Billing Quantities'!$A:$O,MATCH('BI Template_EnergyHCHI'!$A16,'Data Billing Quantities'!$4:$4,0),FALSE) -> 45 | C16: =VLOOKUP($A16,'Data Pass Through'!$A:$D,2,FALSE) -> 0.113 | D16: =B16*C16 -> 5.085 | E16: 45 | F16: =VLOOKUP($A16,'Data Pass Through'!$A:$D,3,FALSE) -> 0.113 | G16: =E16*F16 -> 5.085 | H16: 0 | I16: 0 | K16: 0.07033051877
A17: TOU-On Peak | B17: =B$4*VLOOKUP($B$3,'Data Billing Quantities'!$A:$O,MATCH('BI Template_EnergyHCHI'!$A17,'Data Billing Quantities'!$4:$4,0),FALSE) -> 45 | C17: =VLOOKUP($A17,'Data Pass Through'!$A:$D,2,FALSE) -> 0.17 | D17: =B17*C17 -> 7.65 | E17: 45 | F17: =VLOOKUP($A17,'Data Pass Through'!$A:$D,3,FALSE) -> 0.17 | G17: =E17*F17 -> 7.65 | H17: 0 | I17: 0 | K17: 0.1058069751
A18: Sub-Total: Energy (RPP TOU) | D18: =SUM(D15:D17) -> 25.855 | G18: =SUM(G15:G17) -> 25.855 | H18: 0 | I18: 0 | J18: =G18/$G$42 -> 0.3644382007 | K18: 0.357599914
A19: Service Charge | B19: 1 | C19: =VLOOKUP($B$3,'Data Current Rates'!$A:$AN,MATCH('BI Template_EnergyHCHI'!$A19,CurrentHeader,0),FALSE) -> 40.41 | D19: =B19*C19 -> 40.41 | E19: 1 | F19: =VLOOKUP($C$3,'Data Proposed Rates'!$A:$AZ,MATCH('BI Template_EnergyHCHI'!$A19,ProposedHeader,0),FALSE) -> 42.62 | G19: =E19*F19 -> 42.62 | H19: 2.21 | I19: 0.05468943331 | J19: 0.6007486411 | K19: 0.5894762458
A20: Distribution Volumetric Charge | B20: =IF($B$9="kWh",$B$4,$B$5) -> 250 | C20: =VLOOKUP($B$3,'Data Current Rates'!$A:$AN,MATCH('BI Template_EnergyHCHI'!$A20,CurrentHeader,0),FALSE) -> 0 | D20: =B20*C20 -> 0 | E20: =IF($C$9="kWh",$C$4,$C$5) -> 250 | F20: =VLOOKUP($C$3,'Data Proposed Rates'!$A:$AZ,MATCH('BI Template_EnergyHCHI'!$A20,ProposedHeader,0),FALSE) -> 0 | G20: 0 | H20: 0 | I20: N/A | J20: 0 | K20: 0
A21: Group 1 Volumetric DVA Rider (General) | B21: =IF($B$9="kWh",$B$4,$B$5) -> 250 | C21: =VLOOKUP($B$3,'Data Current Rates'!$A:$AN,MATCH('BI Template_EnergyHCHI'!$A21,CurrentHeader,0),FALSE) -> -0.0004 | D21: =B21*C21 -> -0.1 | E21: =IF($C$9="kWh",$C$4,$C$5) -> 250 | F21: =VLOOKUP($C$3,'Data Proposed Rates'!$A:$AZ,MATCH('BI Template_EnergyHCHI'!$A21,ProposedHeader,0),FALSE) -> -0.0004 | G21: -0.1 | H21: 0 | I21: 0 | J21: -0.001409546319 | K21: -0.001383097714
A22: Sub-Total: Distribution (excluding pass through) | D22: =SUM(INDIRECT("D19:D"&ROW()-1)) -> 40.31 | G22: =SUM(INDIRECT("g19:g"&ROW()-1)) -> 42.52 | H22: =G22-D22 -> 2.21 | I22: 0.05482510543 | J22: 0.5993390947 | K22: 0.5880931481
A23: Smart Metering Entity Charge | B23: =B19 -> 1 | C23: =VLOOKUP($A23,'Data Pass Through'!$A:$D,2,FALSE) -> 0.57 | D23: =B23*C23 -> 0.57 | E23: =E19 -> 1 | F23: =VLOOKUP($A23,'Data Pass Through'!$A:$D,3,FALSE) -> 0.57 | G23: =E23*F23 -> 0.57 | H23: 0 | I23: 0 | J23: 0.008034414017 | K23: 0.007883656972
A24: Line Losses on Cost of Power (based on two-tier RPP prices) | B24: =B8-B4 -> 16 | C24: =IF(B4>B7,C13,C12) -> 0.098 | D24: =B24*C24 -> 1.568 | E24: =C8-C4 -> 16 | F24: =IF(C4>C7,F13,F12) -> 0.098 | G24: =E24*F24 -> 1.568 | H24: 0 | I24: 0 | J24: 0.02210168628 | K24: 0.02168697216
A25: Line Losses on Cost of Power (based on TOU prices) | B25: =B8-B4 -> 16 | C25: =VLOOKUP($B$3,'Data Billing Quantities'!$A:$O,MATCH('BI Template_EnergyHCHI'!$A15,'Data Billing Quantities'!$4:$4,0),FALSE)*C15+VLOOKUP($B$3,'Data Billing Quantities'!$A:$O,MATCH('BI Template_EnergyHCHI'!$A16,'Data Billing Quantities'!$4:$4,0),FALSE)*C16+VLOOKUP($B$3,'Data Billing Quantities'!$A:$O,MATCH('BI Template_EnergyHCHI'!$A17,'Data Billing Quantities'!$4:$4,0),FALSE)*C17 -> 0.10342 | D25: =B25*C25 -> 1.65472 | E25: =C8-C4 -> 16 | F25: =VLOOKUP($C$3,'Data Billing Quantities'!$A:$O,MATCH('BI Template_EnergyHCHI'!$A15,'Data Billing Quantities'!$4:$4,0),FALSE)*F15+VLOOKUP($C$3,'Data Billing Quantities'!$A:$O,MATCH('BI Template_EnergyHCHI'!$A16,'Data Billing Quantities'!$4:$4,0),FALSE)*F16+VLOOKUP($C$3,'Data Billing Quantities'!$A:$O,MATCH('BI Template_EnergyHCHI'!$A17,'Data Billing Quantities'!$4:$4,0),FALSE)*F17 -> 0.10342 | G25: =E25*F25 -> 1.65472 | H25: 0 | I25: 0 | J25: 0.02332404485 | K25: 0.0228863945
A26: Sub-Total: Distribution (based on two-tier RPP prices) | D26: =SUM(D22,D23:D24) -> 42.448 | G26: =SUM(G22,G23:G24) -> 44.658 | H26: 2.21 | I26: 0.05206370147 | J26: 0.629475195 | K26: 0.6176637773
A27: Sub-Total: Distribution (based on TOU prices) | D27: =SUM(D22,D23,D25) -> 42.53472 | G27: =SUM(G22,G23,G25) -> 44.74472 | H27: 2.21 | I27: 0.05195755373 | J27: 0.6306975536 | K27: 0.6188631996
A28: Retail Transmission Rate – Network Service Rate | B28: =IF($B$9="kWh",$B$8,$B$5) -> 266 | C28: =VLOOKUP($B$3,'Data Current Rates'!$A:$AN,MATCH('BI Template_EnergyHCHI'!$A28,CurrentHeader,0),FALSE) -> 0.0107 | D28: =B28*C28 -> 2.8462 | E28: =IF($C$9="kWh",$C$8,$C$5) -> 266 | F28: =VLOOKUP($C$3,'Data Proposed Rates'!$A:$AZ,MATCH('BI Template_EnergyHCHI'!$A28,ProposedHeader,0),FALSE) -> 0.0107 | G28: =E28*F28 -> 2.8462 | H28: =G28-D28 -> 0 | I28: 0 | J28: 0.04011850732 | K28: 0.03936572714
A29: Retail Transmission Rate – Line and Transformation Connection Service Rate | B29: =IF($B$9="kWh",$B$8,$B$5) -> 266 | C29: =VLOOKUP($B$3,'Data Current Rates'!$A:$AN,MATCH('BI Template_EnergyHCHI'!$A29,CurrentHeader,0),FALSE) -> 0.0079 | D29: =B29*C29 -> 2.1014 | E29: =IF($C$9="kWh",$C$8,$C$5) -> 266 | F29: =VLOOKUP($C$3,'Data Proposed Rates'!$A:$AZ,MATCH('BI Template_EnergyHCHI'!$A29,ProposedHeader,0),FALSE) -> 0.0079 | G29: =E29*F29 -> 2.1014 | H29: =G29-D29 -> 0 | I29: 0 | J29: 0.02962020634 | K29: 0.02906441537
A30: Sub-Total: Retail Transmission | D30: =SUM(D28:D29) -> 4.9476 | G30: =SUM(G28:G29) -> 4.9476 | H30: =G30-D30 -> 0 | I30: 0 | J30: 0.06973871367 | K30: 0.06843014251
A31: Sub-Total: Delivery (based on two-tier RPP prices) | D31: =D26+D30 -> 47.3956 | G31: =G26+G30 -> 49.6056 | H31: =G31-D31 -> 2.21 | I31: 0.04662880099 | J31: 0.6992139087 | K31: 0.6860939198
A32: Sub-Total: Delivery (based on TOU prices) | D32: =D27+D30 -> 47.48232 | G32: =G27+G30 -> 49.69232 | H32: =G32-D32 -> 2.21 | I32: 0.04654363982 | J32: 0.7004362673 | K32: 0.6872933421
A33: Wholesale Market Service Rate (WMS) - not including CBR | B33: =B8 -> 266 | C33: =VLOOKUP($A33,'Data Pass Through'!$A:$D,2,FALSE) -> 0.003 | D33: =B33*C33 -> 0.798 | E33: =$C$8 -> 266 | F33: =VLOOKUP($A33,'Data Pass Through'!$A:$D,3,FALSE) -> 0.003 | G33: =E33*F33 -> 0.798 | H33: 0 | I33: 0 | J33: 0.01124817962 | K33: 0.01103711976
A34: Capacity Based Recovery (CBR) - Applicable for Class B Customers | B34: =B8 -> 266 | C34: =VLOOKUP($A34,'Data Pass Through'!$A:$D,2,FALSE) -> 0.0004 | D34: =B34*C34 -> 0.1064 | E34: =$C$8 -> 266 | F34: =VLOOKUP($A34,'Data Pass Through'!$A:$D,3,FALSE) -> 0.0004 | G34: =E34*F34 -> 0.1064 | H34: 0 | I34: 0 | J34: 0.001499757283 | K34: 0.001471615968
A35: Rural Rate Protection Charge | B35: =B8 -> 266 | C35: =VLOOKUP($A35,'Data Pass Through'!$A:$D,2,FALSE) -> 0.0005 | D35: 0.133 | E35: 266 | F35: =VLOOKUP($A35,'Data Pass Through'!$A:$D,3,FALSE) -> 0.0005 | G35: 0.133 | H35: 0 | I35: 0 | J35: 0.001874696604 | K35: 0.00183951996
A36: Standard Supply Service – Administration Charge (if applicable) | B36: 1 | C36: =VLOOKUP($A36,'Data Pass Through'!$A:$D,2,FALSE) -> 0.25 | D36: =B36*C36 -> 0.25 | E36: 1 | F36: =VLOOKUP($A36,'Data Pass Through'!$A:$D,3,FALSE) -> 0.25 | G36: 0.25 | H36: 0 | I36: 0 | J36: 0.003523865797 | K36: 0.003457744286
A37: Sub-Total: Regulatory | D37: =SUM(D33:D36) -> 1.2874 | G37: =SUM(G33:G36) -> 1.2874 | H37: 0 | I37: 0 | J37: 0.01814649931 | K37: 0.01780599997
A38: Total Electricty Charge on Two-Tier RPP | D38: =SUM(D14,D22,D23,D24,D30,D37) -> 73.183 | G38: =SUM(G14,G22,G23,G24,G30,G37) -> 75.393 | H38: 2.21 | I38: 0.03019827009 | J38: 1.062699256
A39: HST | C39: 0.13 | D39: =D38*C39 -> 9.51379 | F39: =C39 -> 0.13 | G39: =G38*F39 -> 9.80109 | H39: 0.2873 | I39: 0.03019827009 | J39: 0.1381509033
A40: Total Electricity Charge on Two-Tier RPP (including HST) | D40: =SUM(D38:D39) -> 82.69679 | G40: =SUM(G38:G39) -> 85.19409 | H40: 2.4973 | I40: 0.03019827009 | J40: 1.200850159
A41: Ontario Electricity Rebate (OER) | C41: =IF(($B$4*12)<250000,VLOOKUP(A41,'Data Pass Through'!$A$4:$C$20,2,0),0) -> -0.189 | D41: =D38*C41 -> -13.831587 | F41: =C41 -> -0.189 | G41: =G38*F41 -> -14.249277 | H41: -0.41769 | I41: -0.03019827009 | J41: -0.2008501594
A42: Total Amount on Two-Tier RPP | D42: =SUM(D40:D41) -> 68.865203 | G42: =SUM(G40:G41) -> 70.944813 | H42: 2.07961 | I42: 0.03019827009 | J42: 1
A43: Total Electricty Charge on TOU (before HST) | D43: =SUM(D18,D22,D23,D25,D30,D37) -> 74.62472 | G43: =SUM(G18,G22,G23,G25,G30,G37) -> 76.83472 | H43: 2.21 | I43: 0.02961485149 | K43: =G43/$G$47 -> 1.062699256
A44: HST | C44: 0.13 | D44: =D43*C44 -> 9.7012136 | F44: =C44 -> 0.13 | G44: =G43*F44 -> 9.9885136 | H44: 0.2873 | I44: 0.02961485149 | K44: =G44/$G$47 -> 0.1381509033
A45: Total Electricity Charge on TOU (including HST) | D45: =SUM(D43:D44) -> 84.3259336 | G45: =SUM(G43:G44) -> 86.8232336 | H45: 2.4973 | I45: 0.02961485149 | K45: =G45/$G$47 -> 1.200850159
A46: Ontario Electricity Rebate (OER) | C46: =IF(($B$4*12)<250000,VLOOKUP(A46,'Data Pass Through'!$A$4:$C$20,2,0),0) -> -0.189 | D46: =D43*C46 -> -14.10407208 | F46: =C46 -> -0.189 | G46: =G43*F46 -> -14.52176208 | H46: -0.41769 | I46: -0.02961485149 | K46: =G46/$G$47 -> -0.2008501594
A47: Total Amount on TOU | D47: =SUM(D45:D46) -> 70.22186152 | G47: =SUM(G45:G46) -> 72.30147152 | H47: 2.07961 | I47: 0.02961485149 | K47: =G47/$G$47 -> 1

Sheet BI Template_DemandHCHI (hidden)
A1: 2026 Bill Impacts (Low Consumption Level) - AGSd_HCHI
A3: Rate Class | B3: =VLOOKUP(A1,'Data BI List Acq_Seas'!C:E,2,FALSE) -> AGSd-HCHI | C3: =VLOOKUP(A1,'Data BI List Acq_Seas'!C:E,3,FALSE) -> AGSd-HCHI
A4: Monthly Consumption (kWh) | B4: =IF(COUNTIF(A1,"*Low*")>0,VLOOKUP(B3,'Data Billing Quantities'!$A:$Z,MATCH("Low kWh",'Data Billing Quantities'!4:4,0),FALSE),IF(COUNTIF(A1,"*Typical*")>0,VLOOKUP(B3,'Data Billing Quantities'!$A:$Z,MATCH("Typical kWh",'Data Billing Quantities'!4:4,0),FALSE),IF(COUNTIF(A1,"*Average*")>0,VLOOKUP(B3,'Data Billing Quantities'!$A:$Z,MATCH("Average kWh",'Data Billing Quantities'!4:4,0),FALSE),IF(COUNTIF(A1,"*High*")>0,VLOOKUP(B3,'Data Billing Quantities'!$A:$Z,MATCH("High kWh",'Data Billing Quantities'!4:4,0),FALSE),"error")))) -> 10880 | C4: =B4 -> 10880
A5: Peak (kW) | B5: =IF(COUNTIF(A1,"*Low*")>0,VLOOKUP(B3,'Data Billing Quantities'!$A:$Z,MATCH("Low kW",'Data Billing Quantities'!4:4,0),FALSE),IF(COUNTIF(A1,"*Typical*")>0,VLOOKUP(B3,'Data Billing Quantities'!$A:$Z,MATCH("Typical kW",'Data Billing Quantities'!4:4,0),FALSE),IF(COUNTIF(A1,"*Average*")>0,VLOOKUP(B3,'Data Billing Quantities'!$A:$Z,MATCH("Average kW",'Data Billing Quantities'!4:4,0),FALSE),IF(COUNTIF(A1,"*High*")>0,VLOOKUP(B3,'Data Billing Quantities'!$A:$Z,MATCH("High kW",'Data Billing Quantities'!4:4,0),FALSE),"error")))) -> 55 | C5: =B5 -> 55
A6: Loss factor | B6: =VLOOKUP(B3,'Data Billing Quantities'!A:D,MATCH(A6,'Data Billing Quantities'!4:4,0),FALSE) -> 1.053 | C6: =VLOOKUP(C3,'Data Billing Quantities'!A:D,MATCH(A6,'Data Billing Quantities'!4:4,0),FALSE) -> 1.053
A7: Commodity Threshold | B7: =VLOOKUP(B3,'Data Billing Quantities'!A:D,MATCH(A7,'Data Billing Quantities'!4:4,0),FALSE) -> 0 | C7: =B7 -> 0
A8: Monthly Consumption (kWh) - Uplifted | B8: =B4*B6 -> 11456.64 | C8: =C4*C6 -> 11456.64
A9: Charge determinant | B9: =VLOOKUP(B3,'Data Billing Quantities'!A:D,MATCH(A9,'Data Billing Quantities'!4:4,0),FALSE) -> kW | C9: =VLOOKUP(C3,'Data Billing Quantities'!A:D,MATCH(A9,'Data Billing Quantities'!4:4,0),FALSE) -> kW
B11: Volume | C11: Current Rate ($) | D11: Current Charge ($) | E11: Volume | F11: Proposed Rate ($) | G11: Proposed Charge ($) | H11: Change ($) | I11: Change (%) | J11: % of Total Bill
A12: Weighted Average Hourly Spot Price | B12: =B8 -> 11456.64 | C12: =VLOOKUP($A12,'Data Pass Through'!$A:$D,2,FALSE) -> 0.119 | D12: =B12*C12 -> 1363.34016 | E12: =C8 -> 11456.64 | F12: =VLOOKUP($A12,'Data Pass Through'!$A:$D,3,FALSE) -> 0.119 | G12: =E12*F12 -> 1363.34016 | H12: =G12-D12 -> 0 | I12: =IF(ISERROR(H12/ABS(D12)),"N/A",(H12/ABS(D12))) -> 0 | J12: =G12/G$31 -> 0.5619471178
A13: Sub-Total: Energy (WAHSP) | D13: =SUM(D12:D12) -> 1363.34016 | G13: =SUM(G12:G12) -> 1363.34016 | H13: 0 | I13: 0 | J13: 0.5619471178
A14: Service Charge | B14: 1 | C14: =VLOOKUP($B$3,'Data Current Rates'!$A:$AN,MATCH('BI Template_DemandHCHI'!$A14,CurrentHeader,0),FALSE) -> 202.16 | D14: =B14*C14 -> 202.16 | E14: 1 | F14: =VLOOKUP($C$3,'Data Proposed Rates'!$A:$AZ,MATCH('BI Template_DemandHCHI'!$A14,ProposedHeader,0),FALSE) -> 212.05 | G14: =E14*F14 -> 212.05 | H14: 9.89 | I14: 0.04892164622 | J14: 0.08740363544
A15: Distribution Volumetric Charge | B15: =IF($B$9="kWh",$B$4,$B$5) -> 55 | C15: =VLOOKUP($B$3,'Data Current Rates'!$A:$AN,MATCH('BI Template_DemandHCHI'!$A15,CurrentHeader,0),FALSE) -> 4.8875 | D15: =B15*C15 -> 268.8125 | E15: =IF($C$9="kWh",$C$4,$C$5) -> 55 | F15: =VLOOKUP($C$3,'Data Proposed Rates'!$A:$AZ,MATCH('BI Template_DemandHCHI'!$A15,ProposedHeader,0),FALSE) -> 5.2112 | G15: 286.616 | H15: 17.8035 | I15: 0.06623017903 | J15: 0.118138554
A16: Group 1 Volumetric DVA Rider (General) | B16: =IF($B$9="kWh",$B$4,$B$5) -> 55 | C16: =VLOOKUP($B$3,'Data Current Rates'!$A:$AN,MATCH('BI Template_DemandHCHI'!$A16,CurrentHeader,0),FALSE) -> -0.0595 | D16: =B16*C16 -> -3.2725 | E16: =IF($C$9="kWh",$C$4,$C$5) -> 55 | F16: =VLOOKUP($C$3,'Data Proposed Rates'!$A:$AZ,MATCH('BI Template_DemandHCHI'!$A16,ProposedHeader,0),FALSE) -> -0.0595 | G16: -3.2725 | H16: 0 | I16: 0 | J16: -0.001348872422
A17: Group 1 Volumetric Deferral/Variance Account Rider (Sub-Account RSVA Wholesale Market Service Charge & RSVA Power) | B17: 55 | C17: =VLOOKUP($B$3,'Data Current Rates'!$A:$AN,MATCH('BI Template_DemandHCHI'!$A17,CurrentHeader,0),FALSE) -> -0.0829 | D17: -4.5595 | E17: 55 | F17: =VLOOKUP($C$3,'Data Proposed Rates'!$A:$AZ,MATCH('BI Template_DemandHCHI'!$A17,ProposedHeader,0),FALSE) -> -0.0829 | G17: -4.5595 | H17: 0 | I17: 0 | J17: -0.00187935334
A18: Group 1 Volumetric Deferral/Variance Account Rider (Sub-Account Global Adjustment) | B18: =B4 -> 10880 | C18: =VLOOKUP($B$3,'Data Current Rates'!$A:$AN,MATCH('BI Template_DemandHCHI'!$A18,CurrentHeader,0),FALSE) -> -0.0007 | D18: -7.616 | E18: =C4 -> 10880 | F18: =VLOOKUP($C$3,'Data Proposed Rates'!$A:$AZ,MATCH('BI Template_DemandHCHI'!$A18,ProposedHeader,0),FALSE) -> -0.0007 | G18: -7.616 | H18: 0 | I18: 0 | J18: -0.003139193999
A19: Sub-Total: Distribution | D19: =SUM(INDIRECT("D14:D"&ROW()-1)) -> 455.5245 | G19: =SUM(INDIRECT("g14:g"&ROW()-1)) -> 483.218 | H19: =G19-D19 -> 27.6935 | I19: 0.06079475418 | J19: 0.1991747697
A20: Retail Transmission Rate – Network Service Rate | B20: =IF($B$9="kWh",$B$4,$B$5) -> 55 | C20: =VLOOKUP($B$3,'Data Current Rates'!$A:$AN,MATCH('BI Template_DemandHCHI'!$A20,CurrentHeader,0),FALSE) -> 2.6521 | D20: =B20*C20 -> 145.8655 | E20: =IF($C$9="kWh",$C$4,$C$5) -> 55 | F20: =VLOOKUP($C$3,'Data Proposed Rates'!$A:$AZ,MATCH('BI Template_DemandHCHI'!$A20,ProposedHeader,0),FALSE) -> 2.6521 | G20: =E20*F20 -> 145.8655 | H20: =G20-D20 -> 0 | I20: 0 | J20: 0.0601234378
A21: Retail Transmission Rate – Line and Transformation Connection Service Rate | B21: =IF($B$9="kWh",$B$4,$B$5) -> 55 | C21: =VLOOKUP($B$3,'Data Current Rates'!$A:$AN,MATCH('BI Template_DemandHCHI'!$A21,CurrentHeader,0),FALSE) -> 1.9934 | D21: =B21*C21 -> 109.637 | E21: =IF($C$9="kWh",$C$4,$C$5) -> 55 | F21: =VLOOKUP($C$3,'Data Proposed Rates'!$A:$AZ,MATCH('BI Template_DemandHCHI'!$A21,ProposedHeader,0),FALSE) -> 1.9934 | G21: =E21*F21 -> 109.637 | H21: =G21-D21 -> 0 | I21: 0 | J21: 0.04519062664
A22: Sub-Total: Retail Transmission | D22: =SUM(D20:D21) -> 255.5025 | G22: =SUM(G20:G21) -> 255.5025 | H22: =G22-D22 -> 0 | I22: 0 | J22: 0.1053140644
A23: Sub-Total: Delivery (based on two-tier RPP prices) | D23: =SUM(D19,D22) -> 711.027 | G23: =SUM(G19,G22) -> 738.7205 | H23: =G23-D23 -> 27.6935 | I23: 0.03894859126 | J23: 0.3044888341
A24: Wholesale Market Service Rate (WMS) - not including CBR | B24: =B8 -> 11456.64 | C24: =VLOOKUP($A24,'Data Pass Through'!$A:$D,2,FALSE) -> 0.003 | D24: =B24*C24 -> 34.36992 | E24: =$C$8 -> 11456.64 | F24: =VLOOKUP($A24,'Data Pass Through'!$A:$D,3,FALSE) -> 0.003 | G24: =E24*F24 -> 34.36992 | H24: =G24-D24 -> 0 | I24: 0 | J24: 0.01416673406
A25: Capacity Based Recovery (CBR) - Applicable for Class B Customers | B25: =B8 -> 11456.64 | C25: =VLOOKUP($A25,'Data Pass Through'!$A:$D,2,FALSE) -> 0.0004 | D25: =B25*C25 -> 4.582656 | E25: =$C$8 -> 11456.64 | F25: =VLOOKUP($A25,'Data Pass Through'!$A:$D,3,FALSE) -> 0.0004 | G25: =E25*F25 -> 4.582656 | H25: 0 | I25: 0 | J25: 0.001888897875
A26: Rural Rate Protection Charge | B26: =B8 -> 11456.64 | C26: =VLOOKUP($A26,'Data Pass Through'!$A:$D,2,FALSE) -> 0.0005 | D26: 5.72832 | E26: 11456.64 | F26: =VLOOKUP($A26,'Data Pass Through'!$A:$D,3,FALSE) -> 0.0005 | G26: 5.72832 | H26: 0 | I26: 0 | J26: 0.002361122344
A27: Standard Supply Service – Administration Charge (if applicable) | B27: 1 | C27: =VLOOKUP($A27,'Data Pass Through'!$A:$D,2,FALSE) -> 0.25 | D27: =B27*C27 -> 0.25 | E27: =B27 -> 1 | F27: =VLOOKUP($A27,'Data Pass Through'!$A:$D,3,FALSE) -> 0.25 | G27: 0.25 | H27: 0 | I27: 0 | J27: 0.0001030460215
A28: Sub-Total: Regulatory | D28: =SUM(D24:D27) -> 44.930896 | G28: =SUM(G24:G27) -> 44.930896 | H28: 0 | I28: 0 | J28: 0.0185198003
A29: Total Electricty Charge on WAHSP | D29: =SUM(D13,D23,D28) -> 2119.298056 | G29: =SUM(G13,G23,G28) -> 2146.991556 | H29: 27.6935 | I29: 0.01306729835 | J29: 0.8849557522
A30: HST | C30: 0.13 | D30: =D29*C30 -> 275.5087473 | F30: =C30 -> 0.13 | G30: =G29*F30 -> 279.1089023 | H30: 3.600155 | I30: 0.01306729835 | J30: 0.1150442478
A31: Total Amount on WAHSP | D31: =SUM(D29:D30) -> 2394.806803 | G31: =SUM(G29:G30) -> 2426.100458 | H31: 31.293655 | I31: 0.01306729835 | J31: 1

Sheet BI Template_unmHCHI (hidden)
A1: 2026 Bill Impacts (Average Consumption Level) - St Lgt_HCHI
A3: Rate Class | B3: =VLOOKUP(A1,'Data BI List Acq_Seas'!C:E,2,FALSE) -> St Lgt-HCHI | C3: =VLOOKUP(A1,'Data BI List Acq_Seas'!C:E,3,FALSE) -> St Lgt-HCHI
A4: Monthly Consumption (kWh) | B4: =IF(COUNTIF(A1,"*Low*")>0,VLOOKUP(B3,'Data Billing Quantities'!$A:$Z,MATCH("Low kWh",'Data Billing Quantities'!4:4,0),FALSE),IF(COUNTIF(A1,"*Typical*")>0,VLOOKUP(B3,'Data Billing Quantities'!$A:$Z,MATCH("Typical kWh",'Data Billing Quantities'!4:4,0),FALSE),IF(COUNTIF(A1,"*Average*")>0,VLOOKUP(B3,'Data Billing Quantities'!$A:$Z,MATCH("Average kWh",'Data Billing Quantities'!4:4,0),FALSE),IF(COUNTIF(A1,"*High*")>0,VLOOKUP(B3,'Data Billing Quantities'!$A:$Z,MATCH("High kWh",'Data Billing Quantities'!4:4,0),FALSE),"error")))) -> 31001 | C4: =B4 -> 31001
A5: Peak (kW) | B5: =IF(COUNTIF(A1,"*Low*")>0,VLOOKUP(B3,'Data Billing Quantities'!$A:$Z,MATCH("Low kW",'Data Billing Quantities'!4:4,0),FALSE),IF(COUNTIF(A1,"*Typical*")>0,VLOOKUP(B3,'Data Billing Quantities'!$A:$Z,MATCH("Typical kW",'Data Billing Quantities'!4:4,0),FALSE),IF(COUNTIF(A1,"*Average*")>0,VLOOKUP(B3,'Data Billing Quantities'!$A:$Z,MATCH("Average kW",'Data Billing Quantities'!4:4,0),FALSE),IF(COUNTIF(A1,"*High*")>0,VLOOKUP(B3,'Data Billing Quantities'!$A:$Z,MATCH("High kW",'Data Billing Quantities'!4:4,0),FALSE),"error")))) -> 0 | C5: =B5 -> 0
A6: Loss factor | B6: =VLOOKUP(B3,'Data Billing Quantities'!A:D,MATCH(A6,'Data Billing Quantities'!4:4,0),FALSE) -> 1.092 | C6: =VLOOKUP(C3,'Data Billing Quantities'!A:D,MATCH(A6,'Data Billing Quantities'!4:4,0),FALSE) -> 1.092
A7: Commodity Threshold | B7: =VLOOKUP(B3,'Data Billing Quantities'!A:D,MATCH(A7,'Data Billing Quantities'!4:4,0),FALSE) -> 750 | C7: =B7 -> 750
A8: Monthly Consumption (kWh) - Uplifted | B8: =B4*B6 -> 33853.092 | C8: =C4*C6 -> 33853.092
A9: Charge determinant | B9: =VLOOKUP(B3,'Data Billing Quantities'!A:D,MATCH(A9,'Data Billing Quantities'!4:4,0),FALSE) -> kWh | C9: =VLOOKUP(C3,'Data Billing Quantities'!A:D,MATCH(A9,'Data Billing Quantities'!4:4,0),FALSE) -> kWh
B11: Volume | C11: Current Rate ($) | D11: Current Charge ($) | E11: Volume | F11: Proposed Rate ($) | G11: Proposed Charge ($) | H11: Change ($) | I11: Change (%) | J11: % of Total Bill
A12: Energy First Tier | B12: =IF(B4>B7,B7,B4) -> 750 | C12: =VLOOKUP($A12,'Data Pass Through'!$A:$D,2,FALSE) -> 0.098 | D12: =B12*C12 -> 73.5 | E12: =B12 -> 750 | F12: =VLOOKUP($A12,'Data Pass Through'!$A:$D,3,FALSE) -> 0.098 | G12: =E12*F12 -> 73.5 | H12: =G12-D12 -> 0 | I12: =IF(ISERROR(H12/ABS(D12)),"N/A",(H12/ABS(D12))) -> 0 | J12: =G12/$G$34 -> 0.007876728344
A13: Energy Second Tier | B13: =IF(B4>B7,(B4)-B7,0) -> 30251 | C13: =VLOOKUP($A13,'Data Pass Through'!$A:$D,2,FALSE) -> 0.115 | D13: =B13*C13 -> 3478.865 | E13: =B13 -> 30251 | F13: =VLOOKUP($A13,'Data Pass Through'!$A:$D,3,FALSE) -> 0.115 | G13: =E13*F13 -> 3478.865 | H13: 0 | I13: 0 | J13: 0.3728173408
A14: Sub-Total: Energy (RPP Tiered) | D14: =SUM(D12:D13) -> 3552.365 | G14: =SUM(G12:G13) -> 3552.365 | H14: 0 | I14: 0 | J14: 0.3806940692
A15: Service Charge | B15: =IF(VLOOKUP(B$3,'Data Billing Quantities'!A:P,MATCH("Acquired Street Light Service Charge",'Data Billing Quantities'!$4:$4,0),FALSE)>0,VLOOKUP(B$3,'Data Billing Quantities'!A:P,MATCH("Acquired Street Light Service Charge",'Data Billing Quantities'!$4:$4,0),FALSE),1) -> 1 | C15: =VLOOKUP($B$3,'Data Current Rates'!$A:$AN,MATCH('BI Template_unmHCHI'!$A15,CurrentHeader,0),FALSE) -> 3.18 | D15: =B15*C15 -> 3.18 | E15: 1 | F15: =VLOOKUP($C$3,'Data Proposed Rates'!$A:$AZ,MATCH('BI Template_unmHCHI'!$A15,ProposedHeader,0),FALSE) -> 3.3 | G15: =E15*F15 -> 3.3 | H15: 0.12 | I15: 0.03773584906 | J15: 0.0003536490277
A16: Distribution Volumetric Charge | B16: =IF($B$9="kWh",$B$4,$B$5) -> 31001 | C16: =VLOOKUP($B$3,'Data Current Rates'!$A:$AN,MATCH('BI Template_unmHCHI'!$A16,CurrentHeader,0),FALSE) -> 0.1196 | D16: =B16*C16 -> 3707.7196 | E16: =IF($C$9="kWh",$C$4,$C$5) -> 31001 | F16: =VLOOKUP($C$3,'Data Proposed Rates'!$A:$AZ,MATCH('BI Template_unmHCHI'!$A16,ProposedHeader,0),FALSE) -> 0.1262 | G16: 3912.3262 | H16: 204.6066 | I16: 0.05518394649 | J16: 0.4192698051
A17: Group 1 Volumetric DVA Rider (General) | B17: =IF($B$9="kWh",$B$4,$B$5) -> 31001 | C17: =VLOOKUP($B$3,'Data Current Rates'!$A:$AN,MATCH('BI Template_unmHCHI'!$A17,CurrentHeader,0),FALSE) -> -0.0004 | D17: =B17*C17 -> -12.4004 | E17: =IF($C$9="kWh",$C$4,$C$5) -> 31001 | F17: =VLOOKUP($C$3,'Data Proposed Rates'!$A:$AZ,MATCH('BI Template_unmHCHI'!$A17,ProposedHeader,0),FALSE) -> -0.0004 | G17: -12.4004 | H17: 0 | I17: 0 | J17: -0.00132890588
A18: Sub-Total: Distribution (excluding pass through) | D18: =SUM(INDIRECT("D15:D"&ROW()-1)) -> 3698.4992 | G18: =SUM(INDIRECT("g15:g"&ROW()-1)) -> 3903.2258 | H18: =G18-D18 -> 204.7266 | I18: 0.05535396628 | J18: 0.4182945482
A19: Line Losses on Cost of Power (based on two-tier RPP prices) | B19: =B8-B4 -> 2852.092 | C19: =IF(B4>B7,C13,C12) -> 0.115 | D19: =B19*C19 -> 327.99058 | E19: =C8-C4 -> 2852.092 | F19: =IF(C4>C7,F13,F12) -> 0.115 | G19: =E19*F19 -> 327.99058 | H19: 0 | I19: 0 | J19: 0.03514956052
A20: Sub-Total: Distribution (based on two-tier RPP prices) | D20: =SUM(D18,D19:D19) -> 4026.48978 | G20: =SUM(G18,G19:G19) -> 4231.21638 | H20: 204.7266 | I20: 0.05084493223 | J20: 0.4534441087
A21: Retail Transmission Rate – Network Service Rate | B21: =IF($B$9="kWh",$B$8,$B$5) -> 33853.092 | C21: =VLOOKUP($B$3,'Data Current Rates'!$A:$AN,MATCH('BI Template_unmHCHI'!$A21,CurrentHeader,0),FALSE) -> 0.0059 | D21: =B21*C21 -> 199.7332428 | E21: =IF($C$9="kWh",$C$8,$C$5) -> 33853.092 | F21: =VLOOKUP($C$3,'Data Proposed Rates'!$A:$AZ,MATCH('BI Template_unmHCHI'!$A21,ProposedHeader,0),FALSE) -> 0.0059 | G21: =E21*F21 -> 199.7332428 | H21: =G21-D21 -> 0 | I21: 0 | J21: 0.021404687
A22: Retail Transmission Rate – Line and Transformation Connection Service Rate | B22: =IF($B$9="kWh",$B$8,$B$5) -> 33853.092 | C22: =VLOOKUP($B$3,'Data Current Rates'!$A:$AN,MATCH('BI Template_unmHCHI'!$A22,CurrentHeader,0),FALSE) -> 0.0042 | D22: =B22*C22 -> 142.1829864 | E22: =IF($C$9="kWh",$C$8,$C$5) -> 33853.092 | F22: =VLOOKUP($C$3,'Data Proposed Rates'!$A:$AZ,MATCH('BI Template_unmHCHI'!$A22,ProposedHeader,0),FALSE) -> 0.0042 | G22: =E22*F22 -> 142.1829864 | H22: =G22-D22 -> 0 | I22: 0 | J22: 0.01523723482
A23: Sub-Total: Retail Transmission | D23: =SUM(D21:D22) -> 341.9162292 | G23: =SUM(G21:G22) -> 341.9162292 | H23: =G23-D23 -> 0 | I23: 0 | J23: 0.03664192182
A24: Sub-Total: Delivery (based on two-tier RPP prices) | D24: =D20+D23 -> 4368.406009 | G24: =G20+G23 -> 4573.132609 | H24: =G24-D24 -> 204.7266 | I24: 0.04686528669 | J24: 0.4900860305
A25: Wholesale Market Service Rate (WMS) - not including CBR | B25: =B8 -> 33853.092 | C25: =VLOOKUP($A25,'Data Pass Through'!$A:$D,2,FALSE) -> 0.003 | D25: =B25*C25 -> 101.559276 | E25: =$C$8 -> 33853.092 | F25: =VLOOKUP($A25,'Data Pass Through'!$A:$D,3,FALSE) -> 0.003 | G25: =E25*F25 -> 101.559276 | H25: =G25-D25 -> 0 | I25: 0 | J25: 0.01088373915
A26: Capacity Based Recovery (CBR) - Applicable for Class B Customers | B26: =B8 -> 33853.092 | C26: =VLOOKUP($A26,'Data Pass Through'!$A:$D,2,FALSE) -> 0.0004 | D26: =B26*C26 -> 13.5412368 | E26: =$C$8 -> 33853.092 | F26: =VLOOKUP($A26,'Data Pass Through'!$A:$D,3,FALSE) -> 0.0004 | G26: =E26*F26 -> 13.5412368 | H26: 0 | I26: 0 | J26: 0.001451165221
A27: Rural Rate Protection Charge | B27: =B8 -> 33853.092 | C27: =VLOOKUP($A27,'Data Pass Through'!$A:$D,2,FALSE) -> 0.0005 | D27: 16.926546 | E27: 33853.092 | F27: =VLOOKUP($A27,'Data Pass Through'!$A:$D,3,FALSE) -> 0.0005 | G27: 16.926546 | H27: 0 | I27: 0 | J27: 0.001813956526
A28: Standard Supply Service – Administration Charge (if applicable) | B28: 1 | C28: =VLOOKUP($A28,'Data Pass Through'!$A:$D,2,FALSE) -> 0.25 | D28: =B28*C28 -> 0.25 | E28: 1 | F28: =VLOOKUP($A28,'Data Pass Through'!$A:$D,3,FALSE) -> 0.25 | G28: 0.25 | H28: 0 | I28: 0 | J28: 2.679159301e-05
A29: Sub-Total: Regulatory | D29: =SUM(D25:D28) -> 132.2770588 | G29: =SUM(G25:G28) -> 132.2770588 | H29: 0 | I29: 0 | J29: 0.01417565249
A30: Total Electricty Charge on Two-Tier RPP | D30: =SUM(D24,D29,D14) -> 8053.048068 | G30: =SUM(G24,G29,G14) -> 8257.774668 | H30: 204.7266 | I30: 0.02542224985 | J30: 0.8849557522
A31: HST | C31: 0.13 | D31: =D30*C31 -> 1046.896249 | F31: =C31 -> 0.13 | G31: =G30*F31 -> 1073.510707 | H31: 26.614458 | I31: 0.02542224985 | J31: 0.1150442478
A32: Total Electricity Charge on Two-Tier RPP (including HST) | D32: =SUM(D30:D31) -> 9099.944317 | G32: =SUM(G30:G31) -> 9331.285375 | H32: 231.341058 | I32: 0.02542224985 | J32: 1
A33: Ontario Electricity Rebate (OER) | C33: =IF(($B$4*12)<250000,VLOOKUP(A33,'Data Pass Through'!$A$4:$C$20,2,0),0) -> 0 | D33: =D30*C33 -> 0 | F33: =C33 -> 0 | G33: =G30*F33 -> 0 | H33: 0 | I33: N/A | J33: 0
A34: Total Amount on Two-Tier RPP | D34: =SUM(D32:D33) -> 9099.944317 | G34: =SUM(G32:G33) -> 9331.285375 | H34: 231.341058 | I34: 0.02542224985 | J34: 1

Sheet BI Template_EnergyWHSI (hidden)
A1: 2026 Bill Impacts (Low Consumption Level) - AUR_WHSI
A3: Rate Class | B3: =VLOOKUP(A1,'Data BI List Acq_Seas'!C:E,2,FALSE) -> AUR-WHSI | C3: =VLOOKUP(A1,'Data BI List Acq_Seas'!C:E,3,FALSE) -> AUR-WHSI
A4: Monthly Consumption (kWh) | B4: =IF(COUNTIF(A1,"*Low*")>0,VLOOKUP(B3,'Data Billing Quantities'!$A:$Z,MATCH("Low kWh",'Data Billing Quantities'!4:4,0),FALSE),IF(COUNTIF(A1,"*Typical*")>0,VLOOKUP(B3,'Data Billing Quantities'!$A:$Z,MATCH("Typical kWh",'Data Billing Quantities'!4:4,0),FALSE),IF(COUNTIF(A1,"*Average*")>0,VLOOKUP(B3,'Data Billing Quantities'!$A:$Z,MATCH("Average kWh",'Data Billing Quantities'!4:4,0),FALSE),IF(COUNTIF(A1,"*High*")>0,VLOOKUP(B3,'Data Billing Quantities'!$A:$Z,MATCH("High kWh",'Data Billing Quantities'!4:4,0),FALSE),"error")))) -> 310 | C4: =B4 -> 310
A5: Peak (kW) | B5: =IF(COUNTIF(A1,"*Low*")>0,VLOOKUP(B3,'Data Billing Quantities'!$A:$Z,MATCH("Low kW",'Data Billing Quantities'!4:4,0),FALSE),IF(COUNTIF(A1,"*Typical*")>0,VLOOKUP(B3,'Data Billing Quantities'!$A:$Z,MATCH("Typical kW",'Data Billing Quantities'!4:4,0),FALSE),IF(COUNTIF(A1,"*Average*")>0,VLOOKUP(B3,'Data Billing Quantities'!$A:$Z,MATCH("Average kW",'Data Billing Quantities'!4:4,0),FALSE),IF(COUNTIF(A1,"*High*")>0,VLOOKUP(B3,'Data Billing Quantities'!$A:$Z,MATCH("High kW",'Data Billing Quantities'!4:4,0),FALSE),"error")))) -> 0 | C5: =B5 -> 0
A6: Loss factor | B6: =VLOOKUP(B3,'Data Billing Quantities'!A:D,MATCH(A6,'Data Billing Quantities'!4:4,0),FALSE) -> 1.043 | C6: =VLOOKUP(C3,'Data Billing Quantities'!A:D,MATCH(A6,'Data Billing Quantities'!4:4,0),FALSE) -> 1.043
A7: Commodity Threshold | B7: =VLOOKUP(B3,'Data Billing Quantities'!A:D,MATCH(A7,'Data Billing Quantities'!4:4,0),FALSE) -> 750 | C7: =B7 -> 750
A8: Monthly Consumption (kWh) - Uplifted | B8: =B4*B6 -> 323.33 | C8: =C4*C6 -> 323.33
A9: Charge determinant | B9: =VLOOKUP(B3,'Data Billing Quantities'!A:D,MATCH(A9,'Data Billing Quantities'!4:4,0),FALSE) -> kWh | C9: =VLOOKUP(C3,'Data Billing Quantities'!A:D,MATCH(A9,'Data Billing Quantities'!4:4,0),FALSE) -> kWh
B11: Volume | C11: Current Rate ($) | D11: Current Charge ($) | E11: Volume | F11: Proposed Rate ($) | G11: Proposed Charge ($) | H11: Change ($) | I11: Change (%) | J11: % of Total Bill on RPP | K11: % of Total Bill
A12: Energy First Tier | B12: =IF(B4>B7,B7,B4) -> 310 | C12: =VLOOKUP($A12,'Data Pass Through'!$A:$D,2,FALSE) -> 0.098 | D12: =B12*C12 -> 30.38 | E12: =B12 -> 310 | F12: =VLOOKUP($A12,'Data Pass Through'!$A:$D,3,FALSE) -> 0.098 | G12: =E12*F12 -> 30.38 | H12: =G12-D12 -> 0 | I12: =IF(ISERROR(H12/ABS(D12)),"N/A",(H12/ABS(D12))) -> 0 | J12: =G12/$G$42 -> 0.4303649925
A13: Energy Second Tier | B13: =IF(B4>B7,(B4)-B7,0) -> 0 | C13: =VLOOKUP($A13,'Data Pass Through'!$A:$D,2,FALSE) -> 0.115 | D13: =B13*C13 -> 0 | E13: =B13 -> 0 | F13: =VLOOKUP($A13,'Data Pass Through'!$A:$D,3,FALSE) -> 0.115 | G13: =E13*F13 -> 0 | H13: 0 | I13: N/A | J13: =G13/$G$42 -> 0
A14: Sub-Total: Energy (RPP Tiered) | D14: =SUM(D12:D13) -> 30.38 | G14: =SUM(G12:G13) -> 30.38 | H14: 0 | I14: 0 | J14: =G14/$G$42 -> 0.4303649925
A15: TOU-Off Peak | B15: =B$4*VLOOKUP($B$3,'Data Billing Quantities'!$A:$O,MATCH('BI Template_EnergyWHSI'!$A15,'Data Billing Quantities'!$4:$4,0),FALSE) -> 198.4 | C15: =VLOOKUP($A15,'Data Pass Through'!$A:$D,2,FALSE) -> 0.082 | D15: =B15*C15 -> 16.2688 | E15: 198.4 | F15: =VLOOKUP($A15,'Data Pass Through'!$A:$D,3,FALSE) -> 0.082 | G15: =E15*F15 -> 16.2688 | H15: 0 | I15: 0 | K15: =G15/$G$47 -> 0.2252039447
A16: TOU-Mid Peak | B16: =B$4*VLOOKUP($B$3,'Data Billing Quantities'!$A:$O,MATCH('BI Template_EnergyWHSI'!$A16,'Data Billing Quantities'!$4:$4,0),FALSE) -> 55.8 | C16: =VLOOKUP($A16,'Data Pass Through'!$A:$D,2,FALSE) -> 0.113 | D16: =B16*C16 -> 6.3054 | E16: 55.8 | F16: =VLOOKUP($A16,'Data Pass Through'!$A:$D,3,FALSE) -> 0.113 | G16: =E16*F16 -> 6.3054 | H16: 0 | I16: 0 | K16: 0.08728369349
A17: TOU-On Peak | B17: =B$4*VLOOKUP($B$3,'Data Billing Quantities'!$A:$O,MATCH('BI Template_EnergyWHSI'!$A17,'Data Billing Quantities'!$4:$4,0),FALSE) -> 55.8 | C17: =VLOOKUP($A17,'Data Pass Through'!$A:$D,2,FALSE) -> 0.17 | D17: =B17*C17 -> 9.486 | E17: 55.8 | F17: =VLOOKUP($A17,'Data Pass Through'!$A:$D,3,FALSE) -> 0.17 | G17: =E17*F17 -> 9.486 | H17: 0 | I17: 0 | K17: 0.1313117513
A18: Sub-Total: Energy (RPP TOU) | D18: =SUM(D15:D17) -> 32.0602 | G18: =SUM(G15:G17) -> 32.0602 | H18: 0 | I18: 0 | J18: =G18/$G$42 -> 0.4541668115 | K18: 0.4437993894
A19: Service Charge | B19: 1 | C19: =VLOOKUP($B$3,'Data Current Rates'!$A:$AN,MATCH('BI Template_EnergyWHSI'!$A19,CurrentHeader,0),FALSE) -> 33.28 | D19: =B19*C19 -> 33.28 | E19: 1 | F19: =VLOOKUP($C$3,'Data Proposed Rates'!$A:$AZ,MATCH('BI Template_EnergyWHSI'!$A19,ProposedHeader,0),FALSE) -> 35.1 | G19: =E19*F19 -> 35.1 | H19: 1.82 | I19: 0.0546875 | J19: 0.4972288097 | K19: 0.4858783965
A20: Distribution Volumetric Charge | B20: =IF($B$9="kWh",$B$4,$B$5) -> 310 | C20: =VLOOKUP($B$3,'Data Current Rates'!$A:$AN,MATCH('BI Template_EnergyWHSI'!$A20,CurrentHeader,0),FALSE) -> 0 | D20: =B20*C20 -> 0 | E20: =IF($C$9="kWh",$C$4,$C$5) -> 310 | F20: =VLOOKUP($C$3,'Data Proposed Rates'!$A:$AZ,MATCH('BI Template_EnergyWHSI'!$A20,ProposedHeader,0),FALSE) -> 0 | G20: 0 | H20: 0 | I20: N/A | J20: 0 | K20: 0
A21: Group 1 Volumetric DVA Rider (General) | B21: =IF($B$9="kWh",$B$4,$B$5) -> 310 | C21: =VLOOKUP($B$3,'Data Current Rates'!$A:$AN,MATCH('BI Template_EnergyWHSI'!$A21,CurrentHeader,0),FALSE) -> -0.0005 | D21: =B21*C21 -> -0.155 | E21: =IF($C$9="kWh",$C$4,$C$5) -> 310 | F21: =VLOOKUP($C$3,'Data Proposed Rates'!$A:$AZ,MATCH('BI Template_EnergyWHSI'!$A21,ProposedHeader,0),FALSE) -> -0.0005 | G21: -0.155 | H21: 0 | I21: 0 | J21: -0.002195739758 | K21: -0.002145616851
A22: Sub-Total: Distribution (excluding pass through) | D22: =SUM(INDIRECT("D19:D"&ROW()-1)) -> 33.125 | G22: =SUM(INDIRECT("g19:g"&ROW()-1)) -> 34.945 | H22: =G22-D22 -> 1.82 | I22: 0.05494339623 | J22: 0.4950330699 | K22: 0.4837327797
A23: Smart Metering Entity Charge | B23: =B19 -> 1 | C23: =VLOOKUP($A23,'Data Pass Through'!$A:$D,2,FALSE) -> 0.57 | D23: =B23*C23 -> 0.57 | E23: =E19 -> 1 | F23: =VLOOKUP($A23,'Data Pass Through'!$A:$D,3,FALSE) -> 0.57 | G23: =E23*F23 -> 0.57 | H23: 0 | I23: 0 | J23: 0.008074655884 | K23: 0.007890332935
A24: Line Losses on Cost of Power (based on two-tier RPP prices) | B24: =B8-B4 -> 13.33 | C24: =IF(B4>B7,C13,C12) -> 0.098 | D24: =B24*C24 -> 1.30634 | E24: =C8-C4 -> 13.33 | F24: =IF(C4>C7,F13,F12) -> 0.098 | G24: =E24*F24 -> 1.30634 | H24: 0 | I24: 0 | J24: 0.01850569468 | K24: 0.01808325882
A25: Line Losses on Cost of Power (based on TOU prices) | B25: =B8-B4 -> 13.33 | C25: =VLOOKUP($B$3,'Data Billing Quantities'!$A:$O,MATCH('BI Template_EnergyWHSI'!$A15,'Data Billing Quantities'!$4:$4,0),FALSE)*C15+VLOOKUP($B$3,'Data Billing Quantities'!$A:$O,MATCH('BI Template_EnergyWHSI'!$A16,'Data Billing Quantities'!$4:$4,0),FALSE)*C16+VLOOKUP($B$3,'Data Billing Quantities'!$A:$O,MATCH('BI Template_EnergyWHSI'!$A17,'Data Billing Quantities'!$4:$4,0),FALSE)*C17 -> 0.10342 | D25: =B25*C25 -> 1.3785886 | E25: =C8-C4 -> 13.33 | F25: =VLOOKUP($C$3,'Data Billing Quantities'!$A:$O,MATCH('BI Template_EnergyWHSI'!$A15,'Data Billing Quantities'!$4:$4,0),FALSE)*F15+VLOOKUP($C$3,'Data Billing Quantities'!$A:$O,MATCH('BI Template_EnergyWHSI'!$A16,'Data Billing Quantities'!$4:$4,0),FALSE)*F16+VLOOKUP($C$3,'Data Billing Quantities'!$A:$O,MATCH('BI Template_EnergyWHSI'!$A17,'Data Billing Quantities'!$4:$4,0),FALSE)*F17 -> 0.10342 | G25: =E25*F25 -> 1.3785886 | H25: 0 | I25: 0 | J25: 0.01952917289 | K25: 0.01908337375
A26: Sub-Total: Distribution (based on two-tier RPP prices) | D26: =SUM(D22,D23:D24) -> 35.00134 | G26: =SUM(G22,G23:G24) -> 36.82134 | H26: 1.82 | I26: 0.05199800922 | J26: 0.5216134205 | K26: 0.5097063714
A27: Sub-Total: Distribution (based on TOU prices) | D27: =SUM(D22,D23,D25) -> 35.0735886 | G27: =SUM(G22,G23,G25) -> 36.8935886 | H27: 1.82 | I27: 0.05189089776 | J27: 0.5226368987 | K27: 0.5107064864
A28: Retail Transmission Rate – Network Service Rate | B28: =IF($B$9="kWh",$B$8,$B$5) -> 323.33 | C28: =VLOOKUP($B$3,'Data Current Rates'!$A:$AN,MATCH('BI Template_EnergyWHSI'!$A28,CurrentHeader,0),FALSE) -> 0.0113 | D28: =B28*C28 -> 3.653629 | E28: =IF($C$9="kWh",$C$8,$C$5) -> 323.33 | F28: =VLOOKUP($C$3,'Data Proposed Rates'!$A:$AZ,MATCH('BI Template_EnergyWHSI'!$A28,ProposedHeader,0),FALSE) -> 0.0113 | G28: =E28*F28 -> 3.653629 | H28: =G28-D28 -> 0 | I28: 0 | J28: 0.05175753842 | K28: 0.05057605128
A29: Retail Transmission Rate – Line and Transformation Connection Service Rate | B29: =IF($B$9="kWh",$B$8,$B$5) -> 323.33 | C29: =VLOOKUP($B$3,'Data Current Rates'!$A:$AN,MATCH('BI Template_EnergyWHSI'!$A29,CurrentHeader,0),FALSE) -> 0.0082 | D29: =B29*C29 -> 2.651306 | E29: =IF($C$9="kWh",$C$8,$C$5) -> 323.33 | F29: =VLOOKUP($C$3,'Data Proposed Rates'!$A:$AZ,MATCH('BI Template_EnergyWHSI'!$A29,ProposedHeader,0),FALSE) -> 0.0082 | G29: =E29*F29 -> 2.651306 | H29: =G29-D29 -> 0 | I29: 0 | J29: 0.03755856771 | K29: 0.03670120536
A30: Sub-Total: Retail Transmission | D30: =SUM(D28:D29) -> 6.304935 | G30: =SUM(G28:G29) -> 6.304935 | H30: =G30-D30 -> 0 | I30: 0 | J30: 0.08931610613 | K30: 0.08727725664
A31: Sub-Total: Delivery (based on two-tier RPP prices) | D31: =D26+D30 -> 41.306275 | G31: =G26+G30 -> 43.126275 | H31: =G31-D31 -> 1.82 | I31: 0.0440611021 | J31: 0.6109295266 | K31: 0.5969836281
A32: Sub-Total: Delivery (based on TOU prices) | D32: =D27+D30 -> 41.3785236 | G32: =G27+G30 -> 43.1985236 | H32: =G32-D32 -> 1.82 | I32: 0.0439841696 | J32: 0.6119530048 | K32: 0.597983743
A33: Wholesale Market Service Rate (WMS) - not including CBR | B33: =B8 -> 323.33 | C33: =VLOOKUP($A33,'Data Pass Through'!$A:$D,2,FALSE) -> 0.003 | D33: =B33*C33 -> 0.96999 | E33: =$C$8 -> 323.33 | F33: =VLOOKUP($A33,'Data Pass Through'!$A:$D,3,FALSE) -> 0.003 | G33: =E33*F33 -> 0.96999 | H33: 0 | I33: 0 | J33: 0.0137409394 | K33: 0.01342727025
A34: Capacity Based Recovery (CBR) - Applicable for Class B Customers | B34: =B8 -> 323.33 | C34: =VLOOKUP($A34,'Data Pass Through'!$A:$D,2,FALSE) -> 0.0004 | D34: =B34*C34 -> 0.129332 | E34: =$C$8 -> 323.33 | F34: =VLOOKUP($A34,'Data Pass Through'!$A:$D,3,FALSE) -> 0.0004 | G34: =E34*F34 -> 0.129332 | H34: 0 | I34: 0 | J34: 0.001832125254 | K34: 0.0017903027
A35: Rural Rate Protection Charge | B35: =B8 -> 323.33 | C35: =VLOOKUP($A35,'Data Pass Through'!$A:$D,2,FALSE) -> 0.0005 | D35: 0.161665 | E35: 323.33 | F35: =VLOOKUP($A35,'Data Pass Through'!$A:$D,3,FALSE) -> 0.0005 | G35: 0.161665 | H35: 0 | I35: 0 | J35: 0.002290156567 | K35: 0.002237878375
A36: Standard Supply Service – Administration Charge (if applicable) | B36: 1 | C36: =VLOOKUP($A36,'Data Pass Through'!$A:$D,2,FALSE) -> 0.25 | D36: =B36*C36 -> 0.25 | E36: 1 | F36: =VLOOKUP($A36,'Data Pass Through'!$A:$D,3,FALSE) -> 0.25 | G36: 0.25 | H36: 0 | I36: 0 | J36: 0.003541515738 | K36: 0.00346067234
A37: Sub-Total: Regulatory | D37: =SUM(D33:D36) -> 1.510987 | G37: =SUM(G33:G36) -> 1.510987 | H37: 0 | I37: 0 | J37: 0.02140473696 | K37: 0.02091612367
A38: Total Electricty Charge on Two-Tier RPP | D38: =SUM(D14,D22,D23,D24,D30,D37) -> 73.197262 | G38: =SUM(G14,G22,G23,G24,G30,G37) -> 75.017262 | H38: 1.82 | I38: 0.02486431801 | J38: 1.062699256
A39: HST | C39: 0.13 | D39: =D38*C39 -> 9.51564406 | F39: =C39 -> 0.13 | G39: =G38*F39 -> 9.75224406 | H39: 0.2366 | I39: 0.02486431801 | J39: 0.1381509033
A40: Total Electricity Charge on Two-Tier RPP (including HST) | D40: =SUM(D38:D39) -> 82.71290606 | G40: =SUM(G38:G39) -> 84.76950606 | H40: 2.0566 | I40: 0.02486431801 | J40: 1.200850159
A41: Ontario Electricity Rebate (OER) | C41: =IF(($B$4*12)<250000,VLOOKUP(A41,'Data Pass Through'!$A$4:$C$20,2,0),0) -> -0.189 | D41: =D38*C41 -> -13.83428252 | F41: =C41 -> -0.189 | G41: =G38*F41 -> -14.17826252 | H41: -0.34398 | I41: -0.02486431801 | J41: -0.2008501594
A42: Total Amount on Two-Tier RPP | D42: =SUM(D40:D41) -> 68.87862354 | G42: =SUM(G40:G41) -> 70.59124354 | H42: 1.71262 | I42: 0.02486431801 | J42: 1
A43: Total Electricty Charge on TOU (before HST) | D43: =SUM(D18,D22,D23,D25,D30,D37) -> 74.9497106 | G43: =SUM(G18,G22,G23,G25,G30,G37) -> 76.7697106 | H43: 1.82 | I43: 0.024282949 | K43: =G43/$G$47 -> 1.062699256
A44: HST | C44: 0.13 | D44: =D43*C44 -> 9.743462378 | F44: =C44 -> 0.13 | G44: =G43*F44 -> 9.980062378 | H44: 0.2366 | I44: 0.024282949 | K44: =G44/$G$47 -> 0.1381509033
A45: Total Electricity Charge on TOU (including HST) | D45: =SUM(D43:D44) -> 84.69317298 | G45: =SUM(G43:G44) -> 86.74977298 | H45: 2.0566 | I45: 0.024282949 | K45: =G45/$G$47 -> 1.200850159
A46: Ontario Electricity Rebate (OER) | C46: =IF(($B$4*12)<250000,VLOOKUP(A46,'Data Pass Through'!$A$4:$C$20,2,0),0) -> -0.189 | D46: =D43*C46 -> -14.1654953 | F46: =C46 -> -0.189 | G46: =G43*F46 -> -14.5094753 | H46: -0.34398 | I46: -0.024282949 | K46: =G46/$G$47 -> -0.2008501594
A47: Total Amount on TOU | D47: =SUM(D45:D46) -> 70.52767767 | G47: =SUM(G45:G46) -> 72.24029767 | H47: 1.71262 | I47: 0.024282949 | K47: =G47/$G$47 -> 1

Sheet BI Template_DemandWHSI (hidden)
A1: 2026 Bill Impacts (Low Consumption Level) - AUGd_WHSI
A3: Rate Class | B3: =VLOOKUP(A1,'Data BI List Acq_Seas'!C:E,2,FALSE) -> AUGd-WHSI | C3: =VLOOKUP(A1,'Data BI List Acq_Seas'!C:E,3,FALSE) -> AUGd-WHSI
A4: Monthly Consumption (kWh) | B4: =IF(COUNTIF(A1,"*Low*")>0,VLOOKUP(B3,'Data Billing Quantities'!$A:$Z,MATCH("Low kWh",'Data Billing Quantities'!4:4,0),FALSE),IF(COUNTIF(A1,"*Typical*")>0,VLOOKUP(B3,'Data Billing Quantities'!$A:$Z,MATCH("Typical kWh",'Data Billing Quantities'!4:4,0),FALSE),IF(COUNTIF(A1,"*Average*")>0,VLOOKUP(B3,'Data Billing Quantities'!$A:$Z,MATCH("Average kWh",'Data Billing Quantities'!4:4,0),FALSE),IF(COUNTIF(A1,"*High*")>0,VLOOKUP(B3,'Data Billing Quantities'!$A:$Z,MATCH("High kWh",'Data Billing Quantities'!4:4,0),FALSE),"error")))) -> 9370 | C4: =B4 -> 9370
A5: Peak (kW) | B5: =IF(COUNTIF(A1,"*Low*")>0,VLOOKUP(B3,'Data Billing Quantities'!$A:$Z,MATCH("Low kW",'Data Billing Quantities'!4:4,0),FALSE),IF(COUNTIF(A1,"*Typical*")>0,VLOOKUP(B3,'Data Billing Quantities'!$A:$Z,MATCH("Typical kW",'Data Billing Quantities'!4:4,0),FALSE),IF(COUNTIF(A1,"*Average*")>0,VLOOKUP(B3,'Data Billing Quantities'!$A:$Z,MATCH("Average kW",'Data Billing Quantities'!4:4,0),FALSE),IF(COUNTIF(A1,"*High*")>0,VLOOKUP(B3,'Data Billing Quantities'!$A:$Z,MATCH("High kW",'Data Billing Quantities'!4:4,0),FALSE),"error")))) -> 50 | C5: =B5 -> 50
A6: Loss factor | B6: =VLOOKUP(B3,'Data Billing Quantities'!A:D,MATCH(A6,'Data Billing Quantities'!4:4,0),FALSE) -> 1.033 | C6: =VLOOKUP(C3,'Data Billing Quantities'!A:D,MATCH(A6,'Data Billing Quantities'!4:4,0),FALSE) -> 1.033
A7: Commodity Threshold | B7: =VLOOKUP(B3,'Data Billing Quantities'!A:D,MATCH(A7,'Data Billing Quantities'!4:4,0),FALSE) -> 0 | C7: =B7 -> 0
A8: Monthly Consumption (kWh) - Uplifted | B8: =B4*B6 -> 9679.21 | C8: =C4*C6 -> 9679.21
A9: Charge determinant | B9: =VLOOKUP(B3,'Data Billing Quantities'!A:D,MATCH(A9,'Data Billing Quantities'!4:4,0),FALSE) -> kW | C9: =VLOOKUP(C3,'Data Billing Quantities'!A:D,MATCH(A9,'Data Billing Quantities'!4:4,0),FALSE) -> kW
B11: Volume | C11: Current Rate ($) | D11: Current Charge ($) | E11: Volume | F11: Proposed Rate ($) | G11: Proposed Charge ($) | H11: Change ($) | I11: Change (%) | J11: % of Total Bill
A12: Weighted Average Hourly Spot Price | B12: =B8 -> 9679.21 | C12: =VLOOKUP($A12,'Data Pass Through'!$A:$D,2,FALSE) -> 0.119 | D12: =B12*C12 -> 1151.82599 | E12: =C8 -> 9679.21 | F12: =VLOOKUP($A12,'Data Pass Through'!$A:$D,3,FALSE) -> 0.119 | G12: =E12*F12 -> 1151.82599 | H12: =G12-D12 -> 0 | I12: =IF(ISERROR(H12/ABS(D12)),"N/A",(H12/ABS(D12))) -> 0 | J12: =G12/G$31 -> 0.5748624691
A13: Sub-Total: Energy (WAHSP) | D13: =SUM(D12:D12) -> 1151.82599 | G13: =SUM(G12:G12) -> 1151.82599 | H13: 0 | I13: 0 | J13: 0.5748624691
A14: Service Charge | B14: 1 | C14: =VLOOKUP($B$3,'Data Current Rates'!$A:$AN,MATCH('BI Template_DemandWHSI'!$A14,CurrentHeader,0),FALSE) -> 174.42 | D14: =B14*C14 -> 174.42 | E14: 1 | F14: =VLOOKUP($C$3,'Data Proposed Rates'!$A:$AZ,MATCH('BI Template_DemandWHSI'!$A14,ProposedHeader,0),FALSE) -> 185.59 | G14: =E14*F14 -> 185.59 | H14: 11.17 | I14: 0.06404082101 | J14: 0.09262573216
A15: Distribution Volumetric Charge | B15: =IF($B$9="kWh",$B$4,$B$5) -> 50 | C15: =VLOOKUP($B$3,'Data Current Rates'!$A:$AN,MATCH('BI Template_DemandWHSI'!$A15,CurrentHeader,0),FALSE) -> 2.8154 | D15: =B15*C15 -> 140.77 | E15: =IF($C$9="kWh",$C$4,$C$5) -> 50 | F15: =VLOOKUP($C$3,'Data Proposed Rates'!$A:$AZ,MATCH('BI Template_DemandWHSI'!$A15,ProposedHeader,0),FALSE) -> 2.9885 | G15: 149.425 | H15: 8.655 | I15: 0.06148327058 | J15: 0.07457621654
A16: Group 1 Volumetric DVA Rider (General) | B16: =IF($B$9="kWh",$B$4,$B$5) -> 50 | C16: =VLOOKUP($B$3,'Data Current Rates'!$A:$AN,MATCH('BI Template_DemandWHSI'!$A16,CurrentHeader,0),FALSE) -> -0.0394 | D16: =B16*C16 -> -1.97 | E16: =IF($C$9="kWh",$C$4,$C$5) -> 50 | F16: =VLOOKUP($C$3,'Data Proposed Rates'!$A:$AZ,MATCH('BI Template_DemandWHSI'!$A16,ProposedHeader,0),FALSE) -> -0.0394 | G16: -1.97 | H16: 0 | I16: 0 | J16: -0.0009832032564
A17: Group 1 Volumetric Deferral/Variance Account Rider (Sub-Account RSVA Wholesale Market Service Charge & RSVA Power) | B17: 50 | C17: =VLOOKUP($B$3,'Data Current Rates'!$A:$AN,MATCH('BI Template_DemandWHSI'!$A17,CurrentHeader,0),FALSE) -> -0.0821 | D17: -4.105 | E17: 50 | F17: =VLOOKUP($C$3,'Data Proposed Rates'!$A:$AZ,MATCH('BI Template_DemandWHSI'!$A17,ProposedHeader,0),FALSE) -> -0.0821 | G17: -4.105 | H17: 0 | I17: 0 | J17: -0.002048756024
A18: Group 1 Volumetric Deferral/Variance Account Rider (Sub-Account Global Adjustment) | B18: =B4 -> 9370 | C18: =VLOOKUP($B$3,'Data Current Rates'!$A:$AN,MATCH('BI Template_DemandWHSI'!$A18,CurrentHeader,0),FALSE) -> -0.0007 | D18: -6.559 | E18: =C4 -> 9370 | F18: =VLOOKUP($C$3,'Data Proposed Rates'!$A:$AZ,MATCH('BI Template_DemandWHSI'!$A18,ProposedHeader,0),FALSE) -> -0.0007 | G18: -6.559 | H18: 0 | I18: 0 | J18: -0.003273517847
A19: Sub-Total: Distribution | D19: =SUM(INDIRECT("D14:D"&ROW()-1)) -> 302.556 | G19: =SUM(INDIRECT("g14:g"&ROW()-1)) -> 322.381 | H19: =G19-D19 -> 19.825 | I19: 0.06552505982 | J19: 0.1608964716
A20: Retail Transmission Rate – Network Service Rate | B20: =IF($B$9="kWh",$B$4,$B$5) -> 50 | C20: =VLOOKUP($B$3,'Data Current Rates'!$A:$AN,MATCH('BI Template_DemandWHSI'!$A20,CurrentHeader,0),FALSE) -> 3.021 | D20: =B20*C20 -> 151.05 | E20: =IF($C$9="kWh",$C$4,$C$5) -> 50 | F20: =VLOOKUP($C$3,'Data Proposed Rates'!$A:$AZ,MATCH('BI Template_DemandWHSI'!$A20,ProposedHeader,0),FALSE) -> 3.021 | G20: =E20*F20 -> 151.05 | H20: =G20-D20 -> 0 | I20: 0 | J20: 0.07538723446
A21: Retail Transmission Rate – Line and Transformation Connection Service Rate | B21: =IF($B$9="kWh",$B$4,$B$5) -> 50 | C21: =VLOOKUP($B$3,'Data Current Rates'!$A:$AN,MATCH('BI Template_DemandWHSI'!$A21,CurrentHeader,0),FALSE) -> 2.1978 | D21: =B21*C21 -> 109.89 | E21: =IF($C$9="kWh",$C$4,$C$5) -> 50 | F21: =VLOOKUP($C$3,'Data Proposed Rates'!$A:$AZ,MATCH('BI Template_DemandWHSI'!$A21,ProposedHeader,0),FALSE) -> 2.1978 | G21: =E21*F21 -> 109.89 | H21: =G21-D21 -> 0 | I21: 0 | J21: 0.05484477454
A22: Sub-Total: Retail Transmission | D22: =SUM(D20:D21) -> 260.94 | G22: =SUM(G20:G21) -> 260.94 | H22: =G22-D22 -> 0 | I22: 0 | J22: 0.130232009
A23: Sub-Total: Delivery (based on two-tier RPP prices) | D23: =SUM(D19,D22) -> 563.496 | G23: =SUM(G19,G22) -> 583.321 | H23: =G23-D23 -> 19.825 | I23: 0.03518214859 | J23: 0.2911284806
A24: Wholesale Market Service Rate (WMS) - not including CBR | B24: =B8 -> 9679.21 | C24: =VLOOKUP($A24,'Data Pass Through'!$A:$D,2,FALSE) -> 0.003 | D24: =B24*C24 -> 29.03763 | E24: =$C$8 -> 9679.21 | F24: =VLOOKUP($A24,'Data Pass Through'!$A:$D,3,FALSE) -> 0.003 | G24: =E24*F24 -> 29.03763 | H24: =G24-D24 -> 0 | I24: 0 | J24: 0.01449233115
A25: Capacity Based Recovery (CBR) - Applicable for Class B Customers | B25: =B8 -> 9679.21 | C25: =VLOOKUP($A25,'Data Pass Through'!$A:$D,2,FALSE) -> 0.0004 | D25: =B25*C25 -> 3.871684 | E25: =$C$8 -> 9679.21 | F25: =VLOOKUP($A25,'Data Pass Through'!$A:$D,3,FALSE) -> 0.0004 | G25: =E25*F25 -> 3.871684 | H25: 0 | I25: 0 | J25: 0.001932310821
A26: Rural Rate Protection Charge | B26: =B8 -> 9679.21 | C26: =VLOOKUP($A26,'Data Pass Through'!$A:$D,2,FALSE) -> 0.0005 | D26: 4.839605 | E26: 9679.21 | F26: =VLOOKUP($A26,'Data Pass Through'!$A:$D,3,FALSE) -> 0.0005 | G26: 4.839605 | H26: 0 | I26: 0 | J26: 0.002415388526
A27: Standard Supply Service – Administration Charge (if applicable) | B27: 1 | C27: =VLOOKUP($A27,'Data Pass Through'!$A:$D,2,FALSE) -> 0.25 | D27: =B27*C27 -> 0.25 | E27: =B27 -> 1 | F27: =VLOOKUP($A27,'Data Pass Through'!$A:$D,3,FALSE) -> 0.25 | G27: 0.25 | H27: 0 | I27: 0 | J27: 0.0001247719869
A28: Sub-Total: Regulatory | D28: =SUM(D24:D27) -> 37.998919 | G28: =SUM(G24:G27) -> 37.998919 | H28: 0 | I28: 0 | J28: 0.01896480249
A29: Total Electricty Charge on WAHSP | D29: =SUM(D13,D23,D28) -> 1753.320909 | G29: =SUM(G13,G23,G28) -> 1773.145909 | H29: 19.825 | I29: 0.01130711434 | J29: 0.8849557522
A30: HST | C30: 0.13 | D30: =D29*C30 -> 227.9317182 | F30: =C30 -> 0.13 | G30: =G29*F30 -> 230.5089682 | H30: 2.57725 | I30: 0.01130711434 | J30: 0.1150442478
A31: Total Amount on WAHSP | D31: =SUM(D29:D30) -> 1981.252627 | G31: =SUM(G29:G30) -> 2003.654877 | H31: 22.40225 | I31: 0.01130711434 | J31: 1

Sheet BI Template_unmWHSI (hidden)
A1: 2026 Bill Impacts (Average Consumption Level) - St Lgt_WHSI
A3: Rate Class | B3: =VLOOKUP(A1,'Data BI List Acq_Seas'!C:E,2,FALSE) -> St Lgt-WHSI | C3: =VLOOKUP(A1,'Data BI List Acq_Seas'!C:E,3,FALSE) -> St Lgt-WHSI
A4: Monthly Consumption (kWh) | B4: =IF(COUNTIF(A1,"*Low*")>0,VLOOKUP(B3,'Data Billing Quantities'!$A:$Z,MATCH("Low kWh",'Data Billing Quantities'!4:4,0),FALSE),IF(COUNTIF(A1,"*Typical*")>0,VLOOKUP(B3,'Data Billing Quantities'!$A:$Z,MATCH("Typical kWh",'Data Billing Quantities'!4:4,0),FALSE),IF(COUNTIF(A1,"*Average*")>0,VLOOKUP(B3,'Data Billing Quantities'!$A:$Z,MATCH("Average kWh",'Data Billing Quantities'!4:4,0),FALSE),IF(COUNTIF(A1,"*High*")>0,VLOOKUP(B3,'Data Billing Quantities'!$A:$Z,MATCH("High kWh",'Data Billing Quantities'!4:4,0),FALSE),"error")))) -> 37079 | C4: =B4 -> 37079
A5: Peak (kW) | B5: =IF(COUNTIF(A1,"*Low*")>0,VLOOKUP(B3,'Data Billing Quantities'!$A:$Z,MATCH("Low kW",'Data Billing Quantities'!4:4,0),FALSE),IF(COUNTIF(A1,"*Typical*")>0,VLOOKUP(B3,'Data Billing Quantities'!$A:$Z,MATCH("Typical kW",'Data Billing Quantities'!4:4,0),FALSE),IF(COUNTIF(A1,"*Average*")>0,VLOOKUP(B3,'Data Billing Quantities'!$A:$Z,MATCH("Average kW",'Data Billing Quantities'!4:4,0),FALSE),IF(COUNTIF(A1,"*High*")>0,VLOOKUP(B3,'Data Billing Quantities'!$A:$Z,MATCH("High kW",'Data Billing Quantities'!4:4,0),FALSE),"error")))) -> 0 | C5: =B5 -> 0
A6: Loss factor | B6: =VLOOKUP(B3,'Data Billing Quantities'!A:D,MATCH(A6,'Data Billing Quantities'!4:4,0),FALSE) -> 1.092 | C6: =VLOOKUP(C3,'Data Billing Quantities'!A:D,MATCH(A6,'Data Billing Quantities'!4:4,0),FALSE) -> 1.092
A7: Commodity Threshold | B7: =VLOOKUP(B3,'Data Billing Quantities'!A:D,MATCH(A7,'Data Billing Quantities'!4:4,0),FALSE) -> 750 | C7: =B7 -> 750
A8: Monthly Consumption (kWh) - Uplifted | B8: =B4*B6 -> 40490.268 | C8: =C4*C6 -> 40490.268
A9: Charge determinant | B9: =VLOOKUP(B3,'Data Billing Quantities'!A:D,MATCH(A9,'Data Billing Quantities'!4:4,0),FALSE) -> kWh | C9: =VLOOKUP(C3,'Data Billing Quantities'!A:D,MATCH(A9,'Data Billing Quantities'!4:4,0),FALSE) -> kWh
B11: Volume | C11: Current Rate ($) | D11: Current Charge ($) | E11: Volume | F11: Proposed Rate ($) | G11: Proposed Charge ($) | H11: Change ($) | I11: Change (%) | J11: % of Total Bill
A12: Energy First Tier | B12: =IF(B4>B7,B7,B4) -> 750 | C12: =VLOOKUP($A12,'Data Pass Through'!$A:$D,2,FALSE) -> 0.098 | D12: =B12*C12 -> 73.5 | E12: =B12 -> 750 | F12: =VLOOKUP($A12,'Data Pass Through'!$A:$D,3,FALSE) -> 0.098 | G12: =E12*F12 -> 73.5 | H12: =G12-D12 -> 0 | I12: =IF(ISERROR(H12/ABS(D12)),"N/A",(H12/ABS(D12))) -> 0 | J12: =G12/$G$34 -> 0.00658189988
A13: Energy Second Tier | B13: =IF(B4>B7,(B4)-B7,0) -> 36329 | C13: =VLOOKUP($A13,'Data Pass Through'!$A:$D,2,FALSE) -> 0.115 | D13: =B13*C13 -> 4177.835 | E13: =B13 -> 36329 | F13: =VLOOKUP($A13,'Data Pass Through'!$A:$D,3,FALSE) -> 0.115 | G13: =E13*F13 -> 4177.835 | H13: 0 | I13: 0 | J13: 0.3741236964
A14: Sub-Total: Energy (RPP Tiered) | D14: =SUM(D12:D13) -> 4251.335 | G14: =SUM(G12:G13) -> 4251.335 | H14: 0 | I14: 0 | J14: 0.3807055963
A15: Service Charge | B15: =IF(VLOOKUP(B$3,'Data Billing Quantities'!A:P,MATCH("Acquired Street Light Service Charge",'Data Billing Quantities'!$4:$4,0),FALSE)>0,VLOOKUP(B$3,'Data Billing Quantities'!A:P,MATCH("Acquired Street Light Service Charge",'Data Billing Quantities'!$4:$4,0),FALSE),1) -> 1 | C15: =VLOOKUP($B$3,'Data Current Rates'!$A:$AN,MATCH('BI Template_unmWHSI'!$A15,CurrentHeader,0),FALSE) -> 3.18 | D15: =B15*C15 -> 3.18 | E15: 1 | F15: =VLOOKUP($C$3,'Data Proposed Rates'!$A:$AZ,MATCH('BI Template_unmWHSI'!$A15,ProposedHeader,0),FALSE) -> 3.3 | G15: =E15*F15 -> 3.3 | H15: 0.12 | I15: 0.03773584906 | J15: 0.0002955138722
A16: Distribution Volumetric Charge | B16: =IF($B$9="kWh",$B$4,$B$5) -> 37079 | C16: =VLOOKUP($B$3,'Data Current Rates'!$A:$AN,MATCH('BI Template_unmWHSI'!$A16,CurrentHeader,0),FALSE) -> 0.1196 | D16: =B16*C16 -> 4434.6484 | E16: =IF($C$9="kWh",$C$4,$C$5) -> 37079 | F16: =VLOOKUP($C$3,'Data Proposed Rates'!$A:$AZ,MATCH('BI Template_unmWHSI'!$A16,ProposedHeader,0),FALSE) -> 0.1262 | G16: 4679.3698 | H16: 244.7214 | I16: 0.05518394649 | J16: 0.4190359663
A17: Group 1 Volumetric DVA Rider (General) | B17: =IF($B$9="kWh",$B$4,$B$5) -> 37079 | C17: =VLOOKUP($B$3,'Data Current Rates'!$A:$AN,MATCH('BI Template_unmWHSI'!$A17,CurrentHeader,0),FALSE) -> -0.0003 | D17: =B17*C17 -> -11.1237 | E17: =IF($C$9="kWh",$C$4,$C$5) -> 37079 | F17: =VLOOKUP($C$3,'Data Proposed Rates'!$A:$AZ,MATCH('BI Template_unmWHSI'!$A17,ProposedHeader,0),FALSE) -> -0.0003 | G17: -11.1237 | H17: 0 | I17: 0 | J17: -0.0009961235333
A18: Sub-Total: Distribution (excluding pass through) | D18: =SUM(INDIRECT("D15:D"&ROW()-1)) -> 4426.7047 | G18: =SUM(INDIRECT("g15:g"&ROW()-1)) -> 4671.5461 | H18: =G18-D18 -> 244.8414 | I18: 0.05531008201 | J18: 0.4183353567
A19: Line Losses on Cost of Power (based on two-tier RPP prices) | B19: =B8-B4 -> 3411.268 | C19: =IF(B4>B7,C13,C12) -> 0.115 | D19: =B19*C19 -> 392.29582 | E19: =C8-C4 -> 3411.268 | F19: =IF(C4>C7,F13,F12) -> 0.115 | G19: =E19*F19 -> 392.29582 | H19: 0 | I19: 0 | J19: 0.03512995661
A20: Sub-Total: Distribution (based on two-tier RPP prices) | D20: =SUM(D18,D19:D19) -> 4819.00052 | G20: =SUM(G18,G19:G19) -> 5063.84192 | H20: 244.8414 | I20: 0.05080750645 | J20: 0.4534653133
A21: Retail Transmission Rate – Network Service Rate | B21: =IF($B$9="kWh",$B$8,$B$5) -> 40490.268 | C21: =VLOOKUP($B$3,'Data Current Rates'!$A:$AN,MATCH('BI Template_unmWHSI'!$A21,CurrentHeader,0),FALSE) -> 0.0059 | D21: =B21*C21 -> 238.8925812 | E21: =IF($C$9="kWh",$C$8,$C$5) -> 40490.268 | F21: =VLOOKUP($C$3,'Data Proposed Rates'!$A:$AZ,MATCH('BI Template_unmWHSI'!$A21,ProposedHeader,0),FALSE) -> 0.0059 | G21: =E21*F21 -> 238.8925812 | H21: =G21-D21 -> 0 | I21: 0 | J21: 0.021392749
A22: Retail Transmission Rate – Line and Transformation Connection Service Rate | B22: =IF($B$9="kWh",$B$8,$B$5) -> 40490.268 | C22: =VLOOKUP($B$3,'Data Current Rates'!$A:$AN,MATCH('BI Template_unmWHSI'!$A22,CurrentHeader,0),FALSE) -> 0.0042 | D22: =B22*C22 -> 170.0591256 | E22: =IF($C$9="kWh",$C$8,$C$5) -> 40490.268 | F22: =VLOOKUP($C$3,'Data Proposed Rates'!$A:$AZ,MATCH('BI Template_unmWHSI'!$A22,ProposedHeader,0),FALSE) -> 0.0042 | G22: =E22*F22 -> 170.0591256 | H22: =G22-D22 -> 0 | I22: 0 | J22: 0.01522873658
A23: Sub-Total: Retail Transmission | D23: =SUM(D21:D22) -> 408.9517068 | G23: =SUM(G21:G22) -> 408.9517068 | H23: =G23-D23 -> 0 | I23: 0 | J23: 0.03662148558
A24: Sub-Total: Delivery (based on two-tier RPP prices) | D24: =D20+D23 -> 5227.952227 | G24: =G20+G23 -> 5472.793627 | H24: =G24-D24 -> 244.8414 | I24: 0.04683313645 | J24: 0.4900867988
A25: Wholesale Market Service Rate (WMS) - not including CBR | B25: =B8 -> 40490.268 | C25: =VLOOKUP($A25,'Data Pass Through'!$A:$D,2,FALSE) -> 0.003 | D25: =B25*C25 -> 121.470804 | E25: =$C$8 -> 40490.268 | F25: =VLOOKUP($A25,'Data Pass Through'!$A:$D,3,FALSE) -> 0.003 | G25: =E25*F25 -> 121.470804 | H25: =G25-D25 -> 0 | I25: 0 | J25: 0.01087766898
A26: Capacity Based Recovery (CBR) - Applicable for Class B Customers | B26: =B8 -> 40490.268 | C26: =VLOOKUP($A26,'Data Pass Through'!$A:$D,2,FALSE) -> 0.0004 | D26: =B26*C26 -> 16.1961072 | E26: =$C$8 -> 40490.268 | F26: =VLOOKUP($A26,'Data Pass Through'!$A:$D,3,FALSE) -> 0.0004 | G26: =E26*F26 -> 16.1961072 | H26: 0 | I26: 0 | J26: 0.001450355864
A27: Rural Rate Protection Charge | B27: =B8 -> 40490.268 | C27: =VLOOKUP($A27,'Data Pass Through'!$A:$D,2,FALSE) -> 0.0005 | D27: 20.245134 | E27: 40490.268 | F27: =VLOOKUP($A27,'Data Pass Through'!$A:$D,3,FALSE) -> 0.0005 | G27: 20.245134 | H27: 0 | I27: 0 | J27: 0.001812944831
A28: Standard Supply Service – Administration Charge (if applicable) | B28: 1 | C28: =VLOOKUP($A28,'Data Pass Through'!$A:$D,2,FALSE) -> 0.25 | D28: =B28*C28 -> 0.25 | E28: 1 | F28: =VLOOKUP($A28,'Data Pass Through'!$A:$D,3,FALSE) -> 0.25 | G28: 0.25 | H28: 0 | I28: 0 | J28: 2.238741456e-05
A29: Sub-Total: Regulatory | D29: =SUM(D25:D28) -> 158.1620452 | G29: =SUM(G25:G28) -> 158.1620452 | H29: 0 | I29: 0 | J29: 0.01416335709
A30: Total Electricty Charge on Two-Tier RPP | D30: =SUM(D24,D29,D14) -> 9637.449272 | G30: =SUM(G24,G29,G14) -> 9882.290672 | H30: 244.8414 | I30: 0.02540520765 | J30: 0.8849557522
A31: HST | C31: 0.13 | D31: =D30*C31 -> 1252.868405 | F31: =C31 -> 0.13 | G31: =G30*F31 -> 1284.697787 | H31: 31.829382 | I31: 0.02540520765 | J31: 0.1150442478
A32: Total Electricity Charge on Two-Tier RPP (including HST) | D32: =SUM(D30:D31) -> 10890.31768 | G32: =SUM(G30:G31) -> 11166.98846 | H32: 276.670782 | I32: 0.02540520765 | J32: 1
A33: Ontario Electricity Rebate (OER) | C33: =IF(($B$4*12)<250000,VLOOKUP(A33,'Data Pass Through'!$A$4:$C$20,2,0),0) -> 0 | D33: =D30*C33 -> 0 | F33: =C33 -> 0 | G33: =G30*F33 -> 0 | H33: 0 | I33: N/A | J33: 0
A34: Total Amount on Two-Tier RPP | D34: =SUM(D32:D33) -> 10890.31768 | G34: =SUM(G32:G33) -> 11166.98846 | H34: 276.670782 | I34: 0.02540520765 | J34: 1

Sheet BI Template_EnergyUNM (hidden)
A1: 2026 Bill Impacts (Average Consumption Level) - USL
A3: Rate Class | B3: =RIGHT(A1,LEN(A1)-FIND("- ",A1,1)-1) -> USL
A4: Monthly Consumption (kWh) | B4: =IF(COUNTIF(A1,"*Low*")>0,VLOOKUP(B3,'Data Billing Quantities'!$A:$Z,MATCH("Low kWh",'Data Billing Quantities'!4:4,0),FALSE),IF(COUNTIF(A1,"*Typical*")>0,VLOOKUP(B3,'Data Billing Quantities'!$A:$Z,MATCH("Typical kWh",'Data Billing Quantities'!4:4,0),FALSE),IF(COUNTIF(A1,"*Average*")>0,VLOOKUP(B3,'Data Billing Quantities'!$A:$Z,MATCH("Average kWh",'Data Billing Quantities'!4:4,0),FALSE),IF(COUNTIF(A1,"*High*")>0,VLOOKUP(B3,'Data Billing Quantities'!$A:$Z,MATCH("High kWh",'Data Billing Quantities'!4:4,0),FALSE),"error")))) -> 477
A5: Peak (kW) | B5: =IF(COUNTIF(A1,"*Low*")>0,VLOOKUP(B3,'Data Billing Quantities'!$A:$Z,MATCH("Low kW",'Data Billing Quantities'!4:4,0),FALSE),IF(COUNTIF(A1,"*Typical*")>0,VLOOKUP(B3,'Data Billing Quantities'!$A:$Z,MATCH("Typical kW",'Data Billing Quantities'!4:4,0),FALSE),IF(COUNTIF(A1,"*Average*")>0,VLOOKUP(B3,'Data Billing Quantities'!$A:$Z,MATCH("Average kW",'Data Billing Quantities'!4:4,0),FALSE),IF(COUNTIF(A1,"*High*")>0,VLOOKUP(B3,'Data Billing Quantities'!$A:$Z,MATCH("High kW",'Data Billing Quantities'!4:4,0),FALSE),"error")))) -> 0
A6: Loss factor | B6: =VLOOKUP(B3,'Data Billing Quantities'!A:D,MATCH(A6,'Data Billing Quantities'!4:4,0),FALSE) -> 1.092
A7: Commodity Threshold | B7: =VLOOKUP(B3,'Data Billing Quantities'!A:D,MATCH(A7,'Data Billing Quantities'!4:4,0),FALSE) -> 750
A8: Monthly Consumption (kWh) - Uplifted | B8: =B4*B6 -> 520.884
A9: Charge determinant | B9: =VLOOKUP(B3,'Data Billing Quantities'!A:D,MATCH(A9,'Data Billing Quantities'!4:4,0),FALSE) -> kWh
B11: Volume | C11: Current Rate ($) | D11: Current Charge ($) | E11: Volume | F11: Proposed Rate ($) | G11: Proposed Charge ($) | H11: Change ($) | I11: Change (%) | J11: % of Total Bill
A12: Energy First Tier | B12: =IF(B4>B7,B7,B4) -> 477 | C12: =VLOOKUP($A12,'Data Pass Through'!$A:$D,2,FALSE) -> 0.098 | D12: =B12*C12 -> 46.746 | E12: =B12 -> 477 | F12: =VLOOKUP($A12,'Data Pass Through'!$A:$D,3,FALSE) -> 0.098 | G12: =E12*F12 -> 46.746 | H12: =G12-D12 -> 0 | I12: =IF(ISERROR(H12/ABS(D12)),"N/A",(H12/ABS(D12))) -> 0 | J12: =G12/$G$35 -> 0.4522930553
A13: Energy Second Tier | B13: =IF(B4>B7,(B4)-B7,0) -> 0 | C13: =VLOOKUP($A13,'Data Pass Through'!$A:$D,2,FALSE) -> 0.115 | D13: =B13*C13 -> 0 | E13: =B13 -> 0 | F13: =VLOOKUP($A13,'Data Pass Through'!$A:$D,3,FALSE) -> 0.115 | G13: =E13*F13 -> 0 | H13: 0 | I13: N/A | J13: 0
A14: Sub-Total: Energy (RPP Tiered) | D14: =SUM(D12:D13) -> 46.746 | G14: =SUM(G12:G13) -> 46.746 | H14: 0 | I14: 0 | J14: 0.4522930553
A15: Service Charge | B15: 1 | C15: =VLOOKUP($B$3,'Data Current Rates'!$A:$AN,MATCH('BI Template_EnergyUNM'!$A15,CurrentHeader,0),FALSE) -> 36.85 | D15: =B15*C15 -> 36.85 | E15: 1 | F15: =VLOOKUP($B$3,'Data Proposed Rates'!$A:$AZ,MATCH('BI Template_EnergyUNM'!$A15,ProposedHeader,0),FALSE) -> 38.82 | G15: =E15*F15 -> 38.82 | H15: 1.97 | I15: 0.05345997286 | J15: 0.3756046808
A16: Distribution Volumetric Charge | B16: =IF($B$9="kWh",$B$4,$B$5) -> 477 | C16: =VLOOKUP($B$3,'Data Current Rates'!$A:$AN,MATCH('BI Template_EnergyUNM'!$A16,CurrentHeader,0),FALSE) -> 0.0235 | D16: 11.2095 | E16: 477 | F16: =VLOOKUP($B$3,'Data Proposed Rates'!$A:$AZ,MATCH('BI Template_EnergyUNM'!$A16,ProposedHeader,0),FALSE) -> 0.0249 | G16: 11.8773 | H16: 0.6678 | I16: 0.05957446809 | J16: 0.1149193579
A17: Group 1 Volumetric DVA Rider (General) | B17: =IF($B$9="kWh",$B$4,$B$5) -> 477 | C17: =VLOOKUP($B$3,'Data Current Rates'!$A:$AN,MATCH('BI Template_EnergyUNM'!$A17,CurrentHeader,0),FALSE) -> -0.0004 | D17: =B17*C17 -> -0.1908 | E17: =B4 -> 477 | F17: =VLOOKUP($B$3,'Data Proposed Rates'!$A:$AZ,MATCH('BI Template_EnergyUNM'!$A17,ProposedHeader,0),FALSE) -> -0.0004 | G17: =E17*F17 -> -0.1908 | H17: =G17-D17 -> 0 | I17: =IF(ISERROR(H17/ABS(D17)),"N/A",(H17/ABS(D17))) -> 0 | J17: -0.001846094103
A18: Group 2 Volumetric DVA Rider | B18: 477 | C18: =VLOOKUP($B$3,'Data Current Rates'!$A:$AN,MATCH('BI Template_EnergyUNM'!$A18,CurrentHeader,0),FALSE) -> -0.0002 | D18: -0.0954 | E18: =B4 -> 477 | F18: =VLOOKUP($B$3,'Data Proposed Rates'!$A:$AZ,MATCH('BI Template_EnergyUNM'!$A18,ProposedHeader,0),FALSE) -> -0.0002 | G18: -0.0954 | H18: 0 | I18: 0 | J18: -0.0009230470517
A19: Sub-Total: Distribution (excluding pass through) | D19: =SUM(INDIRECT("D15:D"&ROW()-1)) -> 47.7733 | G19: =SUM(INDIRECT("g15:g"&ROW()-1)) -> 50.4111 | H19: =G19-D19 -> 2.6378 | I19: 0.05521494224 | J19: 0.4877548976
A20: Line Losses on Cost of Power (based on two-tier RPP prices) | B20: =B8-B4 -> 43.884 | C20: =IF(B4>B7,C13,C12) -> 0.098 | D20: =B20*C20 -> 4.300632 | E20: 43.884 | F20: =IF(B4>B7,F13,F12) -> 0.098 | G20: =E20*F20 -> 4.300632 | H20: 0 | I20: 0 | J20: 0.04161096109
A21: Sub-Total: Distribution (based on two-tier RPP prices) | D21: =SUM(D19,D20:D20) -> 52.073932 | G21: =SUM(G19,G20:G20) -> 54.711732 | H21: 2.6378 | I21: 0.05065490349 | J21: 0.5293658587
A22: Retail Transmission Rate – Network Service Rate | B22: =B8 -> 520.884 | C22: =VLOOKUP($B$3,'Data Current Rates'!$A:$AN,MATCH('BI Template_EnergyUNM'!$A22,CurrentHeader,0),FALSE) -> 0.0068 | D22: =B22*C22 -> 3.5420112 | E22: 520.884 | F22: =VLOOKUP($B$3,'Data Proposed Rates'!$A:$AZ,MATCH('BI Template_EnergyUNM'!$A22,ProposedHeader,0),FALSE) -> 0.0068 | G22: =E22*F22 -> 3.5420112 | H22: =G22-D22 -> 0 | I22: 0 | J22: 0.03427089094
A23: Retail Transmission Rate – Line and Transformation Connection Service Rate | B23: =B8 -> 520.884 | C23: =VLOOKUP($B$3,'Data Current Rates'!$A:$AN,MATCH('BI Template_EnergyUNM'!$A23,CurrentHeader,0),FALSE) -> 0.0049 | D23: =B23*C23 -> 2.5523316 | E23: 520.884 | F23: =VLOOKUP($B$3,'Data Proposed Rates'!$A:$AZ,MATCH('BI Template_EnergyUNM'!$A23,ProposedHeader,0),FALSE) -> 0.0049 | G23: =E23*F23 -> 2.5523316 | H23: =G23-D23 -> 0 | I23: 0 | J23: 0.02469520082
A24: Sub-Total: Retail Transmission | D24: =SUM(D22:D23) -> 6.0943428 | G24: =SUM(G22:G23) -> 6.0943428 | H24: =G24-D24 -> 0 | I24: 0 | J24: 0.05896609176
A25: Sub-Total: Delivery (based on two-tier RPP prices) | D25: =D21+D24 -> 58.1682748 | G25: =G21+G24 -> 60.8060748 | H25: =G25-D25 -> 2.6378 | I25: 0.04534774341 | J25: 0.5883319504
A26: Wholesale Market Service Rate (WMS) - not including CBR | B26: =B8 -> 520.884 | C26: =VLOOKUP($A26,'Data Pass Through'!$A:$D,2,FALSE) -> 0.003 | D26: =B26*C26 -> 1.562652 | E26: =$B$8 -> 520.884 | F26: =VLOOKUP($A26,'Data Pass Through'!$A:$D,3,FALSE) -> 0.003 | G26: =E26*F26 -> 1.562652 | H26: =G26-D26 -> 0 | I26: 0 | J26: 0.01511951071
A27: Capacity Based Recovery (CBR) - Applicable for Class B Customers | B27: =B8 -> 520.884 | C27: =VLOOKUP($A27,'Data Pass Through'!$A:$D,2,FALSE) -> 0.0004 | D27: =B27*C27 -> 0.2083536 | E27: =$B$8 -> 520.884 | F27: =VLOOKUP($A27,'Data Pass Through'!$A:$D,3,FALSE) -> 0.0004 | G27: =E27*F27 -> 0.2083536 | H27: 0 | I27: 0 | J27: 0.002015934761
A28: Rural Rate Protection Charge | B28: =B8 -> 520.884 | C28: =VLOOKUP($A28,'Data Pass Through'!$A:$D,2,FALSE) -> 0.0005 | D28: 0.260442 | E28: 520.884 | F28: =VLOOKUP($A28,'Data Pass Through'!$A:$D,3,FALSE) -> 0.0005 | G28: 0.260442 | H28: 0 | I28: 0 | J28: 0.002519918451
A29: Standard Supply Service – Administration Charge (if applicable) | B29: 1 | C29: =VLOOKUP($A29,'Data Pass Through'!$A:$D,2,FALSE) -> 0.25 | D29: =B29*C29 -> 0.25 | E29: 1 | F29: =VLOOKUP($A29,'Data Pass Through'!$A:$D,3,FALSE) -> 0.25 | G29: 0.25 | H29: 0 | I29: 0 | J29: 0.002418886404
A30: Sub-Total: Regulatory | D30: =SUM(D26:D29) -> 2.2814476 | G30: =SUM(G26:G29) -> 2.2814476 | H30: 0 | I30: 0 | J30: 0.02207425032
A31: Total Electricty Charge on Two-Tier RPP | D31: =SUM(D14,D19,D20,D24,D30) -> 107.1957224 | G31: =SUM(G14,G19,G20,G24,G30) -> 109.8335224 | H31: 2.6378 | I31: 0.02460732519 | J31: 1.062699256
A32: HST | C32: 0.13 | D32: =D31*C32 -> 13.93544391 | F32: =C32 -> 0.13 | G32: =G31*F32 -> 14.27835791 | H32: 0.342914 | I32: 0.02460732519 | J32: 0.1381509033
A33: Total Electricity Charge on Two-Tier RPP (including HST) | D33: =SUM(D31:D32) -> 121.1311663 | G33: =SUM(G31:G32) -> 124.1118803 | H33: 2.980714 | I33: 0.02460732519 | J33: 1.200850159
A34: Ontario Electricity Rebate (OER) | C34: =IF(($B$4*12)<250000,VLOOKUP(A34,'Data Pass Through'!$A$4:$C$20,2,0),0) -> -0.189 | D34: =D31*C34 -> -20.25999153 | F34: =C34 -> -0.189 | G34: =G31*F34 -> -20.75853573 | H34: -0.4985442 | I34: -0.02460732519 | J34: -0.2008501594
A35: Total Amount on Two-Tier RPP | D35: =SUM(D33:D34) -> 100.8711748 | G35: =SUM(G33:G34) -> 103.3533446 | H35: 2.4821698 | I35: 0.02460732519 | J35: 1

Sheet BI Template_Demand (hidden)
A1: 2026 Bill Impacts (Average Consumption Level) - GSd
A3: Rate Class | B3: =RIGHT(A1,LEN(A1)-FIND("- ",A1,1)-1) -> GSd
A4: Monthly Consumption (kWh) | B4: =IF(COUNTIF(A1,"*Low*")>0,VLOOKUP(B3,'Data Billing Quantities'!$A:$Z,MATCH("Low kWh",'Data Billing Quantities'!4:4,0),FALSE),IF(COUNTIF(A1,"*Typical*")>0,VLOOKUP(B3,'Data Billing Quantities'!$A:$Z,MATCH("Typical kWh",'Data Billing Quantities'!4:4,0),FALSE),IF(COUNTIF(A1,"*Average*")>0,VLOOKUP(B3,'Data Billing Quantities'!$A:$Z,MATCH("Average kWh",'Data Billing Quantities'!4:4,0),FALSE),IF(COUNTIF(A1,"*High*")>0,VLOOKUP(B3,'Data Billing Quantities'!$A:$Z,MATCH("High kWh",'Data Billing Quantities'!4:4,0),FALSE),"error")))) -> 34334
A5: Peak (kW) | B5: =IF(COUNTIF(A1,"*Low*")>0,VLOOKUP(B3,'Data Billing Quantities'!$A:$Z,MATCH("Low kW",'Data Billing Quantities'!4:4,0),FALSE),IF(COUNTIF(A1,"*Typical*")>0,VLOOKUP(B3,'Data Billing Quantities'!$A:$Z,MATCH("Typical kW",'Data Billing Quantities'!4:4,0),FALSE),IF(COUNTIF(A1,"*Average*")>0,VLOOKUP(B3,'Data Billing Quantities'!$A:$Z,MATCH("Average kW",'Data Billing Quantities'!4:4,0),FALSE),IF(COUNTIF(A1,"*High*")>0,VLOOKUP(B3,'Data Billing Quantities'!$A:$Z,MATCH("High kW",'Data Billing Quantities'!4:4,0),FALSE),"error")))) -> 110
A6: Loss factor | B6: =VLOOKUP(B3,'Data Billing Quantities'!A:D,MATCH(A6,'Data Billing Quantities'!4:4,0),FALSE) -> 1.061
A7: Load factor | B7: =B4/(B5*730) -> 0.4275716065
A8: Monthly Consumption (kWh) - Uplifted | B8: =B4*B6 -> 36428.374
A9: Charge determinant | B9: =VLOOKUP(B3,'Data Billing Quantities'!A:D,MATCH(A9,'Data Billing Quantities'!4:4,0),FALSE) -> kW
B11: Volume | C11: Current Rate ($) | D11: Current Charge ($) | E11: Volume | F11: Proposed Rate ($) | G11: Proposed Charge ($) | H11: Change ($) | I11: Change (%) | J11: % of Total Bill
A12: Weighted Average Hourly Spot Price | B12: =B8 -> 36428.374 | C12: =VLOOKUP($A12,'Data Pass Through'!$A:$D,2,FALSE) -> 0.119 | D12: =B12*C12 -> 4334.976506 | E12: =B8 -> 36428.374 | F12: =VLOOKUP($A12,'Data Pass Through'!$A:$D,3,FALSE) -> 0.119 | G12: =E12*F12 -> 4334.976506 | H12: =G12-D12 -> 0 | I12: =IF(ISERROR(H12/ABS(D12)),"N/A",(H12/ABS(D12))) -> 0 | J12: =G12/$G$32 -> 0.5150833109
A13: Sub-Total: Energy (WAHSP) | D13: =SUM(D12:D12) -> 4334.976506 | G13: =SUM(G12:G12) -> 4334.976506 | H13: =G13-D13 -> 0 | I13: 0 | J13: 0.5150833109
A14: Service Charge | B14: 1 | C14: =VLOOKUP($B$3,'Data Current Rates'!$A:$AO,MATCH($A14,CurrentHeader,0),FALSE) -> 107.44 | D14: =B14*C14 -> 107.44 | E14: =B14 -> 1 | F14: =VLOOKUP($B$3,'Data Proposed Rates'!$A:$AZ,MATCH($A14,ProposedHeader,0),FALSE) -> 111.65 | G14: =E14*F14 -> 111.65 | H14: 4.21 | I14: 0.03918466121 | J14: 0.01326628912
A15: Distribution Volumetric Charge | B15: =IF($B$9="kWh",$B$4,$B$5) -> 110 | C15: =VLOOKUP($B$3,'Data Current Rates'!$A:$AO,MATCH($A15,CurrentHeader,0),FALSE) -> 20.7175 | D15: =B15*C15 -> 2278.925 | E15: =$B$5 -> 110 | F15: =VLOOKUP($B$3,'Data Proposed Rates'!$A:$AZ,MATCH($A15,ProposedHeader,0),FALSE) -> 21.8618 | G15: =E15*F15 -> 2404.798 | H15: 125.873 | I15: =IF(ISERROR(H15/ABS(D15)),"N/A",(H15/ABS(D15))) -> 0.05523349825 | J15: 0.2857388764
A16: Group 1 Volumetric DVA Rider (General) | B16: =IF($B$9="kWh",$B$4,$B$5) -> 110 | C16: =VLOOKUP($B$3,'Data Current Rates'!$A:$AO,MATCH($A16,CurrentHeader,0),FALSE) -> -0.0519 | D16: =B16*C16 -> -5.709 | E16: =$B$5 -> 110 | F16: =VLOOKUP($B$3,'Data Proposed Rates'!$A:$AZ,MATCH($A16,ProposedHeader,0),FALSE) -> -0.0519 | G16: -5.709 | H16: 0 | I16: =IF(ISERROR(H16/ABS(D16)),"N/A",(H16/ABS(D16))) -> 0 | J16: -0.000678345227
A17: Group 1 Volumetric Deferral/Variance Account Rider (Sub-Account RSVA Wholesale Market Service Charge & RSVA Power) | B17: 110 | C17: =VLOOKUP($B$3,'Data Current Rates'!$A:$AO,MATCH($A17,CurrentHeader,0),FALSE) -> -0.0726 | D17: -7.986 | E17: 110 | F17: =VLOOKUP($B$3,'Data Proposed Rates'!$A:$AZ,MATCH($A17,ProposedHeader,0),FALSE) -> -0.0726 | G17: -7.986 | H17: 0 | I17: 0 | J17: -0.0009488991036
A18: Group 1 Volumetric Deferral/Variance Account Rider (Sub-Account Global Adjustment) | B18: =B4 -> 34334 | C18: =VLOOKUP($B$3,'Data Current Rates'!$A:$AO,MATCH($A18,CurrentHeader,0),FALSE) -> -0.0007 | D18: -24.0338 | E18: =B4 -> 34334 | F18: =VLOOKUP($B$3,'Data Proposed Rates'!$A:$AZ,MATCH($A18,ProposedHeader,0),FALSE) -> -0.0007 | G18: -24.0338 | H18: 0 | I18: 0 | J18: -0.002855703891
A19: Group 2 Volumetric DVA Rider | B19: 110 | C19: =VLOOKUP($B$3,'Data Current Rates'!$A:$AO,MATCH($A19,CurrentHeader,0),FALSE) -> -0.0475 | D19: -5.225 | E19: =B5 -> 110 | F19: =VLOOKUP($B$3,'Data Proposed Rates'!$A:$AZ,MATCH($A19,ProposedHeader,0),FALSE) -> -0.0475 | G19: =E19*F19 -> -5.225 | H19: =G19-D19 -> 0 | I19: =IF(ISERROR(H19/ABS(D19)),"N/A",(H19/ABS(D19))) -> 0 | J19: -0.0006208361904
A20: Sub-Total: Distribution | D20: =SUM(INDIRECT("D14:D"&ROW()-1)) -> 2343.4112 | G20: =SUM(INDIRECT("g14:g"&ROW()-1)) -> 2473.4942 | H20: 130.083 | I20: 0.05551010424 | J20: 0.2939013811
A21: Retail Transmission Rate – Network Service Rate | B21: =IF($B$9="kWh",$B$4,$B$5) -> 110 | C21: =VLOOKUP($B$3,'Data Current Rates'!$A:$AO,MATCH($A21,CurrentHeader,0),FALSE) -> 2.5967 | D21: =B21*C21 -> 285.637 | E21: 110 | F21: =VLOOKUP($B$3,'Data Proposed Rates'!$A:$AZ,MATCH($A21,ProposedHeader,0),FALSE) -> 2.5967 | G21: =E21*F21 -> 285.637 | H21: 0 | I21: 0 | J21: 0.03393948075
A22: Retail Transmission Rate – Line and Transformation Connection Service Rate | B22: =IF($B$9="kWh",$B$4,$B$5) -> 110 | C22: =VLOOKUP($B$3,'Data Current Rates'!$A:$AO,MATCH($A22,CurrentHeader,0),FALSE) -> 1.922 | D22: =B22*C22 -> 211.42 | E22: 110 | F22: =VLOOKUP($B$3,'Data Proposed Rates'!$A:$AZ,MATCH($A22,ProposedHeader,0),FALSE) -> 1.922 | G22: =E22*F22 -> 211.42 | H22: 0 | I22: 0 | J22: 0.0251209928
A23: Sub-Total: Retail Transmission | D23: =SUM(D21:D22) -> 497.057 | G23: =SUM(G21:G22) -> 497.057 | H23: 0 | I23: 0 | J23: 0.05906047355
A24: Sub-Total: Delivery | D24: =D20+D23 -> 2840.4682 | G24: =G20+G23 -> 2970.5512 | H24: 130.083 | I24: 0.0457963233 | J24: 0.3529618546
A25: Wholesale Market Service Rate (WMS) - not including CBR | B25: =$B$8 -> 36428.374 | C25: =VLOOKUP($A25,'Data Pass Through'!$A:$D,2,FALSE) -> 0.003 | D25: =B25*C25 -> 109.285122 | E25: =$B$8 -> 36428.374 | F25: =VLOOKUP($A25,'Data Pass Through'!$A:$D,3,FALSE) -> 0.003 | G25: =E25*F25 -> 109.285122 | H25: 0 | I25: 0 | J25: 0.01298529355
A26: Capacity Based Recovery (CBR) - Applicable for Class B Customers | B26: =$B$8 -> 36428.374 | C26: =VLOOKUP($A26,'Data Pass Through'!$A:$D,2,FALSE) -> 0.0004 | D26: =B26*C26 -> 14.5713496 | E26: =$B$8 -> 36428.374 | F26: =VLOOKUP($A26,'Data Pass Through'!$A:$D,3,FALSE) -> 0.0004 | G26: =E26*F26 -> 14.5713496 | H26: =G26-D26 -> 0 | I26: 0 | J26: 0.001731372474
A27: Rural Rate Protection Charge | B27: =$B$8 -> 36428.374 | C27: =VLOOKUP($A27,'Data Pass Through'!$A:$D,2,FALSE) -> 0.0005 | D27: =B27*C27 -> 18.214187 | E27: =$B$8 -> 36428.374 | F27: =VLOOKUP($A27,'Data Pass Through'!$A:$D,3,FALSE) -> 0.0005 | G27: =E27*F27 -> 18.214187 | H27: =G27-D27 -> 0 | I27: 0 | J27: 0.002164215592
A28: Standard Supply Service – Administration Charge (if applicable) | B28: 1 | C28: =VLOOKUP($A28,'Data Pass Through'!$A:$D,2,FALSE) -> 0.25 | D28: =B28*C28 -> 0.25 | E28: 1 | F28: =VLOOKUP($A28,'Data Pass Through'!$A:$D,3,FALSE) -> 0.25 | G28: =E28*F28 -> 0.25 | H28: 0 | I28: 0 | J28: 2.970508088e-05
A29: Sub-Total: Regulatory | D29: =SUM(D25:D28) -> 142.3206586 | G29: =SUM(G25:G28) -> 142.3206586 | H29: 0 | I29: 0 | J29: 0.0169105867
A30: Total Electricity Charge on Two-Tier RPP (before HST) | D30: =SUM(D13,D20,D23,D29) -> 7317.765365 | G30: =SUM(G13,G20,G23,G29) -> 7447.848365 | H30: 130.083 | I30: 0.01777632836 | J30: 0.8849557522
A31: HST | C31: 0.13 | D31: =D30*C31 -> 951.3094974 | F31: =C31 -> 0.13 | G31: =G30*F31 -> 968.2202874 | H31: 16.91079 | I31: 0.01777632836 | J31: 0.1150442478
A32: Total Amount on WAHSP | D32: =SUM(D30:D31) -> 8269.074862 | G32: =SUM(G30:G31) -> 8416.068652 | H32: 146.99379 | I32: 0.01777632836 | J32: 1

Sheet BI_UR_Low
A1: 2026 Bill Impacts (Low Consumption Level) - UR
A3: Rate Class | B3: =RIGHT(A1,LEN(A1)-FIND("- ",A1,1)-1) -> UR
A4: Monthly Consumption (kWh) | B4: =IF(COUNTIF(A1,"*Low*")>0,VLOOKUP(B3,'Data Billing Quantities'!$A:$Z,MATCH("Low kWh",'Data Billing Quantities'!4:4,0),FALSE),IF(COUNTIF(A1,"*Typical*")>0,VLOOKUP(B3,'Data Billing Quantities'!$A:$Z,MATCH("Typical kWh",'Data Billing Quantities'!4:4,0),FALSE),IF(COUNTIF(A1,"*Average*")>0,VLOOKUP(B3,'Data Billing Quantities'!$A:$Z,MATCH("Average kWh",'Data Billing Quantities'!4:4,0),FALSE),IF(COUNTIF(A1,"*High*")>0,VLOOKUP(B3,'Data Billing Quantities'!$A:$Z,MATCH("High kWh",'Data Billing Quantities'!4:4,0),FALSE),"error")))) -> 340
A5: Peak (kW) | B5: =IF(COUNTIF(A1,"*Low*")>0,VLOOKUP(B3,'Data Billing Quantities'!$A:$Z,MATCH("Low kW",'Data Billing Quantities'!4:4,0),FALSE),IF(COUNTIF(A1,"*Typical*")>0,VLOOKUP(B3,'Data Billing Quantities'!$A:$Z,MATCH("Typical kW",'Data Billing Quantities'!4:4,0),FALSE),IF(COUNTIF(A1,"*Average*")>0,VLOOKUP(B3,'Data Billing Quantities'!$A:$Z,MATCH("Average kW",'Data Billing Quantities'!4:4,0),FALSE),IF(COUNTIF(A1,"*High*")>0,VLOOKUP(B3,'Data Billing Quantities'!$A:$Z,MATCH("High kW",'Data Billing Quantities'!4:4,0),FALSE),"error")))) -> 0
A6: Loss factor | B6: =VLOOKUP(B3,'Data Billing Quantities'!A:D,MATCH(A6,'Data Billing Quantities'!4:4,0),FALSE) -> 1.057
A7: Commodity Threshold | B7: =VLOOKUP(B3,'Data Billing Quantities'!A:D,MATCH(A7,'Data Billing Quantities'!4:4,0),FALSE) -> 600
A8: Monthly Consumption (kWh) - Uplifted | B8: =B4*B6 -> 359.38
A9: Charge determinant | B9: =VLOOKUP(B3,'Data Billing Quantities'!A:D,MATCH(A9,'Data Billing Quantities'!4:4,0),FALSE) -> kWh
B11: Volume | C11: Current Rate ($) | D11: Current Charge ($) | E11: Volume | F11: Proposed Rate ($) | G11: Proposed Charge ($) | H11: Change ($) | I11: Change (%) | J11: % of Total Bill on RPP | K11: % of Total Bill
A12: Energy First Tier | B12: =IF(B4>B7,B7,B4) -> 340 | C12: =VLOOKUP($A12,'Data Pass Through'!$A:$D,2,FALSE) -> 0.098 | D12: =B12*C12 -> 33.32 | E12: =B12 -> 340 | F12: =VLOOKUP($A12,'Data Pass Through'!$A:$D,3,FALSE) -> 0.098 | G12: =E12*F12 -> 33.32 | H12: =G12-D12 -> 0 | I12: =IF(ISERROR(H12/ABS(D12)),"N/A",(H12/ABS(D12))) -> 0 | J12: =G12/$G$45 -> 0.4092259833
A13: Energy Second Tier | B13: =IF(B4>B7,(B4)-B7,0) -> 0 | C13: =VLOOKUP($A13,'Data Pass Through'!$A:$D,2,FALSE) -> 0.115 | D13: =B13*C13 -> 0 | E13: =B13 -> 0 | F13: =VLOOKUP($A13,'Data Pass Through'!$A:$D,3,FALSE) -> 0.115 | G13: =E13*F13 -> 0 | H13: 0 | I13: N/A | J13: =G13/$G$45 -> 0
A14: Sub-Total: Energy (RPP Tiered) | D14: =SUM(D12:D13) -> 33.32 | G14: =SUM(G12:G13) -> 33.32 | H14: 0 | I14: 0 | J14: =G14/$G$45 -> 0.4092259833
A15: TOU-Off Peak | B15: =B$4*VLOOKUP($B$3,'Data Billing Quantities'!$A:$O,MATCH(BI_UR_Low!$A15,'Data Billing Quantities'!$4:$4,0),FALSE) -> 217.6 | C15: =VLOOKUP($A15,'Data Pass Through'!$A:$D,2,FALSE) -> 0.082 | D15: =B15*C15 -> 17.8432 | E15: 217.6 | F15: =VLOOKUP($A15,'Data Pass Through'!$A:$D,3,FALSE) -> 0.082 | G15: =E15*F15 -> 17.8432 | H15: 0 | I15: 0 | K15: =G15/$G$50 -> 0.2143200616
A16: TOU-Mid Peak | B16: =B$4*VLOOKUP($B$3,'Data Billing Quantities'!$A:$O,MATCH(BI_UR_Low!$A16,'Data Billing Quantities'!$4:$4,0),FALSE) -> 61.2 | C16: =VLOOKUP($A16,'Data Pass Through'!$A:$D,2,FALSE) -> 0.113 | D16: =B16*C16 -> 6.9156 | E16: 61.2 | F16: =VLOOKUP($A16,'Data Pass Through'!$A:$D,3,FALSE) -> 0.113 | G16: =E16*F16 -> 6.9156 | H16: 0 | I16: 0 | K16: 0.08306535926
A17: TOU-On Peak | B17: =B$4*VLOOKUP($B$3,'Data Billing Quantities'!$A:$O,MATCH(BI_UR_Low!$A17,'Data Billing Quantities'!$4:$4,0),FALSE) -> 61.2 | C17: =VLOOKUP($A17,'Data Pass Through'!$A:$D,2,FALSE) -> 0.17 | D17: =B17*C17 -> 10.404 | E17: 61.2 | F17: =VLOOKUP($A17,'Data Pass Through'!$A:$D,3,FALSE) -> 0.17 | G17: =E17*F17 -> 10.404 | H17: 0 | I17: 0 | K17: 0.1249655847
A18: Sub-Total: Energy (RPP TOU) | D18: =SUM(D15:D17) -> 35.1628 | G18: =SUM(G15:G17) -> 35.1628 | H18: 0 | I18: 0 | J18: =G18/$G$45 -> 0.4318586856 | K18: 0.4223510056
A19: Service Charge | B19: 1 | C19: =VLOOKUP($B$3,'Data Current Rates'!$A:$AN,MATCH(BI_UR_Low!$A19,CurrentHeader,0),FALSE) -> 40.3 | D19: =B19*C19 -> 40.3 | E19: 1 | F19: =VLOOKUP($B$3,'Data Proposed Rates'!$A:$AZ,MATCH(BI_UR_Low!$A19,ProposedHeader,0),FALSE) -> 42.51 | G19: =E19*F19 -> 42.51 | H19: 2.21 | I19: 0.05483870968 | J19: 0.5220947344 | K19: 0.5106004428
A20: Group 2 Fixed DVA Rider | B20: 1 | C20: =VLOOKUP($B$3,'Data Current Rates'!$A:$AN,MATCH(BI_UR_Low!$A20,CurrentHeader,0),FALSE) -> -0.08 | D20: -0.08 | E20: 1 | F20: =VLOOKUP($B$3,'Data Proposed Rates'!$A:$AZ,MATCH(BI_UR_Low!$A20,ProposedHeader,0),FALSE) -> -0.08 | G20: -0.08 | H20: 0 | I20: 0 | J20: -0.000982535374 | K20: -0.0009609041501
A21: Distribution Volumetric Charge | B21: =IF($B$9="kWh",$B$4,$B$5) -> 340 | C21: =VLOOKUP($B$3,'Data Current Rates'!$A:$AN,MATCH(BI_UR_Low!$A21,CurrentHeader,0),FALSE) -> 0 | D21: 0 | E21: 340 | F21: =VLOOKUP($B$3,'Data Proposed Rates'!$A:$AZ,MATCH(BI_UR_Low!$A21,ProposedHeader,0),FALSE) -> 0 | G21: 0 | H21: 0 | I21: N/A | J21: 0 | K21: 0
A22: Group 1 Volumetric DVA Rider (General) | B22: =IF($B$9="kWh",$B$4,$B$5) -> 340 | C22: =VLOOKUP($B$3,'Data Current Rates'!$A:$AN,MATCH(BI_UR_Low!$A22,CurrentHeader,0),FALSE) -> -0.0004 | D22: -0.136 | E22: =B4 -> 340 | F22: =VLOOKUP($B$3,'Data Proposed Rates'!$A:$AZ,MATCH(BI_UR_Low!$A22,ProposedHeader,0),FALSE) -> -0.0004 | G22: -0.136 | H22: 0 | I22: 0 | J22: -0.001670310136 | K22: -0.001633537055
A23: Group 2 Volumetric DVA Rider | B23: 340 | C23: =VLOOKUP($B$3,'Data Current Rates'!$A:$AN,MATCH(BI_UR_Low!$A23,CurrentHeader,0),FALSE) -> 0 | D23: 0 | E23: =B4 -> 340 | F23: =VLOOKUP($B$3,'Data Proposed Rates'!$A:$AZ,MATCH(BI_UR_Low!$A23,ProposedHeader,0),FALSE) -> 0 | G23: 0 | H23: 0 | I23: N/A | J23: 0 | K23: 0
A24: Fair Hydro Plan - Distribution Rate Protection Savings* | D24: =IF(AND(B3<>"R1",B3<>"R2"),0,IF(VLOOKUP($A24,'Data Pass Through'!$A:$D,2,FALSE)=0,0,IF(SUM(D19:D19,D21:D21)<VLOOKUP($A24,'Data Pass Through'!$A:$D,2,FALSE),0,VLOOKUP($A24,'Data Pass Through'!$A:$D,2,FALSE)-SUM(D19:D19,D21:D21)))) -> 0 | G24: =IF(AND(B3<>"R1",B3<>"R2"),0,IF(VLOOKUP($A24,'Data Pass Through'!$A:$D,2,FALSE)=0,0,IF(SUM(G19:G19,G21:G21)<VLOOKUP($A24,'Data Pass Through'!$A:$D,2,FALSE),0,VLOOKUP($A24,'Data Pass Through'!$A:$D,2,FALSE)-SUM(G19:G19,G21:G21)))) -> 0 | H24: 0 | I24: N/A | J24: 0 | K24: 0
A25: Sub-Total: Distribution (excluding pass through) | D25: =SUM(INDIRECT("D19:D"&ROW()-1)) -> 40.084 | G25: =SUM(INDIRECT("g19:g"&ROW()-1)) -> 42.294 | H25: =G25-D25 -> 2.21 | I25: 0.05513421814 | J25: 0.5194418888 | K25: 0.5080060016
A26: Smart Metering Entity Charge | B26: 1 | C26: =VLOOKUP($A26,'Data Pass Through'!$A:$D,2,FALSE) -> 0.57 | D26: =B26*C26 -> 0.57 | E26: 1 | F26: =VLOOKUP($A26,'Data Pass Through'!$A:$D,3,FALSE) -> 0.57 | G26: =E26*F26 -> 0.57 | H26: 0 | I26: 0 | J26: 0.00700056454 | K26: 0.00684644207
A27: Line Losses on Cost of Power (based on two-tier RPP prices) | B27: =B8-B4 -> 19.38 | C27: =IF(B4>B7,C13,C12) -> 0.098 | D27: =B27*C27 -> 1.89924 | E27: 19.38 | F27: =IF(B4>B7,F13,F12) -> 0.098 | G27: =E27*F27 -> 1.89924 | H27: 0 | I27: 0 | J27: 0.02332588105 | K27: 0.02281234498
A28: Line Losses on Cost of Power (based on TOU prices) | B28: =B8-B4 -> 19.38 | C28: =VLOOKUP($B$3,'Data Billing Quantities'!$A:$O,MATCH(BI_UR_Low!$A15,'Data Billing Quantities'!$4:$4,0),FALSE)*C15+VLOOKUP($B$3,'Data Billing Quantities'!$A:$O,MATCH(BI_UR_Low!$A16,'Data Billing Quantities'!$4:$4,0),FALSE)*C16+VLOOKUP($B$3,'Data Billing Quantities'!$A:$O,MATCH(BI_UR_Low!$A17,'Data Billing Quantities'!$4:$4,0),FALSE)*C17 -> 0.10342 | D28: =B28*C28 -> 2.0042796 | E28: 19.38 | F28: =VLOOKUP($B$3,'Data Billing Quantities'!$A:$O,MATCH(BI_UR_Low!$A15,'Data Billing Quantities'!$4:$4,0),FALSE)*F15+VLOOKUP($B$3,'Data Billing Quantities'!$A:$O,MATCH(BI_UR_Low!$A16,'Data Billing Quantities'!$4:$4,0),FALSE)*F16+VLOOKUP($B$3,'Data Billing Quantities'!$A:$O,MATCH(BI_UR_Low!$A17,'Data Billing Quantities'!$4:$4,0),FALSE)*F17 -> 0.10342 | G28: =E28*F28 -> 2.0042796 | H28: 0 | I28: 0 | J28: 0.02461594508 | K28: 0.02407400732
A29: Sub-Total: Distribution (based on two-tier RPP prices) | D29: =SUM(D25,D26:D27) -> 42.55324 | G29: =SUM(G25,G26:G27) -> 44.76324 | H29: 2.21 | I29: 0.05193494079 | J29: 0.5497683344 | K29: 0.5376647886
A30: Sub-Total: Distribution (based on TOU prices) | D30: =SUM(D25,D26,D28) -> 42.6582796 | G30: =SUM(G25,G26,G28) -> 44.8682796 | H30: 2.21 | I30: 0.05180705881 | J30: 0.5510583985 | K30: 0.538926451
A31: Retail Transmission Rate – Network Service Rate | B31: =B8 -> 359.38 | C31: =VLOOKUP($B$3,'Data Current Rates'!$A:$AN,MATCH(BI_UR_Low!$A31,CurrentHeader,0),FALSE) -> 0.0109 | D31: =B31*C31 -> 3.917242 | E31: 359.38 | F31: =VLOOKUP($B$3,'Data Proposed Rates'!$A:$AZ,MATCH(BI_UR_Low!$A31,ProposedHeader,0),FALSE) -> 0.0109 | G31: =E31*F31 -> 3.917242 | H31: =G31-D31 -> 0 | I31: 0 | J31: 0.04811036042 | K31: 0.04705117619
A32: Retail Transmission Rate – Line and Transformation Connection Service Rate | B32: =B8 -> 359.38 | C32: =VLOOKUP($B$3,'Data Current Rates'!$A:$AN,MATCH(BI_UR_Low!$A32,CurrentHeader,0),FALSE) -> 0.008 | D32: =B32*C32 -> 2.87504 | E32: 359.38 | F32: =VLOOKUP($B$3,'Data Proposed Rates'!$A:$AZ,MATCH(BI_UR_Low!$A32,ProposedHeader,0),FALSE) -> 0.008 | G32: =E32*F32 -> 2.87504 | H32: =G32-D32 -> 0 | I32: 0 | J32: 0.03531035627 | K32: 0.03453297335
A33: Sub-Total: Retail Transmission | D33: =SUM(D31:D32) -> 6.792282 | G33: =SUM(G31:G32) -> 6.792282 | H33: =G33-D33 -> 0 | I33: 0 | J33: 0.08342071669 | K33: 0.08158414953
A34: Sub-Total: Delivery (based on two-tier RPP prices) | D34: =D29+D33 -> 49.345522 | G34: =G29+G33 -> 51.555522 | H34: =G34-D34 -> 2.21 | I34: 0.04478623207 | J34: 0.6331890511 | K34: 0.6192489382
A35: Sub-Total: Delivery (based on TOU prices) | D35: =D30+D33 -> 49.4505616 | G35: =G30+G33 -> 51.6605616 | H35: =G35-D35 -> 2.21 | I35: 0.04469110013 | J35: 0.6344791152 | K35: 0.6205106005
A36: Wholesale Market Service Rate (WMS) - not including CBR | B36: =B8 -> 359.38 | C36: =VLOOKUP($A36,'Data Pass Through'!$A:$D,2,FALSE) -> 0.003 | D36: =B36*C36 -> 1.07814 | E36: =$B$8 -> 359.38 | F36: =VLOOKUP($A36,'Data Pass Through'!$A:$D,3,FALSE) -> 0.003 | G36: =E36*F36 -> 1.07814 | H36: 0 | I36: 0 | J36: 0.0132413836 | K36: 0.01294986501
A37: Capacity Based Recovery (CBR) - Applicable for Class B Customers | B37: =B8 -> 359.38 | C37: =VLOOKUP($A37,'Data Pass Through'!$A:$D,2,FALSE) -> 0.0004 | D37: =B37*C37 -> 0.143752 | E37: =$B$8 -> 359.38 | F37: =VLOOKUP($A37,'Data Pass Through'!$A:$D,3,FALSE) -> 0.0004 | G37: =E37*F37 -> 0.143752 | H37: 0 | I37: 0 | J37: 0.001765517814 | K37: 0.001726648667
A38: Rural Rate Protection Charge | B38: =B8 -> 359.38 | C38: =VLOOKUP($A38,'Data Pass Through'!$A:$D,2,FALSE) -> 0.0005 | D38: 0.17969 | E38: 359.38 | F38: =VLOOKUP($A38,'Data Pass Through'!$A:$D,3,FALSE) -> 0.0005 | G38: 0.17969 | H38: 0 | I38: 0 | J38: 0.002206897267 | K38: 0.002158310834
A39: Standard Supply Service – Administration Charge (if applicable) | B39: 1 | C39: =VLOOKUP($A39,'Data Pass Through'!$A:$D,2,FALSE) -> 0.25 | D39: =B39*C39 -> 0.25 | E39: 1 | F39: =VLOOKUP($A39,'Data Pass Through'!$A:$D,3,FALSE) -> 0.25 | G39: 0.25 | H39: 0 | I39: 0 | J39: 0.003070423044 | K39: 0.003002825469
A40: Sub-Total: Regulatory | D40: =SUM(D36:D39) -> 1.651582 | G40: =SUM(G36:G39) -> 1.651582 | H40: 0 | I40: 0 | J40: 0.02028422173 | K40: 0.01983764998
A41: Total Electricty Charge on Two-Tier RPP | D41: =SUM(D14,D25,D26,D27,D33,D40) -> 84.317104 | G41: =SUM(G14,G25,G26,G27,G33,G40) -> 86.527104 | H41: 2.21 | I41: 0.02621057763 | J41: 1.062699256
A42: HST | C42: 0.13 | D42: =D41*C42 -> 10.96122352 | F42: =C42 -> 0.13 | G42: =G41*F42 -> 11.24852352 | H42: 0.2873 | I42: 0.02621057763 | J42: 0.1381509033
A43: Total Electricity Charge on Two-Tier RPP (including HST) | D43: =SUM(D41:D42) -> 95.27832752 | G43: =SUM(G41:G42) -> 97.77562752 | H43: 2.4973 | I43: 0.02621057763 | J43: 1.200850159
A44: Ontario Electricity Rebate (OER) | C44: =IF(($B$4*12)<250000,VLOOKUP(A44,'Data Pass Through'!$A$4:$C$20,2,0),0) -> -0.189 | D44: =D41*C44 -> -15.93593266 | F44: =C44 -> -0.189 | G44: =G41*F44 -> -16.35362266 | H44: -0.41769 | I44: -0.02621057763 | J44: -0.2008501594
A45: Total Amount on Two-Tier RPP | D45: =SUM(D43:D44) -> 79.34239486 | G45: =SUM(G43:G44) -> 81.42200486 | H45: 2.07961 | I45: 0.02621057763 | J45: 1
A46: Total Electricty Charge on TOU (before HST) | D46: =SUM(D18,D25,D26,D28,D33,D40) -> 86.2649436 | G46: =SUM(G18,G25,G26,G28,G33,G40) -> 88.4749436 | H46: 2.21 | I46: 0.02561874972 | K46: =G46/$G$50 -> 1.062699256
A47: HST | C47: 0.13 | D47: =D46*C47 -> 11.21444267 | F47: =C47 -> 0.13 | G47: =G46*F47 -> 11.50174267 | H47: 0.2873 | I47: 0.02561874972 | K47: =G47/$G$50 -> 0.1381509033
A48: Total Electricity Charge on TOU (including HST) | D48: =SUM(D46:D47) -> 97.47938627 | G48: =SUM(G46:G47) -> 99.97668627 | H48: 2.4973 | I48: 0.02561874972 | K48: =G48/$G$50 -> 1.200850159
A49: Ontario Electricity Rebate (OER) | C49: =IF(($B$4*12)<250000,VLOOKUP(A49,'Data Pass Through'!$A$4:$C$20,2,0),0) -> -0.189 | D49: =D46*C49 -> -16.30407434 | F49: =C49 -> -0.189 | G49: =G46*F49 -> -16.72176434 | H49: -0.41769 | I49: -0.02561874972 | K49: =G49/$G$50 -> -0.2008501594
A50: Total Amount on TOU | D50: =SUM(D48:D49) -> 81.17531193 | G50: =SUM(G48:G49) -> 83.25492193 | H50: 2.07961 | I50: 0.02561874972 | K50: =G50/$G$50 -> 1
A51: * Distribution rate protection applies to R1 and R2 customers

Sheet BI_UR_Typical
A1: 2026 Bill Impacts (Typical Consumption Level) - UR
A3: Rate Class | B3: =RIGHT(A1,LEN(A1)-FIND("- ",A1,1)-1) -> UR
A4: Monthly Consumption (kWh) | B4: =IF(COUNTIF(A1,"*Low*")>0,VLOOKUP(B3,'Data Billing Quantities'!$A:$Z,MATCH("Low kWh",'Data Billing Quantities'!4:4,0),FALSE),IF(COUNTIF(A1,"*Typical*")>0,VLOOKUP(B3,'Data Billing Quantities'!$A:$Z,MATCH("Typical kWh",'Data Billing Quantities'!4:4,0),FALSE),IF(COUNTIF(A1,"*Average*")>0,VLOOKUP(B3,'Data Billing Quantities'!$A:$Z,MATCH("Average kWh",'Data Billing Quantities'!4:4,0),FALSE),IF(COUNTIF(A1,"*High*")>0,VLOOKUP(B3,'Data Billing Quantities'!$A:$Z,MATCH("High kWh",'Data Billing Quantities'!4:4,0),FALSE),"error")))) -> 750
A5: Peak (kW) | B5: =IF(COUNTIF(A1,"*Low*")>0,VLOOKUP(B3,'Data Billing Quantities'!$A:$Z,MATCH("Low kW",'Data Billing Quantities'!4:4,0),FALSE),IF(COUNTIF(A1,"*Typical*")>0,VLOOKUP(B3,'Data Billing Quantities'!$A:$Z,MATCH("Typical kW",'Data Billing Quantities'!4:4,0),FALSE),IF(COUNTIF(A1,"*Average*")>0,VLOOKUP(B3,'Data Billing Quantities'!$A:$Z,MATCH("Average kW",'Data Billing Quantities'!4:4,0),FALSE),IF(COUNTIF(A1,"*High*")>0,VLOOKUP(B3,'Data Billing Quantities'!$A:$Z,MATCH("High kW",'Data Billing Quantities'!4:4,0),FALSE),"error")))) -> 0
A6: Loss factor | B6: =VLOOKUP(B3,'Data Billing Quantities'!A:D,MATCH(A6,'Data Billing Quantities'!4:4,0),FALSE) -> 1.057
A7: Commodity Threshold | B7: =VLOOKUP(B3,'Data Billing Quantities'!A:D,MATCH(A7,'Data Billing Quantities'!4:4,0),FALSE) -> 600
A8: Monthly Consumption (kWh) - Uplifted | B8: =B4*B6 -> 792.75
A9: Charge determinant | B9: =VLOOKUP(B3,'Data Billing Quantities'!A:D,MATCH(A9,'Data Billing Quantities'!4:4,0),FALSE) -> kWh
B11: Volume | C11: Current Rate ($) | D11: Current Charge ($) | E11: Volume | F11: Proposed Rate ($) | G11: Proposed Charge ($) | H11: Change ($) | I11: Change (%) | J11: % of Total Bill on RPP | K11: % of Total Bill
A12: Energy First Tier | B12: =IF(B4>B7,B7,B4) -> 600 | C12: =VLOOKUP($A12,'Data Pass Through'!$A:$D,2,FALSE) -> 0.098 | D12: =B12*C12 -> 58.8 | E12: =B12 -> 600 | F12: =VLOOKUP($A12,'Data Pass Through'!$A:$D,3,FALSE) -> 0.098 | G12: =E12*F12 -> 58.8 | H12: =G12-D12 -> 0 | I12: =IF(ISERROR(H12/ABS(D12)),"N/A",(H12/ABS(D12))) -> 0 | J12: =G12/$G$45 -> 0.4400753447
A13: Energy Second Tier | B13: =IF(B4>B7,(B4)-B7,0) -> 150 | C13: =VLOOKUP($A13,'Data Pass Through'!$A:$D,2,FALSE) -> 0.115 | D13: =B13*C13 -> 17.25 | E13: =B13 -> 150 | F13: =VLOOKUP($A13,'Data Pass Through'!$A:$D,3,FALSE) -> 0.115 | G13: =E13*F13 -> 17.25 | H13: 0 | I13: 0 | J13: =G13/$G$45 -> 0.1291037363
A14: Sub-Total: Energy (RPP Tiered) | D14: =SUM(D12:D13) -> 76.05 | G14: =SUM(G12:G13) -> 76.05 | H14: 0 | I14: 0 | J14: =G14/$G$45 -> 0.569179081
A15: TOU-Off Peak | B15: =B$4*VLOOKUP($B$3,'Data Billing Quantities'!$A:$O,MATCH(BI_UR_Typical!$A15,'Data Billing Quantities'!$4:$4,0),FALSE) -> 480 | C15: =VLOOKUP($A15,'Data Pass Through'!$A:$D,2,FALSE) -> 0.082 | D15: =B15*C15 -> 39.36 | E15: 480 | F15: =VLOOKUP($A15,'Data Pass Through'!$A:$D,3,FALSE) -> 0.082 | G15: =E15*F15 -> 39.36 | H15: 0 | I15: 0 | K15: =G15/$G$50 -> 0.2924800925
A16: TOU-Mid Peak | B16: =B$4*VLOOKUP($B$3,'Data Billing Quantities'!$A:$O,MATCH(BI_UR_Typical!$A16,'Data Billing Quantities'!$4:$4,0),FALSE) -> 135 | C16: =VLOOKUP($A16,'Data Pass Through'!$A:$D,2,FALSE) -> 0.113 | D16: =B16*C16 -> 15.255 | E16: 135 | F16: =VLOOKUP($A16,'Data Pass Through'!$A:$D,3,FALSE) -> 0.113 | G16: =E16*F16 -> 15.255 | H16: 0 | I16: 0 | K16: 0.1133583285
A17: TOU-On Peak | B17: =B$4*VLOOKUP($B$3,'Data Billing Quantities'!$A:$O,MATCH(BI_UR_Typical!$A17,'Data Billing Quantities'!$4:$4,0),FALSE) -> 135 | C17: =VLOOKUP($A17,'Data Pass Through'!$A:$D,2,FALSE) -> 0.17 | D17: =B17*C17 -> 22.95 | E17: 135 | F17: =VLOOKUP($A17,'Data Pass Through'!$A:$D,3,FALSE) -> 0.17 | G17: =E17*F17 -> 22.95 | H17: 0 | I17: 0 | K17: 0.1705390783
A18: Sub-Total: Energy (RPP TOU) | D18: =SUM(D15:D17) -> 77.565 | G18: =SUM(G15:G17) -> 77.565 | H18: 0 | I18: 0 | J18: =G18/$G$45 -> 0.5805177569 | K18: 0.5763774993
A19: Service Charge | B19: 1 | C19: =VLOOKUP($B$3,'Data Current Rates'!$A:$AN,MATCH(BI_UR_Typical!$A19,CurrentHeader,0),FALSE) -> 40.3 | D19: =B19*C19 -> 40.3 | E19: 1 | F19: =VLOOKUP($B$3,'Data Proposed Rates'!$A:$AZ,MATCH(BI_UR_Typical!$A19,ProposedHeader,0),FALSE) -> 42.51 | G19: =E19*F19 -> 42.51 | H19: 2.21 | I19: 0.05483870968 | J19: 0.3181565119 | K19: 0.315887417
A20: Group 2 Fixed DVA Rider | B20: 1 | C20: =VLOOKUP($B$3,'Data Current Rates'!$A:$AN,MATCH(BI_UR_Typical!$A20,CurrentHeader,0),FALSE) -> -0.08 | D20: -0.08 | E20: 1 | F20: =VLOOKUP($B$3,'Data Proposed Rates'!$A:$AZ,MATCH(BI_UR_Typical!$A20,ProposedHeader,0),FALSE) -> -0.08 | G20: -0.08 | H20: 0 | I20: 0 | J20: -0.0005987419655 | K20: -0.0005944717327
A21: Distribution Volumetric Charge | B21: =IF($B$9="kWh",$B$4,$B$5) -> 750 | C21: =VLOOKUP($B$3,'Data Current Rates'!$A:$AN,MATCH(BI_UR_Typical!$A21,CurrentHeader,0),FALSE) -> 0 | D21: 0 | E21: 750 | F21: =VLOOKUP($B$3,'Data Proposed Rates'!$A:$AZ,MATCH(BI_UR_Typical!$A21,ProposedHeader,0),FALSE) -> 0 | G21: 0 | H21: 0 | I21: N/A | J21: 0 | K21: 0
A22: Group 1 Volumetric DVA Rider (General) | B22: =IF($B$9="kWh",$B$4,$B$5) -> 750 | C22: =VLOOKUP($B$3,'Data Current Rates'!$A:$AN,MATCH(BI_UR_Typical!$A22,CurrentHeader,0),FALSE) -> -0.0004 | D22: -0.3 | E22: =B4 -> 750 | F22: =VLOOKUP($B$3,'Data Proposed Rates'!$A:$AZ,MATCH(BI_UR_Typical!$A22,ProposedHeader,0),FALSE) -> -0.0004 | G22: -0.3 | H22: 0 | I22: 0 | J22: -0.002245282371 | K22: -0.002229268998
A23: Group 2 Volumetric DVA Rider | B23: 750 | C23: =VLOOKUP($B$3,'Data Current Rates'!$A:$AN,MATCH(BI_UR_Typical!$A23,CurrentHeader,0),FALSE) -> 0 | D23: 0 | E23: =B4 -> 750 | F23: =VLOOKUP($B$3,'Data Proposed Rates'!$A:$AZ,MATCH(BI_UR_Typical!$A23,ProposedHeader,0),FALSE) -> 0 | G23: 0 | H23: 0 | I23: N/A | J23: 0 | K23: 0
A24: Fair Hydro Plan - Distribution Rate Protection Savings* | D24: =IF(AND(B3<>"R1",B3<>"R2"),0,IF(VLOOKUP($A24,'Data Pass Through'!$A:$D,2,FALSE)=0,0,IF(SUM(D19:D19,D21:D21)<VLOOKUP($A24,'Data Pass Through'!$A:$D,2,FALSE),0,VLOOKUP($A24,'Data Pass Through'!$A:$D,2,FALSE)-SUM(D19:D19,D21:D21)))) -> 0 | G24: =IF(AND(B3<>"R1",B3<>"R2"),0,IF(VLOOKUP($A24,'Data Pass Through'!$A:$D,2,FALSE)=0,0,IF(SUM(G19:G19,G21:G21)<VLOOKUP($A24,'Data Pass Through'!$A:$D,2,FALSE),0,VLOOKUP($A24,'Data Pass Through'!$A:$D,2,FALSE)-SUM(G19:G19,G21:G21)))) -> 0 | H24: 0 | I24: N/A | J24: 0 | K24: 0
A25: Sub-Total: Distribution (excluding pass through) | D25: =SUM(INDIRECT("D19:D"&ROW()-1)) -> 39.92 | G25: =SUM(INDIRECT("g19:g"&ROW()-1)) -> 42.13 | H25: =G25-D25 -> 2.21 | I25: 0.05536072144 | J25: 0.3153124876 | K25: 0.3130636762
A26: Smart Metering Entity Charge | B26: 1 | C26: =VLOOKUP($A26,'Data Pass Through'!$A:$D,2,FALSE) -> 0.57 | D26: =B26*C26 -> 0.57 | E26: 1 | F26: =VLOOKUP($A26,'Data Pass Through'!$A:$D,3,FALSE) -> 0.57 | G26: =E26*F26 -> 0.57 | H26: 0 | I26: 0 | J26: 0.004266036504 | K26: 0.004235611095
A27: Line Losses on Cost of Power (based on two-tier RPP prices) | B27: =B8-B4 -> 42.75 | C27: =IF(B4>B7,C13,C12) -> 0.115 | D27: =B27*C27 -> 4.91625 | E27: 42.75 | F27: =IF(B4>B7,F13,F12) -> 0.115 | G27: =E27*F27 -> 4.91625 | H27: 0 | I27: 0 | J27: 0.03679456485 | K27: 0.0365321457
A28: Line Losses on Cost of Power (based on TOU prices) | B28: =B8-B4 -> 42.75 | C28: =VLOOKUP($B$3,'Data Billing Quantities'!$A:$O,MATCH(BI_UR_Typical!$A15,'Data Billing Quantities'!$4:$4,0),FALSE)*C15+VLOOKUP($B$3,'Data Billing Quantities'!$A:$O,MATCH(BI_UR_Typical!$A16,'Data Billing Quantities'!$4:$4,0),FALSE)*C16+VLOOKUP($B$3,'Data Billing Quantities'!$A:$O,MATCH(BI_UR_Typical!$A17,'Data Billing Quantities'!$4:$4,0),FALSE)*C17 -> 0.10342 | D28: =B28*C28 -> 4.421205 | E28: 42.75 | F28: =VLOOKUP($B$3,'Data Billing Quantities'!$A:$O,MATCH(BI_UR_Typical!$A15,'Data Billing Quantities'!$4:$4,0),FALSE)*F15+VLOOKUP($B$3,'Data Billing Quantities'!$A:$O,MATCH(BI_UR_Typical!$A16,'Data Billing Quantities'!$4:$4,0),FALSE)*F16+VLOOKUP($B$3,'Data Billing Quantities'!$A:$O,MATCH(BI_UR_Typical!$A17,'Data Billing Quantities'!$4:$4,0),FALSE)*F17 -> 0.10342 | G28: =E28*F28 -> 4.421205 | H28: 0 | I28: 0 | J28: 0.03308951215 | K28: 0.03285351746
A29: Sub-Total: Distribution (based on two-tier RPP prices) | D29: =SUM(D25,D26:D27) -> 45.40625 | G29: =SUM(G25,G26:G27) -> 47.61625 | H29: 2.21 | I29: 0.0486717137 | J29: 0.3563730889 | K29: 0.353831433
A30: Sub-Total: Distribution (based on TOU prices) | D30: =SUM(D25,D26,D28) -> 44.911205 | G30: =SUM(G25,G26,G28) -> 47.121205 | H30: 2.21 | I30: 0.04920820984 | J30: 0.3526680362 | K30: 0.3501528048
A31: Retail Transmission Rate – Network Service Rate | B31: =B8 -> 792.75 | C31: =VLOOKUP($B$3,'Data Current Rates'!$A:$AN,MATCH(BI_UR_Typical!$A31,CurrentHeader,0),FALSE) -> 0.0109 | D31: =B31*C31 -> 8.640975 | E31: 792.75 | F31: =VLOOKUP($B$3,'Data Proposed Rates'!$A:$AZ,MATCH(BI_UR_Typical!$A31,ProposedHeader,0),FALSE) -> 0.0109 | G31: =E31*F31 -> 8.640975 | H31: =G31-D31 -> 0 | I31: 0 | J31: 0.06467142944 | K31: 0.06421019225
A32: Retail Transmission Rate – Line and Transformation Connection Service Rate | B32: =B8 -> 792.75 | C32: =VLOOKUP($B$3,'Data Current Rates'!$A:$AN,MATCH(BI_UR_Typical!$A32,CurrentHeader,0),FALSE) -> 0.008 | D32: =B32*C32 -> 6.342 | E32: 792.75 | F32: =VLOOKUP($B$3,'Data Proposed Rates'!$A:$AZ,MATCH(BI_UR_Typical!$A32,ProposedHeader,0),FALSE) -> 0.008 | G32: =E32*F32 -> 6.342 | H32: =G32-D32 -> 0 | I32: 0 | J32: 0.04746526932 | K32: 0.04712674661
A33: Sub-Total: Retail Transmission | D33: =SUM(D31:D32) -> 14.982975 | G33: =SUM(G31:G32) -> 14.982975 | H33: =G33-D33 -> 0 | I33: 0 | J33: 0.1121366988 | K33: 0.1113369389
A34: Sub-Total: Delivery (based on two-tier RPP prices) | D34: =D29+D33 -> 60.389225 | G34: =G29+G33 -> 62.599225 | H34: =G34-D34 -> 2.21 | I34: 0.03659593247 | J34: 0.4685097877 | K34: 0.4651683719
A35: Sub-Total: Delivery (based on TOU prices) | D35: =D30+D33 -> 59.89418 | G35: =G30+G33 -> 62.10418 | H35: =G35-D35 -> 2.21 | I35: 0.03689840983 | J35: 0.464804735 | K35: 0.4614897436
A36: Wholesale Market Service Rate (WMS) - not including CBR | B36: =B8 -> 792.75 | C36: =VLOOKUP($A36,'Data Pass Through'!$A:$D,2,FALSE) -> 0.003 | D36: =B36*C36 -> 2.37825 | E36: =$B$8 -> 792.75 | F36: =VLOOKUP($A36,'Data Pass Through'!$A:$D,3,FALSE) -> 0.003 | G36: =E36*F36 -> 2.37825 | H36: 0 | I36: 0 | J36: 0.01779947599 | K36: 0.01767252998
A37: Capacity Based Recovery (CBR) - Applicable for Class B Customers | B37: =B8 -> 792.75 | C37: =VLOOKUP($A37,'Data Pass Through'!$A:$D,2,FALSE) -> 0.0004 | D37: =B37*C37 -> 0.3171 | E37: =$B$8 -> 792.75 | F37: =VLOOKUP($A37,'Data Pass Through'!$A:$D,3,FALSE) -> 0.0004 | G37: =E37*F37 -> 0.3171 | H37: 0 | I37: 0 | J37: 0.002373263466 | K37: 0.00235633733
A38: Rural Rate Protection Charge | B38: =B8 -> 792.75 | C38: =VLOOKUP($A38,'Data Pass Through'!$A:$D,2,FALSE) -> 0.0005 | D38: 0.396375 | E38: 792.75 | F38: =VLOOKUP($A38,'Data Pass Through'!$A:$D,3,FALSE) -> 0.0005 | G38: 0.396375 | H38: 0 | I38: 0 | J38: 0.002966579332 | K38: 0.002945421663
A39: Standard Supply Service – Administration Charge (if applicable) | B39: 1 | C39: =VLOOKUP($A39,'Data Pass Through'!$A:$D,2,FALSE) -> 0.25 | D39: =B39*C39 -> 0.25 | E39: 1 | F39: =VLOOKUP($A39,'Data Pass Through'!$A:$D,3,FALSE) -> 0.25 | G39: 0.25 | H39: 0 | I39: 0 | J39: 0.001871068642 | K39: 0.001857724165
A40: Sub-Total: Regulatory | D40: =SUM(D36:D39) -> 3.341725 | G40: =SUM(G36:G39) -> 3.341725 | H40: 0 | I40: 0 | J40: 0.02501038743 | K40: 0.02483201314
A41: Total Electricty Charge on Two-Tier RPP | D41: =SUM(D14,D25,D26,D27,D33,D40) -> 139.78095 | G41: =SUM(G14,G25,G26,G27,G33,G40) -> 141.99095 | H41: 2.21 | I41: 0.015810452 | J41: 1.062699256
A42: HST | C42: 0.13 | D42: =D41*C42 -> 18.1715235 | F42: =C42 -> 0.13 | G42: =G41*F42 -> 18.4588235 | H42: 0.2873 | I42: 0.015810452 | J42: 0.1381509033
A43: Total Electricity Charge on Two-Tier RPP (including HST) | D43: =SUM(D41:D42) -> 157.9524735 | G43: =SUM(G41:G42) -> 160.4497735 | H43: 2.4973 | I43: 0.015810452 | J43: 1.200850159
A44: Ontario Electricity Rebate (OER) | C44: =IF(($B$4*12)<250000,VLOOKUP(A44,'Data Pass Through'!$A$4:$C$20,2,0),0) -> -0.189 | D44: =D41*C44 -> -26.41859955 | F44: =C44 -> -0.189 | G44: =G41*F44 -> -26.83628955 | H44: -0.41769 | I44: -0.015810452 | J44: -0.2008501594
A45: Total Amount on Two-Tier RPP | D45: =SUM(D43:D44) -> 131.533874 | G45: =SUM(G43:G44) -> 133.6134839 | H45: 2.07961 | I45: 0.015810452 | J45: 1
A46: Total Electricty Charge on TOU (before HST) | D46: =SUM(D18,D25,D26,D28,D33,D40) -> 140.800905 | G46: =SUM(G18,G25,G26,G28,G33,G40) -> 143.010905 | H46: 2.21 | I46: 0.01569592184 | K46: =G46/$G$50 -> 1.062699256
A47: HST | C47: 0.13 | D47: =D46*C47 -> 18.30411765 | F47: =C47 -> 0.13 | G47: =G46*F47 -> 18.59141765 | H47: 0.2873 | I47: 0.01569592184 | K47: =G47/$G$50 -> 0.1381509033
A48: Total Electricity Charge on TOU (including HST) | D48: =SUM(D46:D47) -> 159.1050226 | G48: =SUM(G46:G47) -> 161.6023226 | H48: 2.4973 | I48: 0.01569592184 | K48: =G48/$G$50 -> 1.200850159
A49: Ontario Electricity Rebate (OER) | C49: =IF(($B$4*12)<250000,VLOOKUP(A49,'Data Pass Through'!$A$4:$C$20,2,0),0) -> -0.189 | D49: =D46*C49 -> -26.61137104 | F49: =C49 -> -0.189 | G49: =G46*F49 -> -27.02906104 | H49: -0.41769 | I49: -0.01569592184 | K49: =G49/$G$50 -> -0.2008501594
A50: Total Amount on TOU | D50: =SUM(D48:D49) -> 132.4936516 | G50: =SUM(G48:G49) -> 134.5732616 | H50: 2.07961 | I50: 0.01569592184 | K50: =G50/$G$50 -> 1
A51: * Distribution rate protection applies to R1 and R2 customers

Sheet BI_UR_Avg
A1: 2026 Bill Impacts (Average Consumption Level) - UR
A3: Rate Class | B3: =RIGHT(A1,LEN(A1)-FIND("- ",A1,1)-1) -> UR
A4: Monthly Consumption (kWh) | B4: =IF(COUNTIF(A1,"*Low*")>0,VLOOKUP(B3,'Data Billing Quantities'!$A:$Z,MATCH("Low kWh",'Data Billing Quantities'!4:4,0),FALSE),IF(COUNTIF(A1,"*Typical*")>0,VLOOKUP(B3,'Data Billing Quantities'!$A:$Z,MATCH("Typical kWh",'Data Billing Quantities'!4:4,0),FALSE),IF(COUNTIF(A1,"*Average*")>0,VLOOKUP(B3,'Data Billing Quantities'!$A:$Z,MATCH("Average kWh",'Data Billing Quantities'!4:4,0),FALSE),IF(COUNTIF(A1,"*High*")>0,VLOOKUP(B3,'Data Billing Quantities'!$A:$Z,MATCH("High kWh",'Data Billing Quantities'!4:4,0),FALSE),"error")))) -> 690
A5: Peak (kW) | B5: =IF(COUNTIF(A1,"*Low*")>0,VLOOKUP(B3,'Data Billing Quantities'!$A:$Z,MATCH("Low kW",'Data Billing Quantities'!4:4,0),FALSE),IF(COUNTIF(A1,"*Typical*")>0,VLOOKUP(B3,'Data Billing Quantities'!$A:$Z,MATCH("Typical kW",'Data Billing Quantities'!4:4,0),FALSE),IF(COUNTIF(A1,"*Average*")>0,VLOOKUP(B3,'Data Billing Quantities'!$A:$Z,MATCH("Average kW",'Data Billing Quantities'!4:4,0),FALSE),IF(COUNTIF(A1,"*High*")>0,VLOOKUP(B3,'Data Billing Quantities'!$A:$Z,MATCH("High kW",'Data Billing Quantities'!4:4,0),FALSE),"error")))) -> 0
A6: Loss factor | B6: =VLOOKUP(B3,'Data Billing Quantities'!A:D,MATCH(A6,'Data Billing Quantities'!4:4,0),FALSE) -> 1.057
A7: Commodity Threshold | B7: =VLOOKUP(B3,'Data Billing Quantities'!A:D,MATCH(A7,'Data Billing Quantities'!4:4,0),FALSE) -> 600
A8: Monthly Consumption (kWh) - Uplifted | B8: =B4*B6 -> 729.33
A9: Charge determinant | B9: =VLOOKUP(B3,'Data Billing Quantities'!A:D,MATCH(A9,'Data Billing Quantities'!4:4,0),FALSE) -> kWh
B11: Volume | C11: Current Rate ($) | D11: Current Charge ($) | E11: Volume | F11: Proposed Rate ($) | G11: Proposed Charge ($) | H11: Change ($) | I11: Change (%) | J11: % of Total Bill on RPP | K11: % of Total Bill
A12: Energy First Tier | B12: =IF(B4>B7,B7,B4) -> 600 | C12: =VLOOKUP($A12,'Data Pass Through'!$A:$D,2,FALSE) -> 0.098 | D12: =B12*C12 -> 58.8 | E12: =B12 -> 600 | F12: =VLOOKUP($A12,'Data Pass Through'!$A:$D,3,FALSE) -> 0.098 | G12: =E12*F12 -> 58.8 | H12: =G12-D12 -> 0 | I12: =IF(ISERROR(H12/ABS(D12)),"N/A",(H12/ABS(D12))) -> 0 | J12: =G12/$G$45 -> 0.4688531251
A13: Energy Second Tier | B13: =IF(B4>B7,(B4)-B7,0) -> 90 | C13: =VLOOKUP($A13,'Data Pass Through'!$A:$D,2,FALSE) -> 0.115 | D13: =B13*C13 -> 10.35 | E13: =B13 -> 90 | F13: =VLOOKUP($A13,'Data Pass Through'!$A:$D,3,FALSE) -> 0.115 | G13: =E13*F13 -> 10.35 | H13: 0 | I13: 0 | J13: =G13/$G$45 -> 0.08252771845
A14: Sub-Total: Energy (RPP Tiered) | D14: =SUM(D12:D13) -> 69.15 | G14: =SUM(G12:G13) -> 69.15 | H14: 0 | I14: 0 | J14: =G14/$G$45 -> 0.5513808436
A15: TOU-Off Peak | B15: =B$4*VLOOKUP($B$3,'Data Billing Quantities'!$A:$O,MATCH(BI_UR_Avg!$A15,'Data Billing Quantities'!$4:$4,0),FALSE) -> 441.6 | C15: =VLOOKUP($A15,'Data Pass Through'!$A:$D,2,FALSE) -> 0.082 | D15: =B15*C15 -> 36.2112 | E15: 441.6 | F15: =VLOOKUP($A15,'Data Pass Through'!$A:$D,3,FALSE) -> 0.082 | G15: =E15*F15 -> 36.2112 | H15: 0 | I15: 0 | K15: =G15/$G$50 -> 0.2849856033
A16: TOU-Mid Peak | B16: =B$4*VLOOKUP($B$3,'Data Billing Quantities'!$A:$O,MATCH(BI_UR_Avg!$A16,'Data Billing Quantities'!$4:$4,0),FALSE) -> 124.2 | C16: =VLOOKUP($A16,'Data Pass Through'!$A:$D,2,FALSE) -> 0.113 | D16: =B16*C16 -> 14.0346 | E16: 124.2 | F16: =VLOOKUP($A16,'Data Pass Through'!$A:$D,3,FALSE) -> 0.113 | G16: =E16*F16 -> 14.0346 | H16: 0 | I16: 0 | K16: 0.1104536427
A17: TOU-On Peak | B17: =B$4*VLOOKUP($B$3,'Data Billing Quantities'!$A:$O,MATCH(BI_UR_Avg!$A17,'Data Billing Quantities'!$4:$4,0),FALSE) -> 124.2 | C17: =VLOOKUP($A17,'Data Pass Through'!$A:$D,2,FALSE) -> 0.17 | D17: =B17*C17 -> 21.114 | E17: 124.2 | F17: =VLOOKUP($A17,'Data Pass Through'!$A:$D,3,FALSE) -> 0.17 | G17: =E17*F17 -> 21.114 | H17: 0 | I17: 0 | K17: 0.166169197
A18: Sub-Total: Energy (RPP TOU) | D18: =SUM(D15:D17) -> 71.3598 | G18: =SUM(G15:G17) -> 71.3598 | H18: 0 | I18: 0 | J18: =G18/$G$45 -> 0.5690011095 | K18: 0.5616084431
A19: Service Charge | B19: 1 | C19: =VLOOKUP($B$3,'Data Current Rates'!$A:$AN,MATCH(BI_UR_Avg!$A19,CurrentHeader,0),FALSE) -> 40.3 | D19: =B19*C19 -> 40.3 | E19: 1 | F19: =VLOOKUP($B$3,'Data Proposed Rates'!$A:$AZ,MATCH(BI_UR_Avg!$A19,ProposedHeader,0),FALSE) -> 42.51 | G19: =E19*F19 -> 42.51 | H19: 2.21 | I19: 0.05483870968 | J19: 0.3389616726 | K19: 0.334557761
A20: Group 2 Fixed DVA Rider | B20: 1 | C20: =VLOOKUP($B$3,'Data Current Rates'!$A:$AN,MATCH(BI_UR_Avg!$A20,CurrentHeader,0),FALSE) -> -0.08 | D20: -0.08 | E20: 1 | F20: =VLOOKUP($B$3,'Data Proposed Rates'!$A:$AZ,MATCH(BI_UR_Avg!$A20,ProposedHeader,0),FALSE) -> -0.08 | G20: -0.08 | H20: 0 | I20: 0 | J20: -0.0006378954083 | K20: -0.0006296076425
A21: Distribution Volumetric Charge | B21: =IF($B$9="kWh",$B$4,$B$5) -> 690 | C21: =VLOOKUP($B$3,'Data Current Rates'!$A:$AN,MATCH(BI_UR_Avg!$A21,CurrentHeader,0),FALSE) -> 0 | D21: 0 | E21: 690 | F21: =VLOOKUP($B$3,'Data Proposed Rates'!$A:$AZ,MATCH(BI_UR_Avg!$A21,ProposedHeader,0),FALSE) -> 0 | G21: 0 | H21: 0 | I21: N/A | J21: 0 | K21: 0
A22: Group 1 Volumetric DVA Rider (General) | B22: =IF($B$9="kWh",$B$4,$B$5) -> 690 | C22: =VLOOKUP($B$3,'Data Current Rates'!$A:$AN,MATCH(BI_UR_Avg!$A22,CurrentHeader,0),FALSE) -> -0.0004 | D22: -0.276 | E22: =B4 -> 690 | F22: =VLOOKUP($B$3,'Data Proposed Rates'!$A:$AZ,MATCH(BI_UR_Avg!$A22,ProposedHeader,0),FALSE) -> -0.0004 | G22: -0.276 | H22: 0 | I22: 0 | J22: -0.002200739159 | K22: -0.002172146367
A23: Group 2 Volumetric DVA Rider | B23: 690 | C23: =VLOOKUP($B$3,'Data Current Rates'!$A:$AN,MATCH(BI_UR_Avg!$A23,CurrentHeader,0),FALSE) -> 0 | D23: 0 | E23: =B4 -> 690 | F23: =VLOOKUP($B$3,'Data Proposed Rates'!$A:$AZ,MATCH(BI_UR_Avg!$A23,ProposedHeader,0),FALSE) -> 0 | G23: 0 | H23: 0 | I23: N/A | J23: 0 | K23: 0
A24: Fair Hydro Plan - Distribution Rate Protection Savings* | D24: =IF(AND(B3<>"R1",B3<>"R2"),0,IF(VLOOKUP($A24,'Data Pass Through'!$A:$D,2,FALSE)=0,0,IF(SUM(D19:D19,D21:D21)<VLOOKUP($A24,'Data Pass Through'!$A:$D,2,FALSE),0,VLOOKUP($A24,'Data Pass Through'!$A:$D,2,FALSE)-SUM(D19:D19,D21:D21)))) -> 0 | G24: =IF(AND(B3<>"R1",B3<>"R2"),0,IF(VLOOKUP($A24,'Data Pass Through'!$A:$D,2,FALSE)=0,0,IF(SUM(G19:G19,G21:G21)<VLOOKUP($A24,'Data Pass Through'!$A:$D,2,FALSE),0,VLOOKUP($A24,'Data Pass Through'!$A:$D,2,FALSE)-SUM(G19:G19,G21:G21)))) -> 0 | H24: 0 | I24: N/A | J24: 0 | K24: 0
A25: Sub-Total: Distribution (excluding pass through) | D25: =SUM(INDIRECT("D19:D"&ROW()-1)) -> 39.944 | G25: =SUM(INDIRECT("g19:g"&ROW()-1)) -> 42.154 | H25: =G25-D25 -> 2.21 | I25: 0.05532745844 | J25: 0.336123038 | K25: 0.331756007
A26: Smart Metering Entity Charge | B26: 1 | C26: =VLOOKUP($A26,'Data Pass Through'!$A:$D,2,FALSE) -> 0.57 | D26: =B26*C26 -> 0.57 | E26: 1 | F26: =VLOOKUP($A26,'Data Pass Through'!$A:$D,3,FALSE) -> 0.57 | G26: =E26*F26 -> 0.57 | H26: 0 | I26: 0 | J26: 0.004545004784 | K26: 0.004485954453
A27: Line Losses on Cost of Power (based on two-tier RPP prices) | B27: =B8-B4 -> 39.33 | C27: =IF(B4>B7,C13,C12) -> 0.115 | D27: =B27*C27 -> 4.52295 | E27: 39.33 | F27: =IF(B4>B7,F13,F12) -> 0.115 | G27: =E27*F27 -> 4.52295 | H27: 0 | I27: 0 | J27: 0.03606461296 | K27: 0.03559604858
A28: Line Losses on Cost of Power (based on TOU prices) | B28: =B8-B4 -> 39.33 | C28: =VLOOKUP($B$3,'Data Billing Quantities'!$A:$O,MATCH(BI_UR_Avg!$A15,'Data Billing Quantities'!$4:$4,0),FALSE)*C15+VLOOKUP($B$3,'Data Billing Quantities'!$A:$O,MATCH(BI_UR_Avg!$A16,'Data Billing Quantities'!$4:$4,0),FALSE)*C16+VLOOKUP($B$3,'Data Billing Quantities'!$A:$O,MATCH(BI_UR_Avg!$A17,'Data Billing Quantities'!$4:$4,0),FALSE)*C17 -> 0.10342 | D28: =B28*C28 -> 4.0675086 | E28: 39.33 | F28: =VLOOKUP($B$3,'Data Billing Quantities'!$A:$O,MATCH(BI_UR_Avg!$A15,'Data Billing Quantities'!$4:$4,0),FALSE)*F15+VLOOKUP($B$3,'Data Billing Quantities'!$A:$O,MATCH(BI_UR_Avg!$A16,'Data Billing Quantities'!$4:$4,0),FALSE)*F16+VLOOKUP($B$3,'Data Billing Quantities'!$A:$O,MATCH(BI_UR_Avg!$A17,'Data Billing Quantities'!$4:$4,0),FALSE)*F17 -> 0.10342 | G28: =E28*F28 -> 4.0675086 | H28: 0 | I28: 0 | J28: 0.03243306324 | K28: 0.03201168125
A29: Sub-Total: Distribution (based on two-tier RPP prices) | D29: =SUM(D25,D26:D27) -> 45.03695 | G29: =SUM(G25,G26:G27) -> 47.24695 | H29: 2.21 | I29: 0.04907081852 | J29: 0.3767326558 | K29: 0.37183801
A30: Sub-Total: Distribution (based on TOU prices) | D30: =SUM(D25,D26,D28) -> 44.5815086 | G30: =SUM(G25,G26,G28) -> 46.7915086 | H30: 2.21 | I30: 0.04957212238 | J30: 0.3731011061 | K30: 0.3682536427
A31: Retail Transmission Rate – Network Service Rate | B31: =B8 -> 729.33 | C31: =VLOOKUP($B$3,'Data Current Rates'!$A:$AN,MATCH(BI_UR_Avg!$A31,CurrentHeader,0),FALSE) -> 0.0109 | D31: =B31*C31 -> 7.949697 | E31: 729.33 | F31: =VLOOKUP($B$3,'Data Proposed Rates'!$A:$AZ,MATCH(BI_UR_Avg!$A31,ProposedHeader,0),FALSE) -> 0.0109 | G31: =E31*F31 -> 7.949697 | H31: =G31-D31 -> 0 | I31: 0 | J31: 0.06338844018 | K31: 0.06256487483
A32: Retail Transmission Rate – Line and Transformation Connection Service Rate | B32: =B8 -> 729.33 | C32: =VLOOKUP($B$3,'Data Current Rates'!$A:$AN,MATCH(BI_UR_Avg!$A32,CurrentHeader,0),FALSE) -> 0.008 | D32: =B32*C32 -> 5.83464 | E32: 729.33 | F32: =VLOOKUP($B$3,'Data Proposed Rates'!$A:$AZ,MATCH(BI_UR_Avg!$A32,ProposedHeader,0),FALSE) -> 0.008 | G32: =E32*F32 -> 5.83464 | H32: =G32-D32 -> 0 | I32: 0 | J32: 0.04652362582 | K32: 0.04591917419
A33: Sub-Total: Retail Transmission | D33: =SUM(D31:D32) -> 13.784337 | G33: =SUM(G31:G32) -> 13.784337 | H33: =G33-D33 -> 0 | I33: 0 | J33: 0.109912066 | K33: 0.108484049
A34: Sub-Total: Delivery (based on two-tier RPP prices) | D34: =D29+D33 -> 58.821287 | G34: =G29+G33 -> 61.031287 | H34: =G34-D34 -> 2.21 | I34: 0.03757143226 | J34: 0.4866447218 | K34: 0.4803220591
A35: Sub-Total: Delivery (based on TOU prices) | D35: =D30+D33 -> 58.3658456 | G35: =G30+G33 -> 60.5758456 | H35: =G35-D35 -> 2.21 | I35: 0.03786461033 | J35: 0.4830131721 | K35: 0.4767376917
A36: Wholesale Market Service Rate (WMS) - not including CBR | B36: =B8 -> 729.33 | C36: =VLOOKUP($A36,'Data Pass Through'!$A:$D,2,FALSE) -> 0.003 | D36: =B36*C36 -> 2.18799 | E36: =$B$8 -> 729.33 | F36: =VLOOKUP($A36,'Data Pass Through'!$A:$D,3,FALSE) -> 0.003 | G36: =E36*F36 -> 2.18799 | H36: 0 | I36: 0 | J36: 0.01744635968 | K36: 0.01721969032
A37: Capacity Based Recovery (CBR) - Applicable for Class B Customers | B37: =B8 -> 729.33 | C37: =VLOOKUP($A37,'Data Pass Through'!$A:$D,2,FALSE) -> 0.0004 | D37: =B37*C37 -> 0.291732 | E37: =$B$8 -> 729.33 | F37: =VLOOKUP($A37,'Data Pass Through'!$A:$D,3,FALSE) -> 0.0004 | G37: =E37*F37 -> 0.291732 | H37: 0 | I37: 0 | J37: 0.002326181291 | K37: 0.002295958709
A38: Rural Rate Protection Charge | B38: =B8 -> 729.33 | C38: =VLOOKUP($A38,'Data Pass Through'!$A:$D,2,FALSE) -> 0.0005 | D38: 0.364665 | E38: 729.33 | F38: =VLOOKUP($A38,'Data Pass Through'!$A:$D,3,FALSE) -> 0.0005 | G38: 0.364665 | H38: 0 | I38: 0 | J38: 0.002907726614 | K38: 0.002869948387
A39: Standard Supply Service – Administration Charge (if applicable) | B39: 1 | C39: =VLOOKUP($A39,'Data Pass Through'!$A:$D,2,FALSE) -> 0.25 | D39: =B39*C39 -> 0.25 | E39: 1 | F39: =VLOOKUP($A39,'Data Pass Through'!$A:$D,3,FALSE) -> 0.25 | G39: 0.25 | H39: 0 | I39: 0 | J39: 0.001993423151 | K39: 0.001967523883
A40: Sub-Total: Regulatory | D40: =SUM(D36:D39) -> 3.094387 | G40: =SUM(G36:G39) -> 3.094387 | H40: 0 | I40: 0 | J40: 0.02467369074 | K40: 0.0243531213
A41: Total Electricty Charge on Two-Tier RPP | D41: =SUM(D14,D25,D26,D27,D33,D40) -> 131.065674 | G41: =SUM(G14,G25,G26,G27,G33,G40) -> 133.275674 | H41: 2.21 | I41: 0.01686177572 | J41: 1.062699256
A42: HST | C42: 0.13 | D42: =D41*C42 -> 17.03853762 | F42: =C42 -> 0.13 | G42: =G41*F42 -> 17.32583762 | H42: 0.2873 | I42: 0.01686177572 | J42: 0.1381509033
A43: Total Electricity Charge on Two-Tier RPP (including HST) | D43: =SUM(D41:D42) -> 148.1042116 | G43: =SUM(G41:G42) -> 150.6015116 | H43: 2.4973 | I43: 0.01686177572 | J43: 1.200850159
A44: Ontario Electricity Rebate (OER) | C44: =IF(($B$4*12)<250000,VLOOKUP(A44,'Data Pass Through'!$A$4:$C$20,2,0),0) -> -0.189 | D44: =D41*C44 -> -24.77141239 | F44: =C44 -> -0.189 | G44: =G41*F44 -> -25.18910239 | H44: -0.41769 | I44: -0.01686177572 | J44: -0.2008501594
A45: Total Amount on Two-Tier RPP | D45: =SUM(D43:D44) -> 123.3327992 | G45: =SUM(G43:G44) -> 125.4124092 | H45: 2.07961 | I45: 0.01686177572 | J45: 1
A46: Total Electricty Charge on TOU (before HST) | D46: =SUM(D18,D25,D26,D28,D33,D40) -> 132.8200326 | G46: =SUM(G18,G25,G26,G28,G33,G40) -> 135.0300326 | H46: 2.21 | I46: 0.0166390563 | K46: =G46/$G$50 -> 1.062699256
A47: HST | C47: 0.13 | D47: =D46*C47 -> 17.26660424 | F47: =C47 -> 0.13 | G47: =G46*F47 -> 17.55390424 | H47: 0.2873 | I47: 0.0166390563 | K47: =G47/$G$50 -> 0.1381509033
A48: Total Electricity Charge on TOU (including HST) | D48: =SUM(D46:D47) -> 150.0866368 | G48: =SUM(G46:G47) -> 152.5839368 | H48: 2.4973 | I48: 0.0166390563 | K48: =G48/$G$50 -> 1.200850159
A49: Ontario Electricity Rebate (OER) | C49: =IF(($B$4*12)<250000,VLOOKUP(A49,'Data Pass Through'!$A$4:$C$20,2,0),0) -> -0.189 | D49: =D46*C49 -> -25.10298616 | F49: =C49 -> -0.189 | G49: =G46*F49 -> -25.52067616 | H49: -0.41769 | I49: -0.0166390563 | K49: =G49/$G$50 -> -0.2008501594
A50: Total Amount on TOU | D50: =SUM(D48:D49) -> 124.9836507 | G50: =SUM(G48:G49) -> 127.0632607 | H50: 2.07961 | I50: 0.0166390563 | K50: =G50/$G$50 -> 1
A51: * Distribution rate protection applies to R1 and R2 customers

Sheet BI_UR_High
A1: 2026 Bill Impacts (High Consumption Level) - UR
A3: Rate Class | B3: =RIGHT(A1,LEN(A1)-FIND("- ",A1,1)-1) -> UR
A4: Monthly Consumption (kWh) | B4: =IF(COUNTIF(A1,"*Low*")>0,VLOOKUP(B3,'Data Billing Quantities'!$A:$Z,MATCH("Low kWh",'Data Billing Quantities'!4:4,0),FALSE),IF(COUNTIF(A1,"*Typical*")>0,VLOOKUP(B3,'Data Billing Quantities'!$A:$Z,MATCH("Typical kWh",'Data Billing Quantities'!4:4,0),FALSE),IF(COUNTIF(A1,"*Average*")>0,VLOOKUP(B3,'Data Billing Quantities'!$A:$Z,MATCH("Average kWh",'Data Billing Quantities'!4:4,0),FALSE),IF(COUNTIF(A1,"*High*")>0,VLOOKUP(B3,'Data Billing Quantities'!$A:$Z,MATCH("High kWh",'Data Billing Quantities'!4:4,0),FALSE),"error")))) -> 1260
A5: Peak (kW) | B5: =IF(COUNTIF(A1,"*Low*")>0,VLOOKUP(B3,'Data Billing Quantities'!$A:$Z,MATCH("Low kW",'Data Billing Quantities'!4:4,0),FALSE),IF(COUNTIF(A1,"*Typical*")>0,VLOOKUP(B3,'Data Billing Quantities'!$A:$Z,MATCH("Typical kW",'Data Billing Quantities'!4:4,0),FALSE),IF(COUNTIF(A1,"*Average*")>0,VLOOKUP(B3,'Data Billing Quantities'!$A:$Z,MATCH("Average kW",'Data Billing Quantities'!4:4,0),FALSE),IF(COUNTIF(A1,"*High*")>0,VLOOKUP(B3,'Data Billing Quantities'!$A:$Z,MATCH("High kW",'Data Billing Quantities'!4:4,0),FALSE),"error")))) -> 0
A6: Loss factor | B6: =VLOOKUP(B3,'Data Billing Quantities'!A:D,MATCH(A6,'Data Billing Quantities'!4:4,0),FALSE) -> 1.057
A7: Commodity Threshold | B7: =VLOOKUP(B3,'Data Billing Quantities'!A:D,MATCH(A7,'Data Billing Quantities'!4:4,0),FALSE) -> 600
A8: Monthly Consumption (kWh) - Uplifted | B8: =B4*B6 -> 1331.82
A9: Charge determinant | B9: =VLOOKUP(B3,'Data Billing Quantities'!A:D,MATCH(A9,'Data Billing Quantities'!4:4,0),FALSE) -> kWh
B11: Volume | C11: Current Rate ($) | D11: Current Charge ($) | E11: Volume | F11: Proposed Rate ($) | G11: Proposed Charge ($) | H11: Change ($) | I11: Change (%) | J11: % of Total Bill on RPP | K11: % of Total Bill
A12: Energy First Tier | B12: =IF(B4>B7,B7,B4) -> 600 | C12: =VLOOKUP($A12,'Data Pass Through'!$A:$D,2,FALSE) -> 0.098 | D12: =B12*C12 -> 58.8 | E12: =B12 -> 600 | F12: =VLOOKUP($A12,'Data Pass Through'!$A:$D,3,FALSE) -> 0.098 | G12: =E12*F12 -> 58.8 | H12: =G12-D12 -> 0 | I12: =IF(ISERROR(H12/ABS(D12)),"N/A",(H12/ABS(D12))) -> 0 | J12: =G12/$G$45 -> 0.2891955665
A13: Energy Second Tier | B13: =IF(B4>B7,(B4)-B7,0) -> 660 | C13: =VLOOKUP($A13,'Data Pass Through'!$A:$D,2,FALSE) -> 0.115 | D13: =B13*C13 -> 75.9 | E13: =B13 -> 660 | F13: =VLOOKUP($A13,'Data Pass Through'!$A:$D,3,FALSE) -> 0.115 | G13: =E13*F13 -> 75.9 | H13: 0 | I13: 0 | J13: =G13/$G$45 -> 0.3732983588
A14: Sub-Total: Energy (RPP Tiered) | D14: =SUM(D12:D13) -> 134.7 | G14: =SUM(G12:G13) -> 134.7 | H14: 0 | I14: 0 | J14: =G14/$G$45 -> 0.6624939254
A15: TOU-Off Peak | B15: =B$4*VLOOKUP($B$3,'Data Billing Quantities'!$A:$O,MATCH(BI_UR_High!$A15,'Data Billing Quantities'!$4:$4,0),FALSE) -> 806.4 | C15: =VLOOKUP($A15,'Data Pass Through'!$A:$D,2,FALSE) -> 0.082 | D15: =B15*C15 -> 66.1248 | E15: 806.4 | F15: =VLOOKUP($A15,'Data Pass Through'!$A:$D,3,FALSE) -> 0.082 | G15: =E15*F15 -> 66.1248 | H15: 0 | I15: 0 | K15: =G15/$G$50 -> 0.3332764313
A16: TOU-Mid Peak | B16: =B$4*VLOOKUP($B$3,'Data Billing Quantities'!$A:$O,MATCH(BI_UR_High!$A16,'Data Billing Quantities'!$4:$4,0),FALSE) -> 226.8 | C16: =VLOOKUP($A16,'Data Pass Through'!$A:$D,2,FALSE) -> 0.113 | D16: =B16*C16 -> 25.6284 | E16: 226.8 | F16: =VLOOKUP($A16,'Data Pass Through'!$A:$D,3,FALSE) -> 0.113 | G16: =E16*F16 -> 25.6284 | H16: 0 | I16: 0 | K16: 0.1291700193
A17: TOU-On Peak | B17: =B$4*VLOOKUP($B$3,'Data Billing Quantities'!$A:$O,MATCH(BI_UR_High!$A17,'Data Billing Quantities'!$4:$4,0),FALSE) -> 226.8 | C17: =VLOOKUP($A17,'Data Pass Through'!$A:$D,2,FALSE) -> 0.17 | D17: =B17*C17 -> 38.556 | E17: 226.8 | F17: =VLOOKUP($A17,'Data Pass Through'!$A:$D,3,FALSE) -> 0.17 | G17: =E17*F17 -> 38.556 | H17: 0 | I17: 0 | K17: 0.1943265777
A18: Sub-Total: Energy (RPP TOU) | D18: =SUM(D15:D17) -> 130.3092 | G18: =SUM(G15:G17) -> 130.3092 | H18: 0 | I18: 0 | J18: =G18/$G$45 -> 0.6408986891 | K18: 0.6567730283
A19: Service Charge | B19: 1 | C19: =VLOOKUP($B$3,'Data Current Rates'!$A:$AN,MATCH(BI_UR_High!$A19,CurrentHeader,0),FALSE) -> 40.3 | D19: =B19*C19 -> 40.3 | E19: 1 | F19: =VLOOKUP($B$3,'Data Proposed Rates'!$A:$AZ,MATCH(BI_UR_High!$A19,ProposedHeader,0),FALSE) -> 42.51 | G19: =E19*F19 -> 42.51 | H19: 2.21 | I19: 0.05483870968 | J19: 0.2090765907 | K19: 0.2142551825
A20: Group 2 Fixed DVA Rider | B20: 1 | C20: =VLOOKUP($B$3,'Data Current Rates'!$A:$AN,MATCH(BI_UR_High!$A20,CurrentHeader,0),FALSE) -> -0.08 | D20: -0.08 | E20: 1 | F20: =VLOOKUP($B$3,'Data Proposed Rates'!$A:$AZ,MATCH(BI_UR_High!$A20,ProposedHeader,0),FALSE) -> -0.08 | G20: -0.08 | H20: 0 | I20: 0 | J20: -0.0003934633558 | K20: -0.0004032090003
A21: Distribution Volumetric Charge | B21: =IF($B$9="kWh",$B$4,$B$5) -> 1260 | C21: =VLOOKUP($B$3,'Data Current Rates'!$A:$AN,MATCH(BI_UR_High!$A21,CurrentHeader,0),FALSE) -> 0 | D21: 0 | E21: 1260 | F21: =VLOOKUP($B$3,'Data Proposed Rates'!$A:$AZ,MATCH(BI_UR_High!$A21,ProposedHeader,0),FALSE) -> 0 | G21: 0 | H21: 0 | I21: N/A | J21: 0 | K21: 0
A22: Group 1 Volumetric DVA Rider (General) | B22: =IF($B$9="kWh",$B$4,$B$5) -> 1260 | C22: =VLOOKUP($B$3,'Data Current Rates'!$A:$AN,MATCH(BI_UR_High!$A22,CurrentHeader,0),FALSE) -> -0.0004 | D22: -0.504 | E22: =B4 -> 1260 | F22: =VLOOKUP($B$3,'Data Proposed Rates'!$A:$AZ,MATCH(BI_UR_High!$A22,ProposedHeader,0),FALSE) -> -0.0004 | G22: -0.504 | H22: 0 | I22: 0 | J22: -0.002478819142 | K22: -0.002540216702
A23: Group 2 Volumetric DVA Rider | B23: 1260 | C23: =VLOOKUP($B$3,'Data Current Rates'!$A:$AN,MATCH(BI_UR_High!$A23,CurrentHeader,0),FALSE) -> 0 | D23: 0 | E23: =B4 -> 1260 | F23: =VLOOKUP($B$3,'Data Proposed Rates'!$A:$AZ,MATCH(BI_UR_High!$A23,ProposedHeader,0),FALSE) -> 0 | G23: 0 | H23: 0 | I23: N/A | J23: 0 | K23: 0
A24: Fair Hydro Plan - Distribution Rate Protection Savings* | D24: =IF(AND(B3<>"R1",B3<>"R2"),0,IF(VLOOKUP($A24,'Data Pass Through'!$A:$D,2,FALSE)=0,0,IF(SUM(D19:D19,D21:D21)<VLOOKUP($A24,'Data Pass Through'!$A:$D,2,FALSE),0,VLOOKUP($A24,'Data Pass Through'!$A:$D,2,FALSE)-SUM(D19:D19,D21:D21)))) -> 0 | G24: =IF(AND(B3<>"R1",B3<>"R2"),0,IF(VLOOKUP($A24,'Data Pass Through'!$A:$D,2,FALSE)=0,0,IF(SUM(G19:G19,G21:G21)<VLOOKUP($A24,'Data Pass Through'!$A:$D,2,FALSE),0,VLOOKUP($A24,'Data Pass Through'!$A:$D,2,FALSE)-SUM(G19:G19,G21:G21)))) -> 0 | H24: 0 | I24: N/A | J24: 0 | K24: 0
A25: Sub-Total: Distribution (excluding pass through) | D25: =SUM(INDIRECT("D19:D"&ROW()-1)) -> 39.716 | G25: =SUM(INDIRECT("g19:g"&ROW()-1)) -> 41.926 | H25: =G25-D25 -> 2.21 | I25: 0.05564508007 | J25: 0.2062043082 | K25: 0.2113117568
A26: Smart Metering Entity Charge | B26: 1 | C26: =VLOOKUP($A26,'Data Pass Through'!$A:$D,2,FALSE) -> 0.57 | D26: =B26*C26 -> 0.57 | E26: 1 | F26: =VLOOKUP($A26,'Data Pass Through'!$A:$D,3,FALSE) -> 0.57 | G26: =E26*F26 -> 0.57 | H26: 0 | I26: 0 | J26: 0.00280342641 | K26: 0.002872864127
A27: Line Losses on Cost of Power (based on two-tier RPP prices) | B27: =B8-B4 -> 71.82 | C27: =IF(B4>B7,C13,C12) -> 0.115 | D27: =B27*C27 -> 8.2593 | E27: 71.82 | F27: =IF(B4>B7,F13,F12) -> 0.115 | G27: =E27*F27 -> 8.2593 | H27: 0 | I27: 0 | J27: 0.04062164868 | K27: 0.0416278012
A28: Line Losses on Cost of Power (based on TOU prices) | B28: =B8-B4 -> 71.82 | C28: =VLOOKUP($B$3,'Data Billing Quantities'!$A:$O,MATCH(BI_UR_High!$A15,'Data Billing Quantities'!$4:$4,0),FALSE)*C15+VLOOKUP($B$3,'Data Billing Quantities'!$A:$O,MATCH(BI_UR_High!$A16,'Data Billing Quantities'!$4:$4,0),FALSE)*C16+VLOOKUP($B$3,'Data Billing Quantities'!$A:$O,MATCH(BI_UR_High!$A17,'Data Billing Quantities'!$4:$4,0),FALSE)*C17 -> 0.10342 | D28: =B28*C28 -> 7.4276244 | E28: 71.82 | F28: =VLOOKUP($B$3,'Data Billing Quantities'!$A:$O,MATCH(BI_UR_High!$A15,'Data Billing Quantities'!$4:$4,0),FALSE)*F15+VLOOKUP($B$3,'Data Billing Quantities'!$A:$O,MATCH(BI_UR_High!$A16,'Data Billing Quantities'!$4:$4,0),FALSE)*F16+VLOOKUP($B$3,'Data Billing Quantities'!$A:$O,MATCH(BI_UR_High!$A17,'Data Billing Quantities'!$4:$4,0),FALSE)*F17 -> 0.10342 | G28: =E28*F28 -> 7.4276244 | H28: 0 | I28: 0 | J28: 0.03653122528 | K28: 0.03743606261
A29: Sub-Total: Distribution (based on two-tier RPP prices) | D29: =SUM(D25,D26:D27) -> 48.5453 | G29: =SUM(G25,G26:G27) -> 50.7553 | H29: 2.21 | I29: 0.0455244895 | J29: 0.2496293833 | K29: 0.2558124222
A30: Sub-Total: Distribution (based on TOU prices) | D30: =SUM(D25,D26,D28) -> 47.7136244 | G30: =SUM(G25,G26,G28) -> 49.9236244 | H30: 2.21 | I30: 0.04631800723 | J30: 0.2455389599 | K30: 0.2516206836
A31: Retail Transmission Rate – Network Service Rate | B31: =B8 -> 1331.82 | C31: =VLOOKUP($B$3,'Data Current Rates'!$A:$AN,MATCH(BI_UR_High!$A31,CurrentHeader,0),FALSE) -> 0.0109 | D31: =B31*C31 -> 14.516838 | E31: 1331.82 | F31: =VLOOKUP($B$3,'Data Proposed Rates'!$A:$AZ,MATCH(BI_UR_High!$A31,ProposedHeader,0),FALSE) -> 0.0109 | G31: =E31*F31 -> 14.516838 | H31: =G31-D31 -> 0 | I31: 0 | J31: 0.07139804744 | K31: 0.07316649672
A32: Retail Transmission Rate – Line and Transformation Connection Service Rate | B32: =B8 -> 1331.82 | C32: =VLOOKUP($B$3,'Data Current Rates'!$A:$AN,MATCH(BI_UR_High!$A32,CurrentHeader,0),FALSE) -> 0.008 | D32: =B32*C32 -> 10.65456 | E32: 1331.82 | F32: =VLOOKUP($B$3,'Data Proposed Rates'!$A:$AZ,MATCH(BI_UR_High!$A32,ProposedHeader,0),FALSE) -> 0.008 | G32: =E32*F32 -> 10.65456 | H32: =G32-D32 -> 0 | I32: 0 | J32: 0.05240223665 | K32: 0.05370018108
A33: Sub-Total: Retail Transmission | D33: =SUM(D31:D32) -> 25.171398 | G33: =SUM(G31:G32) -> 25.171398 | H33: =G33-D33 -> 0 | I33: 0 | J33: 0.1238002841 | K33: 0.1268666778
A34: Sub-Total: Delivery (based on two-tier RPP prices) | D34: =D29+D33 -> 73.716698 | G34: =G29+G33 -> 75.926698 | H34: =G34-D34 -> 2.21 | I34: 0.02997963908 | J34: 0.3734296674 | K34: 0.3826791
A35: Sub-Total: Delivery (based on TOU prices) | D35: =D30+D33 -> 72.8850224 | G35: =G30+G33 -> 75.0950224 | H35: =G35-D35 -> 2.21 | I35: 0.03032173041 | J35: 0.369339244 | K35: 0.3784873614
A36: Wholesale Market Service Rate (WMS) - not including CBR | B36: =B8 -> 1331.82 | C36: =VLOOKUP($A36,'Data Pass Through'!$A:$D,2,FALSE) -> 0.003 | D36: =B36*C36 -> 3.99546 | E36: =$B$8 -> 1331.82 | F36: =VLOOKUP($A36,'Data Pass Through'!$A:$D,3,FALSE) -> 0.003 | G36: =E36*F36 -> 3.99546 | H36: 0 | I36: 0 | J36: 0.01965083875 | K36: 0.02013756791
A37: Capacity Based Recovery (CBR) - Applicable for Class B Customers | B37: =B8 -> 1331.82 | C37: =VLOOKUP($A37,'Data Pass Through'!$A:$D,2,FALSE) -> 0.0004 | D37: =B37*C37 -> 0.532728 | E37: =$B$8 -> 1331.82 | F37: =VLOOKUP($A37,'Data Pass Through'!$A:$D,3,FALSE) -> 0.0004 | G37: =E37*F37 -> 0.532728 | H37: 0 | I37: 0 | J37: 0.002620111833 | K37: 0.002685009054
A38: Rural Rate Protection Charge | B38: =B8 -> 1331.82 | C38: =VLOOKUP($A38,'Data Pass Through'!$A:$D,2,FALSE) -> 0.0005 | D38: 0.66591 | E38: 1331.82 | F38: =VLOOKUP($A38,'Data Pass Through'!$A:$D,3,FALSE) -> 0.0005 | G38: 0.66591 | H38: 0 | I38: 0 | J38: 0.003275139791 | K38: 0.003356261318
A39: Standard Supply Service – Administration Charge (if applicable) | B39: 1 | C39: =VLOOKUP($A39,'Data Pass Through'!$A:$D,2,FALSE) -> 0.25 | D39: =B39*C39 -> 0.25 | E39: 1 | F39: =VLOOKUP($A39,'Data Pass Through'!$A:$D,3,FALSE) -> 0.25 | G39: 0.25 | H39: 0 | I39: 0 | J39: 0.001229572987 | K39: 0.001260028126
A40: Sub-Total: Regulatory | D40: =SUM(D36:D39) -> 5.444098 | G40: =SUM(G36:G39) -> 5.444098 | H40: 0 | I40: 0 | J40: 0.02677566336 | K40: 0.0274388664
A41: Total Electricty Charge on Two-Tier RPP | D41: =SUM(D14,D25,D26,D27,D33,D40) -> 213.860796 | G41: =SUM(G14,G25,G26,G27,G33,G40) -> 216.070796 | H41: 2.21 | I41: 0.01033382481 | J41: 1.062699256
A42: HST | C42: 0.13 | D42: =D41*C42 -> 27.80190348 | F42: =C42 -> 0.13 | G42: =G41*F42 -> 28.08920348 | H42: 0.2873 | I42: 0.01033382481 | J42: 0.1381509033
A43: Total Electricity Charge on Two-Tier RPP (including HST) | D43: =SUM(D41:D42) -> 241.6626995 | G43: =SUM(G41:G42) -> 244.1599995 | H43: 2.4973 | I43: 0.01033382481 | J43: 1.200850159
A44: Ontario Electricity Rebate (OER) | C44: =IF(($B$4*12)<250000,VLOOKUP(A44,'Data Pass Through'!$A$4:$C$20,2,0),0) -> -0.189 | D44: =D41*C44 -> -40.41969044 | F44: =C44 -> -0.189 | G44: =G41*F44 -> -40.83738044 | H44: -0.41769 | I44: -0.01033382481 | J44: -0.2008501594
A45: Total Amount on Two-Tier RPP | D45: =SUM(D43:D44) -> 201.243009 | G45: =SUM(G43:G44) -> 203.322619 | H45: 2.07961 | I45: 0.01033382481 | J45: 1
A46: Total Electricty Charge on TOU (before HST) | D46: =SUM(D18,D25,D26,D28,D33,D40) -> 208.6383204 | G46: =SUM(G18,G25,G26,G28,G33,G40) -> 210.8483204 | H46: 2.21 | I46: 0.01059249325 | K46: =G46/$G$50 -> 1.062699256
A47: HST | C47: 0.13 | D47: =D46*C47 -> 27.12298165 | F47: =C47 -> 0.13 | G47: =G46*F47 -> 27.41028165 | H47: 0.2873 | I47: 0.01059249325 | K47: =G47/$G$50 -> 0.1381509033
A48: Total Electricity Charge on TOU (including HST) | D48: =SUM(D46:D47) -> 235.7613021 | G48: =SUM(G46:G47) -> 238.2586021 | H48: 2.4973 | I48: 0.01059249325 | K48: =G48/$G$50 -> 1.200850159
A49: Ontario Electricity Rebate (OER) | C49: =IF(($B$4*12)<250000,VLOOKUP(A49,'Data Pass Through'!$A$4:$C$20,2,0),0) -> -0.189 | D49: =D46*C49 -> -39.43264256 | F49: =C49 -> -0.189 | G49: =G46*F49 -> -39.85033256 | H49: -0.41769 | I49: -0.01059249325 | K49: =G49/$G$50 -> -0.2008501594
A50: Total Amount on TOU | D50: =SUM(D48:D49) -> 196.3286595 | G50: =SUM(G48:G49) -> 198.4082695 | H50: 2.07961 | I50: 0.01059249325 | K50: =G50/$G$50 -> 1
A51: * Distribution rate protection applies to R1 and R2 customers

Sheet BI_R1_Low
A1: 2026 Bill Impacts (Low Consumption Level) - R1
A3: Rate Class | B3: =RIGHT(A1,LEN(A1)-FIND("- ",A1,1)-1) -> R1
A4: Monthly Consumption (kWh) | B4: =IF(COUNTIF(A1,"*Low*")>0,VLOOKUP(B3,'Data Billing Quantities'!$A:$Z,MATCH("Low kWh",'Data Billing Quantities'!4:4,0),FALSE),IF(COUNTIF(A1,"*Typical*")>0,VLOOKUP(B3,'Data Billing Quantities'!$A:$Z,MATCH("Typical kWh",'Data Billing Quantities'!4:4,0),FALSE),IF(COUNTIF(A1,"*Average*")>0,VLOOKUP(B3,'Data Billing Quantities'!$A:$Z,MATCH("Average kWh",'Data Billing Quantities'!4:4,0),FALSE),IF(COUNTIF(A1,"*High*")>0,VLOOKUP(B3,'Data Billing Quantities'!$A:$Z,MATCH("High kWh",'Data Billing Quantities'!4:4,0),FALSE),"error")))) -> 370
